Workbook

Sheet EF (hidden)
A1: Fin | B1: Función | C1: Sub-función | D1: Dimención del indicador | E1: Tipo | F1: Tipo de programa | G1: Frecuencia | H1: Tipo de indicador | I1: Nivel de MIR
A2: 1. Gobierno | B2: 1.1. Legislación | C2: 1.1.1 Legislación | D2: Eficacia | E2: Estatégico | F2: MIR | G2: Mensual | H2: Cantidad | I2: FIN
A3: 1. Gobierno | B3: 1.1. Legislación | C3: 1.1.2 Fiscalización | D3: Eficiencia | E3: Gestión | F3: Indicador de gestión | G3: Bimestral | H3: Porcentaje | I3: PROPÓSITO
A4: 1. Gobierno | B4: 1.2. Justicia | C4: 1.2.1 Impartición de justicia | D4: Econocmía | G4: Trimestral | H4: Tasa | I4: COMPONENTE
A5: 1. Gobierno | B5: 1.2. Justicia | C5: 1.2.2 Procuración de justicia | D5: Calidad | G5: Cuatrimestral | H5: Razón | I5: ACTIVIDAD
A6: 1. Gobierno | B6: 1.2. Justicia | C6: 1.2.3 Reclusión y readaptación social | G6: Semestral | H6: Promedio | I6: INDICADOR DE GESTIÓN
A7: 1. Gobierno | B7: 1.2. Justicia | C7: 1.2.4 Derechos humanos | G7: Anual | H7: Tasa de variación
A8: 1. Gobierno | B8: 1.3. Coordinación política de gobierno | C8: 1.3.1 Presidencia / Gubernatura | G8: Bienal
A9: 1. Gobierno | B9: 1.3. Coordinación política de gobierno | C9: 1.3.2 Política interior
A10: 1. Gobierno | B10: 1.3. Coordinación política de gobierno | C10: 1.3.3 Preservación y cuidado del patrimonio público
A11: 1. Gobierno | B11: 1.3. Coordinación política de gobierno | C11: 1.3.4 Función pública
A12: 1. Gobierno | B12: 1.3. Coordinación política de gobierno | C12: 1.3.5 Asuntos jurídicos
A13: 1. Gobierno | B13: 1.3. Coordinación política de gobierno | C13: 1.3.6 Organización de procesos electorales
A14: 1. Gobierno | B14: 1.3. Coordinación política de gobierno | C14: 1.3.7 Población
A15: 1. Gobierno | B15: 1.3. Coordinación política de gobierno | C15: 1.3.8 Territorio
A16: 1. Gobierno | B16: 1.3. Coordinación política de gobierno | C16: 1.3.9 Otros
A17: 1. Gobierno | B17: 1.4. Relaciones exteriores | C17: 1.4.1 Relaciones exteriores
A18: 1. Gobierno | B18: 1.5. Asuntos financieros y hacendarios | C18: 1.5.1 Asuntos financieros
A19: 1. Gobierno | B19: 1.5. Asuntos financieros y hacendarios | C19: 1.5.2 Asuntos hacendarios
A20: 1. Gobierno | B20: 1.6 Seguridad nacional | C20: 1.6.1 Defensa
A21: 1. Gobierno | B21: 1.6 Seguridad nacional | C21: 1.6.2 Marina
A22: 1. Gobierno | B22: 1.6 Seguridad nacional | C22: 1.6.3 Inteligencia para la preservación de la seguridad nacional
A23: 1. Gobierno | B23: 1.7. Asuntos de orden público y seguridad interior | C23: 1.7.1 Policía
A24: 1. Gobierno | B24: 1.7. Asuntos de orden público y seguridad interior | C24: 1.7.2 Protección civil
A25: 1. Gobierno | B25: 1.7. Asuntos de orden público y seguridad interior | C25: 1.7.3 Otros asuntos de orden público y seguridad
A26: 1. Gobierno | B26: 1.7. Asuntos de orden público y seguridad interior | C26: 1.7.4 Sistema nacional de seguridad pública
A27: 1. Gobierno | B27: 1.8. Otros servicios generales | C27: 1.8.1 Servicios registrales, administrativos y patrimoniales
A28: 1. Gobierno | B28: 1.8. Otros servicios generales | C28: 1.8.2 Servicios estadísticos
A29: 1. Gobierno | B29: 1.8. Otros servicios generales | C29: 1.8.3 Servicios de comunicación y medios
A30: 1. Gobierno | B30: 1.8. Otros servicios generales | C30: 1.8.4 Acceso a la información pública gubernamental
A31: 1. Gobierno | B31: 1.8. Otros servicios generales | C31: 1.8.5 Otros
A32: 2. Desarrollo social | B32: 2.1. Protección ambiental | C32: 2.1.1 Ordenación de desechos
A33: 2. Desarrollo social | B33: 2.1. Protección ambiental | C33: 2.1.2 Administración del agua
A34: 2. Desarrollo social | B34: 2.1. Protección ambiental | C34: 2.1.3 Ordenación de aguas residuales, drenaje y alcantarillado
A35: 2. Desarrollo social | B35: 2.1. Protección ambiental | C35: 2.1.4 Reducción de la contaminación
A36: 2. Desarrollo social | B36: 2.1. Protección ambiental | C36: 2.1.5 Protección de la diversidad biológica y del paisaje
A37: 2. Desarrollo social | B37: 2.1. Protección ambiental | C37: 2.1.6 Otros de protección ambiental
A38: 2. Desarrollo social | B38: 2.2. Vivienda y servicios a la comunidad | C38: 2.2.1 Urbanización
A39: 2. Desarrollo social | B39: 2.2. Vivienda y servicios a la comunidad | C39: 2.2.2 Desarrollo comunitario
A40: 2. Desarrollo social | B40: 2.2. Vivienda y servicios a la comunidad | C40: 2.2.3 Abastecimiento de agua
A41: 2. Desarrollo social | B41: 2.2. Vivienda y servicios a la comunidad | C41: 2.2.4 Alumbrado público
A42: 2. Desarrollo social | B42: 2.2. Vivienda y servicios a la comunidad | C42: 2.2.5 Vivienda
A43: 2. Desarrollo social | B43: 2.2. Vivienda y servicios a la comunidad | C43: 2.2.6 Servicios comunales
A44: 2. Desarrollo social | B44: 2.2. Vivienda y servicios a la comunidad | C44: 2.2.7 Desarrollo regional
A45: 2. Desarrollo social | B45: 2.3. Salud | C45: 2.3.1 Prestación de servicios de aalud a la comunidad
A46: 2. Desarrollo social | B46: 2.3. Salud | C46: 2.3.2 Prestación de servicios de salud a la persona
A47: 2. Desarrollo social | B47: 2.3. Salud | C47: 2.3.3 Generación de recursos para la salud
A48: 2. Desarrollo social | B48: 2.3. Salud | C48: 2.3.4 Rectoría del sistema de salud
A49: 2. Desarrollo social | B49: 2.3. Salud | C49: 2.3.5 Protección social en salud
A50: 2. Desarrollo social | B50: 2.4. Recreación cultura y otras manifestaciones sociales | C50: 2.4.1 Deporte y recreación
A51: 2. Desarrollo social | B51: 2.4. Recreación cultura y otras manifestaciones sociales | C51: 2.4.2 Cultura
A52: 2. Desarrollo social | B52: 2.4. Recreación cultura y otras manifestaciones sociales | C52: 2.4.3 Radio, televisión y editoriales
A53: 2. Desarrollo social | B53: 2.4. Recreación cultura y otras manifestaciones sociales | C53: 2.4.4 Asuntos religiosos y otras manifestaciones sociales
A54: 2. Desarrollo social | B54: 2.5. Educación | C54: 2.5.1 Educación básica
A55: 2. Desarrollo social | B55: 2.5. Educación | C55: 2.5.2 Educación media superior
A56: 2. Desarrollo social | B56: 2.5. Educación | C56: 2.5.3 Educación superior
A57: 2. Desarrollo social | B57: 2.5. Educación | C57: 2.5.4 Posgrado
A58: 2. Desarrollo social | B58: 2.5. Educación | C58: 2.5.5 Educación para adultos
A59: 2. Desarrollo social | B59: 2.5. Educación | C59: 2.5.6 Otros servicios educativos y actividades inherentes
A60: 2. Desarrollo social | B60: 2.6. Protección social | C60: 2.6.1 Enfermedad e incapacidad
A61: 2. Desarrollo social | B61: 2.6. Protección social | C61: 2.6.2 Edad avanzada
A62: 2. Desarrollo social | B62: 2.6. Protección social | C62: 2.6.3 Familia e hijos
A63: 2. Desarrollo social | B63: 2.6. Protección social | C63: 2.6.4 Desempleo
A64: 2. Desarrollo social | B64: 2.6. Protección social | C64: 2.6.5 Alimentación y nutrición
A65: 2. Desarrollo social | B65: 2.6. Protección social | C65: 2.6.6 Apoyo social para la vivienda
A66: 2. Desarrollo social | B66: 2.6. Protección social | C66: 2.6.7 Indígenas
A67: 2. Desarrollo social | B67: 2.6. Protección social | C67: 2.6.8 Otros grupos vulnerables
A68: 2. Desarrollo social | B68: 2.6. Protección social | C68: 2.6.9 Otros de seguridad social y asistencia social
A69: 2. Desarrollo social | B69: 2.7. Otros asuntos sociales | C69: 2.7.1 Otros asuntos sociales
A70: 3. Desarrollo económico | B70: 3.1. Asuntos económicos comerciales y laborales generales | C70: 3.1.1 Asuntos económicos y comerciales en general
A71: 3. Desarrollo económico | B71: 3.1. Asuntos económicos comerciales y laborales generales | C71: 3.1.2 Asuntos laborales generales
A72: 3. Desarrollo económico | B72: 3.2. Agropecuaria silvicultura pesca y caza | C72: 3.2.1 Agropecuaria
A73: 3. Desarrollo económico | B73: 3.2. Agropecuaria silvicultura pesca y caza | C73: 3.2.2 Silvicultura
A74: 3. Desarrollo económico | B74: 3.2. Agropecuaria silvicultura pesca y caza | C74: 3.2.3 Acuacultura, pesca y caza
A75: 3. Desarrollo económico | B75: 3.2. Agropecuaria silvicultura pesca y caza | C75: 3.2.4 Agroindustrial
A76: 3. Desarrollo económico | B76: 3.2. Agropecuaria silvicultura pesca y caza | C76: 3.2.5 Hidroagrícola
A77: 3. Desarrollo económico | B77: 3.2. Agropecuaria silvicultura pesca y caza | C77: 3.2.6 Apoyo financiero a la banca y seguro agropecuario
A78: 3. Desarrollo económico | B78: 3.3. Combustibles y energía | C78: 3.3.1 Carbón y otros combustibles minerales sólidos
A79: 3. Desarrollo económico | B79: 3.3. Combustibles y energía | C79: 3.3.2 Petróleo y gas natural (Hidrocarburos)
A80: 3. Desarrollo económico | B80: 3.3. Combustibles y energía | C80: 3.3.3 Combustibles nucleares
A81: 3. Desarrollo económico | B81: 3.3. Combustibles y energía | C81: 3.3.4 Otros combustibles
A82: 3. Desarrollo económico | B82: 3.3. Combustibles y energía | C82: 3.3.5 Electricidad
A83: 3. Desarrollo económico | B83: 3.3. Combustibles y energía | C83: 3.3.6 Energía no eléctrica
A84: 3. Desarrollo económico | B84: 3.4. Minería manufacturas y construcción | C84: 3.4.1 Extracción de recursos minerales excepto los combustibles minerales
A85: 3. Desarrollo económico | B85: 3.4. Minería manufacturas y construcción | C85: 3.4.2 Manufacturas
A86: 3. Desarrollo económico | B86: 3.4. Minería manufacturas y construcción | C86: 3.4.3 Construcción
A87: 3. Desarrollo económico | B87: 3.5. Transporte | C87: 3.5.1 Transporte por carretera
A88: 3. Desarrollo económico | B88: 3.5. Transporte | C88: 3.5.2 Transporte por agua y puertos
A89: 3. Desarrollo económico | B89: 3.5. Transporte | C89: 3.5.3 Transporte por ferrocarril
A90: 3. Desarrollo económico | B90: 3.5. Transporte | C90: 3.5.4 Transporte aéreo
A91: 3. Desarrollo económico | B91: 3.5. Transporte | C91: 3.5.5 Transporte por oleoductos y gasoductos y otros sistemas de transporte
A92: 3. Desarrollo económico | B92: 3.5. Transporte | C92: 3.5.6 Otros relacionados con transporte
A93: 3. Desarrollo económico | B93: 3.6. Comunicaciones | C93: 3.6.1 Comunicaciones
A94: 3. Desarrollo económico | B94: 3.7. Turismo | C94: 3.7.1 Turismo
A95: 3. Desarrollo económico | B95: 3.7. Turismo | C95: 3.7.2 Hoteles y restaurantes
A96: 3. Desarrollo económico | B96: 3.8. Ciencia tecnología e innovación | C96: 3.8.1 Investigación científica
A97: 3. Desarrollo económico | B97: 3.8. Ciencia tecnología e innovación | C97: 3.8.2 Desarrollo tecnológico
A98: 3. Desarrollo económico | B98: 3.8. Ciencia tecnología e innovación | C98: 3.8.3 Servicios científicos y tecnológicos
A99: 3. Desarrollo económico | B99: 3.8. Ciencia tecnología e innovación | C99: 3.8.4 Innovación
A100: 3. Desarrollo económico | B100: 3.9. Otras industrias y otros asuntos económicos | C100: 3.9.1 Comercio, distribución, almacenamiento y depósito
A101: 3. Desarrollo económico | B101: 3.9. Otras industrias y otros asuntos económicos | C101: 3.9.2 Otras industrias
A102: 3. Desarrollo económico | B102: 3.9. Otras industrias y otros asuntos económicos | C102: 3.9.3 Otros asuntos económicos
A103: 4. Otros no clasificadas en funciones anteriores | B103: 4.1. Transacciones de la deuda financiera y costo financiero deuda | C103: 4.1.1 Deuda pública interna
A104: 4. Otros no clasificadas en funciones anteriores | B104: 4.1. Transacciones de la deuda financiera y costo financiero deuda | C104: 4.1.2 Deuda pública externa
A105: 4. Otros no clasificadas en funciones anteriores | B105: 4.2. Transferencias, participaciones y aportaciones entre diferentes niveles y ordenes de gobierno | C105: 4.2.1 Transferencias entre diferentes niveles y ordenes de gobierno
A106: 4. Otros no clasificadas en funciones anteriores | B106: 4.2. Transferencias, participaciones y aportaciones entre diferentes niveles y ordenes de gobierno | C106: 4.2.2 Participaciones entre diferentes niveles y ordenes de gobierno
A107: 4. Otros no clasificadas en funciones anteriores | B107: 4.2. Transferencias, participaciones y aportaciones entre diferentes niveles y ordenes de gobierno | C107: 4.2.3 Aportaciones entre diferentes niveles y ordenes de gobierno
A108: 4. Otros no clasificadas en funciones anteriores | B108: 4.3. Saneamiento del sistema financiero | C108: 4.3.1 Saneamiento del sistema financiero
A109: 4. Otros no clasificadas en funciones anteriores | B109: 4.3. Saneamiento del sistema financiero | C109: 4.3.2 Apoyos IPAB
A110: 4. Otros no clasificadas en funciones anteriores | B110: 4.3. Saneamiento del sistema financiero | C110: 4.3.3 Banca de desarrollo
A111: 4. Otros no clasificadas en funciones anteriores | B111: 4.3. Saneamiento del sistema financiero | C111: 4.3.4 Apoyo a los programas de reestructura en unidades de inversión (UDIS)
A112: 4. Otros no clasificadas en funciones anteriores | B112: 4.4. Adeudos de ejercicios fiscales anteriores | C112: 4.4.1 Adeudos de ejercicios fiscales anteriores

Sheet Validacion (hidden)
A1: NOMBRE DEL ENTE PÚBLICO | AG1: ="Versión "&F185&".01" -> Versión 2026.01
A2: Ixtlahuacán de los Membrillos
A5: INFORMACIÓN
A6: Nombre del presidente municipal o titular de la entidad pública
A7: LIC. JOSE HERIBERTO GARCIA MURILLO
A8: Nombre del encargado de la hacienda pública o finanzas de la entidad pública
A9: LAE BRUNO GERMAN ENCISO GUILLEN
A10: Mes o corte a informar
A11: ENERO | AM11: =IF(A11="ENERO",1,IF(A11="FEBRERO",2,IF(A11="MARZO",3,IF(A11="ABRIL",4,IF(A11="MAYO",5,IF(A11="JUNIO, 1er. Informe de Avance de Gestión Financiera y Corte Semestral",6,IF(A11="JULIO",7,IF(A11="AGOSTO",8,IF(A11="SEPTIEMBRE",9,IF(A11="OCTUBRE",10,IF(A11="NOVIEMBRE",11,IF(A11="DICIEMBRE, 2do. Informe de Avance de Gestión Financiera y Corte Anual",12,"")))))))))))) -> 1
A12: VERIFICACIÓN DE ESTADOS E INFORMES FINANCIEROS
A13: Estados e informes contables:
A14: =IF(AM14=1,"",IF(ROUND(SUM($A$50:$L$52),2)>0,IF(ROUND(($M$50),2)=ROUND(($M$51+$M$52),2),IF(ROUND($A$50,2)=ROUND(($A$51+$A$52),2),"X",""),""),"")) -> X | B14: Estado de situación financiera (F1A) | AM14: =IF(AND($C$64="", $C$65="", $C$66="",$C$67="",$C$68="",$C$69="",$C$73="", $C$74="", $C$75="",$C$76=""),"",1) -> 
A15: =IF(AM15=1,"",IF(ROUND('F2'!$G$33,2)=0,"","X")) -> X | B15: Estado de variación de la hacienda pública (F2) | AM15: =IF(AND($C$64="", $C$65="", $C$66="",$C$67="",$C$68="",$C$69="",$C$77="", $C$78="", $C$79="",$C$80="",$C$81=""),"",1) -> 
A16: =IF(AM16=1,"",IF(ROUND('F3'!$F$60,2)<>0,"X","")) ->  | B16: Estado de flujo de efectivo (F3) | AM16: =IF(AND($C$64="", $C$65="", $C$66="",$C$67="",$C$68="",$C$69="",$C$101="", $C$102="", $C$103=""),"",1) -> 1
A17: =IF(AM17=1,"",IF(ROUND(F4A1!$C$18,2)>0,"X","")) ->  | B17: Conciliación entre los ingresos presupuestarios y contables (F4A1) | AM17: =IF(AND($C$64="", $C$65="", $C$66="",$C$67="",$C$68="",$C$69="",$C$70="", $C$71="", $C$72="",$C$82="",$C$83="",$C$84="",$C$85="",$C$86="",$C$87="", $C$88="", $C$89="",$C$90="",$C$91=""),"",1) -> 1
A18: =IF(AM18=1,"",IF(ROUND(F4A2!$C$37,2)>0,"X","")) ->  | B18: Conciliación entre los egresos presupuestarios y los gastos contables (F4A2) | AM18: =IF(AND($C$64="", $C$65="", $C$66="",$C$67="",$C$68="",$C$69="",$C$70="", $C$71="", $C$72="",$C$92="",$C$93="",$C$94="",$C$95="",$C$96=""),"",1) -> 1
A19: =IF(AM19=1,"",IF(ROUND('F5'!$H$6,2)>0,"X","")) -> X | B19: Estado analítico del activo (F5) | AM19: =IF(AND($C$64="", $C$65="", $C$66="",$C$67="",$C$68="",$C$69="",$C$104="", $C$105="", $C$106=""),"",1) -> 
A20: =IF(AM20=1,"",IF(ROUND(SUM($A$53:$L$54),2)>0,IF(ROUND(SUM($M$53:$X$54),2)>0,"X",""),"")) -> X | B20: Estado de actividades (F6A) | AM20: =IF(AND($C$64="", $C$65="", $C$66="",$C$67="",$C$68="",$C$69=""),"",1) -> 
A21: =IF(AM21=1,"",IF(ROUND('F16'!$E$4,2)-ROUND('F16'!$F$4,2)=0,IF('F16'!$E$4+'F16'!$F$4>0,"X",""),"")) -> X | B21: Estado de cambios en la situación financiera (F16) | AM21: =IF(AND($C$64="", $C$65="", $C$66="",$C$67="",$C$68="",$C$69="",$C$97="", $C$98="", $C$99="",$C$100=""),"",1) -> 
A22: =IF('F11'!$A$6>0,"X","") -> X | B22: Informe sobre pasivos contingentes (F11)
A23: Estados e informes presupuestarios:
A24: =IF(AM24=1,"",IF(ROUND(SUM('F7'!$E$17:$F$17),2)>0,"X","")) ->  | B24: Estado analítico de ingresos por clasificación por rubro de ingresos/fuente de financiamiento (F7) | AM24: =IF(AND($C$124="", $C$125="", $C$126="", $C$127=""),"",1) -> 
A25: =IF(AM25=1,"",IF(ROUND(SUM('F8'!$E$80:$F$80),2)>0,"X","")) ->  | B25: Estado analítico del ejercicio del presupuesto de egresos por clasificación por objeto del gasto (F8) | AM25: =IF(AND($C$70="", $C$71="", $C$72=""),"",1) -> 
A26: =IF(AM26=1,"",IF(ROUND(SUM('F17'!$E$13:$F$13),2)>0,"X","")) ->  | B26: Estado analítico del ejercicio del presupuesto de egresos por clasificación por tipo de gasto (F17) | AM26: =IF(AND($C$70="", $C$71="", $C$72=""),"",1) -> 
A27: =IF(ROUND(SUM('F18'!$D$58:$E$58),2)>0,"X","") ->  | B27: Estado analítico del ejercicio del presupuesto de egresos por clasificación administrativa (F18)
A28: =IF(ROUND(SUM('F19'!$E$40:$F$40),2)>0,"X","") ->  | B28: Estado analítico del ejercicio del presupuesto de egresos por clasificación funcional (F19)
A29: Estados e informes de la Ley de Disciplina Financiera:
A30: =IF(AM30=1,"",IF(ROUND(SUM($A$50:$L$52),2)>0,IF(ROUND($M$50,2)=ROUND(($M$51+$M$52),2),IF(ROUND($A$50,2)=ROUND(($A$51+$A$52),2),"X",""),""),"")) -> X | B30: Estado de situación financiera detallado - LDF (F1LDF) | AM30: =IF(AND($C$64="", $C$65="", $C$66="",$C$67="",$C$68="",$C$69="",$C$73="", $C$74="", $C$75="",$C$76=""),"",1) -> 
A31: =IF(AM31=1,"",IF('F9-IDP'!$J$3>0,"X","")) -> X | B31: Informe analítico de la deuda pública y otros pasivos (F9-EDP) | AM31: =IF(AND($C$64="", $C$65="", $C$66="",$C$67="",$C$68="",$C$69="",$C$107="", $C$108="", $C$109="",$C$110="",$C$111="",$C$112="",$C$113="",$C$114="",$C$115="", $C$116="", $C$117=""),"",1) -> 
A32: =IF(AM32=1,"",IF('F9-IAO'!$C$12>0,"X","")) -> X | B32: Informe analítico de obligaciones diferentes de financiamiento (F9-IAO) | AM32: =IF(AND($C$64="", $C$65="", $C$66="",$C$67="",$C$68="",$C$69=""),"",1) -> 
A33: =IF(AM33=1,"",IF(ROUND(SUM('F22'!$F$10:$G$10),2)>0,"X","")) ->  | B33: Balance presupuestario - LDF (F22) | AM33: =IF(AND($C$70="", $C$71="", $C$72="",$C$160="",$C$161="",$C$162="",$C$163="", $C$164="", $C$165=""),"",1) -> 
A34: =IF(AM34=1,"",IF(ROUND(SUM(F7B!$E$64:$F$64),2)>0,"X","")) ->  | B34: Estado analítico de ingresos detallados - LDF (F7B) | AM34: =IF(AND($C$70="", $C$71="", $C$72="",$C$124="",$C$125="",$C$126="",$C$127="", $C$128="", $C$129="",$C$130="",$C$131=""),"",1) -> 
A35: =IF(AM35=1,"",IF(ROUND(SUM(F8B!$F$155:$G$155),2)>0,"X","")) ->  | B35: Estado analítico del ejercicio del presupuesto de egresos detallado - LDF por clasificación por objeto del gasto (F8B) | AM35: =IF(AND($C$70="", $C$71="", $C$72="",$C$132="",$C$133="",$C$134="",$C$135=""),"",1) -> 
A36: =IF(AM36=1,"",IF(ROUND(SUM(F18A!$D$62:$E$62),2)>0,"X","")) ->  | B36: Estado analítico del ejercicio del presupuesto de egresos detallado - LDF por clasificación administrativa (F18A) | AM36: =IF(AND($C$148="", $C$149="", $C$150="",$C$151="",$C$152="",$C$153="",$C$154="", $C$155="", $C$156="",$C$157="",$C$158="",$C$159=""),"",1) -> 
A37: =IF(AM37=1,"",IF(ROUND(SUM(F19A!$F$76:$G$76),2)>0,"X","")) ->  | B37: Estado analítico del ejercicio del presupuesto de egresos detallado - LDF por clasificación funcional (F19A) | AM37: =IF(AND($C$136="", $C$137="", $C$138="",$C$139="",$C$140="",$C$141="",$C$142="", $C$143="", $C$144="",$C$145="",$C$146="",$C$147=""),"",1) -> 
A38: =IF(ROUND(SUM('F21'!$F$32:$G$32),2)>0,"X","") ->  | B38: Estado analítico del ejercicio del presupuesto de egresos detallado - LDF por servicios personales por categoría (F21)
A39: Informes complementarios:
A40: =IF(AM40=1,"",IF(ROUND(SUM($A$50:$L$52),2)>0,IF(ROUND(($M$50),2)=ROUND(($M$51+$M$52),2),IF(ROUND($A$50,2)=ROUND(($A$51+$A$52),2),"X",""),""),"")) -> X | B40: Estado analítico de situación financiera (F1) | AM40: =IF(AND($C$64="", $C$65="", $C$66="",$C$67="",$C$68="",$C$69="",$C$73="", $C$74="", $C$75="",$C$76=""),"",1) -> 
A41: =IF(AM41=1,"",IF(ROUND(SUM($A$53:$L$54),2)>0,IF(ROUND($M$53,2)>0,"X",""),"")) -> X | B41: Estado analítico de actividades (F6) | AM41: =IF(AND($C$64="", $C$65="", $C$66="",$C$67="",$C$68="",$C$69=""),"",1) -> 
A42: =IF(AM42=1,"",IF(ROUND(SUM(F7A!$E$70:$F$70),2)>0,"X","")) ->  | B42: Informe analítico del clasificación por rubro de ingresos (F7A) | AM42: =IF(AND($C$70="", $C$71="", $C$72=""),"",1) -> 
A43: =IF('F10'!$B$6>0,"X","") -> X | B43: Informativa de proveedores (F10)
A44: =IF('F23'!$A$9>0,"X","") ->  | B44: Informativa de obra pública (F23)
A45: Informe de Avances de Gestión Financiera
A46: =IF(AM46=1,"",IF(ROUND(SUM('F12'!$E$30:$F$30),2)>0,"X","")) ->  | B46: Flujo contable de ingresos y egresos (F12) | AM46: =IF(AND($C$70="", $C$71="",$C$72="",$C$118="",$C$119="",$C$120="", $C$121="", $C$122="",$C$123=""),"",1) -> 
A47: =IF(AM47=1,"",IF(ROUND(SUM('F13'!$AA$6:$AI$6),2)>0,"X","")) ->  | B47: Avance de programas y/o procesos concluidos (F13) | AM47: =IF(AND($C$70="", $C$71="", $C$72="",$C$166="",$C$167="",$C$168="",$C$169="", $C$170="", $C$171="",$C$172="",$C$173="",$C$174="",$C$175="",$C$176="",$C$177="", $C$178="", $C$179="",$C$180="",$C$181="",$C$182="",$C$183=""),"",1) -> 
A48: INFORMACIÓN FINANCIERA GENERAL
A49: ="EJERCICIO "&F185 -> EJERCICIO 2026 | M49: ="EJERCICIO "&F186 -> EJERCICIO 2025 | Y49: CONCEPTO
A50: =ROUND('F1'!AF106,2) -> 427,872,040.95 | M50: =ROUND('F1'!AG106,2) -> 417,980,303.08 | Y50: Activo
A51: =ROUND('F1'!BM80,2) -> 35,659,863.23 | M51: =ROUND('F1'!BN80,2) -> 35,946,274.61 | Y51: Pasivo
A52: =ROUND('F1'!BM105,2) -> 392,212,177.72 | M52: =ROUND('F1'!BN105,2) -> 382,034,028.47 | Y52: Hacienda pública/patrimonio
A53: =ROUND('F6'!AX184,2) -> 30,065,163.59 | M53: =ROUND('F6'!AY184,2) -> 332,246,498.50 | Y53: Ingresos
A54: =ROUND('F6'!AX539,2) -> 19,887,014.34 | M54: =ROUND('F6'!AY539,2) -> 357,868,330.62 | Y54: Egresos
A55: =ROUND('F6'!AX540,2) -> 10,178,149.25 | M55: =ROUND('F6'!AY540,2) -> -25,621,832.12 | Y55: Ahorro/desahorro
A56: F1 | G56: F9-EDP | M56: F1 | S56: F9-EDP | Y56: CONCEPTO
A57: =ROUND('F1'!BM23,2) -> 849,023.57 | G57: =ROUND('F9-EDP'!AP12,2) -> 849,023.57 | M57: =ROUND('F1'!BN23+'F1'!BN60,2) -> 28,533,916.26 | S57: =ROUND('F9-EDP'!N12,2) -> 920,608.54 | Y57: Deuda pública instituciones de crédito C/P
A58: =ROUND('F1'!BM60,2) -> 27,613,307.72 | G58: =ROUND('F9-EDP'!AP16,2) -> 27,613,307.72 | S58: =ROUND('F9-EDP'!N16,2) -> 27,613,307.72 | Y58: Deuda pública instituciones de crédito L/P
A59: =ROUND('F1'!BM27,2) -> 0.00 | G59: =ROUND('F9-EDP'!AP13,2) -> 0.00 | M59: =ROUND('F1'!BN27+'F1'!BN58,2) -> 0.00 | S59: =ROUND('F9-EDP'!N13,2) -> 0.00 | Y59: Deuda pública títulos y valores C/P
A60: =ROUND('F1'!BM58,2) -> 0.00 | G60: =ROUND('F9-EDP'!AP17,2) -> 0.00 | S60: =ROUND('F9-EDP'!N17,2) -> 0.00 | Y60: Deuda pública títulos y valores L/P
A61: =ROUND('F1'!BM25,2) -> 0.00 | G61: =ROUND('F9-EDP'!AP14,2) -> 0.00 | M61: =ROUND('F1'!BN25+'F1'!BN62,2) -> 0.00 | S61: =ROUND('F9-EDP'!N14,2) -> 0.00 | Y61: Deuda pública arrendamiento financiero C/P
A62: =ROUND('F1'!BM62,2) -> 0.00 | G62: =ROUND('F9-EDP'!AP18,2) -> 0.00 | S62: =ROUND('F9-EDP'!N18,2) -> 0.00 | Y62: Deuda pública arrendamiento financiero L/P
A63: INCONSISTENCIAS
A64: 1. Validación a la balanza de comprobación (contable) | C64: =IF(ROUND(Balanza!$C$754,2)=ROUND(Balanza!$D$754,2),"","1.1. BALANZA DE COMPROBACIÓN (contable) descuadrada en el SALDO INICIAL.") -> 
C65: =IF(ROUND(Balanza!$E$754,2)=ROUND(Balanza!$F$754,2),"","1.2. BALANZA DE COMPROBACIÓN (contable) descuadrada en los MOVIMIENTOS DE CARGO y ABONO.") -> 
C66: =IF(ROUND(Balanza!$G$754,2)=ROUND(Balanza!$H$754,2),"","1.3. BALANZA DE COMPROBACIÓN (contable) descuadrada en el SALDO FINAL.") -> 
A67: 2. Validación a la balanza de comprobación (orden género 7) | C67: =IF(ROUND(Balanza!$C$793,2)=ROUND(Balanza!$D$793,2),"","2.1. BALANZA DE COMPROBACIÓN (cuentas de orden) descuadrada en el SALDO INICIAL.") -> 
C68: =IF(ROUND(Balanza!$E$793,2)=ROUND(Balanza!$F$793,2),"","2.2. BALANZA DE COMPROBACIÓN (cuentas de orden) descuadrada en los MOVIMIENTOS DE CARGO y ABONO.") -> 
C69: =IF(ROUND(Balanza!$G$793,2)=ROUND(Balanza!$H$793,2),"","2.3. BALANZA DE COMPRBACIÓN (cuentas de orden) descuadrada en el SALDO FINAL.") -> 
A70: 3. Validación a la balanza de comprobación (orden presupuestal) | C70: =IF(ROUND(Balanza!$C$2223,2)=ROUND(Balanza!$D$2223,2),"","3.1. BALANZA DE COMPROBACIÓN (cuentas de orden presupuestal) descuadrada en el SALDO INICIAL.") -> 
C71: =IF(ROUND(Balanza!$E$2223,2)=ROUND(Balanza!$F$2223,2),"","3.2. BALANZA DE COMPROBACIÓN (cuentas de orden presupuestal) descuadrada en los MOVIMIENTOS DE CARGO y ABONO.") -> 
C72: =IF(ROUND(Balanza!$G$2223,2)=ROUND(Balanza!$H$2223,2),"","3.3. BALANZA DE COMPROBACIÓN (cuentas de orden presupuestal) descuadrada en el SALDO FINAL.") -> 
A73: 4. Validación al estado de situación financiera (F1, F1A y F1LDF) | C73: =IF(ROUND($M$50,2)=ROUND(($M$51+$M$52),2),"","4.1. En el ESTADO DE SITUACIÓN FINANCIERA (FI, F1A, F1LDF) columna ejercicio "&F186&", no es igual el TOTAL DEL ACTIVO y el TOTAL DEL PASIVO MÁS LA HACIENDA PÚBLICA/PATRIMONIO.") -> 
C74: =IF(ROUND($A$50,2)=ROUND(($A$51+$A$52),2),"","4.2. En el ESTADO DE SITUACIÓN FINANCIERA (F1, F1A, F1LDF) columna ejercicio "&F185&", no es igual el TOTAL DEL ACTIVO y el TOTAL DEL PASIVO MÁS LA HACIENDA PÚBLICA/PATRIMONIO.") -> 
C75: =IF(ROUND('F6'!$AY$540,2)=ROUND('F1'!$BN$87,2),"","4.3. El RESULTADO DEL EJERCICIO (AHORRO/DESAHORRO) del ESTADO DE ACTIVIDADES (F6, F6A) no es igual al RESULTADO DEL EJERCICIO del ESTADO DE SITUACIÓN FINANCIERA (F1, F1A, F1LDF) ejercicio "&F186&".") -> 
C76: =IF(ROUND('F6'!$AX$540,2)=ROUND('F1'!$BM$87,2),"","4.4. El RESULTADO DEL EJERCICIO (AHORRO/DESAHORRO) del ESTADO DE ACTIVIDADES (F6, F6A) no es igual al RESULTADO DEL EJERCICIO del ESTADO DE SITUACIÓN FINANCIERA (F1, F1A, F1LDF) ejercicio "&F185&".") -> 
A77: 5. Validación al estado de variación en la hacienda pública (F2) | C77: =IF(ROUND('F2'!C6,2)=ROUND(F1A!BN27,2),"","5.1. El saldo de la HACIENDA PÚBLICA/PATRIMONIO CONTRIBUIDO NETO de "&F186&" en el ESTADO DE VARIACIÓN EN LA HACIENDA PÚBLICA (F2), no es igual a la HACIENDA PÚBLICA/PATRIMONIO CONTRIBUIDO del ESTADO DE SITUACIÓN FINANCIERA (F1A) en la columna ejercicio "&F186&".") -> 
C78: =IF(ROUND('F2'!G10,2)=ROUND(F1A!BN31,2),"","5.2. El saldo de la HACIENDA PÚBLICA/PATRIMONIO GENERADO NETO del "&F186&" de la columna total en el ESTADO DE VARIACIÓN EN LA HACIENDA PÚBLICA (F2), no es igual a la HACIENDA PÚBLICA/PATRIMONIO GENERADO "&"del ESTADO DE SITUACIÓN FINANCIERA (F1A) en la columna ejercicio "&F186&".") -> 
C79: =IF(ROUND('F2'!G16,2)=ROUND(F1A!BN37,2),"","5.3. El saldo del EXCESO O INSUFICIENCIA EN LA ACTUALIZACIÓN EN LA HACIENDA PÚBLICA/PATRIMONIO NETO de "&F186&" de la columna TOTAL en el ESTADO DE VARIACIÓN EN LA HACIENDA PÚBLICA (F2),"&" no es igual al EXCESO O INSUFICIENCIA EN LA ACTUALIZACIÓN DE LA HACIENDA PÚBLICA/PATRIMONIO del ESTADO DE SITUACIÓN FINANCIERA (F1A) en la columna ejercicio "&F186&".") -> 
C80: =IF(ROUND('F2'!G19,2)=ROUND(F1A!BN40,2),"","5.4. El saldo de la HACIENDA PÚBLICA/PATRIMONIO NETO FINAL DE "&F186&" de la columna TOTAL en el ESTADO DE VARIACIÓN EN LA HACIENDA PÚBLICA (F2),"&" no es igual al TOTAL DE LA HACIENDA PÚBLICA/PATRIMONIO del ESTADO DE SITUACIÓN FINANCIERA (F1A) en la columna ejercicio "&F186&".") -> 
C81: =IF(ROUND('F2'!G33,2)=ROUND(F1A!BM40,2),"","5.5. El saldo de la HACIENDA PÚBLICA/PATRIMONIO NETO FINAL DE "&F185&" de la columna TOTAL en el ESTADO DE VARIACIÓN EN LA HACIENDA PÚBLICA (F2),"&" no es igual al TOTAL DE LA HACIENDA PÚBLICA/PATRIMONIO del ESTADO DE SITUACIÓN FINANCIERA (F1A) en la columna ejercicio "&F185&".") -> 
A82: 6A. Validación de conciliaciones prespu. vs conta. (F4A1) | C82: =IF(ROUND(F4A1!C18,2)=ROUND(F6A!AX24,2),"","6A.1. El TOTAL DE INGRESO CONTABLES de la CONCILIACIÓN ENTRE LOS INGRESOS PRESUPUESTAL Y CONTABLE (F4A1),"&" no es igual al TOTAL DE INGRESOS del ESTADO DE ACTIVIDADES (F6A) en la columna ejercicio "&F185&".") -> 6A.1. El TOTAL DE INGRESO CONTABLES de la CONCILIACIÓN ENTRE LOS INGRESOS PRESUPUESTAL Y CONTABLE (F4A1), no es igual al TOTAL DE INGRESOS del ESTADO DE ACTIVIDADES (F6A) en la columna ejercicio 2026.
C83: =IF(ROUND('F7'!$F$7,2)=ROUND(F6A!$AX$8,2),"","6A.2. El total de IMPUESTOS en su momento devengado del ESTADO ANALÍTICO DE INGRESOS (F7),"&" no es igual a los IMPUESTOS del ESTADO DE ACTIVIDADES (F6A) en la columna ejercicio "&F185&".") -> 6A.2. El total de IMPUESTOS en su momento devengado del ESTADO ANALÍTICO DE INGRESOS (F7), no es igual a los IMPUESTOS del ESTADO DE ACTIVIDADES (F6A) en la columna ejercicio 2026.
C84: =IF(ROUND('F7'!$F$8,2)=ROUND(F6A!$AX$9,2),"","6A.3. El total de CUOTAS Y APORTACIONES DE SEGURIDAD SOCIAL en su momento devengado del ESTADO ANALÍTICO DE INGRESOS (F7),"&" no es igual a las CUOTAS Y APORTACIONES DE SEGURIDAD SOCIAL del ESTADO DE ACTIVIDADES (F6A) en la columna ejercicio "&F185&".") -> 
C85: =IF(ROUND('F7'!$F$9,2)=ROUND(F6A!$AX$10,2),"","6A.4. El total de CONTRIBUCIONES DE MEJORAS en su momento devengado del ESTADO ANALÍTICO DE INGRESOS (F7),"&" no es igual a las CONTRIBUCIONES DE MEJORAS del ESTADO DE ACTIVIDADES (F6A) en la columna ejercicio "&F185&".") -> 
C86: =IF(ROUND('F7'!$F$10,2)=ROUND(F6A!$AX$11,2),"","6A.5. El total de DERECHOS en su momento devengado del ESTADO ANALÍTICO DE INGRESOS (F7),"&" no es igual a los DERECHOS del ESTADO DE ACTIVIDADES (F6A) en la columna ejercicio "&F185&".") -> 6A.5. El total de DERECHOS en su momento devengado del ESTADO ANALÍTICO DE INGRESOS (F7), no es igual a los DERECHOS del ESTADO DE ACTIVIDADES (F6A) en la columna ejercicio 2026.
C87: =IF(ROUND('F7'!$F$11,2)=ROUND(F6A!$AX$12,2),"","6A.6. El total de PRODUCTOS en su momento devengado del ESTADO ANALÍTICO DE INGRESOS (F7),"&" no es igual a los PRODUCTOS del ESTADO DE ACTIVIDADES (F6A) en la columna ejercicio "&F185&".") -> 6A.6. El total de PRODUCTOS en su momento devengado del ESTADO ANALÍTICO DE INGRESOS (F7), no es igual a los PRODUCTOS del ESTADO DE ACTIVIDADES (F6A) en la columna ejercicio 2026.
C88: =IF(ROUND('F7'!$F$12,2)=ROUND(F6A!$AX$13+F4A1!$C$15+F4A1!C17,2),"","6A.7. El total de APROVECHAMIENTOS en su momento devengado del ESTADO ANALÍTICO DE INGRESOS (F7),"&" no es igual a los APROVECHAMIENTOS del ESTADO DE ACTIVIDADES (F6A) en la columna ejercicio "&F185&".") -> 6A.7. El total de APROVECHAMIENTOS en su momento devengado del ESTADO ANALÍTICO DE INGRESOS (F7), no es igual a los APROVECHAMIENTOS del ESTADO DE ACTIVIDADES (F6A) en la columna ejercicio 2026.
C89: =IF(ROUND('F7'!$F$13,2)=ROUND(F6A!$AX$14,2),"","6A.8. El total de INGRESOS POR VENTA DE BIENES Y PRESTACIÓN DE SERVICIOS en su momento devengado del ESTADO ANALÍTICO DE INGRESOS (F7),"&" no es igual a los INGRESOS POR VENTA DE BIENES Y PRESTACIÓN DE SERVICIOS del ESTADO DE ACTIVIDADES (F6A) en la columna ejercicio "&F185&".") -> 
C90: =IF(ROUND('F7'!$F$14,2)=ROUND(F6A!$AX$16,2),"","6A.9. El total de PARTICIPACIONES, APORTACIONES, CONVENIOS, INCENTIVOS DERIVADOS DE LA COLABORACIÓN FISCAL, FONDOS DISTINTOS DE APORTACIONES en su momento devengado del ESTADO ANALÍTICO DE INGRESOS (F7),"&" no es igual a las PARTICIPACIONES, APORTACIONES, CONVENIOS, INCENTIVOS DERIVADOS DE LA COLABORACIÓN FISCAL, FONDOS DISTINTOS DE APORTACIONES del ESTADO DE ACTIVIDADES (F6A) en la columna ejercicio "&F185&".") -> 6A.9. El total de PARTICIPACIONES, APORTACIONES, CONVENIOS, INCENTIVOS DERIVADOS DE LA COLABORACIÓN FISCAL, FONDOS DISTINTOS DE APORTACIONES en su momento devengado del ESTADO ANALÍTICO DE INGRESOS (F7), no es igual a las PARTICIPACIONES, APORTACIONES, CONVENIOS, INCENTIVOS DERIVADOS DE LA COLABORACIÓN FISCAL, FONDOS DISTINTOS DE APORTACIONES del ESTADO DE ACTIVIDADES (F6A) en la columna ejercicio 2026.
C91: =IF(ROUND('F7'!$F$15,2)=ROUND(F6A!$AX$17,2),"","6A.10. El total de TRANSFERENCIAS, ASIGNACIONES, SUBSIDIOS Y SUBVENCIONES, PENSIONES Y JUBILACIONES en su momento devengado del ESTADO ANALÍTICO DE INGRESOS (F7),"&" no es igual a las TRANSFERENCIAS, ASIGNACIONES, SUBSIDIOS Y SUBVENCIONES, PENSIONES Y JUBILACIONES del ESTADO DE ACTIVIDADES (F6A) en la columna ejercicio "&F185&".") -> 
A92: 6B. Validación de conciliaciones prespu. vs conta. (F4A2) | C92: =IF(ROUND(F4A2!$C$37,2)=ROUND(F6A!$AX$57,2),"","6B.1. El TOTAL DE GASTOS CONTABLES de la CONCILIACIÓN ENTRE LOS EGRESOS PRESUPUESTARIOS Y LOS GASTOS CONTABLES (F4A2),"&" no es igual al TOTAL DE GASTOS Y OTRAS PERDIDAS del ESTADO DE ACTIVIDADES (F6A) en la columna ejercicio "&F185&".") -> 6B.1. El TOTAL DE GASTOS CONTABLES de la CONCILIACIÓN ENTRE LOS EGRESOS PRESUPUESTARIOS Y LOS GASTOS CONTABLES (F4A2), no es igual al TOTAL DE GASTOS Y OTRAS PERDIDAS del ESTADO DE ACTIVIDADES (F6A) en la columna ejercicio 2026.
C93: =IF(ROUND('F8'!$F$8,2)=ROUND(F6A!$AX$27,2),"","6B.2. El total de SERVICIOS PERSONALES en su momento devengado del ESTADO ANALÍTICO DEL EJERCICIO DEL PRESUPUESTO DE EGRESOS (F8),"&" no es igual en SERVICIOS PERSONALES del ESTADO DE ACTIVIDADES (F6A) en la columna ejercicio "&F185&".") -> 6B.2. El total de SERVICIOS PERSONALES en su momento devengado del ESTADO ANALÍTICO DEL EJERCICIO DEL PRESUPUESTO DE EGRESOS (F8), no es igual en SERVICIOS PERSONALES del ESTADO DE ACTIVIDADES (F6A) en la columna ejercicio 2026.
C94: =IF(ROUND('F8'!$F$16,2)=ROUND(F6A!$AX$28,2),"","6B.3. El total de MATERIALES Y SUMINISTROS en su momento devengado del ESTADO ANALÍTICO DEL EJERCICIO DEL PRESUPUESTO DE EGRESOS (F8),"&" no es igual en MATERIALES Y SUMINISTROS del ESTADO DE ACTIVIDADES (F6A) en la columna ejercicio "&F185&".") -> 6B.3. El total de MATERIALES Y SUMINISTROS en su momento devengado del ESTADO ANALÍTICO DEL EJERCICIO DEL PRESUPUESTO DE EGRESOS (F8), no es igual en MATERIALES Y SUMINISTROS del ESTADO DE ACTIVIDADES (F6A) en la columna ejercicio 2026.
C95: =IF(ROUND('F8'!$F$26,2)=ROUND(F6A!$AX$29,2),"","6B.4. El total de SERVICIOS GENERALES en su momento devengado del ESTADO ANALÍTICO DEL EJERCICIO DEL PRESUPUESTO DE EGRESOS (F8),"&" no es igual en SERVICIOS GENERALES del ESTADO DE ACTIVIDADES (F6A) en la columna ejercicio "&F185&".") -> 6B.4. El total de SERVICIOS GENERALES en su momento devengado del ESTADO ANALÍTICO DEL EJERCICIO DEL PRESUPUESTO DE EGRESOS (F8), no es igual en SERVICIOS GENERALES del ESTADO DE ACTIVIDADES (F6A) en la columna ejercicio 2026.
C96: =IF(ROUND('F8'!$F$36,2)=ROUND(F6A!$AX$30,2),"","6B.5. El total de TRANSFERENCIAS, ASIGNACIONES, SUBSIDIOS Y OTRAS AYUDAS en su momento devengado del ESTADO ANALÍTICO DEL EJERCICIO DEL PRESUPUESTO DE EGRESOS (F8),"&" no es igual en TRANSFERENCIAS, ASIGNACIONES, SUBSIDIOS Y OTRAS AYUDAS del ESTADO DE ACTIVIDADES (F6A) en la columna ejercicio "&F185&".") -> 6B.5. El total de TRANSFERENCIAS, ASIGNACIONES, SUBSIDIOS Y OTRAS AYUDAS en su momento devengado del ESTADO ANALÍTICO DEL EJERCICIO DEL PRESUPUESTO DE EGRESOS (F8), no es igual en TRANSFERENCIAS, ASIGNACIONES, SUBSIDIOS Y OTRAS AYUDAS del ESTADO DE ACTIVIDADES (F6A) en la columna ejercicio 2026.
A97: 7. Validación al estado de cambios de la situación financiera (F16) | C97: =IF(ROUND(ABS('F16'!E43-'F16'!F43),2)=ROUND(ABS('F2'!C20),2),"","7.1. El saldo de la HACIENDA PÚBLICA/PATRIMONIO CONTRIBUIDO NETO DEL "&F186&" del ESTADO DE VARIACIÓN EN LA HACIENDA PÚBLICA (F2), "&"es diferente a la HACIENDA PÚBLICA/PATRIMONIO CONTRIBUIDO del ESTADO DE CAMBIOS DE LA SITUACIÓN FINANCIERA (F16) en la columna ejercicio "&F185&".") -> 
C98: =IF(ROUND(ABS(SUM('F16'!E50:E52)-SUM('F16'!F50:F52)),2)=ROUND(ABS(SUM('F2'!E27:E29)),2),"","7.2. La suma de las filas de REVALÚOS, RESERVAS Y RECLASIFICACIONES DE RESULTADOS DE EJERCICIOS ANTERIORES "&F186&", del ESTADO DE VARIACIÓN EN LA HACIENDA PÚBLICA (F2), "&"es diferente a la que se muestra en estos rubros del ESTADO DE CAMBIOS DE LA SITUACIÓN FINANCIERA (F16) en la columna ejercicio "&F185&".") -> 
C99: =IF(ROUND(ABS('F16'!E49+'F16'!F49),2)=ROUND(ABS('F2'!D24),2),"","7.3. El saldo del RESULTADO DE EJERCICIOS ANTERIORES del apartado VARIACIONES DE LA HACIENDA PÚBLICA/PATRIMONIO CONTRIBUIDO NETO DE "&F185&" del ESTADO DE VARIACIÓN EN LA HACIENDA PÚBLICA (F2), "&"es diferente al apartado de EJERCICIOS ANTERIORES del ESTADO DE CAMBIOS DE LA SITUACIÓN FINANCIERA (F16) en la columna ejercicio "&F185&".") -> 
C100: =IF(ROUND(ABS('F16'!E53-'F16'!F53),2)=ROUND(ABS('F2'!F30),2),"","7.4. El saldo del EXCESO O INSUFICIENCIA EN LA ACTUALIZACIÓN DE LA HACIENDA PÚBLICA/PATRIMONIO NETO "&F185&", del ESTADO DE VARIACIÓN EN LA HACIENDA PÚBLICA (F2), "&"es diferente al apartado del EXCESO O INSUFICIENCIA EN LA ACTUALIZACIÓN DE LA HACIENDA PÚBLICA/PATRIMONIO del ESTADO DE CAMBIOS DE LA SITUACIÓN FINANCIERA (F16) en la columna ejercicio "&F185&".") -> 
A101: 8. Validación al estado de flujo de efectivo (F3) | C101: =IF(ROUND(ABS('F3'!F58),2)=ROUND(ABS('F16'!E8+'F16'!F8),2),"","8.1. El INCREMENTO/DISMINUCIÓN NETA EN EL EFECTIVO Y EQUIVALENTES del FLUJO DE EFECTIVO (F3) de la columna "&F185&", no es igual al que se muestra en el ESTADO DE "&"CAMBIOS EN LA SITUACIÓN FINANCIERA (F16) en la fila de EFECTIVO Y EQUIVALENTES de la columna de origen o aplicación.") -> 8.1. El INCREMENTO/DISMINUCIÓN NETA EN EL EFECTIVO Y EQUIVALENTES del FLUJO DE EFECTIVO (F3) de la columna 2026, no es igual al que se muestra en el ESTADO DE CAMBIOS EN LA SITUACIÓN FINANCIERA (F16) en la fila de EFECTIVO Y EQUIVALENTES de la columna de origen o aplicación.
C102: =IF(ROUND('F3'!G60,2)=ROUND(F1A!AG8,2),"","8.2. El EFECTIVO Y EQUIVALENTES AL EFECTIVO AL FINAL DEL EJERCICIO columna "&F186&", del ESTADO DE FLUJO DE EFECTIVO (F3), es diferente al saldo del"&" rubro de EFECTIVO Y EQUIVALENTES de la columna "&F185&" del ESTADO DE SITUACIÓN FINANCIERA (F1A).") -> 8.2. El EFECTIVO Y EQUIVALENTES AL EFECTIVO AL FINAL DEL EJERCICIO columna 2025, del ESTADO DE FLUJO DE EFECTIVO (F3), es diferente al saldo del rubro de EFECTIVO Y EQUIVALENTES de la columna 2026 del ESTADO DE SITUACIÓN FINANCIERA (F1A).
C103: =IF(ROUND('F3'!F60,2)=ROUND(F1A!AF8,2),"","8.3. El EFECTIVO Y EQUIVALENTES AL EFECTIVO AL FINAL DEL EJERCICIO columna "&F185&", del ESTADO DE FLUJO DE EFECTIVO (F3), es diferente al saldo del"&" rubro de EFECTIVO Y EQUIVALENTES de la columna "&F185&" del ESTADO DE SITUACIÓN FINANCIERA (F1A).") -> 8.3. El EFECTIVO Y EQUIVALENTES AL EFECTIVO AL FINAL DEL EJERCICIO columna 2026, del ESTADO DE FLUJO DE EFECTIVO (F3), es diferente al saldo del rubro de EFECTIVO Y EQUIVALENTES de la columna 2026 del ESTADO DE SITUACIÓN FINANCIERA (F1A).
A104: 9. Validación al estado analítico del activo (F5) | C104: =IF(ROUND('F5'!E6,2)=ROUND(F1A!AG27,2),"","9.1. El TOTAL DEL ACTIVO del ESTADO ANALÍTICO DEL ACTIVO (F5) en la columna de SALDO INICIAL, es diferente al TOTAL DEL ACTIVO en el ESTADO DE SITUACIÓN FINANCIERA (F1A), en la columna correspondiente al ejercicio "&F186) -> 
C105: =IF(ROUND('F5'!H6,2)=ROUND(F1A!AF27,2),"","9.2. El TOTAL DEL ACTIVO del ESTADO ANALÍTICO DEL ACTIVO (F5) en la columna de SALDO FINAL, es diferente al TOTAL DEL ACTIVO en el ESTADO DE SITUACIÓN FINANCIERA (F1A), en la columna correspondiente al ejercicio "&F185) -> 
C106: =IF(ROUND(ABS('F5'!I6),2)=ROUND(ABS('F16'!E6-'F16'!F6),2),"","9.3. La cifra de la fila del rubro de ACTIVO de la columna de VARIACIÓN DEL PERIODO del ESTADO ANALÍTICO DEL ACTIVO (F5), es diferente a los rubros del ACTIVO en las columnas de ORIGEN O APLICACIÓN del ESTADO DE CAMBIOS EN LA SITUACIÓN FINANCIERA (F16)") -> 
A107: 10. Validación al estado analítico de la deuda y otros pasivos (F9) | C107: =IF(ROUND((S57+S58),2)=ROUND(M57,2),"","10.1. El SALDO AL 1° DE ENERO DE "&F185&" con INSTITUCIONES DE CRÉDITO a corto y largo plazo del ESTADO E INFORME ANALÍTICO DE LA DEUDA PÚBLICA Y "&"OTROS PASIVOS (F9-EDP), no es igual a la suma de los rubros 2131 y 2233 de la DEUDA PÚBLICA INTERNA POR PAGAR a corto y largo plazo columna ejercicio "&F186&" del ESTADO ANALÍTICO DE SITUACIÓN FINANCIERA (F1).") -> 
C108: =IF(ROUND((S59+S60),2)=ROUND(M59,2),"","10.2. El SALDO AL 1° DE ENERO DE "&F185&" en TÍTULOS Y VALORES de corto y largo plazo, del ESTADO E INFORME ANALÍTICO DE LA DEUDA PÚBLICA Y OTROS "&"PASIVOS (F9-EDP), no es igual a la suma de los rubro 2141 y 2231 TÍTULOS Y VALORES por pagar a corto y largo plazo columna ejercicio "&F185&" del ESTADO ANALÍTICO DE SITUACIÓN FINANCIERA (F1).") -> 
C109: =IF(ROUND((S61+S62),2)=ROUND(M61,2),"","10.3. El SALDO AL 1° DE ENERO DE "&F185&" en ARRENDAMIENTO FINANCIERO de corto y largo plazo, del ESTADO E INFORME ANALÍTICO DE LA DEUDA PÚBLICA Y "&"OTROS PASIVOS (F9-EDP), no es igual a los rubro de2133 Y 2235 ARRENDAMIENTO FINANCIERO por pagar a corto y largo plazo columna ejercicio "&F186&" del ESTADO ANALÍTICO DE SITUACIÓN FINANCIERA (F1).") -> 
C110: =IF(ROUND(A57,2)=ROUND(G57,2),"","10.4. El SALDO DEL PERIODO con INSTITUCIONES DE CRÉDITO a corto plazo, del ESTADO E INFORME ANALÍTICO DE LA DEUDA PÚBLICA Y OTROS PASIVOS (F9-EDP), "&"no es igual al rubro 2131 PORCIÓN DE LA DEUDA PÚBLICA INTERNA POR PAGAR A CORTO PLAZO columna ejercicio "&F185&" del ESTADO ANALÍTICO DE SITUACIÓN FINANCIERA (F1).") -> 
C111: =IF(ROUND(A58,2)=ROUND(G58,2),"","10.5. El SALDO DEL PERIODO con INSTITUCIONES DE CRÉDITO a largo plazo, del ESTADO ANALÍTICO DE LA DEUDA PÚBLICA Y OTROS PASIVOS (F9-EDP), "&"no es igual al rubro 2233 de PRÉSTAMOS DE LA DEUDA PÚBLICA INTERNA POR PAGAR A LARGO PLAZO columna ejercicio "&F185&" del ESTADO ANALÍTICO DE SITUACIÓN FINANCIERA (F1).") -> 
C112: =IF(ROUND(A59,2)=ROUND(G59,2),"","10.6. El SALDO DEL PERIODO en TÍTULOS Y VALORES a corto plazo, del ESTADO E INFORME ANALÍTICO DE LA DEUDA PÚBLICA Y OTROS PASIVOS (F9-EDP), no es "&"igual al rubro 2141 de TÍTULOS Y VALORES DE LA EUDA PÚBLICA INTERNA POR PAGAR A CORTO PLAZO columna ejercicio "&F185&" del ESTADO ANALÍTICO DE SITUACIÓN FINANCIERA (F1).") -> 
C113: =IF(ROUND(A60,2)=ROUND(G60,2),"","10.7. El SALDO DEL PERIODO en TÍTULOS Y VALORES a largo plazo, del ESTADO E INFORME ANALÍTICO DE LA DEUDA PÚBLICA Y OTROS PASIVOS (F9-EDP), no es "&"igual al rubro 2231 de TÍTULOS Y VALORES DE LA DEUDA PÚBLICA INTERNA POR PAGAR A LARGO PLAZO columna ejercicio "&F185&" del ESTADO ANALÍTICO DE SITUACIÓN FINANCIERA (F1).") -> 
C114: =IF(ROUND(A61,2)=ROUND(G61,2),"","10.8. El SALDO DEL PERIODO en ARRENDAMIENTO FINANCIERO a corto plazo, del ESTADO E INFORME ANALÍTICO DE LA DEUDA PÚBLICA Y OTROS PASIVOS"&" (F9-EDP), no es igual al rubro 2133 de la PORCIÓN DE ARRENDAMIENTO FINANCIERO DE LA DEUDA PÚBLICA INTERGA POR PAGAR A CORTO PLAZO columna ejercicio "&F185&" del ESTADO ANALÍTICO DE SITUACIÓN FINANCIERA (F1).") -> 
C115: =IF(ROUND(A62,2)=ROUND(G62,2),"","10.9. El SALDO DEL PERIODO en ARRENDAMIENTO FINANCIERO A LARGO PLAZO del ESTADO E INFORME ANALÍTICO DE LA DEUDA PÚBLICA Y OTROS PASIVOS (F9-EDP), "&"no es igual al rubro 2235 de ARRENDAMIENTO FINANCIERO DE LA DEUDA PÚBLICA INTERNA POR PAGAR A LARGO PLAZO columna ejercicio "&F185&" del ESTADO DE SITUACIÓN FINANCIERA (F1).") -> 
C116: =IF(ROUND('F9-EDP'!N20,2)=ROUND('F1'!BN80,2),"","10.10. El TOTAL DE LA DEUDA PÚBLICA Y OTROS PASIVOS al inicio del ejercicio "&F185&" del ESTADO E INFORME ANALÍTICO DE LA DEUDA PÚBLICA Y OTROS PASIVOS (F9-EDP), "&"no es igua al TOTAL DEL PASIVO columna del ejercicio "&F186&" del ESTADO DE SITUACIÓN FINANCIERA (F1).") -> 
C117: =IF(ROUND('F9-EDP'!AP20,2)=ROUND('F1'!BM80,2),"","10.11. El TOTAL DE LA DEUDA PÚBLICA Y OTROS PASIVOS del ejercicio "&F185&" del ESTADO E INFORME ANALÍTICO DE LA DEUDA PÚLICA Y OTROS PASIVOS (F9-EDP), no es igua al TOTAL DEL PASIVO columna del ejercicio "&F185&" en el ESTADO DE SITUACIÓN FINANCIERA (F1).") -> 
A118: 11. Validación flujo contable de ingresos y egresos (F12) | C118: =IF(ROUND('F7'!C17,2)=ROUND('F12'!C17,2),"","11.1. El TOTAL DE INGRESOS momento ESTIMADO del ESTADO ANALÍTICO DE INGRESOS (F7),"&" no es igual al TOTAL INGRESOS del FLUJO CONTABLE DE INGRESOS Y EGRESOS (F12) columna ESTIMADO.") -> 
C119: =IF(ROUND('F7'!D17,2)=ROUND('F12'!D17,2),"","11.2. El TOTAL DE INGRESOS de la AMPLIACIONES Y REDUCCIONES del ESTADO ANALÍTICO DE INGRESOS (F7),"&" no es igual al TOTAL INGRESOS del FLUJO CONTABLE DE INGRESOS Y EGRESOS (F12) columna AMPLIACIÓN Y REDUCCIÓN.") -> 
C120: =IF(ROUND('F7'!F17,2)=ROUND('F12'!F17,2),"","11.3. El TOTAL DE INGRESOS del momento DEVENGADO del ESTADO ANALÍTICO DE INGRESOS (F7),"&" no es igual al TOTAL INGRESOS del FLUJO CONTABLE DE INGRESOS Y EGRESOS (F12) columna DEVENGADO.") -> 
C121: =IF(ROUND('F8'!C80,2)=ROUND('F12'!C30,2),"","11.4. El TOTAL DE EGRESOS del momento APROBADO del ESTADO ANALÍTICO DEL EJERCICIO DEL PRESUPUESTO DE EGRESOS (F8),"&" no es igual al TOTAL DE EGRESOS del FLUJO CONTABLE DE INGRESOS Y EGRESOS (F12) columna APROBADO.") -> 
C122: =IF(ROUND('F8'!D80,2)=ROUND('F12'!D30,2),"","11.5. El TOTAL DE EGRESOS de las AMPLIACIONES Y REDUCCIONES del ESTADO ANALÍTICO DEL EJERCICIO DEL PRESUPUESTO DE EGRESOS (F8),"&" no es igual al TOTAL EGRESOS del FLUJO CONTABLE DE INGRESOS Y EGRESOS (F12) columna AMPLIACIÓN Y REDUCCIÓN.") -> 
C123: =IF(ROUND('F8'!F80,2)=ROUND('F12'!F30,2),"","11.6. El TOTAL DE EGRESOS del momento DEVENGADO del ESTADO ANALÍTICO DEL EJERCICIO DEL PRESUPUESTO DE EGRESOS (F8),"&" no es igual al TOTAL EGRESOS del FLUJO CONTABLE DE INGRESOS Y EGRESOS (F12) columna DEVENGADO.") -> 
A124: 12. Validación Estado Analítico del Ingreso - LDF (F7B) | C124: =IF(ROUND('F7'!C17,2)=ROUND(F7B!C64,2),"","12.1. El TOTAL DE INGRESOS del momento ESTIMADO del ESTADO ANALÍTICO DE INGRESOS DETALLADO - LDF (F7B),"&" no es igual al ESTADO ANALÍTICO DE INGRESOS (F7) columna ESTIMADO.") -> 
C125: =IF(ROUND('F7'!D17,2)=ROUND(F7B!D64,2),"","12.2. El TOTAL DE INGRESOS del momento MODIFICADO del ESTADO ANALÍTICO DE INGRESOS DETALLADO - LDF (F7B),"&" no es igual al ESTADO ANALÍTICO DE INGRESOS (F7) columna MODIFICADO.") -> 
C126: =IF(ROUND('F7'!F17,2)=ROUND(F7B!F64,2),"","12.3. El TOTAL DE INGRESOS del momento DEVENGADO del ESTADO ANALÍTICO DE INGRESOS DETALLADO - LDF (F7B),"&" no es igual al ESTADO ANALÍTICO DE INGRESOS (F7) columna DEVENGADO.") -> 
C127: =IF(ROUND('F7'!G17,2)=ROUND(F7B!G64,2),"","12.4. El TOTAL DE INGRESOS del momento RECAUDADO del ESTADO ANALÍTICO DE INGRESOS DETALLADO - LDF (F7B),"&" no es igual al ESTADO ANALÍTICO DE INGRESOS (F7) columna RECAUDADO.") -> 
C128: =IF(ROUND(F7B!C39,2)+ROUND(F7B!C68,2)=ROUND(F8B!D7,2),"","12.5. No existe equilibro entre los ingresos ESTIMADO de recursos no etiquetados del ESTADO ANALÍTICO DE INGRESOS DETALLADO - LDF (F7B),"&" y el ESTADO ANALÍTICO DEL EJERCICIO DEL PRESUPUESTO DE EGRESOS DETALLADO - LDF (F8B) columna APROBADO de recurso no etiquetado.") -> 
C129: =IF(ROUND(F7B!C61,2)=ROUND(F8B!D81,2),"","12.6. No existe equilibrio entre los ingresos ESTIMADO de recursos etiquetados del ESTADO ANALÍTICO DE INGRESOS DETALLADO - LDF (F7B),"&" y el ESTADO ANALÍTICO DEL EJERCICIO DEL PRESUPUESTO DE EGRESOS DETALLADO - LDF (F8B) columna APROBADO de recurso etiquetado.") -> 
C130: =IF(ROUND(F7B!F39,2)>0,IF(ROUND(F8B!G7,2)>0,"","12.7. Se tiene ingresos DEVENGADO de recursos no etiquetados en el ESTADO ANALÍTICO DE INGRESOS DETALLADO - LDF (F7B),"&" y en el ESTADO ANALÍTICO DEL EJERCICIO DEL PRESUPUESTO DE EGRESOS DETALLADO - LDF (F8B) columna DEVENGADO no existen erogaciones con recursos no etiquetados."),"") -> 
C131: =IF(ROUND(F7B!F61,2)>0,IF(ROUND(F8B!G81,2)>0,"","12.8. Se tiene ingresos DEVENGADO de recursos etiquetados en el ESTADO ANALÍTICO DE INGRESOS DETALLADO - LDF (F7B),"&" y en el ESTADO ANALÍTICO DEL EJERCICIO DEL PRESUPUESTO DE EGRESOS DETALLADO - LDF (F8B) columna DEVENGADO no existe erogaciones con recursos etiquetados."),"") -> 
A132: 13. Validación Estado Analítico del Egreso (COG) - LDF (F8B) | C132: =IF(ROUND(F8B!D155,2)=ROUND('F8'!C80,2),"","13.1. El TOTAL DEL GASTO en lo correspondiente al APROBADO del ESTADO ANALÍTICO DEL EJERCICIO DEL PRESUPUESTO DE EGRESOS DETALLADO - LDF (F8B),"&" no es igual al ESTADO ANALÍTICO DEL EJERCICIO DEL PRESUPUESTO DE EGRESOS (F8) columna APROBADO.") -> 
C133: =IF(ROUND(F8B!F155,2)=ROUND('F8'!E80,2),"","13.2. El TOTAL DEL GASTO en lo correspondiente al MODIFICADO del ESTADO ANALÍTICO DEL EJERCICIO DEL PRESUPUESTO DE EGRESOS DETALLADO - LDF (F8B),"&" no es igual al ESTADO ANALÍTICO DEL EJERCICIO DEL PRESUPUESTO DE EGRESOS (F8) columna MODIFICADO.") -> 
C134: =IF(ROUND(F8B!G155,2)=ROUND('F8'!F80,2),"","13.3. El TOTAL DEL GASTO en lo correspondiente al DEVENGADO del ESTADO ANALÍTICO DEL EJERCICIO DEL PRESUPUESTO DE EGRESOS DETALLADO - LDF (F8B),"&" no es igual al ESTADO ANALÍTICO DEL EJERCICIO DEL PRESUPUESTO DE EGRESOS (F8) columna DEVENGADO.") -> 
C135: =IF(ROUND(F8B!H155,2)=ROUND('F8'!G80,2),"","13.4. El TOTAL DEL GASTO en lo correspondiente al PAGADO del ESTADO ANALÍTICO DEL EJERCICIO DEL PRESPUESTO DE EGRESOS DETALLADO - LDF (F8B),"&" no es igual al ESTADO ANALÍTICO DEL EJERCICIO DEL PRESPUESTO DE EGRESOS (F8) columna PAGADO.") -> 
A136: 14. Validación Estado Analítico del Egreso (CF) - (F19A) | C136: =IF(ROUND(F19A!D76,2)=ROUND('F19'!C40,2),"","14.1. El TOTAL DEL GASTO en lo correspondiente al APROBADO del ESTADO ANALÍTICO DEL EJERCICIO DEL PRESUPUESTO DE EGRESOS DETALLADO - LDF (F19A),"&" no es igual al ESTADO ANALÍTICO DEL EJERCICIO DEL PRESUPUESTO DE EGRESOS (F19) columna APROBADO.") -> 
C137: =IF(ROUND(F19A!F76,2)=ROUND('F19'!E40,2),"","14.2. El TOTAL DEL GASTO en lo correspondiente al MODIFICADO del ESTADO ANALÍTICO DEL EJERCICIO DEL PRESUPUESTO DE EGRESOS DETALLADO - LDF (F19A),"&" no es igual al ESTADO ANALÍTICO DEL EJERCICIO DEL PRESUPUESTO DE EGRESOS (F19) columna MODIFICADO.") -> 
C138: =IF(ROUND(F19A!G76,2)=ROUND('F19'!F40,2),"","14.3. El TOTAL DEL GASTO en lo correspondiente al DEVENGADO del ESTADO ANALÍTICO DEL EJERCICIO DEL PRESUPUESTO DE EGRESOS DETALLADO - LDF (F19A),"&" no es igual al ESTADO ANALÍTICO DEL EJERCICIO DEL PRESUPUESTO DE EGRESOS (F19) columna DEVENGADO.") -> 
C139: =IF(ROUND(F19A!H76,2)=ROUND('F19'!G40,2),"","14.4. El TOTAL DEL GASTO en lo correspondiente al PAGADO del ESTADO ANALÍTICO DEL EJERCICIO DEL PRESUPUESTO DE EGRESO DETALLADO - LDF (F19A),"&" no es igual al ESTADO ANALÍTICO DEL EJERCICIO DEL PRESUPUESTO DE EGRESOS (F19) columna PAGADO.") -> 
C140: =IF(ROUND(F19A!$D$8,2)=ROUND(F8B!$D$7,2),"","14.5. El TOTAL DEL GASTO NO ETIQUETADO en lo correspondiente al APROBADO del ESTADO ANALÍTICO DEL EJERCICIO DEL PRESUPUESTO DE EGRESO DETALLADO - LDF (F19A),"&" no es igual al TOTAL DEL GASTO NO ETIQUETADO en el momento APROBADO del ESTADO ANALÍTICO DEL EJERCICIO DEL PRESUPUESTO DE EGRESOS (F8B).") -> 
C141: =IF(ROUND(F19A!$F$8,2)=ROUND(F8B!$F$7,2),"","14.6. El TOTAL DEL GASTO NO ETIQUETADO en lo correspondiente al MODIFICADO del ESTADO ANALÍTICO DEL EJERCICIO DEL PRESUPUESTO DE EGRESO DETALLADO - LDF (F19A),"&" no es igual al TOTAL DEL GASTO NO ETIQUETADO en el momento MODIFICADO del ESTADO ANALÍTICO DEL EJERCICIO DEL PRESUPUESTO DE EGRESOS (F8B).") -> 
C142: =IF(ROUND(F19A!$G$8,2)=ROUND(F8B!$G$7,2),"","14.7. El TOTAL DEL GASTO NO ETIQUETADO en lo correspondiente al DEVENGADO del ESTADO ANALÍTICO DEL EJERCICIO DEL PRESUPUESTO DE EGRESO DETALLADO - LDF (F19A),"&" no es igual al TOTAL DEL GASTO NO ETIQUETADO en el momento DEVENGADO del ESTADO ANALÍTICO DEL EJERCICIO DEL PRESUPUESTO DE EGRESOS (F8B).") -> 
C143: =IF(ROUND(F19A!$H$8,2)=ROUND(F8B!$H$7,2),"","14.8. El TOTAL DEL GASTO NO ETIQUETADO en lo correspondiente al PAGADO del ESTADO ANALÍTICO DEL EJERCICIO DEL PRESUPUESTO DE EGRESO DETALLADO - LDF (F19A),"&" no es igual al TOTAL DEL GASTO NO ETIQUETADO en el momento PAGADO del ESTADO ANALÍTICO DEL EJERCICIO DEL PRESUPUESTO DE EGRESOS (F8B).") -> 
C144: =IF(ROUND(F19A!$D$42,2)=ROUND(F8B!$D$81,2),"","14.9. El TOTAL DEL GASTO ETIQUETADO en lo correspondiente al APROBADO del ESTADO ANALÍTICO DEL EJERCICIO DEL PRESUPUESTO DE EGRESO DETALLADO - LDF (F19A),"&" no es igual al TOTAL DEL GASTO ETIQUETADO en el momento APROBADO del ESTADO ANALÍTICO DEL EJERCICIO DEL PRESUPUESTO DE EGRESOS (F8B).") -> 
C145: =IF(ROUND(F19A!$F$42,2)=ROUND(F8B!$F$81,2),"","14.10. El TOTAL DEL GASTO ETIQUETADO en lo correspondiente al MODIFICADO del ESTADO ANALÍTICO DEL EJERCICIO DEL PRESUPUESTO DE EGRESO DETALLADO - LDF (F19A),"&" no es igual al TOTAL DEL GASTO ETIQUETADO en el momento MODIFICADO del ESTADO ANALÍTICO DEL EJERCICIO DEL PRESUPUESTO DE EGRESOS (F8B).") -> 
C146: =IF(ROUND(F19A!$G$42,2)=ROUND(F8B!$G$81,2),"","14.11. El TOTAL DEL GASTO ETIQUETADO en lo correspondiente al DEVENGADO del ESTADO ANALÍTICO DEL EJERCICIO DEL PRESUPUESTO DE EGRESO DETALLADO - LDF (F19A),"&" no es igual al TOTAL DEL GASTO ETIQUETADO en el momento DEVENGADO del ESTADO ANALÍTICO DEL EJERCICIO DEL PRESUPUESTO DE EGRESOS (F8B).") -> 
C147: =IF(ROUND(F19A!$H$42,2)=ROUND(F8B!$H$81,2),"","14.12. El TOTAL DEL GASTO ETIQUETADO en lo correspondiente al PAGADO del ESTADO ANALÍTICO DEL EJERCICIO DEL PRESUPUESTO DE EGRESO DETALLADO - LDF (F19A),"&" no es igual al TOTAL DEL GASTO ETIQUETADO en el momento PAGADO del ESTADO ANALÍTICO DEL EJERCICIO DEL PRESUPUESTO DE EGRESOS (F8B).") -> 
A148: 15. Validación Estado Analítico del Egreso (CA) - LDF (F18A) | C148: =IF(ROUND(F18A!B62,2)=ROUND('F18'!B58,2),"","15.1. El TOTAL DEL GASTO del momento APROBADO del ESTADO ANALÍTICO DEL EJERCICIO DEL PRESUPUESTO DE EGRESOS DETALLADO - LDF (F18A),"&" no es igual al ESTADO ANALÍTICO DEL EJERCICIO DEL PRESUPUESTO DE EGRESOS (F18) columna APROBADO.") -> 
C149: =IF(ROUND(F18A!C62,2)=ROUND('F18'!C58,2),"","15.2. El TOTAL DEL GASTO del momento MODIFICADO del ESTADO ANALÍTICO DEL EJERCICIO DEL PRESUPUESTO DE EGRESOS DETALLADO - LDF (F18A),"&" no es igual al ESTADO ANALÍTICO DEL EJERCICIO DEL PRESUPUESTO DE EGRESOS (F18) columna MODIFICADO.") -> 
C150: =IF(ROUND(F18A!E62,2)=ROUND('F18'!E58,2),"","15.3. El TOTAL DEL GASTO del momento DEVENGADO del ESTADO ANALÍTICO DEL EJERCICIO DEL PRESUPUESTO DE EGRESOS DETALLADO - LDF (F18A),"&" no es igual al ESTADO ANALÍTICO DEL EJERCICIO DEL PRESUPUESTO DE EGRESOS (F18) columna DEVENGADO.") -> 
C151: =IF(ROUND(F18A!F62,2)=ROUND('F18'!F58,2),"","15.4. El TOTAL DEL GASTO del momento PAGADO del ESTADO ANALÍTICO DEL EJERCICIO DEL PRESUPUESTO DE EGRESOS DETALLADO - LDF (F18A),"&" no es igual al ESTADO ANALÍTICO DEL EJERCICIO DEL PRESUPUESTO DE EGRESOS (F18) columna PAGADO.") -> 
C152: =IF(ROUND(F18A!$B$8,2)=ROUND(F8B!$D$7,2),"","15.5. El TOTAL DEL GASTO NO ETIQUETADO en lo correspondiente al APROBADO del ESTADO ANALÍTICO DEL EJERCICIO DEL PRESUPUESTO DE EGRESO DETALLADO - LDF (F18A),"&" no es igual al TOTAL DEL GASTO NO ETIQUETADO en el momento APROBADO del ESTADO ANALÍTICO DEL EJERCICIO DEL PRESUPUESTO DE EGRESOS (F8B).") -> 
C153: =IF(ROUND(F18A!$D$8,2)=ROUND(F8B!$F$7,2),"","15.6. El TOTAL DEL GASTO NO ETIQUETADO en lo correspondiente al MODIFICADO del ESTADO ANALÍTICO DEL EJERCICIO DEL PRESUPUESTO DE EGRESO DETALLADO - LDF (F18A),"&" no es igual al TOTAL DEL GASTO NO ETIQUETADO en el momento MODIFICADO del ESTADO ANALÍTICO DEL EJERCICIO DEL PRESUPUESTO DE EGRESOS (F8B).") -> 
C154: =IF(ROUND(F18A!$E$8,2)=ROUND(F8B!$G$7,2),"","15.7. El TOTAL DEL GASTO NO ETIQUETADO en lo correspondiente al DEVENGADO del ESTADO ANALÍTICO DEL EJERCICIO DEL PRESUPUESTO DE EGRESO DETALLADO - LDF (F18A),"&" no es igual al TOTAL DEL GASTO NO ETIQUETADO en el momento DEVENGADO del ESTADO ANALÍTICO DEL EJERCICIO DEL PRESUPUESTO DE EGRESOS (F8B).") -> 
C155: =IF(ROUND(F18A!$F8,2)=ROUND(F8B!$H$7,2),"","15.8. El TOTAL DEL GASTO NO ETIQUETADO en lo correspondiente al PAGADO del ESTADO ANALÍTICO DEL EJERCICIO DEL PRESUPUESTO DE EGRESO DETALLADO - LDF (F18A),"&" no es igual al TOTAL DEL GASTO NO ETIQUETADO en el momento PAGADO del ESTADO ANALÍTICO DEL EJERCICIO DEL PRESUPUESTO DE EGRESOS (F8B).") -> 
C156: =IF(ROUND(F18A!$B$35,2)=ROUND(F8B!$D$81,2),"","15.9. El TOTAL DEL GASTO ETIQUETADO en lo correspondiente al APROBADO del ESTADO ANALÍTICO DEL EJERCICIO DEL PRESUPUESTO DE EGRESO DETALLADO - LDF (F18A),"&" no es igual al TOTAL DEL GASTO ETIQUETADO en el momento APROBADO del ESTADO ANALÍTICO DEL EJERCICIO DEL PRESUPUESTO DE EGRESOS (F8B).") -> 
C157: =IF(ROUND(F18A!$D$35,2)=ROUND(F8B!$F$81,2),"","15.10. El TOTAL DEL GASTO ETIQUETADO en lo correspondiente al MODIFICADO del ESTADO ANALÍTICO DEL EJERCICIO DEL PRESUPUESTO DE EGRESO DETALLADO - LDF (F18A),"&" no es igual al TOTAL DEL GASTO ETIQUETADO en el momento MODIFICADO del ESTADO ANALÍTICO DEL EJERCICIO DEL PRESUPUESTO DE EGRESOS (F8B).") -> 
C158: =IF(ROUND(F18A!$E$35,2)=ROUND(F8B!$G$81,2),"","15.11. El TOTAL DEL GASTO ETIQUETADO en lo correspondiente al DEVENGADO del ESTADO ANALÍTICO DEL EJERCICIO DEL PRESUPUESTO DE EGRESO DETALLADO - LDF (F18A),"&" no es igual al TOTAL DEL GASTO ETIQUETADO en el momento DEVENGADO del ESTADO ANALÍTICO DEL EJERCICIO DEL PRESUPUESTO DE EGRESOS (F8B).") -> 
C159: =IF(ROUND(F18A!$F$35,2)=ROUND(F8B!$H$81,2),"","15.12. El TOTAL DEL GASTO ETIQUETADO en lo correspondiente al PAGADO del ESTADO ANALÍTICO DEL EJERCICIO DEL PRESUPUESTO DE EGRESO DETALLADO - LDF (F18A),"&" no es igual al TOTAL DEL GASTO ETIQUETADO en el momento PAGADO del ESTADO ANALÍTICO DEL EJERCICIO DEL PRESUPUESTO DE EGRESOS (F8B).") -> 
A160: 16. Validación Balance Presupuestario - LDF (F22) | C160: =IF(ROUND(SUM('F22'!E7:E8)+('F22'!E27),2)=ROUND('F7'!C17,2),"","16.1. El importe de INGRESOS TOTALES del momento ESTIMADO del BALANCE PRESUPUESTARIO - LDF (F22),"&" no es igual al ESTADO ANALÍTICO DE INGRESOS (F7) columna ESTIMADO.") -> 
C161: =IF(ROUND(SUM('F22'!F7:F8)+('F22'!F27),2)=ROUND('F7'!F17,2),"","16.2. El importe de INGRESOS TOTALES del momento DEVENGADO del BALANCE PRESUPUESTARIO - LDF (F22),"&" no es igual al ESTADO ANALÍTICO DE INGRESOS (F7) columna DEVENGADO.") -> 
C162: =IF(ROUND(SUM('F22'!G7:G8)+('F22'!G27),2)=ROUND('F7'!G17,2),"","16.3. El importe de INGRESOS TOTALES del momento RECAUDADO del BALANCE PRESUPUESTARIO - LDF (F22),"&" no es igual al ESTADO ANALÍTICO DE INGRESOS (F7) columna RECAUDADO.") -> 
C163: =IF(ROUND(('F22'!E10+'F22'!E30),2)=ROUND('F8'!C80,2),"","16.4. El importe de EGRESOS PRESUPUESTARIOS del momento APROBADO del BALANCE PRESUPUESTARIO - LDF (F22),"&" no es igual al ESTADO ANALÍTICO DEL EJERCICIO DEL PRESUPUESTO DE EGRESOS (F8) columna APROBADO.") -> 
C164: =IF(ROUND(('F22'!F10+'F22'!F30),2)=ROUND('F8'!F80,2),"","16.5. El importe de EGRESOS PRESUPUESTARIOS del momento DEVENGADO del BALANCE PRESUPUESTARIO - LDF (F22),"&" no es igual al ESTADO ANALÍTICO DEL EJERCICIO DEL PRESUPUESTO DE EGRESOS (F8) columna DEVENGADO.") -> 
C165: =IF(ROUND(('F22'!G10+'F22'!G30),2)=ROUND('F8'!G80,2),"","16.6. El importe de EGRESOS PRESUPUESTARIOS del momento PAGADO del BALANCE PRESUPUESTARIO - LDF (F22),"&" no es igual al ESTADO ANALÍTICO DEL EJERCICIO DEL PRESUPUESTO DE EGRESOS (F8) columna PAGADO.") -> 
A166: 17. Validación Avance de programas y/o procesos concluidos (F13) | C166: =IF(ROUND('F13'!$P$6,2)=ROUND('F12'!$E$21,2),"","17.1. El total del CAPÍTULO 1000 del AVANCE DE PROGRAMAS Y/O PROCESOS CONCLUIDOS (F13),"&" no es igual al informado en el FLUJO CONTABLE DE INGRESOS Y EGRESOS (F12) columna MODIFICADO.") -> 
C167: =IF(ROUND('F13'!$Q$6,2)=ROUND('F12'!$E$22,2),"","17.2. El total del CAPÍTULO 2000 del AVANCE DE PROGRAMAS Y/O PROCESOS CONCLUIDOS (F13),"&" no es igual al informado en el FLUJO CONTABLE DE INGRESOS Y EGRESOS (F12) columna MODIFICADO.") -> 
C168: =IF(ROUND('F13'!$R$6,2)=ROUND('F12'!$E$23,2),"","17.3. El total del CAPÍTULO 3000 del AVANCE DE PROGRAMAS Y/O PROCESOS CONCLUIDOS (F13),"&" no es igual al informado en el FLUJO CONTABLE DE INGRESOS Y EGRESOS (F12) columna MODIFICADO.") -> 
C169: =IF(ROUND('F13'!$S$6,2)=ROUND('F12'!$E$24,2),"","17.4. El total del CAPÍTULO 4000 del AVANCE DE PROGRAMAS Y/O PROCESOS CONCLUIDOS (F13),"&" no es igual al informado en el FLUJO CONTABLE DE INGRESOS Y EGRESOS (F12) columna MODIFICADO.") -> 
C170: =IF(ROUND('F13'!$T$6,2)=ROUND('F12'!$E$25,2),"","17.5. El total del CAPÍTULO 5000 del AVANCE DE PROGRAMAS Y/O PROCESOS CONCLUIDOS (F13),"&" no es igual al informado en el FLUJO CONTABLE DE INGRESOS Y EGRESOS (F12) columna MODIFICADO.") -> 
C171: =IF(ROUND('F13'!$U$6,2)=ROUND('F12'!$E$26,2),"","17.6. El total del CAPÍTULO 6000 del AVANCE DE PROGRAMAS Y/O PROCESOS CONCLUIDOS (F13),"&" no es igual al informado en el FLUJO CONTABLE DE INGRESOS Y EGRESOS (F12) columna MODIFICADO.") -> 
C172: =IF(ROUND('F13'!$V$6,2)=ROUND('F12'!$E$27,2),"","17.7. El total del CAPÍTULO 7000 del AVANCE DE PROGRAMAS Y/O PROCESOS CONCLUIDOS (F13),"&" no es igual al informado en el FLUJO CONTABLE DE INGRESOS Y EGRESOS (F12) columna MODIFICADO.") -> 
C173: =IF(ROUND('F13'!$W$6,2)=ROUND('F12'!$E$28,2),"","17.8. El total del CAPÍTULO 8000 del AVANCE DE PROGRAMAS Y/O PROCESOS CONCLUIDOS (F13),"&" no es igual al informado en el FLUJO CONTABLE DE INGRESOS Y EGRESOS (F12) columna MODIFICADO.") -> 
C174: =IF(ROUND('F13'!$X$6,2)=ROUND('F12'!$E$29,2),"","17.9. El total del CAPÍTULO 9000 del AVANCE DE PROGRAMAS Y/O PROCESOS CONCLUIDOS (F13),"&" no es igual al informado en el FLUJO CONTABLE DE INGRESOS Y EGRESOS (F12) columna MODIFICADO.") -> 
C175: =IF(ROUND('F13'!$AA$6,2)=ROUND('F12'!$F$21,2),"","17.10. El total del CAPÍTULO 1000 del AVANCE DE PROGRAMAS Y/O PROCESOS CONCLUIDOS (F13),"&" no es igual al informado en el FLUJO CONTABLE DE INGRESOS Y EGRESOS (F12) columna DEVENGADO.") -> 
C176: =IF(ROUND('F13'!$AB$6,2)=ROUND('F12'!$F$22,2),"","17.11. El total del CAPÍTULO 2000 del AVANCE DE PROGRAMAS Y/O PROCESOS CONCLUIDOS (F13),"&" no es igual al informado en el FLUJO CONTABLE DE INGRESOS Y EGRESOS (F12) columna DEVENGADO.") -> 
C177: =IF(ROUND('F13'!$AC$6,2)=ROUND('F12'!$F$23,2),"","17.12. El total del CAPÍTULO 3000 del AVANCE DE PROGRAMAS Y/O PROCESOS CONCLUIDOS (F13),"&" no es igual al informado en el FLUJO CONTABLE DE INGRESOS Y EGRESOS (F12) columna DEVENGADO.") -> 
C178: =IF(ROUND('F13'!$AD$6,2)=ROUND('F12'!$F$24,2),"","17.13. El total del CAPÍTULO 4000 del AVANCE DE PROGRAMAS Y/O PROCESOS CONCLUIDOS (F13),"&" no es igual al informado en el FLUJO CONTABLE DE INGRESOS Y EGRESOS (F12) columna DEVENGADO.") -> 
C179: =IF(ROUND('F13'!$AE$6,2)=ROUND('F12'!$F$25,2),"","17.14. El total del CAPÍTULO 5000 del AVANCE DE PROGRAMAS Y/O PROCESOS CONCLUIDOS (F13),"&" no es igual al informado en el FLUJO CONTABLE DE INGRESOS Y EGRESOS (F12) columna DEVENGADO.") -> 
C180: =IF(ROUND('F13'!$AF$6,2)=ROUND('F12'!$F$26,2),"","17.15. El total del CAPÍTULO 6000 del AVANCE DE PROGRAMAS Y/O PROCESOS CONCLUIDOS (F13),"&" no es igual al informado en el FLUJO CONTABLE DE INGRESOS Y EGRESOS (F12) columna DEVENGADO.") -> 
C181: =IF(ROUND('F13'!$AG$6,2)=ROUND('F12'!$F$27,2),"","17.16. El total del CAPÍTULO 7000 del AVANCE DE PROGRAMAS Y/O PROCESOS CONCLUIDOS (F13),"&" no es igual al informado en el FLUJO CONTABLE DE INGRESOS Y EGRESOS (F12) columna DEVENGADO.") -> 
C182: =IF(ROUND('F13'!$AH$6,2)=ROUND('F12'!$F$28,2),"","17.17. El total del CAPÍTULO 8000 del AVANCE DE PROGRAMAS Y/O PROCESOS CONCLUIDOS (F13),"&" no es igual al informado en el FLUJO CONTABLE DE INGRESOS Y EGRESOS (F12) columna DEVENGADO.") -> 
C183: =IF(ROUND('F13'!$AI$6,2)=ROUND('F12'!$F$29,2),"","17.18. El total del CAPÍTULO 9000 del AVANCE DE PROGRAMAS Y/O PROCESOS CONCLUIDOS (F13),"&" no es igual al informado en el FLUJO CONTABLE DE INGRESOS Y EGRESOS (F12) columna DEVENGADO.") -> 
B185: Acatic | C185: ENERO | D185: ="31 de Enero de "&F185 -> 31 de Enero de 2026 | E185: ="Del 1° al 31 de Enero de "&F185 -> Del 1° al 31 de Enero de 2026 | F185: 2026 | T185: Indicaciones para actualizar el archivo de importar de cada año:
B186: Acatlán de Juárez | C186: FEBRERO | D186: ="28 de Febrero de "&F185 -> 28 de Febrero de 2026 | E186: ="Del 1° al 28 de Febrero de "&F185 -> Del 1° al 28 de Febrero de 2026 | F186: 2025 | U186: Actualizar el catálogo de entidades
B187: Administración de Estacionómetros para la Asistencia Social del Municipio de Zapotlán el Grande | C187: MARZO | D187: ="31 de Marzo de "&F185 -> 31 de Marzo de 2026 | E187: ="Del 1° al 31 de Marzo de "&F185 -> Del 1° al 31 de Marzo de 2026 | U187: Cambiar conforme a los días de febrero
B188: Agencia Metropolitana de Bosques Urbanos del Área Metropolitana de Guadalajara | C188: ABRIL | D188: ="30 de Abril de "&F185 -> 30 de Abril de 2026 | E188: ="Del 1° al 30 de Abril de "&F185 -> Del 1° al 30 de Abril de 2026 | U188: Corresponde el primero al año de la cuenta y el segundo al anterior
B189: Agencia Metropolitana de Servicios de Infraestructura para la Movilidad del Área Metropolitana de Guadalajara | C189: MAYO | D189: ="31 de Mayo de "&F185 -> 31 de Mayo de 2026 | E189: ="Del 1° al 31 de Mayo de "&F185 -> Del 1° al 31 de Mayo de 2026
B190: Agua y Saneamiento del Municipio de Tepatitlán (ASTEPA) | C190: JUNIO, 1er. Informe de Avance de Gestión Financiera y Corte Semestral | D190: ="30 de Junio de "&F185 -> 30 de Junio de 2026 | E190: ="Del 1° al 30 de Junio de "&F185 -> Del 1° al 30 de Junio de 2026
B191: Ahualulco de Mercado | C191: JULIO | D191: ="31 de Julio de "&F185 -> 31 de Julio de 2026 | E191: ="Del 1° al 31 de Julio de "&F185 -> Del 1° al 31 de Julio de 2026
B192: Albergue Las Cuadritas "Fray Antonio Alcalde" | C192: AGOSTO | D192: ="31 de Agosto de "&F185 -> 31 de Agosto de 2026 | E192: ="Del 1° al 31 de Agosto de "&F185 -> Del 1° al 31 de Agosto de 2026
B193: Amacueca | C193: SEPTIEMBRE | D193: ="30 de Septiembre de "&F185 -> 30 de Septiembre de 2026 | E193: ="Del 1° al 30 de Septiembre de "&F185 -> Del 1° al 30 de Septiembre de 2026
B194: Amatitán | C194: OCTUBRE | D194: ="31 de Octubre de "&F185 -> 31 de Octubre de 2026 | E194: ="Del 1° al 31 de Octubre de "&F185 -> Del 1° al 31 de Octubre de 2026
B195: Ameca | C195: NOVIEMBRE | D195: ="30 de Noviembre de "&F185 -> 30 de Noviembre de 2026 | E195: ="Del 1° al 30 de Noviembre de "&F185 -> Del 1° al 30 de Noviembre de 2026
B196: Arandas | C196: DICIEMBRE, 2do. Informe de Avance de Gestión Financiera y Corte Anual | D196: ="31 de Diciembre de "&F185 -> 31 de Diciembre de 2026 | E196: ="Del 1° al 31 de Diciembre de "&F185 -> Del 1° al 31 de Diciembre de 2026
B197: Asociación Intermunicipal para la Protección del Medio Ambiente y el Desarrollo Sustentable del Lago de Chapala
B198: Atemajac de Brizuela
B199: Atengo
B200: Atenguillo
B201: Atotonilco el Alto
B202: Atoyac
B203: Autlán de Navarro
... 364 more rows

Sheet Balanza (hidden)
A1: No. DE CUENTA | B1: NOMBRE DE LA CUENTA | C1: ="SALDO AL 31 DE DICIEMBRE DE "&Validacion!F186 -> SALDO AL 31 DE DICIEMBRE DE 2025 | E1: MOVIMIENTO | G1: ="SALDO FINAL DEL PERIODO A INFORMAR EJERCICIO "&Validacion!F185 -> SALDO FINAL DEL PERIODO A INFORMAR EJERCICIO 2026
C2: DEUDOR | D2: ACREEDOR | E2: DEUDOR | F2: ACREEDOR | G2: DEUDOR | H2: ACREEDOR
A3: 10000 | B3: ACTIVO | C3: =C4+C43 -> 417,980,303.08 | E3: =E4+E43 -> 37,480,969.76 | F3: =F4+F43 -> 27,589,231.89 | G3: =G4+G43 -> 427,872,040.95
A4: 11000 | B4: ACTIVO CIRCULANTE | C4: =C5+C13+C21+C27+C33+C35+C38 -> 12,633,909.97 | E4: =E5+E13+E21+E27+E33+E35+E38 -> 35,828,635.26 | F4: =F5+F13+F21+F27+F33+F35+F38 -> 26,304,763.24 | G4: =G5+G13+G21+G27+G33+G35+G38 -> 22,157,781.99
A5: 11100 | B5: EFECTIVO Y EQUIVALENTES | C5: =SUM(C6:C12) -> 2,739,418.71 | E5: =SUM(E6:E12) -> 33,436,784.60 | F5: =SUM(F6:F12) -> 24,735,095.76 | G5: =SUM(G6:G12) -> 11,441,107.55
A6: 11110 | B6: Efectivo | C6: 297,939.06 | G6: =ROUND(C6+E6-F6,2) -> 297,939.06
A7: 11120 | B7: Bancos/Tesorería | C7: -2,393,120.35 | E7: 33,436,784.60 | F7: 24,735,095.76 | G7: =ROUND(C7+E7-F7,2) -> 6,308,568.49
A8: 11130 | B8: Bancos/Dependencias y otros | G8: 0.00
A9: 11140 | B9: Inversiones temporales (hasta 3 meses) | G9: 0.00
A10: 11150 | B10: Fondos con afectación específica | G10: 0.00
A11: 11160 | B11: Depósitos de fondos de terceros en garantía y/o administración | G11: 0.00
A12: 11190 | B12: Otros efectivos y equivalentes | C12: 4,834,600.00 | G12: 4,834,600.00
A13: 11200 | B13: DERECHOS A RECIBIR EFECTIVO O EQUIVALENTES | C13: =SUM(C14:C20) -> 4,312,934.56 | E13: =SUM(E14:E20) -> 1,831,530.40 | F13: =SUM(F14:F20) -> 1,388,447.48 | G13: =SUM(G14:G20) -> 4,756,017.48
A14: 11210 | B14: Inversiones financieras de corto plazo | G14: =ROUND(C14+E14-F14,2) -> 0.00
A15: 11220 | B15: Cuentas por cobrar a corto plazo | G15: 0.00
A16: 11230 | B16: Deudores diversos por cobrar a corto plazo | C16: 12,728,163.46 | E16: 1,543,530.40 | F16: 76,050.00 | G16: 14,195,643.86
A17: 11240 | B17: Ingresos por recuperar a corto plazo | G17: 0.00
A18: 11250 | B18: Deudores por anticipos de la tesorería a corto plazo | C18: -9,888,799.43 | F18: 1,167,530.89 | G18: -11,056,330.32
A19: 11260 | B19: Préstamos otorgados a corto plazo | C19: 1,473,570.53 | E19: 288,000.00 | F19: 144,866.59 | G19: 1,616,703.94
A20: 11290 | B20: Otros derechos a recibir efectivo o equivalentes a corto plazo | G20: 0.00
A21: 11300 | B21: DERECHOS A RECIBIR BIENES O SERVICIOS | C21: =SUM(C22:C26) -> 5,581,556.70 | E21: =SUM(E22:E26) -> 560,320.26 | F21: =SUM(F22:F26) -> 181,220.00 | G21: =SUM(G22:G26) -> 5,960,656.96
A22: 11310 | B22: Anticipo a proveedores por adquisición de bienes y prestación de servicios a corto plazo | C22: 5,581,556.89 | E22: 74,500.00 | F22: 181,220.00 | G22: =ROUND(C22+E22-F22,2) -> 5,474,836.89
A23: 11320 | B23: Anticipo a proveedores por adquisición de bienes inmuebles y muebles a corto plazo | G23: 0.00
A24: 11330 | B24: Anticipo a proveedores por adquisición de bienes intangibles a corto plazo | G24: 0.00
A25: 11340 | B25: Anticipo a contratistas por obras públicas a corto plazo | C25: -0.19 | E25: 485,820.26 | G25: 485,820.07
A26: 11390 | B26: Otros derechos a recibir bienes o servicios a corto plazo | G26: 0.00
A27: 11400 | B27: INVENTARIOS | C27: =SUM(C28:C32) -> 0.00 | E27: =SUM(E28:E32) -> 0.00 | F27: =SUM(F28:F32) -> 0.00 | G27: =SUM(G28:G32) -> 0.00
A28: 11410 | B28: Inventario de mercancías para venta
A29: 11420 | B29: Inventario de mercancías terminadas
A30: 11430 | B30: Inventario de mercancías en proceso de elaboración
A31: 11440 | B31: Inventario de materias primas, materiales y suministros para producción
A32: 11450 | B32: Bienes en tránsito
A33: 11500 | B33: ALMACENES | C33: =SUM(C34) -> 0.00 | E33: =SUM(E34) -> 0.00 | F33: =SUM(F34) -> 0.00 | G33: =SUM(G34) -> 0.00
A34: 11510 | B34: Almacén de materiales y suministros de consumo | G34: =ROUND(C34+E34-F34,2) -> 0.00
A35: 11600 | B35: ESTIMACIÓN POR PÉRDIDA O DETERIORO DE ACTIVOS CIRCULANTES | C35: =SUM(C36:C37) -> 0.00 | E35: =SUM(E36:E37) -> 0.00 | F35: =SUM(F36:F37) -> 0.00 | G35: =SUM(G36:G37) -> 0.00
A36: 11610 | B36: Estimaciones para cuentas incobrables por derechos a recibir efectivo o equivalentes | G36: =ROUND(C36+E36-F36,2) -> 0.00
A37: 11620 | B37: Estimación por deterioro de inventarios | G37: 0.00
A38: 11900 | B38: OTROS ACTIVOS CIRCULANTES | C38: =SUM(C39:C42) -> 0.00 | E38: =SUM(E39:E42) -> 0.00 | F38: =SUM(F39:F42) -> 0.00 | G38: =SUM(G39:G42) -> 0.00
A39: 11910 | B39: Valores en garantía | G39: =ROUND(C39+E39-F39,2) -> 0.00
A40: 11920 | B40: Bienes en garantía (excluye depósitos de fondos) | G40: 0.00
A41: 11930 | B41: Bienes derivados de embargos, decomisos, aseguramientos y dación en pago | G41: 0.00
A42: 11940 | B42: Adquisición con fondos de terceros | G42: 0.00
A43: 12000 | B43: ACTIVO NO CIRCULANTE | C43: =C44+C49+C55+C63+C72+C78+C84+C91+C97-D43 -> 405,346,393.11 | D43: =D44+D49+D55+D63+D72+D78+D84+D91+D97 -> 18,350,457.80 | E43: =E44+E49+E55+E63+E72+E78+E84+E91+E97 -> 1,652,334.50 | F43: =F44+F49+F55+F63+F72+F78+F84+F91+F97 -> 1,284,468.65 | G43: =G44+G49+G55+G63+G72+G78+G84+G91+G97-H43 -> 405,714,258.96 | H43: =H44+H49+H55+H63+H72+H78+H84+H91+H97 -> 18,350,457.80
A44: 12100 | B44: INVERSIONES FINANCIERAS A LARGO PLAZO | C44: =SUM(C45:C48) -> 0.00 | E44: =SUM(E45:E48) -> 1,325,031.00 | F44: =SUM(F45:F48) -> 1,284,468.65 | G44: =SUM(G45:G48) -> 40,562.35
A45: 12110 | B45: Inversiones a largo plazo | C45: 0.00 | E45: 1,325,031.00 | F45: 1,284,468.65 | G45: =ROUND(C45+E45-F45,2) -> 40,562.35
A46: 12120 | B46: Títulos y valores a largo plazo | G46: 0.00
A47: 12130 | B47: Fideicomisos, mandatos y contratos análogos | G47: 0.00
A48: 12140 | B48: Participaciones y aportaciones de capital | G48: 0.00
A49: 12200 | B49: DERECHOS A RECIBIR EFECTIVO O EQUIVALENTES A LARGO PLAZO | C49: =SUM(C50:C54) -> 0.00 | E49: =SUM(E50:E54) -> 0.00 | F49: =SUM(F50:F54) -> 0.00 | G49: =SUM(G50:G54) -> 0.00
A50: 12210 | B50: Documentos por cobrar a largo plazo | G50: =ROUND(C50+E50-F50,2) -> 0.00
A51: 12220 | B51: Deudores diversos a largo plazo | G51: 0.00
A52: 12230 | B52: Ingresos por recuperar a largo plazo | G52: 0.00
A53: 12240 | B53: Préstamos otorgados a largo plazo | G53: 0.00
A54: 12290 | B54: Otros derechos a recibir efectivo o equivalentes a largo plazo | G54: 0.00
A55: 12300 | B55: BIENES INMUEBLES, INFRAESTRUCTURA Y CONSTRUCCIONES EN PROCESO | C55: =SUM(C56:C62) -> 366,636,307.45 | E55: =SUM(E56:E62) -> 279,743.50 | F55: =SUM(F56:F62) -> 0.00 | G55: =SUM(G56:G62) -> 366,916,050.95
A56: 12310 | B56: Terrenos | C56: 55,647,301.01 | G56: =ROUND(C56+E56-F56,2) -> 55,647,301.01
A57: 12320 | B57: Viviendas | G57: 0.00
A58: 12330 | B58: Edificios no habitacionales | C58: 33,513,320.53 | G58: 33,513,320.53
A59: 12340 | B59: Infraestructura | C59: 56,560,545.00 | G59: 56,560,545.00
A60: 12350 | B60: Construcciones en proceso en bienes de dominio público | C60: 220,915,140.91 | E60: 279,743.50 | G60: 221,194,884.41
A61: 12360 | B61: Construcciones en proceso en bienes propios | G61: 0.00
A62: 12390 | B62: Otros bienes inmuebles | G62: 0.00
A63: 12400 | B63: BIENES MUEBLES | C63: =SUM(C64:C71) -> 54,303,320.76 | E63: =SUM(E64:E71) -> 47,560.00 | F63: =SUM(F64:F71) -> 0.00 | G63: =SUM(G64:G71) -> 54,350,880.76
A64: 12410 | B64: Mobiliario y equipo de administración | C64: 6,840,960.68 | G64: =ROUND(C64+E64-F64,2) -> 6,840,960.68
A65: 12420 | B65: Mobiliario y equipo educacional y recreativo | C65: 1,250,481.82 | G65: 1,250,481.82
A66: 12430 | B66: Equipo e instrumental médico y de laboratorio | C66: 2,063,418.20 | G66: 2,063,418.20
A67: 12440 | B67: Vehículos y equipo de transporte | C67: 34,915,759.02 | G67: 34,915,759.02
A68: 12450 | B68: Equipo de defensa y seguridad | C68: 867,562.13 | G68: 867,562.13
A69: 12460 | B69: Maquinaria, otros equipos y herramientas | C69: 7,779,470.45 | G69: 7,779,470.45
A70: 12470 | B70: Colecciones, obras de arte y objetos valiosos | C70: 407,118.46 | E70: 47,560.00 | G70: 454,678.46
A71: 12480 | B71: Activos biológicos | C71: 178,550.00 | G71: 178,550.00
A72: 12500 | B72: ACTIVOS INTANGIBLES | C72: =SUM(C73:C77) -> 2,757,222.70 | E72: =SUM(E73:E77) -> 0.00 | F72: =SUM(F73:F77) -> 0.00 | G72: =SUM(G73:G77) -> 2,757,222.70
A73: 12510 | B73: Software | C73: 34,678.20 | G73: =ROUND(C73+E73-F73,2) -> 34,678.20
A74: 12520 | B74: Patentes, marcas y derechos | G74: 0.00
A75: 12530 | B75: Concesiones y franquicias | G75: 0.00
A76: 12540 | B76: Licencias | C76: 2,722,544.50 | G76: 2,722,544.50
A77: 12590 | B77: Otros activos intangibles | G77: 0.00
A78: 12600 | B78: DEPRECIACIÓN, DETERIORO Y AMORTIZACIÓN ACUMULADA DE BIENES | D78: =SUM(D79:D83) -> 18,350,457.80 | E78: =SUM(E79:E83) -> 0.00 | F78: =SUM(F79:F83) -> 0.00 | H78: =D78+F78-E78 -> 18,350,457.80
A79: 12610 | B79: Depreciación acumulada de bienes inmuebles | D79: 120,623.78 | H79: =ROUND(D79+F79-E79,2) -> 120,623.78
A80: 12620 | B80: Depreciación acumulada de infraestructura | H80: =ROUND(D80+F80-E80,2) -> 0.00
A81: 12630 | B81: Depreciación acumulada de bienes muebles | D81: 17,893,932.55 | H81: 17,893,932.55
A82: 12640 | B82: Deterioro acumulado de bienes | H82: 0.00
A83: 12650 | B83: Amortización acumulada de activos intangibles | D83: 335,901.47 | H83: 335,901.47
A84: 12700 | B84: ACTIVOS DIFERIDOS | C84: =SUM(C85:C90) -> 0.00 | E84: =SUM(E85:E90) -> 0.00 | F84: =SUM(F85:F90) -> 0.00 | G84: =SUM(G85:G90) -> 0.00
A85: 12710 | B85: Estudios, formulación y evaluación de proyectos | G85: =ROUND(C85+E85-F85,2) -> 0.00
A86: 12720 | B86: Derechos sobre bienes en régimen de arrendamiento financiero | G86: 0.00
A87: 12730 | B87: Gastos pagados por adelantado a largo plazo | G87: 0.00
A88: 12740 | B88: Anticipos a largo plazo | G88: 0.00
A89: 12750 | B89: Beneficios al retiro de empleados pagados por adelantado | G89: 0.00
A90: 12790 | B90: Otros activos diferidos | G90: 0.00
A91: 12800 | B91: ESTIMACIÓN POR PÉRDIDA O DETERIORO DE ACTIVOS NO CIRCULANTES | D91: =SUM(D92:D96) -> 0.00 | E91: =SUM(E92:E96) -> 0.00 | F91: =SUM(F92:F96) -> 0.00 | H91: =D91+F91-E91 -> 0.00
A92: 12810 | B92: Estimaciones por pérdida de cuentas incobrables de documentos por cobrar a largo plazo | H92: =ROUND(D92+F92-E92,2) -> 0.00
A93: 12820 | B93: Estimaciones por pérdida de cuentas incobrables de deudores diversos por cobrar a largo plazo | H93: 0.00
A94: 12830 | B94: Estimaciones por pérdida de cuentas incobrables de ingresos por cobrar a largo plazo | H94: 0.00
A95: 12840 | B95: Estimaciones por pérdida de cuentas incobrables de préstamos otorgados a largo plazo | H95: 0.00
A96: 12890 | B96: Estimaciones por pérdida de otras cuentas incobrables a largo plazo | H96: =ROUND(D96+F96-E96,2) -> 0.00
A97: 12900 | B97: OTROS ACTIVOS NO CIRCULANTES | C97: =SUM(C98:C100) -> 0.00 | E97: =SUM(E98:E100) -> 0.00 | F97: =SUM(F98:F100) -> 0.00 | G97: =SUM(G98:G100) -> 0.00
A98: 12910 | B98: Bienes en concesión | G98: =ROUND(C98+E98-F98,2) -> 0.00
A99: 12920 | B99: Bienes en arrendamiento financiero | G99: 0.00
A100: 12930 | B100: Bienes en comodato | G100: 0.00
A101: 20000 | B101: PASIVO | D101: =D102+D143 -> 35,946,274.61 | E101: =E102+E143 -> 18,888,946.89 | F101: =F102+F143 -> 18,602,535.51 | H101: =H102+H143 -> 35,659,863.23
A102: 21000 | B102: PASIVO CIRCULANTE | D102: =D103+D113+D117+D121+D124+D128+D135+D139 -> 7,412,358.35 | E102: =E103+E113+E117+E121+E124+E128+E135+E139 -> 17,968,338.35 | F102: =F103+F113+F117+F121+F124+F128+F135+F139 -> 18,602,535.51 | H102: =H103+H113+H117+H121+H124+H128+H135+H139 -> 8,046,555.51
A103: 21100 | B103: CUENTAS POR PAGAR A CORTO PLAZO | D103: =SUM(D104:D112) -> 7,039,817.08 | E103: =SUM(E104:E112) -> 17,132,395.41 | F103: =SUM(F104:F112) -> 16,917,569.00 | H103: =SUM(H104:H112) -> 6,824,990.67
A104: 21110 | B104: Servicios personales por pagar a corto plazo | E104: 4,869,709.41 | F104: 4,869,854.41 | H104: =ROUND(D104+F104-E104,2) -> 145.00
A105: 21120 | B105: Proveedores por pagar a corto plazo | D105: 7,637,422.77 | E105: 11,747,614.76 | F105: 11,366,630.34 | H105: 7,256,438.35
A106: 21130 | B106: Contratistas por obras públicas por pagar a corto plazo | H106: 0.00
A107: 21140 | B107: Participaciones y aportaciones por pagar a corto plazo | H107: 0.00
A108: 21150 | B108: Transferencias otorgadas por pagar a corto plazo | H108: 0.00
A109: 21160 | B109: Intereses, comisiones y otros gastos de la deuda pública por pagar a corto plazo | H109: 0.00
A110: 21170 | B110: Retenciones y contribuciones por pagar a corto plazo | D110: -597,605.69 | E110: 515,071.24 | F110: 681,084.25 | H110: -431,592.68
A111: 21180 | B111: Devoluciones de la ley de ingresos por pagar a corto plazo | H111: 0.00
A112: 21190 | B112: Otras cuentas por pagar a corto plazo | H112: 0.00
A113: 21200 | B113: DOCUMENTOS POR PAGAR A CORTO PLAZO | D113: =SUM(D114:D116) -> 372,541.27 | E113: =SUM(E114:E116) -> 764,357.97 | F113: =SUM(F114:F116) -> 764,357.97 | H113: =SUM(H114:H116) -> 372,541.27
A114: 21210 | B114: Documentos comerciales por pagar a corto plazo | H114: =ROUND(D114+F114-E114,2) -> 0.00
A115: 21220 | B115: Documentos con contratistas por obras públicas por pagar a corto plazo | D115: 372,541.27 | E115: 764,357.97 | F115: 764,357.97 | H115: 372,541.27
A116: 21290 | B116: Otros documentos por pagar a corto plazo | H116: 0.00
A117: 21300 | B117: PORCIÓN A CORTO PLAZO DE LA DEUDA PÚBLICA A LARGO PLAZO | D117: =SUM(D118+D120) -> 0.00 | E117: =SUM(E118+E120) -> 71,584.97 | F117: =SUM(F118+F120) -> 920,608.54 | H117: =SUM(H118+H120) -> 849,023.57
A118: 21310 | B118: Porción a corto plazo de la deuda pública interna | D118: 0.00 | E118: 71,584.97 | F118: 920,608.54 | H118: =ROUND(D118+F118-E118,2) -> 849,023.57
A119: 21320 | B119: Porción a corto plazo de la deuda pública externa
A120: 21330 | B120: Porción a corto plazo de arrendamiento financiero | H120: =ROUND(D120+F120-E120,2) -> 0.00
A121: 21400 | B121: TÍTULOS Y VALORES A CORTO PLAZO | D121: =SUM(D122) -> 0.00 | E121: =SUM(E122) -> 0.00 | F121: =SUM(F122) -> 0.00 | H121: =SUM(H122) -> 0.00
A122: 21410 | B122: Títulos y valores de la deuda pública interna a corto plazo | H122: =ROUND(D122+F122-E122,2) -> 0.00
A123: 21420 | B123: Títulos y valores de la deuda pública externa a corto plazo
A124: 21500 | B124: PASIVOS DIFERIDOS A CORTO PLAZO | D124: =SUM(D125:D127) -> 0.00 | E124: =SUM(E125:E127) -> 0.00 | F124: =SUM(F125:F127) -> 0.00 | H124: =SUM(H125:H127) -> 0.00
A125: 21510 | B125: Ingresos cobrados por adelantado a corto plazo | H125: =ROUND(D125+F125-E125,2) -> 0.00
A126: 21520 | B126: Intereses cobrados por adelantado a corto plazo | H126: 0.00
A127: 21590 | B127: Otros pasivos diferidos a corto plazo | H127: 0.00
A128: 21600 | B128: FONDOS Y BIENES DE TERCEROS EN GARANTÍA Y/O ADMINISTRACIÓN A CORTO PLAZO | D128: =SUM(D129:D134) -> 0.00 | E128: =SUM(E129:E134) -> 0.00 | F128: =SUM(F129:F134) -> 0.00 | H128: =SUM(H129:H134) -> 0.00
A129: 21610 | B129: Fondos en garantía a corto plazo | H129: =ROUND(D129+F129-E129,2) -> 0.00
A130: 21620 | B130: Fondos en administración a corto plazo | H130: 0.00
A131: 21630 | B131: Fondos contingentes a corto plazo | H131: 0.00
A132: 21640 | B132: Fondos de fideicomisos, mandatos y contratos análogos a corto plazo | H132: 0.00
A133: 21650 | B133: Otros fondos de terceros en garantía y/o administración a corto plazo | H133: 0.00
A134: 21660 | B134: Valores y bienes en garantía a corto plazo | H134: 0.00
A135: 21700 | B135: PROVISIONES A CORTO PLAZO | D135: =SUM(D136:D138) -> 0.00 | E135: =SUM(E136:E138) -> 0.00 | F135: =SUM(F136:F138) -> 0.00 | H135: =SUM(H136:H138) -> 0.00
A136: 21710 | B136: Provisión para demandas y juicios a corto plazo | H136: =ROUND(D136+F136-E136,2) -> 0.00
A137: 21720 | B137: Provisión para contingencias a corto plazo | H137: 0.00
A138: 21790 | B138: Otras provisiones a corto plazo | H138: 0.00
A139: 21900 | B139: OTROS PASIVOS A CORTO PLAZO | D139: =SUM(D140:D142) -> 0.00 | E139: =SUM(E140:E142) -> 0.00 | F139: =SUM(F140:F142) -> 0.00 | H139: =SUM(H140:H142) -> 0.00
A140: 21910 | B140: Ingresos por clasificar | H140: =ROUND(D140+F140-E140,2) -> 0.00
A141: 21920 | B141: Recaudación por participar | H141: 0.00
A142: 21990 | B142: Otros pasivos circulantes | H142: 0.00
A143: 22000 | B143: PASIVO NO CIRCULANTE | D143: =SUM(D144+D147+D151+D157+D161+D168) -> 28,533,916.26 | E143: =SUM(E144+E147+E151+E157+E161+E168) -> 920,608.54 | F143: =SUM(F144+F147+F151+F157+F161+F168) -> 0.00 | H143: =SUM(H144+H147+H151+H157+H161+H168) -> 27,613,307.72
A144: 22100 | B144: CUENTAS POR PAGAR A LARGO PLAZO | D144: =SUM(D145:D146) -> 0.00 | E144: =SUM(E145:E146) -> 0.00 | F144: =SUM(F145:F146) -> 0.00 | H144: =SUM(H145:H146) -> 0.00
A145: 22110 | B145: Proveedores por pagar a largo plazo | H145: =ROUND(D145+F145-E145,2) -> 0.00
A146: 22120 | B146: Contratistas por obras públicas por pagar a largo plazo | H146: 0.00
A147: 22200 | B147: DOCUMENTOS POR PAGAR A LARGO PLAZO | D147: =SUM(D148:D150) -> 0.00 | E147: =SUM(E148:E150) -> 0.00 | F147: =SUM(F148:F150) -> 0.00 | H147: =SUM(H148:H150) -> 0.00
A148: 22210 | B148: Documentos comerciales por pagar a largo plazo | H148: =ROUND(D148+F148-E148,2) -> 0.00
A149: 22220 | B149: Documentos con contratistas por obras públicas por pagar a largo plazo | H149: 0.00
A150: 22290 | B150: Otros documentos por pagar a largo plazo | H150: 0.00
A151: 22300 | B151: DEUDA PÚBLICA A LARGO PLAZO | D151: =SUM(D152:D156) -> 28,533,916.26 | E151: =SUM(E152:E156) -> 920,608.54 | F151: =SUM(F152:F156) -> 0.00 | H151: =SUM(H152:H156) -> 27,613,307.72
A152: 22310 | B152: Títulos y valores de la deuda pública interna a largo plazo | H152: =ROUND(D152+F152-E152,2) -> 0.00
A153: 22320 | B153: Títulos y valores de la deuda pública externa a largo plazo
A154: 22330 | B154: Préstamos de la deuda pública interna por pagar a largo plazo | D154: 28,533,916.26 | E154: 920,608.54 | H154: =ROUND(D154+F154-E154,2) -> 27,613,307.72
A155: 22340 | B155: Préstamos de la deuda pública externa por pagar a largo plazo
A156: 22350 | B156: Arrendamiento financiero por pagar a largo plazo | H156: =ROUND(D156+F156-E156,2) -> 0.00
A157: 22400 | B157: PASIVOS DIFERIDOS A LARGO PLAZO | D157: =SUM(D158:D160) -> 0.00 | E157: =SUM(E158:E160) -> 0.00 | F157: =SUM(F158:F160) -> 0.00 | H157: =SUM(H158:H160) -> 0.00
A158: 22410 | B158: Créditos diferidos a largo plazo | H158: =ROUND(D158+F158-E158,2) -> 0.00
A159: 22420 | B159: Intereses cobrados por adelantado a largo plazo | H159: 0.00
A160: 22490 | B160: Otros pasivos diferidos a largo plazo | H160: 0.00
A161: 22500 | B161: FONDOS Y BIENES DE TERCEROS EN GARANTÍA Y/O ADMINISTRACIÓN A LARGO PLAZO | D161: =SUM(D162:D167) -> 0.00 | E161: =SUM(E162:E167) -> 0.00 | F161: =SUM(F162:F167) -> 0.00 | H161: =SUM(H162:H167) -> 0.00
A162: 22510 | B162: Fondos en garantía a largo plazo | H162: =ROUND(D162+F162-E162,2) -> 0.00
A163: 22520 | B163: Fondos en administración a largo plazo | H163: 0.00
A164: 22530 | B164: Fondos contingentes a largo plazo | H164: 0.00
A165: 22540 | B165: Fondos de fideicomisos, mandatos y contratos análogos a largo plazo | H165: 0.00
A166: 22550 | B166: Otros fondos de terceros en garantía y/o administración a largo plazo | H166: 0.00
A167: 22560 | B167: Valores y bienes en garantía a largo plazo | H167: 0.00
A168: 22600 | B168: PROVISIONES A LARGO PLAZO | D168: =SUM(D169:D172) -> 0.00 | E168: =SUM(E169:E172) -> 0.00 | F168: =SUM(F169:F172) -> 0.00 | H168: =SUM(H169:H172) -> 0.00
A169: 22610 | B169: Provisión para demandas y juicios a largo plazo | H169: =ROUND(D169+F169-E169,2) -> 0.00
A170: 22620 | B170: Provisión para pensiones a largo plazo | H170: 0.00
A171: 22630 | B171: Provisión para contingencias a largo plazo | H171: 0.00
A172: 22690 | B172: Otras provisiones a largo plazo | H172: 0.00
A173: 30000 | B173: HACIENDA PÚBLICA/PATRIMONIO | D173: =D174+D178+D194 -> 382,034,028.47 | E173: =E174+E178+E194 -> 0.00 | F173: =F174+F178+F194 -> 10,178,149.25 | H173: =H174+H178+H194 -> 392,212,177.72
A174: 31000 | B174: HACIENDA PÚBLICA/PATRIMONIO CONTRIBUIDO | D174: =SUM(D175:D177) -> 0.00 | E174: =SUM(E175:E177) -> 0.00 | F174: =SUM(F175:F177) -> 0.00 | H174: =SUM(H175:H177) -> 0.00
A175: 31100 | B175: APORTACIONES | H175: =ROUND(D175+F175-E175,2) -> 0.00
A176: 31200 | B176: DONACIONES DE CAPITAL | H176: 0.00
A177: 31300 | B177: ACTUALIZACIÓN DE LA HACIENDA PÚBLICA/PATRIMONIO | H177: 0.00
A178: 32000 | B178: HACIENDA PÚBLICA/PATRIMONIO GENERADO | D178: =D179+D180+D181+D186+D190 -> 382,034,028.47 | E178: =E179+E180+E181+E186+E190 -> 0.00 | F178: =F179+F180+F181+F186+F190 -> 10,178,149.25 | H178: =H179+H180+H181+H186+H190 -> 392,212,177.72
A179: 32100 | B179: RESULTADO DEL EJERCICIO (AHORRO/ DESAHORRO) | D179: =IF(C752>D753,C752,(D753)*-1) -> -25,621,832.12 | E179: =F753 -> 0.00 | F179: =E752 -> 10,178,149.25 | H179: =ROUND(F179-E179,2) -> 10,178,149.25
A180: 32200 | B180: RESULTADOS DE EJERCICIOS ANTERIORES | D180: 407,655,860.59 | H180: =ROUND(D179+D180+F180-E180,2) -> 382,034,028.47
A181: 32300 | B181: REVALÚOS | D181: =SUM(D182:D185) -> 0.00 | E181: =SUM(E182:E185) -> 0.00 | F181: =SUM(F182:F185) -> 0.00 | H181: =SUM(H182:H185) -> 0.00
A182: 32310 | B182: Revalúo de bienes inmuebles | H182: =ROUND(D182+F182-E182,2) -> 0.00
A183: 32320 | B183: Revalúo de bienes muebles | H183: 0.00
A184: 32330 | B184: Revalúo de bienes intangibles | H184: 0.00
A185: 32390 | B185: Otros revalúos | H185: 0.00
A186: 32400 | B186: RESERVAS | D186: =SUM(D187:D189) -> 0.00 | E186: =SUM(E187:E189) -> 0.00 | F186: =SUM(F187:F189) -> 0.00 | H186: =SUM(H187:H189) -> 0.00
A187: 32410 | B187: Reservas de patrimonio | H187: =ROUND(D187+F187-E187,2) -> 0.00
A188: 32420 | B188: Reservas territoriales | H188: 0.00
A189: 32430 | B189: Reservas por contingencias | H189: 0.00
A190: 32500 | B190: RECTIFICACIONES DE RESULTADOS DE EJERCICIOS ANTERIORES | D190: =SUM(D191:D193) -> 0.00 | E190: =SUM(E191:E193) -> 0.00 | F190: =SUM(F191:F193) -> 0.00 | H190: =SUM(H191:H193) -> 0.00
A191: 32510 | B191: Cambios en políticas contables | H191: =ROUND(D191+F191-E191,2) -> 0.00
A192: 32520 | B192: Cambios por errores contables | H192: 0.00
A193: 32530 | B193: Cambios en estimaciones contables | H193: =ROUND(D193+F193-E193,2) -> 0.00
A194: 33000 | B194: EXCESO O INSUFICIENCIA EN LA ACTUALIZACIÓN DE LA HACIENDA PÚBLICA/PATRIMONIO | D194: =SUM(D195:D196) -> 0.00 | E194: =SUM(E195:E196) -> 0.00 | F194: =SUM(F195:F196) -> 0.00 | H194: =SUM(H195:H196) -> 0.00
A195: 33100 | B195: RESULTADO POR POSICIÓN MONETARIA | H195: =ROUND(D195+F195-E195,2) -> 0.00
A196: 33200 | B196: RESULTADO POR TENENCIA DE ACTIVOS NO MONETARIOS | H196: 0.00
A197: 40000 | B197: INGRESOS Y OTROS BENEFICIOS | D197: =D198+D308+D356 -> 332,246,498.50 | E197: =E198+E308+E356 -> 884,020.39 | F197: =F198+F308+F356 -> 30,949,183.98 | H197: =H198+H308+H356 -> 30,065,163.59
A198: 41000 | B198: INGRESOS DE GESTIÓN | D198: =D199+D220+D226+D231+D263+D272+D293+D305 -> 104,942,611.50 | E198: =E199+E220+E226+E231+E263+E272+E293+E305 -> 884,020.39 | F198: =F199+F220+F226+F231+F263+F272+F293+F305 -> 12,502,963.03 | H198: =H199+H220+H226+H231+H263+H272+H293+H305 -> 11,618,942.64
A199: 41100 | B199: IMPUESTOS | D199: =D200+D202+D206+D207+D208+D209+D210+D216+D218 -> 51,909,718.15 | E199: =E200+E202+E206+E207+E208+E209+E210+E216+E218 -> 884,020.39 | F199: =F200+F202+F206+F207+F208+F209+F210+F216+F218 -> 8,803,549.93 | H199: =H200+H202+H206+H207+H208+H209+H210+H216+H218 -> 7,919,529.54
A200: 41110 | B200: Impuestos sobre los ingresos | D200: =SUM(D201) -> 1,500.00 | E200: =SUM(E201) -> 0.00 | F200: =SUM(F201) -> 0.00 | H200: =SUM(H201) -> 0.00
... 2023 more rows

Sheet F3 (hidden)
A1: ="Nombre del Ente Público: "&Validacion!A2 -> Nombre del Ente Público: Ixtlahuacán de los Membrillos
A2: Estado de Flujos de Efectivo
A3: ='F6'!A3 -> DEL 1° DE ENERO AL 31 DE ENERO DE 2026
A4: (Cifras en pesos)
A5: Concepto | F5: =Validacion!F185 -> 2026 | G5: =Validacion!F186 -> 2025
A6: Flujos de Efectivo de las Actividades de Operación
B7: Origen | F7: =SUM(F8:F17) -> 0.00 | G7: =SUM(G8:G17) -> 0.00
C8: Impuestos
C9: Cuotas y Aportaciones de Seguridad Social
C10: Contribuciones de Mejoras
C11: Derechos
C12: Productos
C13: Aprovechamientos
C14: Ingresos por venta de Bienes y Prestación de Servicios
C15: Participaciones, Aportaciones, Convenios, Incentivos Derivados de la Colaboración Fiscal y Fondos Distintos de Aportaciones
C16: Transferencias, Asignaciones, Subsidios y Subvenciones, y Pensiones y Jubilaciones
C17: Otros Orígenes de Operación
B18: Aplicación | F18: =SUM(F19:F34) -> 0.00 | G18: =SUM(G19:G34) -> 0.00
C19: Servicios Personales
C20: Materiales y Suministros
C21: Servicios Generales
C22: Transferencias Internas y Asignaciones al Sector Público
C23: Transferencias al Resto del Sector Público
C24: Subsidios y Subvenciones
C25: Ayudas Sociales
C26: Pensiones y Jubilaciones
C27: Transferencias a Fideicomisos, Mandatos y Contratos Análogos
C28: Transferencias a la Seguridad Social
C29: Donativos
C30: Transferencias al Exterior
C31: Participaciones
C32: Aportaciones
C33: Convenios
C34: Otros Aplicaciones de Operación
A35: Flujos Netos de Efectivo por Actividades de Operación | F35: =F7-F18 -> 0.00 | G35: =G7-G18 -> 0.00
A36: Flujos de Efectivo de las Actividades de Inversión
B37: Origen | F37: =SUM(F38:F40) -> 0.00 | G37: =SUM(G38:G40) -> 0.00
C38: Bienes Inmuebles, Infraestructura y Construcciones en Proceso
C39: Bienes Muebles
C40: Otros Orígenes de Inversión
B41: Aplicación | F41: =SUM(F42:F44) -> 0.00 | G41: =SUM(G42:G44) -> 0.00
C42: Bienes Inmuebles, Infraestructura y Construcciones en Proceso
C43: Bienes Muebles
C44: Otras Aplicaciones de Inversión
A45: Flujos Netos de Efectivo por Actividades de Inversión | F45: =F37-F41 -> 0.00 | G45: =G37-G41 -> 0.00
A46: Flujo de Efectivo de las Actividades de Financiamiento
B47: Origen | F47: =F48+F51 -> 0.00 | G47: =G48+G51 -> 0.00
C48: Endeudamiento Neto | F48: =F49+F50 -> 0.00 | G48: =G49+G50 -> 0.00
C49: Interno
C50: Externo
C51: Otros Orígenes de Financiamiento
B52: Aplicación | F52: =F53+F56 -> 0.00 | G52: =G53+G56 -> 0.00
C53: Servicios de la Deuda | F53: =F54+F55 -> 0.00 | G53: =G54+G55 -> 0.00
C54: Interno
C55: Externo
C56: Otras Aplicaciones de Financiamiento
A57: Flujos Netos de Efectivo por Actividades de Financiamiento | F57: =F47-F52 -> 0.00 | G57: =G47-G52 -> 0.00
A58: Incremento/Disminución Neta en el Efectivo y Equivalentes al Efectivo | F58: =F35+F45+F57 -> 0.00 | G58: =G35+G45+G57 -> 0.00
A59: Efectivo y Equivalentes al Efectivo al Inicio del Ejercicio | F59: =G60 -> 0.00
A60: Efectivo y Equivalentes al Efectivo al Final del Ejercicio | F60: =F58+F59 -> 0.00 | G60: =+G58+G59 -> 0.00
A62: Bajo protesta de decir verdad declaramos que los Estados Financieros y sus notas, son razonablemente correctos y son responsabilidad del emisor.
C67: =Validacion!A7 -> LIC. JOSE HERIBERTO GARCIA MURILLO | E67: =Validacion!A9 -> LAE BRUNO GERMAN ENCISO GUILLEN
C69: Presidente Municipal o Titular del ente público | E69: Encargado de Hacienda Municipal o Responsable de las finanzas del ente público

Sheet F7 (hidden)
A1: ="Nombre del Ente Público: "&Validacion!A2 -> Nombre del Ente Público: Ixtlahuacán de los Membrillos
A2: Estado Analítico de Ingresos
A3: ='F6'!A3 -> DEL 1° DE ENERO AL 31 DE ENERO DE 2026
A4: (Cifras en Pesos)
A5: Rubro de Ingresos / Fuente de Financiamiento | C5: Ingreso | H5: Diferencia
C6: Estimado | D6: Ampliaciones/ (Reducciones) | E6: Modificado | F6: Devengado | G6: Recaudado
A7: Impuestos | C7: =C23 -> 0.00 | D7: =D23 -> 0.00 | E7: =C7+D7 -> 0.00 | F7: =F23 -> 0.00 | G7: =G23 -> 0.00 | H7: =G7-C7 -> 0.00
A8: Cuotas y Aportaciones de Seguridad Social | C8: =C24+C32 -> 0.00 | D8: =D24+D32 -> 0.00 | E8: 0.00 | F8: =F24+F32 -> 0.00 | G8: =G24+G32 -> 0.00 | H8: 0.00
A9: Contribuciones de Mejoras | C9: =C25 -> 0.00 | D9: =D25 -> 0.00 | E9: 0.00 | F9: =F25 -> 0.00 | G9: =G25 -> 0.00 | H9: 0.00
A10: Derechos | C10: =C26 -> 0.00 | D10: =D26 -> 0.00 | E10: 0.00 | F10: =F26 -> 0.00 | G10: =G26 -> 0.00 | H10: 0.00
A11: Productos | C11: =C27+C33 -> 0.00 | D11: =D27+D33 -> 0.00 | E11: 0.00 | F11: =F27+F33 -> 0.00 | G11: =G27+G33 -> 0.00 | H11: 0.00
A12: Aprovechamientos | C12: =C28 -> 0.00 | D12: =D28 -> 0.00 | E12: 0.00 | F12: =F28 -> 0.00 | G12: =G28 -> 0.00 | H12: 0.00
A13: Ingresos por Venta de Bienes, Prestación de Servicios y Otros Ingresos | C13: =C34 -> 0.00 | D13: =D34 -> 0.00 | E13: 0.00 | F13: =F34 -> 0.00 | G13: =G34 -> 0.00 | H13: 0.00
A14: Participaciones, Aportaciones, Convenios, Incentivos Derivados de la Colaboración Fiscal y Fondos Distintos de Aportaciones | C14: =C29 -> 0.00 | D14: =D29 -> 0.00 | E14: 0.00 | F14: =F29 -> 0.00 | G14: =G29 -> 0.00 | H14: 0.00
A15: Transferencias, Asignaciones, Subsidios y Subvenciones, y Pensiones y Jubilaciones | C15: =C30+C35 -> 0.00 | D15: =D30+D35 -> 0.00 | E15: 0.00 | F15: =F30+F35 -> 0.00 | G15: =G30+G35 -> 0.00 | H15: 0.00
A16: Ingresos Derivados de Financiamiento | C16: =C37 -> 0.00 | D16: =D37 -> 0.00 | E16: 0.00 | F16: =F37 -> 0.00 | G16: =G37 -> 0.00 | H16: 0.00
B17: Total | C17: =SUM(C7:C16) -> 0.00 | D17: 0.00 | E17: 0.00 | F17: 0.00 | G17: 0.00 | H17: 0.00
F18: Ingresos excedentes
A20: Rubro de Ingresos / Fuente de Financiamiento | C20: Ingreso | H20: Diferencia
C21: Estimado | D21: Ampliaciones/ (Reducciones) | E21: Modificado | F21: Devengado | G21: Recaudado
A22: Ingresos del Poder Ejecutivo Federal o Estatal y de los Municipios | C22: =SUM(C23:C30) -> 0.00 | D22: 0.00 | E22: 0.00 | F22: 0.00 | G22: 0.00 | H22: 0.00 | I22: =H22-D22 -> 0.00
B23: Impuestos | C23: =Balanza!G797 -> 0.00 | D23: =Balanza!G985 -> 0.00 | E23: =C23+D23 -> 0.00 | F23: =Balanza!F1079 -> 0.00 | G23: =Balanza!H1173 -> 0.00 | H23: =G23-C23 -> 0.00 | I23: 0.00
B24: Cuotas y Aportaciones de Seguridad Social | E24: 0.00 | H24: 0.00 | I24: 0.00
B25: Contribuciones de Mejoras | C25: =Balanza!G813 -> 0.00 | D25: =Balanza!G1001 -> 0.00 | E25: 0.00 | F25: =Balanza!F1095 -> 0.00 | G25: =Balanza!H1189 -> 0.00 | H25: 0.00 | I25: 0.00
B26: Derechos | C26: =Balanza!G816 -> 0.00 | D26: =Balanza!G1004 -> 0.00 | E26: 0.00 | F26: =Balanza!F1098 -> 0.00 | G26: =Balanza!H1192 -> 0.00 | H26: 0.00 | I26: 0.00
B27: Productos | E27: 0.00 | H27: 0.00 | I27: 0.00
B28: Aprovechamientos | C28: =Balanza!G827 -> 0.00 | D28: =Balanza!G1015 -> 0.00 | E28: 0.00 | F28: =Balanza!F1109 -> 0.00 | G28: =Balanza!H1203 -> 0.00 | H28: 0.00 | I28: 0.00
B29: Participaciones, Aportaciones, Convenios, Incentivos Derivados de la Colaboración Fiscal y Fondos Distintos de Aportaciones | C29: =Balanza!G842 -> 0.00 | D29: =Balanza!G1030 -> 0.00 | E29: 0.00 | F29: =Balanza!F1124 -> 0.00 | G29: =Balanza!H1218 -> 0.00 | H29: 0.00 | I29: 0.00
B30: Transferencias, Asignaciones, Subsidios y Subvenciones, y Pensiones y Jubilaciones | E30: 0.00 | H30: 0.00 | I30: 0.00
A31: Ingresos de los Entes Públicos de los Poderes Legislativo y Judicial, de los Órganos Autónomos y del Sector Paraestatal o Paramunicipal, así como de las Empresas Públicas del Estado | C31: =SUM(C32:C35) -> 0.00 | D31: 0.00 | E31: 0.00 | F31: 0.00 | G31: 0.00 | H31: 0.00 | I31: 0.00
B32: Cuotas y Aportaciones de Seguridad Social | E32: =C32+D32 -> 0.00 | H32: =G32-C32 -> 0.00 | I32: 0.00
B33: Productos | E33: =C33+D33 -> 0.00 | H33: =G33-C33 -> 0.00 | I33: 0.00
B34: Ingresos por Ventas de Bienes, Prestación de Servicios y Otros Ingresos | C34: =Balanza!G832 -> 0.00 | D34: =Balanza!G1020 -> 0.00 | E34: =C34+D34 -> 0.00 | F34: =Balanza!F1114 -> 0.00 | G34: =Balanza!H1208 -> 0.00 | H34: =G34-C34 -> 0.00 | I34: 0.00
B35: Transferencias, Asignaciones, Subsidios y Subvenciones, y Pensiones y Jubilaciones | E35: =C35+D35 -> 0.00 | H35: =G35-C35 -> 0.00 | I35: 0.00
A36: Ingresos Derivados de Financiamientos | C36: =C37 -> 0.00 | D36: 0.00 | E36: 0.00 | F36: 0.00 | G36: 0.00 | H36: 0.00 | I36: 0.00
B37: Ingresos Derivados de Financiamientos | C37: =Balanza!G884 -> 0.00 | D37: =Balanza!G1072 -> 0.00 | E37: =C37+D37 -> 0.00 | F37: =Balanza!F1166 -> 0.00 | G37: =Balanza!H1260 -> 0.00 | H37: =G37-C37 -> 0.00 | I37: 0.00
B38: Total | C38: =C22+C31+C36 -> 0.00 | D38: 0.00 | E38: 0.00 | F38: 0.00 | G38: 0.00 | H38: 0.00
F39: Ingresos excedentes
B41: Bajo protesta de decir verdad declaramos que los Estados Financieros y sus notas, son razonablemente correctos y son responsabilidad del emisor.
B44: =Validacion!A7 -> LIC. JOSE HERIBERTO GARCIA MURILLO | D44: =Validacion!A9 -> LAE BRUNO GERMAN ENCISO GUILLEN
B46: Presidente Municipal o titular del ente público | D46: Encargado de la Hacienda Municipal o Responsable de las finanzas del ente público

Sheet F9-IDP
A1: CONCEPTO | J1: No. 1 | AJ1: CONCEPTO | AS1: No. 2 | BS1: CONCEPTO | CB1: No. 3 | DB1: CONCEPTO | DK1: No. 4 | EK1: CONCEPTO | ET1: No. 5 | FT1: CONCEPTO | GC1: No. 6 | HC1: CONCEPTO | HL1: No. 7 | IL1: CONCEPTO | IU1: No. 8 | JU1: CONCEPTO | KD1: No. 9 | LD1: CONCEPTO | LM1: No. 10
A2: TIPO DE OBLIGACIÓN: | J2: =IF(L2="Institución de crédito","1",IF(L2="Títulos y valores","2",IF(L2="Arrendamiento financiero","3",""))) -> 1 | K2: =IF(L2>0,".-","") -> .- | L2: Institución de crédito | AJ2: TIPO DE OBLIGACIÓN: | AS2: =IF(AU2="Institución de crédito","1",IF(AU2="Títulos y valores","2",IF(AU2="Arrendamiento financiero","3",""))) ->  | AT2: =IF(AU2>0,".-","") ->  | BS2: TIPO DE OBLIGACIÓN: | CB2: =IF(CD2="Institución de crédito","1",IF(CD2="Títulos y valores","2",IF(CD2="Arrendamiento financiero","3",""))) ->  | CC2: =IF(CD2>0,".-","") ->  | DB2: TIPO DE OBLIGACIÓN: | DK2: =IF(DM2="Institución de crédito","1",IF(DM2="Títulos y valores","2",IF(DM2="Arrendamiento financiero","3",""))) ->  | DL2: =IF(DM2>0,".-","") ->  | EK2: TIPO DE OBLIGACIÓN: | ET2: =IF(EV2="Institución de crédito","1",IF(EV2="Títulos y valores","2",IF(EV2="Arrendamiento financiero","3",""))) ->  | EU2: =IF(EV2>0,".-","") ->  | FT2: TIPO DE OBLIGACIÓN: | GC2: =IF(GE2="Institución de crédito","1",IF(GE2="Títulos y valores","2",IF(GE2="Arrendamiento financiero","3",""))) ->  | GD2: =IF(GE2>0,".-","") ->  | HC2: TIPO DE OBLIGACIÓN: | HL2: =IF(HN2="Institución de crédito","1",IF(HN2="Títulos y valores","2",IF(HN2="Arrendamiento financiero","3",""))) ->  | HM2: =IF(HN2>0,".-","") ->  | IL2: TIPO DE OBLIGACIÓN: | IU2: =IF(IW2="Institución de crédito","1",IF(IW2="Títulos y valores","2",IF(IW2="Arrendamiento financiero","3",""))) ->  | IV2: =IF(IW2>0,".-","") ->  | JU2: TIPO DE OBLIGACIÓN: | KD2: =IF(KF2="Institución de crédito","1",IF(KF2="Títulos y valores","2",IF(KF2="Arrendamiento financiero","3",""))) ->  | KE2: =IF(KF2>0,".-","") ->  | LD2: TIPO DE OBLIGACIÓN: | LM2: =IF(LO2="Institución de crédito","1",IF(LO2="Títulos y valores","2",IF(LO2="Arrendamiento financiero","3",""))) ->  | LN2: =IF(LO2>0,".-","") -> 
A3: NOMBRE DEL ACREEDOR: | J3: Banco Nacional de Obras y Servicos Publicos S.N.C. | AJ3: NOMBRE DEL ACREEDOR: | BS3: NOMBRE DEL ACREEDOR: | DB3: NOMBRE DEL ACREEDOR: | EK3: NOMBRE DEL ACREEDOR: | FT3: NOMBRE DEL ACREEDOR: | HC3: NOMBRE DEL ACREEDOR: | IL3: NOMBRE DEL ACREEDOR: | JU3: NOMBRE DEL ACREEDOR: | LD3: NOMBRE DEL ACREEDOR:
A4: MONTO DISPUESTO: | J4: $32,522,957.76 | R4: FECHA DE INICIO: | Z4: 03 de enero 2018 | AJ4: MONTO DISPUESTO: | BA4: FECHA DE INICIO: | BS4: MONTO DISPUESTO: | CJ4: FECHA DE INICIO: | DB4: MONTO DISPUESTO: | DS4: FECHA DE INICIO: | EK4: MONTO DISPUESTO: | FB4: FECHA DE INICIO: | FT4: MONTO DISPUESTO: | GK4: FECHA DE INICIO: | HC4: MONTO DISPUESTO: | HT4: FECHA DE INICIO: | IL4: MONTO DISPUESTO: | JC4: FECHA DE INICIO: | JU4: MONTO DISPUESTO: | KL4: FECHA DE INICIO: | LD4: MONTO DISPUESTO: | LU4: FECHA DE INICIO:
R5: FECHA DE VENCIMIENTO: | Z5: 31 de diciembre 2037 | BA5: FECHA DE VENCIMIENTO: | CJ5: FECHA DE VENCIMIENTO: | DS5: FECHA DE VENCIMIENTO: | FB5: FECHA DE VENCIMIENTO: | GK5: FECHA DE VENCIMIENTO: | HT5: FECHA DE VENCIMIENTO: | JC5: FECHA DE VENCIMIENTO: | KL5: FECHA DE VENCIMIENTO: | LU5: FECHA DE VENCIMIENTO:
A6: ="SALDO AL 1° DE ENERO DE "&Validacion!$F$185&" A CORTO PLAZO:" -> SALDO AL 1° DE ENERO DE 2026 A CORTO PLAZO: | R6: $920,608.54 | AJ6: ="SALDO AL 1° DE ENERO DE "&Validacion!$F$185&" A CORTO PLAZO:" -> SALDO AL 1° DE ENERO DE 2026 A CORTO PLAZO: | BS6: ="SALDO AL 1° DE ENERO DE "&Validacion!$F$185&" A CORTO PLAZO:" -> SALDO AL 1° DE ENERO DE 2026 A CORTO PLAZO: | DB6: ="SALDO AL 1° DE ENERO DE "&Validacion!$F$185&" A CORTO PLAZO:" -> SALDO AL 1° DE ENERO DE 2026 A CORTO PLAZO: | EK6: ="SALDO AL 1° DE ENERO DE "&Validacion!$F$185&" A CORTO PLAZO:" -> SALDO AL 1° DE ENERO DE 2026 A CORTO PLAZO: | FT6: ="SALDO AL 1° DE ENERO DE "&Validacion!$F$185&" A CORTO PLAZO:" -> SALDO AL 1° DE ENERO DE 2026 A CORTO PLAZO: | HC6: ="SALDO AL 1° DE ENERO DE "&Validacion!$F$185&" A CORTO PLAZO:" -> SALDO AL 1° DE ENERO DE 2026 A CORTO PLAZO: | IL6: ="SALDO AL 1° DE ENERO DE "&Validacion!$F$185&" A CORTO PLAZO:" -> SALDO AL 1° DE ENERO DE 2026 A CORTO PLAZO: | JU6: ="SALDO AL 1° DE ENERO DE "&Validacion!$F$185&" A CORTO PLAZO:" -> SALDO AL 1° DE ENERO DE 2026 A CORTO PLAZO: | LD6: ="SALDO AL 1° DE ENERO DE "&Validacion!$F$185&" A CORTO PLAZO:" -> SALDO AL 1° DE ENERO DE 2026 A CORTO PLAZO:
A7: ="SALDO AL 1° DE ENERO DE "&Validacion!$F$185&" A LARGO PLAZO:" -> SALDO AL 1° DE ENERO DE 2026 A LARGO PLAZO: | R7: $27,613,307.72 | AJ7: ="SALDO AL 1° DE ENERO DE "&Validacion!$F$185&" A LARGO PLAZO:" -> SALDO AL 1° DE ENERO DE 2026 A LARGO PLAZO: | BS7: ="SALDO AL 1° DE ENERO DE "&Validacion!$F$185&" A LARGO PLAZO:" -> SALDO AL 1° DE ENERO DE 2026 A LARGO PLAZO: | DB7: ="SALDO AL 1° DE ENERO DE "&Validacion!$F$185&" A LARGO PLAZO:" -> SALDO AL 1° DE ENERO DE 2026 A LARGO PLAZO: | EK7: ="SALDO AL 1° DE ENERO DE "&Validacion!$F$185&" A LARGO PLAZO:" -> SALDO AL 1° DE ENERO DE 2026 A LARGO PLAZO: | FT7: ="SALDO AL 1° DE ENERO DE "&Validacion!$F$185&" A LARGO PLAZO:" -> SALDO AL 1° DE ENERO DE 2026 A LARGO PLAZO: | HC7: ="SALDO AL 1° DE ENERO DE "&Validacion!$F$185&" A LARGO PLAZO:" -> SALDO AL 1° DE ENERO DE 2026 A LARGO PLAZO: | IL7: ="SALDO AL 1° DE ENERO DE "&Validacion!$F$185&" A LARGO PLAZO:" -> SALDO AL 1° DE ENERO DE 2026 A LARGO PLAZO: | JU7: ="SALDO AL 1° DE ENERO DE "&Validacion!$F$185&" A LARGO PLAZO:" -> SALDO AL 1° DE ENERO DE 2026 A LARGO PLAZO: | LD7: ="SALDO AL 1° DE ENERO DE "&Validacion!$F$185&" A LARGO PLAZO:" -> SALDO AL 1° DE ENERO DE 2026 A LARGO PLAZO:
A8: OBLIGACIONES A LARGO PLAZO | AJ8: OBLIGACIONES A LARGO PLAZO | BS8: OBLIGACIONES A LARGO PLAZO | DB8: OBLIGACIONES A LARGO PLAZO | EK8: OBLIGACIONES A LARGO PLAZO | FT8: OBLIGACIONES A LARGO PLAZO | HC8: OBLIGACIONES A LARGO PLAZO | IL8: OBLIGACIONES A LARGO PLAZO | JU8: OBLIGACIONES A LARGO PLAZO | LD8: OBLIGACIONES A LARGO PLAZO
A9: CONCEPTO | E9: DISPOSICIÓN | K9: AMORTIZACIÓN | Q9: REVALUACIONES | W9: INTERÉS | AC9: COMISIONES | AJ9: CONCEPTO | AN9: DISPOSICIÓN | AT9: AMORTIZACIÓN | AZ9: REVALUACIONES | BF9: INTERÉS | BL9: COMISIONES | BS9: CONCEPTO | BW9: DISPOSICIÓN | CC9: AMORTIZACIÓN | CI9: REVALUACIONES | CO9: INTERÉS | CU9: COMISIONES | DB9: CONCEPTO | DF9: DISPOSICIÓN | DL9: AMORTIZACIÓN | DR9: REVALUACIONES | DX9: INTERÉS | ED9: COMISIONES | EK9: CONCEPTO | EO9: DISPOSICIÓN | EU9: AMORTIZACIÓN | FA9: REVALUACIONES | FG9: INTERÉS | FM9: COMISIONES | FT9: CONCEPTO | FX9: DISPOSICIÓN | GD9: AMORTIZACIÓN | GJ9: REVALUACIONES | GP9: INTERÉS | GV9: COMISIONES | HC9: CONCEPTO | HG9: DISPOSICIÓN | HM9: AMORTIZACIÓN | HS9: REVALUACIONES | HY9: INTERÉS | IE9: COMISIONES | IL9: CONCEPTO | IP9: DISPOSICIÓN | IV9: AMORTIZACIÓN | JB9: REVALUACIONES | JH9: INTERÉS | JN9: COMISIONES | JU9: CONCEPTO | JY9: DISPOSICIÓN | KE9: AMORTIZACIÓN | KK9: REVALUACIONES | KQ9: INTERÉS | KW9: COMISIONES | LD9: CONCEPTO | LH9: DISPOSICIÓN | LN9: AMORTIZACIÓN | LT9: REVALUACIONES | LZ9: INTERÉS | MF9: COMISIONES
A10: Largo Plazo | AJ10: Largo Plazo | BS10: Largo Plazo | DB10: Largo Plazo | EK10: Largo Plazo | FT10: Largo Plazo | HC10: Largo Plazo | IL10: Largo Plazo | JU10: Largo Plazo | LD10: Largo Plazo
A11: OBLIGACIONES A CORTO PLAZO | AJ11: OBLIGACIONES A CORTO PLAZO | BS11: OBLIGACIONES A CORTO PLAZO | DB11: OBLIGACIONES A CORTO PLAZO | EK11: OBLIGACIONES A CORTO PLAZO | FT11: OBLIGACIONES A CORTO PLAZO | HC11: OBLIGACIONES A CORTO PLAZO | IL11: OBLIGACIONES A CORTO PLAZO | JU11: OBLIGACIONES A CORTO PLAZO | LD11: OBLIGACIONES A CORTO PLAZO
A12: MES | E12: DISPOSICIÓN | K12: AMORTIZACIÓN | Q12: REVALUACIONES | W12: INTERÉS | AC12: COMISIONES | AJ12: MES | AN12: DISPOSICIÓN | AT12: AMORTIZACIÓN | AZ12: REVALUACIONES | BF12: INTERÉS | BL12: COMISIONES | BS12: MES | BW12: DISPOSICIÓN | CC12: AMORTIZACIÓN | CI12: REVALUACIONES | CO12: INTERÉS | CU12: COMISIONES | DB12: MES | DF12: DISPOSICIÓN | DL12: AMORTIZACIÓN | DR12: REVALUACIONES | DX12: INTERÉS | ED12: COMISIONES | EK12: MES | EO12: DISPOSICIÓN | EU12: AMORTIZACIÓN | FA12: REVALUACIONES | FG12: INTERÉS | FM12: COMISIONES | FT12: MES | FX12: DISPOSICIÓN | GD12: AMORTIZACIÓN | GJ12: REVALUACIONES | GP12: INTERÉS | GV12: COMISIONES | HC12: MES | HG12: DISPOSICIÓN | HM12: AMORTIZACIÓN | HS12: REVALUACIONES | HY12: INTERÉS | IE12: COMISIONES | IL12: MES | IP12: DISPOSICIÓN | IV12: AMORTIZACIÓN | JB12: REVALUACIONES | JH12: INTERÉS | JN12: COMISIONES | JU12: MES | JY12: DISPOSICIÓN | KE12: AMORTIZACIÓN | KK12: REVALUACIONES | KQ12: INTERÉS | KW12: COMISIONES | LD12: MES | LH12: DISPOSICIÓN | LN12: AMORTIZACIÓN | LT12: REVALUACIONES | LZ12: INTERÉS | MF12: COMISIONES
A13: ENE | K13: 71,584.97 | W13: 238,466.34 | AJ13: ENE | BS13: ENE | DB13: ENE | EK13: ENE | FT13: ENE | HC13: ENE | IL13: ENE | JU13: ENE | LD13: ENE
A14: FEB | AJ14: FEB | BS14: FEB | DB14: FEB | EK14: FEB | FT14: FEB | HC14: FEB | IL14: FEB | JU14: FEB | LD14: FEB
A15: MAR | AJ15: MAR | BS15: MAR | DB15: MAR | EK15: MAR | FT15: MAR | HC15: MAR | IL15: MAR | JU15: MAR | LD15: MAR
A16: ABR | AJ16: ABR | BS16: ABR | DB16: ABR | EK16: ABR | FT16: ABR | HC16: ABR | IL16: ABR | JU16: ABR | LD16: ABR
A17: MAY | AJ17: MAY | BS17: MAY | DB17: MAY | EK17: MAY | FT17: MAY | HC17: MAY | IL17: MAY | JU17: MAY | LD17: MAY
A18: JUN | AJ18: JUN | BS18: JUN | DB18: JUN | EK18: JUN | FT18: JUN | HC18: JUN | IL18: JUN | JU18: JUN | LD18: JUN
A19: JUL | AJ19: JUL | BS19: JUL | DB19: JUL | EK19: JUL | FT19: JUL | HC19: JUL | IL19: JUL | JU19: JUL | LD19: JUL
A20: AGO | AJ20: AGO | BS20: AGO | DB20: AGO | EK20: AGO | FT20: AGO | HC20: AGO | IL20: AGO | JU20: AGO | LD20: AGO
A21: SEP | AJ21: SEP | BS21: SEP | DB21: SEP | EK21: SEP | FT21: SEP | HC21: SEP | IL21: SEP | JU21: SEP | LD21: SEP
A22: OCT | AJ22: OCT | BS22: OCT | DB22: OCT | EK22: OCT | FT22: OCT | HC22: OCT | IL22: OCT | JU22: OCT | LD22: OCT
A23: NOV | AJ23: NOV | BS23: NOV | DB23: NOV | EK23: NOV | FT23: NOV | HC23: NOV | IL23: NOV | JU23: NOV | LD23: NOV
A24: DIC | AJ24: DIC | BS24: DIC | DB24: DIC | EK24: DIC | FT24: DIC | HC24: DIC | IL24: DIC | JU24: DIC | LD24: DIC
A25: SUMA | E25: =SUM(E13:J24) -> 0.00 | K25: =SUM(K13:P24) -> 71,584.97 | Q25: =SUM(Q13:V24) -> 0.00 | W25: =SUM(W13:AB24) -> 238,466.34 | AC25: =SUM(AC13:AH24) -> 0.00 | AJ25: SUMA | AN25: =SUM(AN13:AS24) -> 0.00 | AT25: =SUM(AT13:AY24) -> 0.00 | AZ25: =SUM(AZ13:BE24) -> 0.00 | BF25: =SUM(BF13:BK24) -> 0.00 | BL25: =SUM(BL13:BQ24) -> 0.00 | BS25: SUMA | BW25: =SUM(BW13:CB24) -> 0.00 | CC25: =SUM(CC13:CH24) -> 0.00 | CI25: =SUM(CI13:CN24) -> 0.00 | CO25: =SUM(CO13:CT24) -> 0.00 | CU25: =SUM(CU13:CZ24) -> 0.00 | DB25: SUMA | DF25: =SUM(DF13:DK24) -> 0.00 | DL25: =SUM(DL13:DQ24) -> 0.00 | DR25: =SUM(DR13:DW24) -> 0.00 | DX25: =SUM(DX13:EC24) -> 0.00 | ED25: =SUM(ED13:EI24) -> 0.00 | EK25: SUMA | EO25: =SUM(EO13:ET24) -> 0.00 | EU25: =SUM(EU13:EZ24) -> 0.00 | FA25: =SUM(FA13:FF24) -> 0.00 | FG25: =SUM(FG13:FL24) -> 0.00 | FM25: =SUM(FM13:FR24) -> 0.00 | FT25: SUMA | FX25: =SUM(FX13:GC24) -> 0.00 | GD25: =SUM(GD13:GI24) -> 0.00 | GJ25: =SUM(GJ13:GO24) -> 0.00 | GP25: =SUM(GP13:GU24) -> 0.00 | GV25: =SUM(GV13:HA24) -> 0.00 | HC25: SUMA | HG25: =SUM(HG13:HL24) -> 0.00 | HM25: =SUM(HM13:HR24) -> 0.00 | HS25: =SUM(HS13:HX24) -> 0.00 | HY25: =SUM(HY13:ID24) -> 0.00 | IE25: =SUM(IE13:IJ24) -> 0.00 | IL25: SUMA | IP25: =SUM(IP13:IU24) -> 0.00 | IV25: =SUM(IV13:JA24) -> 0.00 | JB25: =SUM(JB13:JG24) -> 0.00 | JH25: =SUM(JH13:JM24) -> 0.00 | JN25: =SUM(JN13:JS24) -> 0.00 | JU25: SUMA | JY25: =SUM(JY13:KD24) -> 0.00 | KE25: =SUM(KE13:KJ24) -> 0.00 | KK25: =SUM(KK13:KP24) -> 0.00 | KQ25: =SUM(KQ13:KV24) -> 0.00 | KW25: =SUM(KW13:LB24) -> 0.00 | LD25: SUMA | LH25: =SUM(LH13:LM24) -> 0.00 | LN25: =SUM(LN13:LS24) -> 0.00 | LT25: =SUM(LT13:LY24) -> 0.00 | LZ25: =SUM(LZ13:ME24) -> 0.00 | MF25: =SUM(MF13:MK24) -> 0.00

Sheet F9-EDP
A1: MUNICIPIO IXTLAHUACÁN DE LOS MEMBRILLOS
A2: Informe Analítico de la Deuda Pública y Otros Pasivos - LDF
A3: DEL 1° DE ENERO AL 31 DE ENERO DE 2026
A4: (PESOS)
A5: Denominación de la Deuda Pública y Otros Pasivos | N5: ="Saldo al 31 de diciembre de "&Validacion!F186 -> Saldo al 31 de diciembre de 2025 | U5: Disposiciones del Periodo | AB5: Amortizaciones del Periodo | AI5: Revaluaciones, Reclasificaciones y Otros Ajustes | AP5: Saldo Final del Periodo | AW5: Pago de Intereses del Periodo | BD5: Pago de Comisiones y demás costos asociados durante el Periodo
A10: 1. Deuda Pública
B11: A. Corto Plazo | N11: =SUM(N12:T14) -> 920,608.54 | U11: =SUM(U12:AA14) -> 0.00 | AB11: =SUM(AB12:AH14) -> 71,584.97 | AI11: =SUM(AI12:AO14) -> 0.00 | AP11: =SUM(AP12:AV14) -> 849,023.57 | AW11: =SUM(AW12:BC14) -> 238,466.34 | BD11: =SUM(BD12:BJ14) -> 0.00
C12: a1) Instituciones de Crédito | N12: =IF('F9-IDP'!$J$2="1",'F9-IDP'!$R$6,0)+IF('F9-IDP'!$AS$2="1",'F9-IDP'!$BA$6,0)+IF('F9-IDP'!$CB$2="1",'F9-IDP'!$CJ$6,0)+IF('F9-IDP'!$DK$2="1",'F9-IDP'!$DS$6,0)+IF('F9-IDP'!$ET$2="1",'F9-IDP'!$FB$6,0)+IF('F9-IDP'!$GC$2="1",'F9-IDP'!$GK$6,0)+IF('F9-IDP'!$HL$2="1",'F9-IDP'!$HT$6,0)+IF('F9-IDP'!$IU$2="1",'F9-IDP'!$JC$6,0)+IF('F9-IDP'!$KD$2="1",'F9-IDP'!$KL$6,0)+IF('F9-IDP'!$LM$2="1",'F9-IDP'!$LU$6,0) -> 920,608.54 | U12: =IF('F9-IDP'!$J$2="1",'F9-IDP'!$E$25,0)+IF('F9-IDP'!$AS$2="1",'F9-IDP'!$AN$25,0)+IF('F9-IDP'!$CB$2="1",'F9-IDP'!$BW$25,0)+IF('F9-IDP'!$DK$2="1",'F9-IDP'!$DF$25,0)+IF('F9-IDP'!$ET$2="1",'F9-IDP'!$EO$25,0)+IF('F9-IDP'!$GC$2="1",'F9-IDP'!$FX$25,0)+IF('F9-IDP'!$HL$2="1",'F9-IDP'!$HG$25,0)+IF('F9-IDP'!$IU$2="1",'F9-IDP'!$IP$25,0)+IF('F9-IDP'!$KD$2="1",'F9-IDP'!$JY$25,0)+IF('F9-IDP'!$LM$2="1",'F9-IDP'!$LH$25,0) -> 0.00 | AB12: =IF('F9-IDP'!$J$2="1",'F9-IDP'!$K$25,0)+IF('F9-IDP'!$AS$2="1",'F9-IDP'!$AT$25,0)+IF('F9-IDP'!$CB$2="1",'F9-IDP'!$CC$25,0)+IF('F9-IDP'!$DK$2="1",'F9-IDP'!$DL$25,0)+IF('F9-IDP'!$ET$2="1",'F9-IDP'!$EU$25,0)+IF('F9-IDP'!$GC$2="1",'F9-IDP'!$GD$25,0)+IF('F9-IDP'!$HL$2="1",'F9-IDP'!$HM$25,0)+IF('F9-IDP'!$IU$2="1",'F9-IDP'!$IV$25,0)+IF('F9-IDP'!$KD$2="1",'F9-IDP'!$KE$25,0)+IF('F9-IDP'!$LM$2="1",'F9-IDP'!$LN$25,0) -> 71,584.97 | AI12: =IF('F9-IDP'!$J$2="1",'F9-IDP'!$Q$25,0)+IF('F9-IDP'!$AS$2="1",'F9-IDP'!$AZ$25,0)+IF('F9-IDP'!$CB$2="1",'F9-IDP'!$CI$25,0)+IF('F9-IDP'!$DK$2="1",'F9-IDP'!$DR$25,0)+IF('F9-IDP'!$ET$2="1",'F9-IDP'!$FA$25,0)+IF('F9-IDP'!$GC$2="1",'F9-IDP'!$GJ$25,0)+IF('F9-IDP'!$HL$2="1",'F9-IDP'!$HS$25,0)+IF('F9-IDP'!$IU$2="1",'F9-IDP'!$JB$25,0)+IF('F9-IDP'!$KD$2="1",'F9-IDP'!$KK$25,0)+IF('F9-IDP'!$LM$2="1",'F9-IDP'!$LT$25,0) -> 0.00 | AP12: =N12+U12-AB12+AI12 -> 849,023.57 | AW12: =IF('F9-IDP'!$J$2="1",'F9-IDP'!$W$25,0)+IF('F9-IDP'!$AS$2="1",'F9-IDP'!$BF$25,0)+IF('F9-IDP'!$CB$2="1",'F9-IDP'!$CO$25,0)+IF('F9-IDP'!$DK$2="1",'F9-IDP'!$DX$25,0)+IF('F9-IDP'!$ET$2="1",'F9-IDP'!$FG$25,0)+IF('F9-IDP'!$GC$2="1",'F9-IDP'!$GP$25,0)+IF('F9-IDP'!$HL$2="1",'F9-IDP'!$HY$25,0)+IF('F9-IDP'!$IU$2="1",'F9-IDP'!$JH$25,0)+IF('F9-IDP'!$KD$2="1",'F9-IDP'!$KQ$25,0)+IF('F9-IDP'!$LM$2="1",'F9-IDP'!$LZ$25,0) -> 238,466.34 | BD12: =IF('F9-IDP'!$J$2="1",'F9-IDP'!$AC$25,0)+IF('F9-IDP'!$AS$2="1",'F9-IDP'!$BL$25,0)+IF('F9-IDP'!$CB$2="1",'F9-IDP'!$CU$25,0)+IF('F9-IDP'!$DK$2="1",'F9-IDP'!$ED$25,0)+IF('F9-IDP'!$ET$2="1",'F9-IDP'!$FM$25,0)+IF('F9-IDP'!$GC$2="1",'F9-IDP'!$GV$25,0)+IF('F9-IDP'!$HL$2="1",'F9-IDP'!$IE$25,0)+IF('F9-IDP'!$IU$2="1",'F9-IDP'!$JN$25,0)+IF('F9-IDP'!$KD$2="1",'F9-IDP'!$KW$25,0)+IF('F9-IDP'!$LM$2="1",'F9-IDP'!$MF$25,0) -> 0.00
C13: a2) Títulos y Valores | N13: =IF('F9-IDP'!$J$2="2",'F9-IDP'!$R$6,0)+IF('F9-IDP'!$AS$2="2",'F9-IDP'!$BA$6,0)+IF('F9-IDP'!$CB$2="2",'F9-IDP'!$CJ$6,0)+IF('F9-IDP'!$DK$2="2",'F9-IDP'!$DS$6,0)+IF('F9-IDP'!$ET$2="2",'F9-IDP'!$FB$6,0)+IF('F9-IDP'!$GC$2="2",'F9-IDP'!$GK$6,0)+IF('F9-IDP'!$HL$2="2",'F9-IDP'!$HT$6,0)+IF('F9-IDP'!$IU$2="2",'F9-IDP'!$JC$6,0)+IF('F9-IDP'!$KD$2="2",'F9-IDP'!$KL$6,0)+IF('F9-IDP'!$LM$2="2",'F9-IDP'!$LU$6,0) -> 0.00 | U13: =IF('F9-IDP'!$J$2="2",'F9-IDP'!$E$25,0)+IF('F9-IDP'!$AS$2="2",'F9-IDP'!$AN$25,0)+IF('F9-IDP'!$CB$2="2",'F9-IDP'!$BW$25,0)+IF('F9-IDP'!$DK$2="2",'F9-IDP'!$DF$25,0)+IF('F9-IDP'!$ET$2="2",'F9-IDP'!$EO$25,0)+IF('F9-IDP'!$GC$2="2",'F9-IDP'!$FX$25,0)+IF('F9-IDP'!$HL$2="2",'F9-IDP'!$HG$25,0)+IF('F9-IDP'!$IU$2="2",'F9-IDP'!$IP$25,0)+IF('F9-IDP'!$KD$2="2",'F9-IDP'!$JY$25,0)+IF('F9-IDP'!$LM$2="2",'F9-IDP'!$LH$25,0) -> 0.00 | AB13: =IF('F9-IDP'!$J$2="2",'F9-IDP'!$K$25,0)+IF('F9-IDP'!$AS$2="2",'F9-IDP'!$AT$25,0)+IF('F9-IDP'!$CB$2="2",'F9-IDP'!$CC$25,0)+IF('F9-IDP'!$DK$2="2",'F9-IDP'!$DL$25,0)+IF('F9-IDP'!$ET$2="2",'F9-IDP'!$EU$25,0)+IF('F9-IDP'!$GC$2="2",'F9-IDP'!$GD$25,0)+IF('F9-IDP'!$HL$2="2",'F9-IDP'!$HM$25,0)+IF('F9-IDP'!$IU$2="2",'F9-IDP'!$IV$25,0)+IF('F9-IDP'!$KD$2="2",'F9-IDP'!$KE$25,0)+IF('F9-IDP'!$LM$2="2",'F9-IDP'!$LN$25,0) -> 0.00 | AI13: =IF('F9-IDP'!$J$2="2",'F9-IDP'!$Q$25,0)+IF('F9-IDP'!$AS$2="2",'F9-IDP'!$AZ$25,0)+IF('F9-IDP'!$CB$2="2",'F9-IDP'!$CI$25,0)+IF('F9-IDP'!$DK$2="2",'F9-IDP'!$DR$25,0)+IF('F9-IDP'!$ET$2="2",'F9-IDP'!$FA$25,0)+IF('F9-IDP'!$GC$2="2",'F9-IDP'!$GJ$25,0)+IF('F9-IDP'!$HL$2="2",'F9-IDP'!$HS$25,0)+IF('F9-IDP'!$IU$2="2",'F9-IDP'!$JB$25,0)+IF('F9-IDP'!$KD$2="2",'F9-IDP'!$KK$25,0)+IF('F9-IDP'!$LM$2="2",'F9-IDP'!$LT$25,0) -> 0.00 | AP13: =N13+U13-AB13+AI13 -> 0.00 | AW13: =IF('F9-IDP'!$J$2="2",'F9-IDP'!$W$25,0)+IF('F9-IDP'!$AS$2="2",'F9-IDP'!$BF$25,0)+IF('F9-IDP'!$CB$2="2",'F9-IDP'!$CO$25,0)+IF('F9-IDP'!$DK$2="2",'F9-IDP'!$DX$25,0)+IF('F9-IDP'!$ET$2="2",'F9-IDP'!$FG$25,0)+IF('F9-IDP'!$GC$2="2",'F9-IDP'!$GP$25,0)+IF('F9-IDP'!$HL$2="2",'F9-IDP'!$HY$25,0)+IF('F9-IDP'!$IU$2="2",'F9-IDP'!$JH$25,0)+IF('F9-IDP'!$KD$2="2",'F9-IDP'!$KQ$25,0)+IF('F9-IDP'!$LM$2="2",'F9-IDP'!$LZ$25,0) -> 0.00 | BD13: =IF('F9-IDP'!$J$2="2",'F9-IDP'!$AC$25,0)+IF('F9-IDP'!$AS$2="2",'F9-IDP'!$BL$25,0)+IF('F9-IDP'!$CB$2="2",'F9-IDP'!$CU$25,0)+IF('F9-IDP'!$DK$2="2",'F9-IDP'!$ED$25,0)+IF('F9-IDP'!$ET$2="2",'F9-IDP'!$FM$25,0)+IF('F9-IDP'!$GC$2="2",'F9-IDP'!$GV$25,0)+IF('F9-IDP'!$HL$2="2",'F9-IDP'!$IE$25,0)+IF('F9-IDP'!$IU$2="2",'F9-IDP'!$JN$25,0)+IF('F9-IDP'!$KD$2="2",'F9-IDP'!$KW$25,0)+IF('F9-IDP'!$LM$2="2",'F9-IDP'!$MF$25,0) -> 0.00
C14: a3) Arrendamientos Financieros | N14: =IF('F9-IDP'!$J$2="3",'F9-IDP'!$R$6,0)+IF('F9-IDP'!$AS$2="3",'F9-IDP'!$BA$6,0)+IF('F9-IDP'!$CB$2="3",'F9-IDP'!$CJ$6,0)+IF('F9-IDP'!$DK$2="3",'F9-IDP'!$DS$6,0)+IF('F9-IDP'!$ET$2="3",'F9-IDP'!$FB$6,0)+IF('F9-IDP'!$GC$2="3",'F9-IDP'!$GK$6,0)+IF('F9-IDP'!$HL$2="3",'F9-IDP'!$HT$6,0)+IF('F9-IDP'!$IU$2="3",'F9-IDP'!$JC$6,0)+IF('F9-IDP'!$KD$2="3",'F9-IDP'!$KL$6,0)+IF('F9-IDP'!$LM$2="3",'F9-IDP'!$LU$6,0) -> 0.00 | U14: =IF('F9-IDP'!$J$2="3",'F9-IDP'!$E$25,0)+IF('F9-IDP'!$AS$2="3",'F9-IDP'!$AN$25,0)+IF('F9-IDP'!$CB$2="3",'F9-IDP'!$BW$25,0)+IF('F9-IDP'!$DK$2="3",'F9-IDP'!$DF$25,0)+IF('F9-IDP'!$ET$2="3",'F9-IDP'!$EO$25,0)+IF('F9-IDP'!$GC$2="3",'F9-IDP'!$FX$25,0)+IF('F9-IDP'!$HL$2="3",'F9-IDP'!$HG$25,0)+IF('F9-IDP'!$IU$2="3",'F9-IDP'!$IP$25,0)+IF('F9-IDP'!$KD$2="3",'F9-IDP'!$JY$25,0)+IF('F9-IDP'!$LM$2="3",'F9-IDP'!$LH$25,0) -> 0.00 | AB14: =IF('F9-IDP'!$J$2="3",'F9-IDP'!$K$25,0)+IF('F9-IDP'!$AS$2="3",'F9-IDP'!$AT$25,0)+IF('F9-IDP'!$CB$2="3",'F9-IDP'!$CC$25,0)+IF('F9-IDP'!$DK$2="3",'F9-IDP'!$DL$25,0)+IF('F9-IDP'!$ET$2="3",'F9-IDP'!$EU$25,0)+IF('F9-IDP'!$GC$2="3",'F9-IDP'!$GD$25,0)+IF('F9-IDP'!$HL$2="3",'F9-IDP'!$HM$25,0)+IF('F9-IDP'!$IU$2="3",'F9-IDP'!$IV$25,0)+IF('F9-IDP'!$KD$2="3",'F9-IDP'!$KE$25,0)+IF('F9-IDP'!$LM$2="3",'F9-IDP'!$LN$25,0) -> 0.00 | AI14: =IF('F9-IDP'!$J$2="3",'F9-IDP'!$Q$25,0)+IF('F9-IDP'!$AS$2="3",'F9-IDP'!$AZ$25,0)+IF('F9-IDP'!$CB$2="3",'F9-IDP'!$CI$25,0)+IF('F9-IDP'!$DK$2="3",'F9-IDP'!$DR$25,0)+IF('F9-IDP'!$ET$2="3",'F9-IDP'!$FA$25,0)+IF('F9-IDP'!$GC$2="3",'F9-IDP'!$GJ$25,0)+IF('F9-IDP'!$HL$2="3",'F9-IDP'!$HS$25,0)+IF('F9-IDP'!$IU$2="3",'F9-IDP'!$JB$25,0)+IF('F9-IDP'!$KD$2="3",'F9-IDP'!$KK$25,0)+IF('F9-IDP'!$LM$2="3",'F9-IDP'!$LT$25,0) -> 0.00 | AP14: =N14+U14-AB14+AI14 -> 0.00 | AW14: =IF('F9-IDP'!$J$2="3",'F9-IDP'!$W$25,0)+IF('F9-IDP'!$AS$2="3",'F9-IDP'!$BF$25,0)+IF('F9-IDP'!$CB$2="3",'F9-IDP'!$CO$25,0)+IF('F9-IDP'!$DK$2="3",'F9-IDP'!$DX$25,0)+IF('F9-IDP'!$ET$2="3",'F9-IDP'!$FG$25,0)+IF('F9-IDP'!$GC$2="3",'F9-IDP'!$GP$25,0)+IF('F9-IDP'!$HL$2="3",'F9-IDP'!$HY$25,0)+IF('F9-IDP'!$IU$2="3",'F9-IDP'!$JH$25,0)+IF('F9-IDP'!$KD$2="3",'F9-IDP'!$KQ$25,0)+IF('F9-IDP'!$LM$2="3",'F9-IDP'!$LZ$25,0) -> 0.00 | BD14: =IF('F9-IDP'!$J$2="3",'F9-IDP'!$AC$25,0)+IF('F9-IDP'!$AS$2="3",'F9-IDP'!$BL$25,0)+IF('F9-IDP'!$CB$2="3",'F9-IDP'!$CU$25,0)+IF('F9-IDP'!$DK$2="3",'F9-IDP'!$ED$25,0)+IF('F9-IDP'!$ET$2="3",'F9-IDP'!$FM$25,0)+IF('F9-IDP'!$GC$2="3",'F9-IDP'!$GV$25,0)+IF('F9-IDP'!$HL$2="3",'F9-IDP'!$IE$25,0)+IF('F9-IDP'!$IU$2="3",'F9-IDP'!$JN$25,0)+IF('F9-IDP'!$KD$2="3",'F9-IDP'!$KW$25,0)+IF('F9-IDP'!$LM$2="3",'F9-IDP'!$MF$25,0) -> 0.00
B15: B. Largo Plazo | N15: =SUM(N16:T18) -> 27,613,307.72 | U15: =SUM(U16:AA18) -> 0.00 | AB15: =SUM(AB16:AH18) -> 0.00 | AI15: =SUM(AI16:AO18) -> 0.00 | AP15: =SUM(AP16:AV18) -> 27,613,307.72 | AW15: =SUM(AW16:BC18) -> 0.00 | BD15: =SUM(BD16:BJ18) -> 0.00
C16: b1) Instituciones de Crédito | N16: =IF('F9-IDP'!$J$2="1",'F9-IDP'!$R$7,0)+IF('F9-IDP'!$AS$2="1",'F9-IDP'!$BA$7,0)+IF('F9-IDP'!$CB$2="1",'F9-IDP'!$CJ$7,0)+IF('F9-IDP'!$DK$2="1",'F9-IDP'!$DS$7,0)+IF('F9-IDP'!$ET$2="1",'F9-IDP'!$FB$7,0)+IF('F9-IDP'!$GC$2="1",'F9-IDP'!$GK$7,0)+IF('F9-IDP'!$HL$2="1",'F9-IDP'!$HT$7,0)+IF('F9-IDP'!$IU$2="1",'F9-IDP'!$JC$7,0)+IF('F9-IDP'!$KD$2="1",'F9-IDP'!$KL$7,0)+IF('F9-IDP'!$LM$2="1",'F9-IDP'!$LU$7,0) -> 27,613,307.72 | U16: =IF('F9-IDP'!$J$2="1",'F9-IDP'!$E$10,0)+IF('F9-IDP'!$AS$2="1",'F9-IDP'!$AN$10,0)+IF('F9-IDP'!$CB$2="1",'F9-IDP'!$BW$10,0)+IF('F9-IDP'!$DK$2="1",'F9-IDP'!$DF$10,0)+IF('F9-IDP'!$ET$2="1",'F9-IDP'!$EO$10,0)+IF('F9-IDP'!$GC$2="1",'F9-IDP'!$FX$10,0)+IF('F9-IDP'!$HL$2="1",'F9-IDP'!$HG$10,0)+IF('F9-IDP'!$IU$2="1",'F9-IDP'!$IP$10,0)+IF('F9-IDP'!$KD$2="1",'F9-IDP'!$JY$10,0)+IF('F9-IDP'!$LM$2="1",'F9-IDP'!$LH$10,0) -> 0.00 | AB16: =IF('F9-IDP'!$J$2="1",'F9-IDP'!$K$10,0)+IF('F9-IDP'!$AS$2="1",'F9-IDP'!$AT$10,0)+IF('F9-IDP'!$CB$2="1",'F9-IDP'!$CC$10,0)+IF('F9-IDP'!$DK$2="1",'F9-IDP'!$DL$10,0)+IF('F9-IDP'!$ET$2="1",'F9-IDP'!$EU$10,0)+IF('F9-IDP'!$GC$2="1",'F9-IDP'!$GD$10,0)+IF('F9-IDP'!$HL$2="1",'F9-IDP'!$HM$10,0)+IF('F9-IDP'!$IU$2="1",'F9-IDP'!$IV$10,0)+IF('F9-IDP'!$KD$2="1",'F9-IDP'!$KE$10,0)+IF('F9-IDP'!$LM$2="1",'F9-IDP'!$LN$10,0) -> 0.00 | AI16: =IF('F9-IDP'!$J$2="1",'F9-IDP'!$Q$10,0)+IF('F9-IDP'!$AS$2="1",'F9-IDP'!$AZ$10,0)+IF('F9-IDP'!$CB$2="1",'F9-IDP'!$CI$10,0)+IF('F9-IDP'!$DK$2="1",'F9-IDP'!$DR$10,0)+IF('F9-IDP'!$ET$2="1",'F9-IDP'!$FA$10,0)+IF('F9-IDP'!$GC$2="1",'F9-IDP'!$GJ$10,0)+IF('F9-IDP'!$HL$2="1",'F9-IDP'!$HS$10,0)+IF('F9-IDP'!$IU$2="1",'F9-IDP'!$JB$10,0)+IF('F9-IDP'!$KD$2="1",'F9-IDP'!$KK$10,0)+IF('F9-IDP'!$LM$2="1",'F9-IDP'!$LT$10,0) -> 0.00 | AP16: =N16+U16-AB16+AI16 -> 27,613,307.72 | AW16: =IF('F9-IDP'!$J$2="1",'F9-IDP'!$W$10,0)+IF('F9-IDP'!$AS$2="1",'F9-IDP'!$BF$10,0)+IF('F9-IDP'!$CB$2="1",'F9-IDP'!$CO$10,0)+IF('F9-IDP'!$DK$2="1",'F9-IDP'!$DX$10,0)+IF('F9-IDP'!$ET$2="1",'F9-IDP'!$FG$10,0)+IF('F9-IDP'!$GC$2="1",'F9-IDP'!$GP$10,0)+IF('F9-IDP'!$HL$2="1",'F9-IDP'!$HY$10,0)+IF('F9-IDP'!$IU$2="1",'F9-IDP'!$JH$10,0)+IF('F9-IDP'!$KD$2="1",'F9-IDP'!$KQ$10,0)+IF('F9-IDP'!$LM$2="1",'F9-IDP'!$LZ$10,0) -> 0.00 | BD16: =IF('F9-IDP'!$J$2="1",'F9-IDP'!$AC$10,0)+IF('F9-IDP'!$AS$2="1",'F9-IDP'!$BL$10,0)+IF('F9-IDP'!$CB$2="1",'F9-IDP'!$CU$10,0)+IF('F9-IDP'!$DK$2="1",'F9-IDP'!$ED$10,0)+IF('F9-IDP'!$ET$2="1",'F9-IDP'!$FM$10,0)+IF('F9-IDP'!$GC$2="1",'F9-IDP'!$GV$10,0)+IF('F9-IDP'!$HL$2="1",'F9-IDP'!$IE$10,0)+IF('F9-IDP'!$IU$2="1",'F9-IDP'!$JN$10,0)+IF('F9-IDP'!$KD$2="1",'F9-IDP'!$KW$10,0)+IF('F9-IDP'!$LM$2="1",'F9-IDP'!$MF$10,0) -> 0.00
C17: b2) Títulos y Valores | N17: =IF('F9-IDP'!$J$2="2",'F9-IDP'!$R$7,0)+IF('F9-IDP'!$AS$2="2",'F9-IDP'!$BA$7,0)+IF('F9-IDP'!$CB$2="2",'F9-IDP'!$CJ$7,0)+IF('F9-IDP'!$DK$2="2",'F9-IDP'!$DS$7,0)+IF('F9-IDP'!$ET$2="2",'F9-IDP'!$FB$7,0)+IF('F9-IDP'!$GC$2="2",'F9-IDP'!$GK$7,0)+IF('F9-IDP'!$HL$2="2",'F9-IDP'!$HT$7,0)+IF('F9-IDP'!$IU$2="2",'F9-IDP'!$JC$7,0)+IF('F9-IDP'!$KD$2="2",'F9-IDP'!$KL$7,0)+IF('F9-IDP'!$LM$2="2",'F9-IDP'!$LU$7,0) -> 0.00 | U17: =IF('F9-IDP'!$J$2="2",'F9-IDP'!$E$10,0)+IF('F9-IDP'!$AS$2="2",'F9-IDP'!$AN$10,0)+IF('F9-IDP'!$CB$2="2",'F9-IDP'!$BW$10,0)+IF('F9-IDP'!$DK$2="2",'F9-IDP'!$DF$10,0)+IF('F9-IDP'!$ET$2="2",'F9-IDP'!$EO$10,0)+IF('F9-IDP'!$GC$2="2",'F9-IDP'!$FX$10,0)+IF('F9-IDP'!$HL$2="2",'F9-IDP'!$HG$10,0)+IF('F9-IDP'!$IU$2="2",'F9-IDP'!$IP$10,0)+IF('F9-IDP'!$KD$2="2",'F9-IDP'!$JY$10,0)+IF('F9-IDP'!$LM$2="2",'F9-IDP'!$LH$10,0) -> 0.00 | AB17: =IF('F9-IDP'!$J$2="2",'F9-IDP'!$K$10,0)+IF('F9-IDP'!$AS$2="2",'F9-IDP'!$AT$10,0)+IF('F9-IDP'!$CB$2="2",'F9-IDP'!$CC$10,0)+IF('F9-IDP'!$DK$2="2",'F9-IDP'!$DL$10,0)+IF('F9-IDP'!$ET$2="2",'F9-IDP'!$EU$10,0)+IF('F9-IDP'!$GC$2="2",'F9-IDP'!$GD$10,0)+IF('F9-IDP'!$HL$2="2",'F9-IDP'!$HM$10,0)+IF('F9-IDP'!$IU$2="2",'F9-IDP'!$IV$10,0)+IF('F9-IDP'!$KD$2="2",'F9-IDP'!$KE$10,0)+IF('F9-IDP'!$LM$2="2",'F9-IDP'!$LN$10,0) -> 0.00 | AI17: =IF('F9-IDP'!$J$2="2",'F9-IDP'!$Q$10,0)+IF('F9-IDP'!$AS$2="2",'F9-IDP'!$AZ$10,0)+IF('F9-IDP'!$CB$2="2",'F9-IDP'!$CI$10,0)+IF('F9-IDP'!$DK$2="2",'F9-IDP'!$DR$10,0)+IF('F9-IDP'!$ET$2="2",'F9-IDP'!$FA$10,0)+IF('F9-IDP'!$GC$2="2",'F9-IDP'!$GJ$10,0)+IF('F9-IDP'!$HL$2="2",'F9-IDP'!$HS$10,0)+IF('F9-IDP'!$IU$2="2",'F9-IDP'!$JB$10,0)+IF('F9-IDP'!$KD$2="2",'F9-IDP'!$KK$10,0)+IF('F9-IDP'!$LM$2="2",'F9-IDP'!$LT$10,0) -> 0.00 | AP17: =N17+U17-AB17+AI17 -> 0.00 | AW17: =IF('F9-IDP'!$J$2="2",'F9-IDP'!$W$10,0)+IF('F9-IDP'!$AS$2="2",'F9-IDP'!$BF$10,0)+IF('F9-IDP'!$CB$2="2",'F9-IDP'!$CO$10,0)+IF('F9-IDP'!$DK$2="2",'F9-IDP'!$DX$10,0)+IF('F9-IDP'!$ET$2="2",'F9-IDP'!$FG$10,0)+IF('F9-IDP'!$GC$2="2",'F9-IDP'!$GP$10,0)+IF('F9-IDP'!$HL$2="2",'F9-IDP'!$HY$10,0)+IF('F9-IDP'!$IU$2="2",'F9-IDP'!$JH$10,0)+IF('F9-IDP'!$KD$2="2",'F9-IDP'!$KQ$10,0)+IF('F9-IDP'!$LM$2="2",'F9-IDP'!$LZ$10,0) -> 0.00 | BD17: =IF('F9-IDP'!$J$2="2",'F9-IDP'!$AC$10,0)+IF('F9-IDP'!$AS$2="2",'F9-IDP'!$BL$10,0)+IF('F9-IDP'!$CB$2="2",'F9-IDP'!$CU$10,0)+IF('F9-IDP'!$DK$2="2",'F9-IDP'!$ED$10,0)+IF('F9-IDP'!$ET$2="2",'F9-IDP'!$FM$10,0)+IF('F9-IDP'!$GC$2="2",'F9-IDP'!$GV$10,0)+IF('F9-IDP'!$HL$2="2",'F9-IDP'!$IE$10,0)+IF('F9-IDP'!$IU$2="2",'F9-IDP'!$JN$10,0)+IF('F9-IDP'!$KD$2="2",'F9-IDP'!$KW$10,0)+IF('F9-IDP'!$LM$2="2",'F9-IDP'!$MF$10,0) -> 0.00
C18: b3) Arrendamientos Financieros | N18: =IF('F9-IDP'!$J$2="3",'F9-IDP'!$R$7,0)+IF('F9-IDP'!$AS$2="3",'F9-IDP'!$BA$7,0)+IF('F9-IDP'!$CB$2="3",'F9-IDP'!$CJ$7,0)+IF('F9-IDP'!$DK$2="3",'F9-IDP'!$DS$7,0)+IF('F9-IDP'!$ET$2="3",'F9-IDP'!$FB$7,0)+IF('F9-IDP'!$GC$2="3",'F9-IDP'!$GK$7,0)+IF('F9-IDP'!$HL$2="3",'F9-IDP'!$HT$7,0)+IF('F9-IDP'!$IU$2="3",'F9-IDP'!$JC$7,0)+IF('F9-IDP'!$KD$2="3",'F9-IDP'!$KL$7,0)+IF('F9-IDP'!$LM$2="3",'F9-IDP'!$LU$7,0) -> 0.00 | U18: =IF('F9-IDP'!$J$2="3",'F9-IDP'!$E$10,0)+IF('F9-IDP'!$AS$2="3",'F9-IDP'!$AN$10,0)+IF('F9-IDP'!$CB$2="3",'F9-IDP'!$BW$10,0)+IF('F9-IDP'!$DK$2="3",'F9-IDP'!$DF$10,0)+IF('F9-IDP'!$ET$2="3",'F9-IDP'!$EO$10,0)+IF('F9-IDP'!$GC$2="3",'F9-IDP'!$FX$10,0)+IF('F9-IDP'!$HL$2="3",'F9-IDP'!$HG$10,0)+IF('F9-IDP'!$IU$2="3",'F9-IDP'!$IP$10,0)+IF('F9-IDP'!$KD$2="3",'F9-IDP'!$JY$10,0)+IF('F9-IDP'!$LM$2="3",'F9-IDP'!$LH$10,0) -> 0.00 | AB18: =IF('F9-IDP'!$J$2="3",'F9-IDP'!$K$10,0)+IF('F9-IDP'!$AS$2="3",'F9-IDP'!$AT$10,0)+IF('F9-IDP'!$CB$2="3",'F9-IDP'!$CC$10,0)+IF('F9-IDP'!$DK$2="3",'F9-IDP'!$DL$10,0)+IF('F9-IDP'!$ET$2="3",'F9-IDP'!$EU$10,0)+IF('F9-IDP'!$GC$2="3",'F9-IDP'!$GD$10,0)+IF('F9-IDP'!$HL$2="3",'F9-IDP'!$HM$10,0)+IF('F9-IDP'!$IU$2="3",'F9-IDP'!$IV$10,0)+IF('F9-IDP'!$KD$2="3",'F9-IDP'!$KE$10,0)+IF('F9-IDP'!$LM$2="3",'F9-IDP'!$LN$10,0) -> 0.00 | AI18: =IF('F9-IDP'!$J$2="3",'F9-IDP'!$Q$10,0)+IF('F9-IDP'!$AS$2="3",'F9-IDP'!$AZ$10,0)+IF('F9-IDP'!$CB$2="3",'F9-IDP'!$CI$10,0)+IF('F9-IDP'!$DK$2="3",'F9-IDP'!$DR$10,0)+IF('F9-IDP'!$ET$2="3",'F9-IDP'!$FA$10,0)+IF('F9-IDP'!$GC$2="3",'F9-IDP'!$GJ$10,0)+IF('F9-IDP'!$HL$2="3",'F9-IDP'!$HS$10,0)+IF('F9-IDP'!$IU$2="3",'F9-IDP'!$JB$10,0)+IF('F9-IDP'!$KD$2="3",'F9-IDP'!$KK$10,0)+IF('F9-IDP'!$LM$2="3",'F9-IDP'!$LT$10,0) -> 0.00 | AP18: =N18+U18-AB18+AI18 -> 0.00 | AW18: =IF('F9-IDP'!$J$2="3",'F9-IDP'!$W$10,0)+IF('F9-IDP'!$AS$2="3",'F9-IDP'!$BF$10,0)+IF('F9-IDP'!$CB$2="3",'F9-IDP'!$CO$10,0)+IF('F9-IDP'!$DK$2="3",'F9-IDP'!$DX$10,0)+IF('F9-IDP'!$ET$2="3",'F9-IDP'!$FG$10,0)+IF('F9-IDP'!$GC$2="3",'F9-IDP'!$GP$10,0)+IF('F9-IDP'!$HL$2="3",'F9-IDP'!$HY$10,0)+IF('F9-IDP'!$IU$2="3",'F9-IDP'!$JH$10,0)+IF('F9-IDP'!$KD$2="3",'F9-IDP'!$KQ$10,0)+IF('F9-IDP'!$LM$2="3",'F9-IDP'!$LZ$10,0) -> 0.00 | BD18: =IF('F9-IDP'!$J$2="3",'F9-IDP'!$AC$10,0)+IF('F9-IDP'!$AS$2="3",'F9-IDP'!$BL$10,0)+IF('F9-IDP'!$CB$2="3",'F9-IDP'!$CU$10,0)+IF('F9-IDP'!$DK$2="3",'F9-IDP'!$ED$10,0)+IF('F9-IDP'!$ET$2="3",'F9-IDP'!$FM$10,0)+IF('F9-IDP'!$GC$2="3",'F9-IDP'!$GV$10,0)+IF('F9-IDP'!$HL$2="3",'F9-IDP'!$IE$10,0)+IF('F9-IDP'!$IU$2="3",'F9-IDP'!$JN$10,0)+IF('F9-IDP'!$KD$2="3",'F9-IDP'!$KW$10,0)+IF('F9-IDP'!$LM$2="3",'F9-IDP'!$MF$10,0) -> 0.00
A19: 2. Otros Pasivos | N19: =Balanza!D101-'F9-EDP'!N11:T11-'F9-EDP'!N15:T15 -> 7,412,358.35 | AP19: =Balanza!H101-'F9-EDP'!AP11:AV11-'F9-EDP'!AP15:AV15 -> 7,197,531.94
A20: 3. Total de la Deuda Pública y Otros Pasivos | N20: =N11+N19+N15 -> 35,946,274.61 | U20: =U11+U19+U15 -> 0.00 | AB20: =AB11+AB19+AB15 -> 71,584.97 | AI20: =AI11+AI19+AI15 -> 0.00 | AP20: =AP11+AP19+AP15 -> 35,659,863.23 | AW20: =AW11+AW19+AW15 -> 238,466.34 | BD20: =BD11+BD19+BD15 -> 0.00
A22: 4. Deuda Contingente (informativo)
A23: A. | AP23: =N23+U23-AB23+AI23 -> 0.00
A24: B. | AP24: =N24+U24-AB24+AI24 -> 0.00
A25: C. | AP25: =N25+U25-AB25+AI25 -> 0.00
A27: 5. Valor de Instrumentos Bonos Cupón Cero (Informativo)
A28: A. | AP28: =N28+U28-AB28+AI28 -> 0.00
A29: B. | AP29: =N29+U29-AB29+AI29 -> 0.00
A30: C. | AP30: =N30+U30-AB30+AI30 -> 0.00
A32: Obligaciones a Corto Plazo | N32: Monto Contratado | X32: Plazo Pactado | AH32: Tasa de Interés | AR32: Comisiones y Costos Relacionados | BB32: Tasa Efectiva
A34: 6. Obligaciones a Corto Plazo (Informativo)
A35: A.
A36: B.
A37: C.
C51: Bajo protesta de decir verdad declaramos que los Estados Financieros y sus notas, son razonablemente correctos y responsabilidad del emisor.
F56: LIC. JOSE HERIBERTO GARCIA MURILLO | AG56: LAE BRUNO GERMAN ENCISO GUILLEN
F57: PRESIDENTE MUNICIPAL | AG57: ENCARGADO DE LA HACIENDA MUNICIPAL
V58: ASEJ2026-01-31-03-2026-1

Sheet F9-IAO
A1: MUNICIPIO IXTLAHUACÁN DE LOS MEMBRILLOS
A2: Informe Analítico de Obligaciones Diferentes de Financiamiento - LDF
A3: DEL 1° DE ENERO AL 31 DE ENERO DE 2026
A4: (PESOS)
A5: Denominación de las Obligaciones Diferentes de Financiamiento | N5: Fecha del Contrato | S5: Fecha de inicio de operaciones del proyecto | X5: Fecha de vencimiento | AC5: Monto de la inversión pactado | AI5: Plazo pactado | AN5: Monto promedio mensual del pago de la contraprestación | AT5: Monto promedio mensual del pago de la contraprestación correspondiente al pago de inversión | AZ5: ="Monto pagado de la inversión al "&INDEX(Validacion!D185:D196,MATCH(Validacion!A11,Validacion!C185:C196,0)) -> Monto pagado de la inversión al 31 de Enero de 2026 | BF5: ="Monto pagado de la inversión actualizado al "&INDEX(Validacion!D185:D196,MATCH(Validacion!A11,Validacion!C185:C196,0)) -> Monto pagado de la inversión actualizado al 31 de Enero de 2026 | BL5: ="Saldo pendiente por pagar de la inversión al "&INDEX(Validacion!D185:D196,MATCH(Validacion!A11,Validacion!C185:C196,0)) -> Saldo pendiente por pagar de la inversión al 31 de Enero de 2026
A11: A. Asociaciones Público Privadas (APP´s) | AC11: =SUM(AC12:AH15) -> 0.00 | AN11: =SUM(AN12:AS15) -> 0.00 | AT11: =SUM(AT12:AY15) -> 0.00 | AZ11: =SUM(AZ12:BE15) -> 0.00 | BF11: =SUM(BF12:BK15) -> 0.00 | BL11: =SUM(BL12:BQ15) -> 0.00
B12: a) | C12: NO APLICA | BL12: =AC12-BF12 -> 0.00
B13: b) | BL13: =AC13-BF13 -> 0.00
B14: c) | BL14: =AC14-BF14 -> 0.00
B15: d) | BL15: =AC15-BF15 -> 0.00
A16: B. Otros Instrumentos | AC16: =SUM(AC17:AH20) -> 0.00 | AN16: =SUM(AN17:AS20) -> 0.00 | AT16: =SUM(AT17:AY20) -> 0.00 | AZ16: =SUM(AZ17:BE20) -> 0.00 | BF16: =SUM(BF17:BK20) -> 0.00 | BL16: =SUM(BL17:BQ20) -> 0.00
B17: a) | BL17: =AC17-BF17 -> 0.00
B18: b) | BL18: =AC18-BF18 -> 0.00
B19: c) | BL19: =AC19-BF19 -> 0.00
B20: d) | BL20: =AC20-BF20 -> 0.00
A21: C. Total de Obligaciones Diferentes de Financiamiento | AC21: =AC11+AC16 -> 0.00 | AN21: =AN11+AN16 -> 0.00 | AT21: =AT11+AT16 -> 0.00 | AZ21: =AZ11+AZ16 -> 0.00 | BF21: =BF11+BF16 -> 0.00 | BL21: =BL11+BL16 -> 0.00
C24: Bajo protesta de decir verdad declaramos que los Estados Financieros y sus notas, son razonablemente correctos y responsabilidad del emisor.
F29: LIC. JOSE HERIBERTO GARCIA MURILLO | AP29: LAE BRUNO GERMAN ENCISO GUILLEN
F30: PRESIDENTE MUNICIPAL | AP30: ENCARGADO DE LA HACIENDA MUNICIPAL
W31: ASEJ2026-01-31-03-2026-1

Sheet F10
A1: MUNICIPIO IXTLAHUACÁN DE LOS MEMBRILLOS
A2: INFORMATIVA DE PROVEEDORES
A3: DEL 1° AL 31 DE ENERO DE 2026
A4: (Cifras en pesos)
A5: N° | B5: PROVEEDOR Y/O PRESTADOR | C5: R.F.C. | D5: DOMICILIO | E5: CIUDAD | F5: CODIGO POSTAL | G5: FUENTE DE FINANCIAMIENTO | H5: ORIGEN DEL RECURSO POR CUENTA BANCARIA | I5: FORMA DE PAGO | J5: DESCRIPCIÓN DEL GASTO | K5: IMPORTE | L5: FECHA DE LA FACTURA | M5: FOLIO DE FACTURA
A6: 1 | B6: ALEJANDRO AMBRIZ CABRERA | C6: AICA740709N13 | D6: CIRCUITO VALLE DORADO 124L-3 | E6: TLAJOMULCO DE ZUÑIGA | F6: 45653 | G6: 1.1 | H6: Cta. 01720129762312 IMTOS. (NO ETIQ) | I6: Transferencia | J6: MEDICAMENTO PARA CLINICA DE SMM. | K6: 291,852.86 | L6: 2026-01-16 | M6: d39aafd6-cf6d-4361-824e-b8041106a81e
A7: 2 | B7: ALEJANDRO AMBRIZ CABRERA | C7: AICA740709N13 | D7: CIRCUITO VALLE DORADO 124L-3 | E7: TLAJOMULCO DE ZUÑIGA | F7: 45653 | G7: 1.1 | H7: INGRESOS CLINICA NO | I7: Transferencia | J7: MEDICAMENTO PARA CLINICA DE SMM. | K7: 15,094.00 | L7: 2026-01-16 | M7: 5e505a5e-28a2-45a5-aa53-dcd7c826d973
A8: 3 | B8: ALEJANDRO AMBRIZ CABRERA | C8: AICA740709N13 | D8: CIRCUITO VALLE DORADO 124L-3 | E8: TLAJOMULCO DE ZUÑIGA | F8: 45653 | G8: 1.1 | H8: INGRESOS CLINICA NO | I8: Transferencia | J8: MEDICAMENTO PARA CLINICA DE SMM. | K8: 57,196.40 | L8: 2026-01-16 | M8: 2f28fcfd-88e7-4053-a04d-b52f6c75561a
A9: 4 | B9: ALEJANDRO AMBRIZ CABRERA | C9: AICA740709N13 | D9: CIRCUITO VALLE DORADO 124L-3 | E9: TLAJOMULCO DE ZUÑIGA | F9: 45653 | G9: 1.1 | H9: INGRESOS CLINICA NO | I9: Transferencia | J9: MEDICAMENTO PARA CLINICA DE SMM. | K9: 45,457.16 | L9: 2026-01-16 | M9: 21142905-e161-4828-8172-390a4856f99c
A10: 5 | B10: SUSANA BARON PADILLA | C10: BAPS930411JG1 | D10: N/P | E10: N/P | F10: 45920 | G10: 1.1 | H10: Cta. 01720129762312 IMTOS. (NO ETIQ) | I10: Transferencia | J10: REPARACION Y MANTENIMIENTO DESBROZADORAS CAMPOS DEPORTIVOS Y PARQUES Y JARDINES. | K10: 17,342.00 | L10: 2026-01-08 | M10: 2CFC6F90-7295-4024-B4FB-D88D71DD1C36
A11: 6 | B11: SUSANA BARON PADILLA | C11: BAPS930411JG1 | D11: N/P | E11: N/P | F11: 45920 | G11: 1.1 | H11: Cta. 01720129762312 IMTOS. (NO ETIQ) | I11: Transferencia | J11: MATERIAL DEPORTIVO DE ENTRENAMIENTO DE BOXEO. | K11: 9,860.00 | L11: 2026-01-28 | M11: 06F99A7C-EA39-47FA-AB96-4A72E9582B11
A12: 7 | B12: SUSANA BARON PADILLA | C12: BAPS930411JG1 | D12: N/P | E12: N/P | F12: 45920 | G12: 1.1 | H12: Cta. 01720129762312 IMTOS. (NO ETIQ) | I12: Transferencia | J12: REPARACION Y MANTENIMIENTO DESBROZADORAS Y MOTOSIERRAS DE AREAS DEPORTIVAS. | K12: 14,604.40 | L12: 2026-01-16 | M12: AAC79254-FAF4-4236-AD4E-C5693AEB0798
A13: 8 | B13: AFA PROYECTOS | C13: APR181128GV1 | D13: SANTA JULIA 1165 VICENTE GUERRERO | E13: GUADALAJARA | F13: 44690 | G13: 1.1 | H13: Cta. 01720129762312 IMTOS. (NO ETIQ) | I13: Transferencia | J13: MATERIAL ELECTRICO PARA MANTENIMIENTOS DE ALUMBRADO PUBLICO. | K13: 148,463.76 | L13: 2026-01-06 | M13: DD987A67-35EA-4F55-AD22-5D615EFAD58D
A14: 9 | B14: AFA PROYECTOS | C14: APR181128GV1 | D14: SANTA JULIA 1165 VICENTE GUERRERO | E14: GUADALAJARA | F14: 44690 | G14: 1.1 | H14: Cta.01720133352464 VOUCHER IMTOS. (NO ETQ.) | I14: Transferencia | J14: MATERIAL ELECTRICO PARA MANTENIMIENTOS DE ALUMBRADO PUBLICO. | K14: 47,686.95 | L14: 2026-01-08 | M14: 1C3EDED2-70D7-4091-98F6-A5CF65646331
A15: 10 | B15: AFA PROYECTOS | C15: APR181128GV1 | D15: SANTA JULIA 1165 VICENTE GUERRERO | E15: GUADALAJARA | F15: 44690 | G15: 1.1 | H15: Cta. 01720129762312 IMTOS. (NO ETIQ) | I15: Transferencia | J15: MATERIAL ELECTRICO PARA MANTENIMIENTOS ALUMBRADO PUBLICO DEL MUNICIPIO. | K15: 38,304.59 | L15: 2026-01-14 | M15: 28F33E25-BCC1-4394-B4F8-8C684C30C3D7
A16: 11 | B16: AFA PROYECTOS | C16: APR181128GV1 | D16: SANTA JULIA 1165 VICENTE GUERRERO | E16: GUADALAJARA | F16: 44690 | G16: 1.1 | H16: Cta. 01720129762312 IMTOS. (NO ETIQ) | I16: Transferencia | J16: MATERIAL ELECTRICO PARA MNTTO. ALUMBRADO PUBLICO. | K16: 130,710.66 | L16: 2026-01-27 | M16: 1D227789-950A-4194-B5D3-D1D447A21223
A17: 12 | B17: Afianzadora Sofimex SA de CV | C17: ASG950531ID1 | D17: BLVD ADOLFO LOPEZ MATEOS 1941 | E17: CD DE MEXICO | F17: 1010 | G17: 1.1 | H17: Cta. 01720129762312 IMTOS. (NO ETIQ) | I17: Transferencia | J17: SEGURO DE RESPONSABILIDAD PATRIMONIAL Y FIANZA PRESIDENTE MUNICIPAL. | K17: 8,534.70 | L17: 2026-01-26 | M17: 7E97A385-D1F4-4E35-8171-D1B8E7C71073
A18: 13 | B18: Afianzadora Sofimex SA de CV | C18: ASG950531ID1 | D18: BLVD ADOLFO LOPEZ MATEOS 1941 | E18: CD DE MEXICO | F18: 1010 | G18: 1.1 | H18: Cta. 01720129762312 IMTOS. (NO ETIQ) | I18: Transferencia | J18: SEGURO DE RESPONSABILIDAD PATRIMONIAL Y FIANZA SINDICO. | K18: 8,534.70 | L18: 2026-01-27 | M18: E6E34E97-D1C5-4511-BAE9-5795195D0BCC
A19: 14 | B19: Afianzadora Sofimex SA de CV | C19: ASG950531ID1 | D19: BLVD ADOLFO LOPEZ MATEOS 1941 | E19: CD DE MEXICO | F19: 1010 | G19: 1.1 | H19: Cta. 01720129762312 IMTOS. (NO ETIQ) | I19: Transferencia | J19: SEGURO DE RESPONSABILIDAD PATRIMONIAL Y FIANZA SECRETARIO GENERAL. | K19: 8,534.70 | L19: 2026-01-26 | M19: D08CC66D-DD84-4CCE-A08D-58B6077D0060
A20: 15 | B20: Afianzadora Sofimex SA de CV | C20: ASG950531ID1 | D20: BLVD ADOLFO LOPEZ MATEOS 1941 | E20: CD DE MEXICO | F20: 1010 | G20: 1.1 | H20: Cta. 01720129762312 IMTOS. (NO ETIQ) | I20: Transferencia | J20: SEGURO DE RESPONSABILIDAD PATRIMONIAL Y FIANZA TESORERO. | K20: 8,534.70 | L20: 2026-01-26 | M20: D8910171-7484-461F-AF7B-1F40D61B8F96
A21: 16 | B21: Afianzadora Sofimex SA de CV | C21: ASG950531ID1 | D21: BLVD ADOLFO LOPEZ MATEOS 1941 | E21: CD DE MEXICO | F21: 1010 | G21: 1.1 | H21: Cta. 01720129762312 IMTOS. (NO ETIQ) | I21: Transferencia | J21: SEGURO DE RESPONSABILIDAD PATRIMONIAL Y FIANZA CONTRALORA. | K21: 8,534.70 | L21: 2026-01-27 | M21: 45CBD45E-B8F2-457C-B572-F45A11D6F7FB
A22: 17 | B22: Afianzadora Sofimex SA de CV | C22: ASG950531ID1 | D22: BLVD ADOLFO LOPEZ MATEOS 1941 | E22: CD DE MEXICO | F22: 1010 | G22: 1.1 | H22: Cta. 01720129762312 IMTOS. (NO ETIQ) | I22: Transferencia | J22: SEGURO DE RESPONSABILIDAD PATRIMONIAL Y FIANZA OFICIAL MAYOR ADMINISTRATIVO. | K22: 8,534.70 | L22: 2026-01-26 | M22: 9AD49546-E6ED-4989-B8DA-C901ABDAB203
A23: 18 | B23: Afianzadora Sofimex SA de CV | C23: ASG950531ID1 | D23: BLVD ADOLFO LOPEZ MATEOS 1941 | E23: CD DE MEXICO | F23: 1010 | G23: 1.1 | H23: Cta. 01720129762312 IMTOS. (NO ETIQ) | I23: Transferencia | J23: SEGURO DE RESPONSABILIDAD PATRIMONIAL Y FIANZA DIRECTOR OBRAS PUBLICAS. | K23: 8,534.70 | L23: 2026-01-26 | M23: 0A7EAA4F-586C-4011-8C58-D44B376513B7
A24: 19 | B24: Afianzadora Sofimex SA de CV | C24: ASG950531ID1 | D24: BLVD ADOLFO LOPEZ MATEOS 1941 | E24: CD DE MEXICO | F24: 1010 | G24: 1.1 | H24: Cta. 01720129762312 IMTOS. (NO ETIQ) | I24: Transferencia | J24: SEGURO DE RESPONSABILIDAD PATRIMONIAL Y FIANZA ENCARGADA DE COMPRAS. | K24: 8,534.70 | L24: 2026-01-27 | M24: 358D042E-94FC-44CC-80B8-FF45CD3887C9
A25: 20 | B25: ALVACRUZ CONSTRUCTORA | C25: ACO070118AWA | D25: N/P | E25: N/P | F25: 44600 | G25: 1.1 | H25: Cta. 01720129762312 IMTOS. (NO ETIQ) | I25: Transferencia | J25: RENTA DE MAQUINARIA PARA OBRA PUBLICA. | K25: 232,000.00 | L25: 2026-01-21 | M25: 4F54F375-E836-474D-897E-85C3F5490645
A26: 21 | B26: ANDRE IVAN HERRERA BARBA | C26: HEBA021009QZ3 | D26: N/P | E26: XTLAHUACAN DE LOS MEMBRILLOS | F26: 45850 | G26: 1.1 | H26: Cta. 01720129762312 IMTOS. (NO ETIQ) | I26: Transferencia | J26: RENTA DE MUEBLE PARA ACTIVIDAD NAVIDEÑA EN PLAZA PRINCIPAL. | K26: 9,180.00 | L26: 2026-01-07 | M26: D55F5035-37E3-4CDA-B8F0-31F60E1702B7
A27: 22 | B27: ANDRE IVAN HERRERA BARBA | C27: HEBA021009QZ3 | D27: N/P | E27: XTLAHUACAN DE LOS MEMBRILLOS | F27: 45850 | G27: 1.1 | H27: Cta. 01720129762312 IMTOS. (NO ETIQ) | I27: Transferencia | J27: RENTA DE MUEBLE PARA APOYO FUNERARIO EN OJO DE AGUA IXTLAHUACAN. | K27: 5,737.50 | L27: 2026-01-20 | M27: 97E50BE7-125F-496D-A674-69EB284ABB9D
A28: 23 | B28: ANDRE IVAN HERRERA BARBA | C28: HEBA021009QZ3 | D28: N/P | E28: XTLAHUACAN DE LOS MEMBRILLOS | F28: 45850 | G28: 1.1 | H28: Cta. 01720129762312 IMTOS. (NO ETIQ) | I28: Transferencia | J28: RENTA DE MUEBLE PARA PARTIR ROSCA DE REYES PARA TRABAJADORES. | K28: 5,186.70 | L28: 2026-01-20 | M28: 9C8BFB06-537A-47B4-9838-420819E28586
A29: 24 | B29: ANDRE IVAN HERRERA BARBA | C29: HEBA021009QZ3 | D29: N/P | E29: XTLAHUACAN DE LOS MEMBRILLOS | F29: 45850 | G29: 1.1 | H29: Cta. 01720129762312 IMTOS. (NO ETIQ) | I29: Transferencia | J29: RENTA DE MUEBLE PARA PARTIR ROSCA DE REYES PLAZA PRINCIPAL IXTLAHUACAN. | K29: 6,299.77 | L29: 2026-01-13 | M29: F8E363A8-F12F-4CBD-B4BF-18A97841423F
A30: 25 | B30: Arcenio Gomez Gutierrez | C30: GOGA9708205C5 | D30: SANTA ROSA 27 LA CAPILLA | E30: IXTLAHUACAN DE LOS MEMBRILLOS | F30: 45870 | G30: 1.1 | H30: Cta. 01720129762312 IMTOS. (NO ETIQ) | I30: Transferencia | J30: MATERIAL DE REPARACION T MNTTO. EN LA CAPILLA. | K30: 6,398.09 | L30: 2026-01-13 | M30: ABF04508-4233-414A-95DC-712E868E2C1E
A31: 26 | B31: ARMANI CONSTRUCCIONES Y EDIFICACIONES | C31: ACE211125DC7 | D31: N/P | E31: N/P | F31: 44440 | G31: 1.1 | H31: Cta. 01720129762312 IMTOS. (NO ETIQ) | I31: Transferencia | J31: RENTA DE MAQUINARIA PARA TRABAJOS DE OBRAS PUBLICA. | K31: 348,000.00 | L31: 2026-01-21 | M31: 59FECB01-28B1-4940-A27D-8824D8D52D6C
A32: 27 | B32: Aro Asfaltos y Riesgos de Occidente s.a. de c.v. | C32: AAR120507VA9 | D32: N/P | E32: N/P | F32: 45690 | G32: 1.1 | H32: Cta. 01720129762312 IMTOS. (NO ETIQ) | I32: Transferencia | J32: MEZCLA SFALTICA DE 3/8 A FINOS PARA REPARACION Y MNTTO. AVENIDAS DEL MUNICIPIO. | K32: 580,000.00 | L32: 2026-01-30 | M32: 65C85A29-128F-4CEF-9537-F921B78C1365
A33: 28 | B33: Autonova SA de CV | C33: AUT850115V47 | D33: N/P | E33: N/P | F33: 44190 | G33: 1.1 | H33: Cta. 01720129762312 IMTOS. (NO ETIQ) | I33: Transferencia | J33: REPARACION Y MNTTO. UNIDAD S-10 SEGURIDAD PUBLICA. | K33: 12,259.00 | L33: 2026-01-29 | M33: c0dc592e-3ad6-41b7-bce3-16e3132a24cd
A34: 29 | B34: Autonova SA de CV | C34: AUT850115V47 | D34: N/P | E34: N/P | F34: 44190 | G34: 1.1 | H34: Cta. 01720129762312 IMTOS. (NO ETIQ) | I34: Transferencia | J34: REPARACION Y MANTENIMIENTO UNIDAD IM-01 SEGURIDAD PUBLICA. | K34: 13,773.00 | L34: 2026-01-30 | M34: c3ca87f3-8550-4523-80b7-9000bf0f3dda
A35: 30 | B35: Camarena Automotriz de Occidente s.a. de c.v. | C35: CAO850307HY1 | D35: AV. 8 DE JULIO 2206, ESQ. LÁZARO CÁRDENAS 206 ZONA IND. | E35: GUADALAJARA | F35: 44940 | G35: 1.1 | H35: Cta. 01720129762312 IMTOS. (NO ETIQ) | I35: Transferencia | J35: REPARACION Y MANTENIMIENTO UNIDA DE VIALIDAD. | K35: 8,332.36 | L35: 2026-01-13 | M35: 82a90ab7-cad5-4f84-b610-4e4a942311b0
A36: 31 | B36: Camarena Automotriz de Occidente s.a. de c.v. | C36: CAO850307HY1 | D36: AV. 8 DE JULIO 2206, ESQ. LÁZARO CÁRDENAS 206 ZONA IND. | E36: GUADALAJARA | F36: 44940 | G36: 1.1 | H36: Cta. 01720129762312 IMTOS. (NO ETIQ) | I36: Transferencia | J36: REPARACION Y MNTTO. UNIDAD DE VIALIDAD. | K36: 7,129.00 | L36: 2026-01-29 | M36: a2fe31d0-693a-4444-954f-2bbd9a0a96aa
A37: 32 | B37: Camarena Automotriz de Occidente s.a. de c.v. | C37: CAO850307HY1 | D37: AV. 8 DE JULIO 2206, ESQ. LÁZARO CÁRDENAS 206 ZONA IND. | E37: GUADALAJARA | F37: 44940 | G37: 1.1 | H37: Cta. 01720129762312 IMTOS. (NO ETIQ) | I37: Transferencia | J37: REPARACION Y MANTENIMIENTO VEHICULO DE OFICIALIA MAYOR. | K37: 5,983.00 | L37: 2026-01-28 | M37: 546ea0e0-9ef0-4d96-bce5-89c4ba676fd1
A38: 33 | B38: Carlos Elias Sanchez Soto | C38: SASC561014M26 | D38: N/P | E38: N/P | F38: 45550 | G38: 1.1 | H38: Cta. 01720129762312 IMTOS. (NO ETIQ) | I38: Transferencia | J38: IMPRESION FORMATOS PARA REGISTRO DETENIDOS DERECHOS IMPUTADO T/C Y T/O PARA SEGURIDAD PUBLICA. | K38: 9,860.00 | L38: 2026-01-14 | M38: 8B931B37-A87E-4375-9B9D-BB6A21C1FE0B
A39: 34 | B39: Carlos Elias Sanchez Soto | C39: SASC561014M26 | D39: N/P | E39: N/P | F39: 45550 | G39: 1.1 | H39: INGRESOS CLINICA NO | I39: Transferencia | J39: IMPRESION DE RECIBOS DE CUOTAS Y REGISTRO DE CLINICA DE SMM. | K39: 17,748.00 | L39: 2026-01-29 | M39: 01897F3A-2E61-49A7-A984-F80EB0ACD066
A40: 35 | B40: Carlos Nafarrate SA de CV | C40: CNA8602174V2 | D40: N/P | E40: N/P | F40: 44100 | G40: 1.1 | H40: INGRESOS CLINICA NO | I40: Transferencia | J40: CARGADOR UNIVERSAL ESCRITORIO MANGOS FO Y MANGO LARINGOSCOPICO RECARGABLE PARA CLINICA DE SMM. | K40: 11,600.70 | L40: 2026-01-24 | M40: 5EB5EBDD-345D-4641-AEDE-676274B5FB7D
A41: 36 | B41: Cecilia Gutierrez Moreida | C41: GUMC630909RF8 | D41: N/P | E41: IXTLAHUACAN DE LOS MEMBRILLOS | F41: 45850 | G41: 1.1 | H41: Cta. 01720129762312 IMTOS. (NO ETIQ) | I41: Transferencia | J41: SERVICIO DE HOSPEDAJE PARA PERSONAL QUE TRABAJO INDICADORE EN PLAN DE DESARRO URBANO. | K41: 11,200.00 | L41: 2026-01-03 | M41: BDBD2BAC-CCF8-4C46-9FC6-EFA40F16C3E8
A42: 37 | B42: CEGA PROMOCION CORPORATIVA | C42: CPC080218B94 | D42: N/P | E42: N/P | F42: 44190 | G42: 1.1 | H42: Cta. 01720129762312 IMTOS. (NO ETIQ) | I42: Transferencia | J42: 5 BANDERAS CONFECCIONADAS EN TELA DE RAZO 60X105 CM,ESCUDO NACIONAL BODADO(COLORES),BANDERA CONFECCIONADA EN RAZO 90X1.58 MTS.,ESCUDOS NACIONAL BORDADO | K42: 78,648.00 | L42: 2026-01-06 | M42: 9CB9A051-5541-428F-9381-A648BC7CA483
A43: 38 | B43: Chubb Seguros Mexico sa | C43: ASE901221SM4 | D43: N/P | E43: N/P | F43: 660 | G43: 1.1 | H43: Cta. 01720129762312 IMTOS. (NO ETIQ) | I43: Transferencia | J43: SEGURO MAQUINARIA DE OBRAS PUBLICAS. | K43: 158,197.14 | L43: 2026-01-20 | M43: c0d17401-427c-4f0a-968d-4a37ff055886
A44: 39 | B44: COFIDUE COMERCIOS Y SERVICIOS | C44: CCS231127G27 | D44: MARISANO OTERO 3643 LA CALMA | E44: ZAPOPAN | F44: 45070 | G44: 1.1 | H44: Cta. 01720129762312 IMTOS. (NO ETIQ) | I44: Transferencia | J44: PAPELERIA PARA DIFERENTES OFICINAS ADMVAS.Y SERV.PUBLICO. | K44: 51,183.38 | L44: 2026-01-15 | M44: 6f57cafa-1e14-4181-a3db-30142c2e7ff8
A45: 40 | B45: COFIDUE COMERCIOS Y SERVICIOS | C45: CCS231127G27 | D45: MARISANO OTERO 3643 LA CALMA | E45: ZAPOPAN | F45: 45070 | G45: 1.1 | H45: Cta. 01720129762312 IMTOS. (NO ETIQ) | I45: Transferencia | J45: MATERIAL DE PAPELERIA PARA DIFERENTES OFICINAS. | K45: 23,521.82 | L45: 2026-01-15 | M45: 9879f30a-1434-4346-b8cb-08237386e45c
A46: 41 | B46: Comision Federal de Electricidad | C46: CFE370814QI0 | D46: N/P | E46: N/P | F46: 44100 | G46: 1.1 | H46: Cta. 01720129762312 IMTOS. (NO ETIQ) | I46: Cheque | J46: AJUSTE CONSUMO ENERGIA ELECTRICA,CAMPO FUTBOL LOALIDAD EL RODEO. | K46: 32,833.08 | L46: 2026-01-07 | M46: DB6E3CAA-9421-49B3-9E27-C206C40CC21C
A47: 42 | B47: Comision Federal de Electricidad | C47: CFE370814QI0 | D47: N/P | E47: N/P | F47: 44100 | G47: 1.1 | H47: Cta. 01720129762312 IMTOS. (NO ETIQ) | I47: Cheque | J47: CONSUMO ENERGIA ELECTRICA CALLES Y AVENIDAS DEL MUNICIPIO DICIEMBRE 2025. | K47: 221,217.00 | L47: 2026-01-09
A48: 43 | B48: Comision Federal de Electricidad | C48: CFE370814QI0 | D48: N/P | E48: N/P | F48: 44100 | G48: 1.1 | H48: Cta. 01720129762312 IMTOS. (NO ETIQ) | I48: Cheque | J48: CONSUMO ENERGIA ELECTRICA CALLES LOPEZ COTILLA ATEQUIZA MES DE DICIEMBRE 2025. | K48: 99,736.00 | L48: 2026-01-09
A49: 44 | B49: Comision Federal de Electricidad | C49: CFE370814QI0 | D49: N/P | E49: N/P | F49: 44100 | G49: 2.5 | H49: Cta. 0720129762277 FGP (NO ETIQ) | I49: Transferencia | J49: CONSUMO ENERGIA ELECTRICA DEL MES DE DICIEMBRE 2025. | K49: 948,207.00 | L49: 2026-01-09 | M49: B3453F88-9267-4751-A149-14CE0E4BA5EA
A50: 45 | B50: Consultores en auaditorias Legatus sa de cv | C50: CAL190730GL4 | D50: N/P | E50: AGUASCALIENTES | F50: 44130 | G50: 1.1 | H50: Cta. 01720129762312 IMTOS. (NO ETIQ) | I50: Transferencia | J50: ASESORIA PROFESIONAL DE CAPACITACION Y TEMAS DE ADMINISTRACION PUBLICA. | K50: 578,211.28 | L50: 2026-01-27 | M50: F209CCFF-FF24-4755-9A30-90C7741C78D4
A51: 46 | B51: Consultores en auaditorias Legatus sa de cv | C51: CAL190730GL4 | D51: N/P | E51: AGUASCALIENTES | F51: 44130 | G51: 1.1 | H51: Cta. 01720129762312 IMTOS. (NO ETIQ) | I51: Transferencia | J51: ASESORAMIENTO Y CAPACITACION EN ADMINISTRACIONES PUBLICAS. | K51: 813,788.72 | L51: 2026-01-27 | M51: 4D6144F5-FF42-42FF-92FE-0B87430525BE
A52: 47 | B52: DANIELA NOEMI LOPEZ DEL CASTILLO | C52: LOCD891118HP1 | D52: EL COLLI 5423 EL COLLI URBANO | E52: ZAPOPAN | F52: 45070 | G52: 1.1 | H52: Cta. 01720129762312 IMTOS. (NO ETIQ) | I52: Transferencia | J52: GASTOS MEDICOS POR REVISION CALCULOS VILIARES. | K52: 8,400.00 | L52: 2026-01-09 | M52: B896E0C1-93CD-4032-AB5D-552CED1F4752
A53: 48 | B53: DLON COMERCIALIZADORA EMPRESARIAL NACIONAL | C53: CEN2002056V3 | D53: JUAN ALVAREZ 73 EL RETIRO | E53: GUADALAJARA | F53: 44280 | G53: 1.1 | H53: Cta. 01720129762312 IMTOS. (NO ETIQ) | I53: Transferencia | J53: ORGANIZACION Y PRODUCCION PARA LOS EVENTOS SOCIALES Y CULTURALES DEL POBLADO DE LA CAÑADA. | K53: 40,600.00 | L53: 2026-01-08 | M53: 0ff4d5f7-c7cb-401d-ad74-89ae0ccd3bce
A54: 49 | B54: DLON COMERCIALIZADORA EMPRESARIAL NACIONAL | C54: CEN2002056V3 | D54: JUAN ALVAREZ 73 EL RETIRO | E54: GUADALAJARA | F54: 44280 | G54: 1.1 | H54: Cta. 01720129762312 IMTOS. (NO ETIQ) | I54: Transferencia | J54: ORGANIZACION Y PRODUCCION PARA LOS EVENTOS SOCIALES Y CULTURALES DE LAS AGUILILLAS. | K54: 176,900.00 | L54: 2026-01-13 | M54: 714218cc-e06d-4dc2-84da-80564225174d
A55: 50 | B55: DLON COMERCIALIZADORA EMPRESARIAL NACIONAL | C55: CEN2002056V3 | D55: JUAN ALVAREZ 73 EL RETIRO | E55: GUADALAJARA | F55: 44280 | G55: 1.1 | H55: Cta. 01720129762312 IMTOS. (NO ETIQ) | I55: Transferencia | J55: ORGANIZACION Y PRODUCCION PARA LOS EVENTOS SOCIALES Y CULTURALES DE EL RODEO. | K55: 166,460.00 | L55: 2026-01-13 | M55: aaa6f859-66c0-4ce0-b356-e1af59d59a52
A56: 51 | B56: DLON COMERCIALIZADORA EMPRESARIAL NACIONAL | C56: CEN2002056V3 | D56: JUAN ALVAREZ 73 EL RETIRO | E56: GUADALAJARA | F56: 44280 | G56: 1.1 | H56: Cta. 01720129762312 IMTOS. (NO ETIQ) | I56: Transferencia | J56: COORDINACION Y PRODUCCION EVENTO SOCIAL Y CULTURAL LOCALIDAD BUENAVISTA. | K56: 176,320.00 | L56: 2026-01-26 | M56: fcdd08d7-29e1-42e2-bf94-094e84e328a3
A57: 52 | B57: Edgar Jesus Ascencio Torres | C57: AETE9310224V5 | D57: N/P | E57: IXTLAHUACAN DE LOS MEMBRILLOS | F57: 45850 | G57: 1.1 | H57: Cta. 01720129762312 IMTOS. (NO ETIQ) | I57: Transferencia | J57: RENTA DE MUEBLE PARA GRADUACION EN TEATRO DE ATEQUIZA. | K57: 10,904.00 | L57: 2026-01-13 | M57: AAA193F0-0F66-4BFE-890A-99539195258D
A58: 53 | B58: ELEAZAR VALDIVIA OLIVARES | C58: VAOE891203BG8 | D58: N/P | E58: N/P | F58: 45860 | G58: 1.1 | H58: Cta. 01720129762312 IMTOS. (NO ETIQ) | I58: Transferencia | J58: REGISTRO DE DOMINIO IMEMBRILLOS(PAGINA WEB) | K58: 27,478.08 | L58: 2026-01-15 | M58: 89C8ACC1-F89C-4E90-B95A-BAA0C722AFED
A59: 54 | B59: Enrique Enciso Diaz | C59: EIDE520706MUA | D59: AV. SANTIAGO 30 CENTRO | E59: XTLAHUACAN DE LOS MEMBRILLOS | F59: 45850 | G59: 1.5 | H59: Cta. 0720129762277 FGP (NO ETIQ) | I59: Transferencia | J59: COMBUSTIBLE DE VEHICULOS OFICIALES DEL 1-6 ENERO 2026.- | K59: 284,605.73 | L59: 2026-01-08 | M59: ED20B284-3D21-42B1-BC78-A95B40F0E5B6
A60: 55 | B60: Enrique Enciso Diaz | C60: EIDE520706MUA | D60: AV. SANTIAGO 30 CENTRO | E60: XTLAHUACAN DE LOS MEMBRILLOS | F60: 45850 | G60: 1.5 | H60: Cta. 0720129762277 FGP (NO ETIQ) | I60: Transferencia | J60: COMBUSTIBLE DE VEHICULOS OFICIALES DEL 7-13 ENERO 2026. | K60: 342,569.87 | L60: 2026-01-15 | M60: D1525493-E3D8-440B-B3F6-67485864B733
A61: 56 | B61: Enrique Enciso Diaz | C61: EIDE520706MUA | D61: AV. SANTIAGO 30 CENTRO | E61: XTLAHUACAN DE LOS MEMBRILLOS | F61: 45850 | G61: 1.5 | H61: Cta. 0720129762277 FGP (NO ETIQ) | I61: Transferencia | J61: COMBUSTIBLE DEL 14-20 ENERO 2026.- | K61: 356,533.24 | L61: 2026-01-22 | M61: 8F719DD1-0867-4B71-BE55-1F12A92C4B77
A62: 57 | B62: FATIMA GALILEA LOPEZ RAMIREZ | C62: LORF960101QR2 | D62: N/P | E62: N/P | F62: 45030 | G62: 1.1 | H62: Cta. 01720129762312 IMTOS. (NO ETIQ) | I62: Transferencia | J62: ATENCION Y SEGUIMIENTO MEDICO, DAVID CORTEZ GONZALEZ. | K62: 20,000.00 | L62: 2026-01-17 | M62: 174D91EF-3224-45B9-B269-032E868AA063
A63: 58 | B63: Felipe Herrera Enciso | C63: HEEF8209061C5 | D63: CUAHUATEMOC CENTRO | E63: IXTLAHUACAN DE LOS MEMBRILLOS | F63: 45850 | G63: 1.1 | H63: Cta. 01720129762312 IMTOS. (NO ETIQ) | I63: Transferencia | J63: MATERIALES VARIOS DE FERRETERIA DE VARIS UR . | K63: 13,914.42 | L63: 2026-01-08 | M63: D589688E-AEC4-444D-963F-D393BB166ABB
A64: 59 | B64: Felipe Herrera Enciso | C64: HEEF8209061C5 | D64: CUAHUATEMOC CENTRO | E64: IXTLAHUACAN DE LOS MEMBRILLOS | F64: 45850 | G64: 1.1 | H64: Cta. 01720129762312 IMTOS. (NO ETIQ) | I64: Transferencia | J64: MATERIAL DE FERRETERIA PARA REPARACION Y MANTENIMIENTOS POR OBRAS PUBLICAS. | K64: 88,384.84 | L64: 2026-01-08 | M64: 71F8BA48-F125-4C2C-AF5D-81BAD6E9F9FD
A65: 60 | B65: Felipe Herrera Enciso | C65: HEEF8209061C5 | D65: CUAHUATEMOC CENTRO | E65: IXTLAHUACAN DE LOS MEMBRILLOS | F65: 45850 | G65: 1.1 | H65: Cta. 01720129762312 IMTOS. (NO ETIQ) | I65: Transferencia | J65: MATERIAL DE FERRETERIA PARA REPARACION Y MANTENIMIENTOS POR OBRAS PUBLICAS. | K65: 16,420.32 | L65: 2026-01-08 | M65: 0494739C-E103-492F-85E6-C87029E98807
A66: 61 | B66: Felipe Herrera Enciso | C66: HEEF8209061C5 | D66: CUAHUATEMOC CENTRO | E66: IXTLAHUACAN DE LOS MEMBRILLOS | F66: 45850 | G66: 1.1 | H66: Cta. 01720129762312 IMTOS. (NO ETIQ) | I66: Transferencia | J66: MATERIALES VARIOS DE FERRETERIA DE VARIS UR .- | K66: 35,324.60 | L66: 2026-01-15 | M66: C9D49188-0E7A-4704-B89B-99C5574182D7
A67: 62 | B67: Felipe Herrera Enciso | C67: HEEF8209061C5 | D67: CUAHUATEMOC CENTRO | E67: IXTLAHUACAN DE LOS MEMBRILLOS | F67: 45850 | G67: 1.1 | H67: Cta. 01720129762312 IMTOS. (NO ETIQ) | I67: Transferencia | J67: MATERIAL DE FERRETERIA PARA MNTTOS. POR OBRAS PUBLICAS. | K67: 6,909.99 | L67: 2026-01-15 | M67: 95ce9591-8d18-4887-9532-83f19bdd91b8
A68: 63 | B68: Felipe Herrera Enciso | C68: HEEF8209061C5 | D68: CUAHUATEMOC CENTRO | E68: IXTLAHUACAN DE LOS MEMBRILLOS | F68: 45850 | G68: 1.1 | H68: Cta. 01720129762312 IMTOS. (NO ETIQ) | I68: Transferencia | J68: ANTICIPO MATERIAL | K68: 74,500.00 | L68: 2026-01-16
A69: 64 | B69: Felipe Herrera Enciso | C69: HEEF8209061C5 | D69: CUAHUATEMOC CENTRO | E69: IXTLAHUACAN DE LOS MEMBRILLOS | F69: 45850 | G69: 1.1 | H69: Cta. 01720129762312 IMTOS. (NO ETIQ) | I69: Transferencia | J69: MATERIAL DE FERRETERIA PARA MNTTO.POR OBRAS PUBLICAS. | K69: 12,629.59 | L69: 2026-01-15 | M69: 3D62C530-BBE7-476D-A6D4-B83A73141781
A70: 65 | B70: Felipe Herrera Enciso | C70: HEEF8209061C5 | D70: CUAHUATEMOC CENTRO | E70: IXTLAHUACAN DE LOS MEMBRILLOS | F70: 45850 | G70: 1.1 | H70: Cta. 01720129762312 IMTOS. (NO ETIQ) | I70: Transferencia | J70: MATERIAL DE FERRETERIA.- | K70: 62,620.57 | L70: 2026-01-22 | M70: 0754B585-548B-4AC8-B222-84DE69C8C80C
A71: 66 | B71: Felipe Herrera Enciso | C71: HEEF8209061C5 | D71: CUAHUATEMOC CENTRO | E71: IXTLAHUACAN DE LOS MEMBRILLOS | F71: 45850 | G71: 1.1 | H71: Cta. 01720129762312 IMTOS. (NO ETIQ) | I71: Transferencia | J71: MATERIAL DE FERRETERIA PARA MNTTO. POR OBRAS PUBLICAS. | K71: 46,066.55 | L71: 2026-01-22 | M71: A867B1DF-E835-43AA-9E89-27E212FAF85F
A72: 67 | B72: Felipe Herrera Enciso | C72: HEEF8209061C5 | D72: CUAHUATEMOC CENTRO | E72: IXTLAHUACAN DE LOS MEMBRILLOS | F72: 45850 | G72: 1.1 | H72: Cta. 01720129762312 IMTOS. (NO ETIQ) | I72: Transferencia | J72: MATERIAL DE FERRETERIA PARA MNTTOS. OBRAS PUBLICAS. | K72: 10,962.00 | L72: 2026-01-29 | M72: C25F77F9-D07B-41F1-8FEC-57DEB6658A3C
A73: 68 | B73: Felipe Herrera Enciso | C73: HEEF8209061C5 | D73: CUAHUATEMOC CENTRO | E73: IXTLAHUACAN DE LOS MEMBRILLOS | F73: 45850 | G73: 1.1 | H73: Cta. 01720129762312 IMTOS. (NO ETIQ) | I73: Transferencia | J73: MATERIAL DE FERRETERIA DIFERENTES UR. | K73: 29,940.33 | L73: 2026-01-29 | M73: 71883F1C-5498-49B9-AE4B-CA01E818E50D
A74: 69 | B74: Francisco Javier Hernandez Cano | C74: HECF811117359 | D74: FLORES MAGON 38 B LAS COLONIAS | E74: CHAPALA | F74: 45930 | G74: 1.1 | H74: Cta. 01720129762312 IMTOS. (NO ETIQ) | I74: Transferencia | J74: INSERCION PUBLICITARIA MES DE ENERO 2026. | K74: 5,276.86 | L74: 2026-01-12 | M74: 1D64215D-13FE-40DD-A6CF-66860D8D8B0A
A75: 70 | B75: GOBPAY SA DE CV | C75: GOB2202015T5 | D75: N/P | E75: N/P | F75: 44500 | G75: 1.1 | H75: Cta.01720133352464 VOUCHER IMTOS. (NO ETQ.) | I75: Transferencia | J75: 5 HORAS DE SOPORTE CON MESA DE TRABAJO CON SISTEMA DE CATASTRO. | K75: 7,453.00 | L75: 2026-01-07 | M75: 50a0436e-bce5-4aa1-a6e3-8931a2000779
A76: 71 | B76: GRUPO DE PINTURAS EN ACCION | C76: GPA9704239M7 | D76: N/P | E76: N/P | F76: 45860 | G76: 1.1 | H76: Cta. 01720129762312 IMTOS. (NO ETIQ) | I76: Transferencia | J76: PINTURA Y ACCESORIOS PARA LA REAHABILITACION DE LA PLAZA BUENAVISTA Y DELEGACIONES DEL MPIO. | K76: 54,427.30 | L76: 2026-01-14 | M76: 9BEB1415-6747-4EE8-AE22-926148670A78
A77: 72 | B77: GRUPO DE PINTURAS EN ACCION | C77: GPA9704239M7 | D77: N/P | E77: N/P | F77: 45860 | G77: 1.1 | H77: Cta. 01720129762312 IMTOS. (NO ETIQ) | I77: Transferencia | J77: PINTURA Y ACCESORIOS PARA LA REHABILITACION DE LA PLAZA DE AGUILILLAS. | K77: 10,563.97 | L77: 2026-01-14 | M77: 0C751ED8-B6F2-4C7F-B75B-FBBA046355AA
A78: 73 | B78: HDI Seguros SA de CV | C78: HSE701218532 | D78: PASEO INSUGENTES | E78: LEON | F78: 44620 | G78: 2.5 | H78: Cta. 01720129762312 IMTOS. (NO ETIQ) | I78: Transferencia | J78: DEDUCIBLE UNIDAD DE SEGURIDAD PUBLICA. | K78: 15,230.00 | L78: 2026-01-21 | M78: 5923357c-ba33-4f3e-9af3-4ee6c709d8bd
A79: 74 | B79: IMAGENOLOGIA DIAGNOSTICA DE LA RIVERA CHAPALA | C79: IDR190611JJ1 | D79: N/P | E79: N/P | F79: 48312 | G79: 1.1 | H79: Cta. 01720129762312 IMTOS. (NO ETIQ) | I79: Transferencia | J79: SERVICIO DE RAYOS X PARA TRABAJADOR. | K79: 8,563.00 | L79: 2026-01-17 | M79: BFE335E1-66E5-40C5-A25A-AD007F0EB846
A80: 75 | B80: Imprenta Gorilitas S de RL de CV | C80: IGO210714RL4 | D80: N/P | E80: N/P | F80: 44410 | G80: 1.1 | H80: Cta. 01720129762312 IMTOS. (NO ETIQ) | I80: Transferencia | J80: IMPRESION DE LONAS,CORTE VINIL,10 MILLARES HOJAS MEMBRETADAS T/C,2 MILLARES VALES GASOLINA,3 MILLAR VOLANTES POR COM.SOCIAL. | K80: 59,919.80 | L80: 2026-01-21 | M80: B04FC962-A5EE-4254-A591-B92B40681D37
A81: 76 | B81: Imprenta Gorilitas S de RL de CV | C81: IGO210714RL4 | D81: N/P | E81: N/P | F81: 44410 | G81: 1.1 | H81: Cta. 01720191284201 FORTAMUN 2026 (Etiquetado) | I81: Transferencia | J81: IMPRESION DE CORTE VINIL ROTULACION ,INSTALACION DE VEHICULOS OFICIALES. | K81: 21,576.00 | L81: 2026-01-23 | M81: FA11542E-43F1-48F9-AADC-954F0C75EF41
A82: 77 | B82: INSTITUTO MUNICIPAL DE LAS MUJERES DE IXTLAHUACAN DE LOS MEMBRILLOS JALISCO | C82: IMM100125B81 | D82: FCO I MADERO CENTRO | E82: IXTLAHUACAN DE LOS MEMBRILLOS | F82: 45850 | G82: 1.5 | H82: Cta. 0720129762277 FGP (NO ETIQ) | I82: Transferencia | J82: SUBSIDIO INSTITUTO DE LA MUJER 1RA. QUINCENA 1RA. QUINCENA ENERO 2026. | K82: 75,000.00 | L82: 2026-01-12 | M82: DA1A46C5-9AD3-488C-95CE-3F83455A6D9C
A83: 78 | B83: INSTITUTO MUNICIPAL DE LAS MUJERES DE IXTLAHUACAN DE LOS MEMBRILLOS JALISCO | C83: IMM100125B81 | D83: FCO I MADERO CENTRO | E83: IXTLAHUACAN DE LOS MEMBRILLOS | F83: 45850 | G83: 1.5 | H83: Cta. 0720129762277 FGP (NO ETIQ) | I83: Transferencia | J83: SUBSIDIO INSTITUTO DE LA MUJER 2DA. QUINCENA ENERO 2026. | K83: 75,000.00 | L83: 2026-01-12 | M83: FA9DFFE2-B9D9-4E11-B6B7-F602E7F1475D
A84: 79 | B84: Isabella Navarro Barajas | C84: NABI861120685 | D84: N/P | E84: N/P | F84: 45675 | G84: 1.1 | H84: Cta. 01720129762312 IMTOS. (NO ETIQ) | I84: Transferencia | J84: MATERIAL DE LIMPIEZA PARA OFICINAS ADMINISTRATIVAS Y SERVICIOS PUBLICOS. | K84: 14,585.85 | L84: 2026-01-05 | M84: 985AACBD-5E80-4273-9E63-1550F6E0B574
A85: 80 | B85: JOSE LUIS MARTINEZ MARTINEZ | C85: MAML600430B22 | D85: N/P | E85: N/P | F85: 50904 | G85: 1.1 | H85: Cta. 01720129762312 IMTOS. (NO ETIQ) | I85: Cheque | J85: PIROMUSICAL PARA PRSENTACION EVENTO EN ATEQUIZA. | K85: 197,200.00 | L85: 2026-01-20 | M85: 935F6EF8-E992-4E4A-9CC1-B8646981F5F6
A86: 81 | B86: Juan Carlos Martinez Garcia | C86: MAGJ950509CG7 | D86: N/P | E86: N/P | F86: 45133 | G86: 1.1 | H86: Cta. 01720129762312 IMTOS. (NO ETIQ) | I86: Transferencia | J86: MATERIAL DE TONER PARA DIFERENTES OFICINAS. | K86: 66,343.30 | L86: 2026-01-15 | M86: B5B4C19D-D2DE-4529-8FFC-9C740E9A75F3
A87: 82 | B87: Juan Carlos Martinez Garcia | C87: MAGJ950509CG7 | D87: N/P | E87: N/P | F87: 45133 | G87: 1.1 | H87: Cta. 01720129762312 IMTOS. (NO ETIQ) | I87: Transferencia | J87: TONERS PARA IMPRESORAS DE TURISMO. | K87: 10,880.80 | L87: 2026-01-22 | M87: 580ACD70-D9DC-4CFD-ABF6-A60DECF0537A
A88: 83 | B88: Juan Carlos Martinez Garcia | C88: MAGJ950509CG7 | D88: N/P | E88: N/P | F88: 45133 | G88: 1.1 | H88: Cta. 01720129762312 IMTOS. (NO ETIQ) | I88: Transferencia | J88: TINTAS Y USB PARA COPIADORA DE REGISTRO CIVIL. | K88: 7,312.87 | L88: 2026-01-29 | M88: 689BE7E9-A6F0-482C-81B2-332224A3D620
A89: 84 | B89: LIMITED ELECTRONIC DEVICES | C89: CTP181214HU0 | D89: CALANDRIA 137 RESIDENCIAL SANTA BARBARA | E89: COLIMA | F89: 28017 | G89: 1.1 | H89: Cta. 01720129762312 IMTOS. (NO ETIQ) | I89: Transferencia | J89: LUMINARIAS Y REFLECTORES PARA RENOVACION DE ALUMBRADO PUBLICO DEL MPIO | K89: 380,984.42 | L89: 2025-02-07 | M89: 102F737E-9609-1846-85B4-965166E2AD1F
A90: 85 | B90: LUIS OCTAVIO TAVARES CONTRERAS | C90: TACL0112262ZA | D90: N/P | E90: XTLAHUACAN DE LOS MEMBRILLOS | F90: 45850 | G90: 1.5 | H90: Cta. 0720129762277 FGP (NO ETIQ) | I90: Cheque | J90: REPARACION Y MANTENIMIENTO CAMIONES Y MAQUINARIA DE OBRAS PUBLICAS. | K90: 84,900.40 | L90: 2026-01-07 | M90: 954B454E-2EBF-4581-B6EE-96D73E5CEF95
A91: 86 | B91: LUIS OCTAVIO TAVARES CONTRERAS | C91: TACL0112262ZA | D91: N/P | E91: XTLAHUACAN DE LOS MEMBRILLOS | F91: 45850 | G91: 1.5 | H91: Cta. 0720129762277 FGP (NO ETIQ) | I91: Cheque | J91: REPARACION Y MANTENIMIENTO CAMIONES DE ASEO PUBLICO. | K91: 118,917.40 | L91: 2026-01-07 | M91: 9D59B618-4EAE-4C22-8497-68A8E55968D5
A92: 87 | B92: LUIS OCTAVIO TAVARES CONTRERAS | C92: TACL0112262ZA | D92: N/P | E92: XTLAHUACAN DE LOS MEMBRILLOS | F92: 45850 | G92: 1.5 | H92: Cta. 0720129762277 FGP (NO ETIQ) | I92: Cheque | J92: REPARACION Y MANTENIMIENTO CAMIONES DE PARQUES Y JARDINES. | K92: 39,266.00 | L92: 2026-01-07 | M92: 789D03AD-2D40-46E9-85E2-FE32C42D5007
A93: 88 | B93: LUIS OCTAVIO TAVARES CONTRERAS | C93: TACL0112262ZA | D93: N/P | E93: XTLAHUACAN DE LOS MEMBRILLOS | F93: 45850 | G93: 1.5 | H93: Cta. 0720129762277 FGP (NO ETIQ) | I93: Cheque | J93: REPARACION Y MANTENIMIENTO VEHICULOS DE CATASTRO. | K93: 24,800.80 | L93: 2026-01-07 | M93: 90AA46A4-A0C5-4EA9-BDBB-A483379776BA
A94: 89 | B94: LUIS OCTAVIO TAVARES CONTRERAS | C94: TACL0112262ZA | D94: N/P | E94: XTLAHUACAN DE LOS MEMBRILLOS | F94: 45850 | G94: 1.5 | H94: Cta. 0720129762277 FGP (NO ETIQ) | I94: Cheque | J94: REPARACION Y MANTENIMIENTO UNIDADES DE PROTECCION CIVIL. | K94: 22,875.20 | L94: 2026-01-09 | M94: 2AA43B0B-4EB8-4887-BF3F-67B7AB8EB0EE
A95: 90 | B95: LUIS OCTAVIO TAVARES CONTRERAS | C95: TACL0112262ZA | D95: N/P | E95: XTLAHUACAN DE LOS MEMBRILLOS | F95: 45850 | G95: 1.5 | H95: Cta. 0720129762277 FGP (NO ETIQ) | I95: Cheque | J95: REPARACION Y MANTENIMIENTO CAMIONES Y MAQUINARIA DE OBRAS PUBLICAS. | K95: 50,692.00 | L95: 2026-01-15 | M95: D6AE8BB4-BBE8-466F-B735-0E405B0D4693
A96: 91 | B96: LUIS OCTAVIO TAVARES CONTRERAS | C96: TACL0112262ZA | D96: N/P | E96: XTLAHUACAN DE LOS MEMBRILLOS | F96: 45850 | G96: 1.5 | H96: Cta. 0720129762277 FGP (NO ETIQ) | I96: Cheque | J96: REPARACION Y MANTENIMIENTO CAMIONES Y MAQUINARIA DE OBRAS PUBLICAS. | K96: 57,031.40 | L96: 2026-01-14 | M96: 735DE66E-F826-40A9-BE10-2495F1EF66E7
A97: 92 | B97: LUIS OCTAVIO TAVARES CONTRERAS | C97: TACL0112262ZA | D97: N/P | E97: XTLAHUACAN DE LOS MEMBRILLOS | F97: 45850 | G97: 1.5 | H97: Cta. 0720129762277 FGP (NO ETIQ) | I97: Cheque | J97: REPARACION Y MANTENIMIENTO CAMIONES DE ASEO PUBLICO. | K97: 144,559.20 | L97: 2026-01-14 | M97: 0C938F9A-B417-4D65-AC3C-28EC40909CC2
A98: 93 | B98: LUIS OCTAVIO TAVARES CONTRERAS | C98: TACL0112262ZA | D98: N/P | E98: XTLAHUACAN DE LOS MEMBRILLOS | F98: 45850 | G98: 1.5 | H98: Cta. 0720129762277 FGP (NO ETIQ) | I98: Cheque | J98: REPARACION Y MANTENIMIENTO CAMIONES DE PROTECCION CIVIL. | K98: 13,264.60 | L98: 2026-01-14 | M98: 0E2D6437-0621-4838-BC09-21B17844B89F
A99: 94 | B99: LUIS OCTAVIO TAVARES CONTRERAS | C99: TACL0112262ZA | D99: N/P | E99: XTLAHUACAN DE LOS MEMBRILLOS | F99: 45850 | G99: 1.5 | H99: Cta. 0720129762277 FGP (NO ETIQ) | I99: Cheque | J99: REPARACION Y MANTENIMIENTO VEHICULO DELEGACION ATEQUIZA. | K99: 46,864.00 | L99: 2026-01-22 | M99: E0A66E03-C1B9-4088-969D-75105381DF8A
A100: 95 | B100: LUIS OCTAVIO TAVARES CONTRERAS | C100: TACL0112262ZA | D100: N/P | E100: XTLAHUACAN DE LOS MEMBRILLOS | F100: 45850 | G100: 1.5 | H100: Cta. 0720129762277 FGP (NO ETIQ) | I100: Cheque | J100: REPARACION Y MANTENIMIENTO CAMIONES Y MAQUINARIA DE OBRAS PUBLICAS. | K100: 68,683.60 | L100: 2026-01-21 | M100: 2DF08232-A65F-42AA-9B6B-016A92AB390B
A101: 96 | B101: LUIS OCTAVIO TAVARES CONTRERAS | C101: TACL0112262ZA | D101: N/P | E101: XTLAHUACAN DE LOS MEMBRILLOS | F101: 45850 | G101: 1.5 | H101: Cta. 0720129762277 FGP (NO ETIQ) | I101: Cheque | J101: REPARACION Y MANTENIMIENTO CAMIONES Y MAQUINARIA DE OBRAS PUBLICAS. | K101: 91,228.20 | L101: 2026-01-21 | M101: 848BB3E8-5066-41CA-A222-8462958F285C
A102: 97 | B102: LUIS OCTAVIO TAVARES CONTRERAS | C102: TACL0112262ZA | D102: N/P | E102: XTLAHUACAN DE LOS MEMBRILLOS | F102: 45850 | G102: 1.5 | H102: Cta. 0720129762277 FGP (NO ETIQ) | I102: Cheque | J102: REPARACION Y MANTENIMIENTO CAMIONES DE ASEO PUBLICO. | K102: 30,044.00 | L102: 2026-01-21 | M102: F101AFE7-218F-4123-A913-2D6A9C7CD9C6
A103: 98 | B103: LUIS OCTAVIO TAVARES CONTRERAS | C103: TACL0112262ZA | D103: N/P | E103: XTLAHUACAN DE LOS MEMBRILLOS | F103: 45850 | G103: 1.5 | H103: Cta. 0720129762277 FGP (NO ETIQ) | I103: Cheque | J103: REPARACION Y MANTENIMIENTO CAMIONES DE PROTECCION CIVIL. | K103: 13,769.20 | L103: 2026-01-21 | M103: 4622EA4D-7FAA-4CEF-B3B8-058F6AEE4139
A104: 99 | B104: LUIS OCTAVIO TAVARES CONTRERAS | C104: TACL0112262ZA | D104: N/P | E104: XTLAHUACAN DE LOS MEMBRILLOS | F104: 45850 | G104: 1.5 | H104: Cta. 0720129762277 FGP (NO ETIQ) | I104: Cheque | J104: REPARACION Y MANTENIMIENTO CAMIONES DE OBRAS PUBLICAS. | K104: 40,600.00 | L104: 2026-01-21 | M104: 3B4E30AB-93A1-40B2-B770-3C83CCB88618
A105: 100 | B105: LUIS OCTAVIO TAVARES CONTRERAS | C105: TACL0112262ZA | D105: N/P | E105: XTLAHUACAN DE LOS MEMBRILLOS | F105: 45850 | G105: 1.5 | H105: Cta. 0720129762277 FGP (NO ETIQ) | I105: Cheque | J105: MANTENIMIENTO Y REPARACION TRANSMISION Y CAMBIO DE CLUTCH FORD FIESTA GRIS DE CATASTRO. | K105: 37,676.80 | L105: 2026-01-21 | M105: 59AA656C-0764-4B24-8E8F-1919C6CC88CD
A106: 101 | B106: LUIS OCTAVIO TAVARES CONTRERAS | C106: TACL0112262ZA | D106: N/P | E106: XTLAHUACAN DE LOS MEMBRILLOS | F106: 45850 | G106: 1.5 | H106: Cta. 0720129762277 FGP (NO ETIQ) | I106: Cheque | J106: MANTENIMIENTO Y REPARACION VEHICULO PARQUE VEHICULAR. | K106: 23,537.23 | L106: 2026-01-21 | M106: E1351490-BCF5-4A93-9A12-89EEB59B4F71
A107: 102 | B107: LUIS OCTAVIO TAVARES CONTRERAS | C107: TACL0112262ZA | D107: N/P | E107: XTLAHUACAN DE LOS MEMBRILLOS | F107: 45850 | G107: 1.5 | H107: Cta. 0720129762277 FGP (NO ETIQ) | I107: Cheque | J107: REPARACION T MANTENIMIENTO UNIDADES DE PROTECCION CIVIL. | K107: 15,822.40 | L107: 2026-01-28 | M107: B7BF3646-7A6A-4AC7-813C-CC110709E0C4
A108: 103 | B108: LUIS OCTAVIO TAVARES CONTRERAS | C108: TACL0112262ZA | D108: N/P | E108: XTLAHUACAN DE LOS MEMBRILLOS | F108: 45850 | G108: 1.5 | H108: Cta. 0720129762277 FGP (NO ETIQ) | I108: Cheque | J108: REPARACION T MANTENIMIENTO UNIDADES DE OBRAS PUBLICAS | K108: 17,179.60 | L108: 2026-01-28 | M108: F3BC1025-C3E4-46D9-A334-30C1357784A9
A109: 104 | B109: LUIS OCTAVIO TAVARES CONTRERAS | C109: TACL0112262ZA | D109: N/P | E109: XTLAHUACAN DE LOS MEMBRILLOS | F109: 45850 | G109: 1.5 | H109: Cta. 0720129762277 FGP (NO ETIQ) | I109: Cheque | J109: REPARACION T MANTENIMIENTO UNIDADES DE ASEO PUBLICO. | K109: 123,064.40 | L109: 2026-01-28 | M109: 9BF096D4-3AEF-4798-9F16-A3B8BC932B69
A110: 105 | B110: MA CRUZ RODRIGUEZ FLORES | C110: ROFC6605037D4 | D110: N/P | E110: XTLAHUACAN DE LOS MEMBRILLOS | F110: 45850 | G110: 1.1 | H110: Cta. 01720129762312 IMTOS. (NO ETIQ) | I110: Transferencia | J110: REFACCIONES PARA VEHICULOS POR PARQUE VEHICULAR. | K110: 27,689.14 | L110: 2026-01-04 | M110: 92BC057B-4C49-4F34-972A-B9BFA31455D8
A111: 106 | B111: MA CRUZ RODRIGUEZ FLORES | C111: ROFC6605037D4 | D111: N/P | E111: XTLAHUACAN DE LOS MEMBRILLOS | F111: 45850 | G111: 1.1 | H111: Cta. 01720129762312 IMTOS. (NO ETIQ) | I111: Transferencia | J111: REFACCIONES PARA VEHICULOS POR PARQUE VEHICULAR. | K111: 138,893.39 | L111: 2026-01-04 | M111: 9D802FFB-DFA7-415F-A8A9-5420B165D845
A112: 107 | B112: MA CRUZ RODRIGUEZ FLORES | C112: ROFC6605037D4 | D112: N/P | E112: XTLAHUACAN DE LOS MEMBRILLOS | F112: 45850 | G112: 1.1 | H112: Cta. 01720129762312 IMTOS. (NO ETIQ) | I112: Transferencia | J112: TAMBO DE ACEITE PARA VEHICULOS PARQUE VEHICULAR. | K112: 22,950.00 | L112: 2026-01-25 | M112: 16E47A22-B8AF-468C-8EDE-048DDB402C1F
A113: 108 | B113: Ma De la Luz Flores Castellanos | C113: FOCL630910UV2 | D113: N/P | E113: XTLAHUACAN DE LOS MEMBRILLOS | F113: 45850 | G113: 1.1 | H113: Cta. 01720129762312 IMTOS. (NO ETIQ) | I113: Transferencia | J113: ARTICULOS DE ABARROTES PARA OFICINAS ADMINISTRATIVAS. | K113: 19,599.76 | L113: 2026-01-27 | M113: 986D6DB5-D423-446F-9332-F9B91EDFCF5D
A114: 109 | B114: Maria Guadalupe Hernandez Garcia | C114: HEGG730212212 | D114: N/P | E114: XTLAHUACAN DE LOS MEMBRILLOS | F114: 45900 | G114: 1.1 | H114: Cta. 01720129762312 IMTOS. (NO ETIQ) | I114: Transferencia | J114: EXMENES DE LABORATORIO PARA TRABAJADORES DEL 30 DICIEMBRE AL 15 ENERO 2026. | K114: 14,656.60 | L114: 2026-01-16 | M114: 5D44EC71-97AA-4E94-9EF1-D486B249D303
A115: 110 | B115: Maria Guadalupe Vazquez Pulido | C115: VAPG641029GVA | D115: N/P | E115: N/P | F115: 44100 | G115: 1.1 | H115: Cta. 01720129762312 IMTOS. (NO ETIQ) | I115: Cheque | J115: DANZA FOLCKLORICA DE LA 3RA. EDAD EN CASA DE CULTURA, CORRESPONDIENTE ALOS MESES DE ENERO-JUNIO 2025. | K115: 7,200.00 | L115: 2026-01-12 | M115: 8F404888-A5D2-434B-B977-4CED895DB875
A116: 111 | B116: Maria Guadalupe Vazquez Pulido | C116: VAPG641029GVA | D116: N/P | E116: N/P | F116: 44100 | G116: 1.1 | H116: Cta. 01720129762312 IMTOS. (NO ETIQ) | I116: Cheque | J116: DANZA FOLCKLORICA DE LA 3RA. EDAD EN CASA DE CULTURA, CORRESPONDIENTE ALOS MESES DE JULIO A DICIEMBRE 2025. | K116: 7,200.00 | L116: 2026-01-13 | M116: C7DA2C4D-AE2B-478D-8EFF-68BC2E71CB7F
A117: 112 | B117: MIGUEL ANGEL VALDEZ CASILLAS | C117: VACM630608NU1 | D117: N/P | E117: N/P | F117: 45950 | G117: 1.1 | H117: Cta. 01720129762312 IMTOS. (NO ETIQ) | I117: Transferencia | J117: ATENCION Y SEGUIMIENTO MEDICO, DAVID CORTEZ GONZALEZ. | K117: 20,000.00 | L117: 2026-01-17 | M117: 0CB7E302-EEA1-4478-A9B7-910EDE190A3C
A118: 113 | B118: MONUMA JURIDICOS | C118: MJU190624S29 | D118: MANUEL ACUÑA 295210 PRADOS PROVIDENCIA | E118: GUADALAJARA | F118: 44670 | G118: 1.1 | H118: Cta. 01720129762312 IMTOS. (NO ETIQ) | I118: Transferencia | J118: ASESORAMIENTO Y CAPACITACION EN ADMINISTRACIONES PUBLICAS,MES ENERO 2026. | K118: 53,360.00 | L118: 2026-01-06 | M118: 33D03FEB-8AE8-4703-80BE-4059A54E9290
A119: 114 | B119: Norma Yadira Cervantes Gaytan | C119: CEGN8808056F8 | D119: N/P | E119: IXTLAHUACAN DE LOS MEMBRILLOS | F119: 45850 | G119: 1.1 | H119: Cta. 01720129762312 IMTOS. (NO ETIQ) | I119: Cheque | J119: CORONAS PARA SERVICIOS FUNERARIOS COMO APOYO A DIFERENTES LOCALIDADES. | K119: 6,500.00 | L119: 2026-01-06 | M119: 9E482450-497F-434A-A022-43EA548F63D7
A120: 115 | B120: Nueva Walmart de Mexico SA de CV | C120: NWM9709244W4 | D120: N/P | E120: N/P | F120: 45915 | G120: 1.1 | H120: Cta. 01720129762312 IMTOS. (NO ETIQ) | I120: Transferencia | J120: ACCESORIOS PARA OFICINA. | K120: 5,358.98 | L120: 2026-01-21 | M120: DD011C0C-018D-405C-B3A5-71870A14EC6E
A121: 116 | B121: Pablo Daniel Ramirez Hernandez | C121: RAHP6807206X1 | D121: PRIVADA ZARAGOZA 8 CENTRO | E121: IXTLAHUACAN DE LOS MEMBRILLOS | F121: 45850 | G121: 1.1 | H121: Cta. 01720129762312 IMTOS. (NO ETIQ) | I121: Transferencia | J121: RENTA DE MUEBLE PARA REUNION DE TRABAJO EN CEDROS. | K121: 6,032.00 | L121: 2026-01-20 | M121: AEE24F8D-6D69-43D8-9037-AC02E1EA9E67
A122: 117 | B122: Praxair Mexico de Rl de cv | C122: PME960701GG0 | D122: N/P | E122: N/P | F122: 44910 | G122: 1.1 | H122: INGRESOS CLINICA NO | I122: Transferencia | J122: OXIGENO MEDICAL PARA CLINICA DE SMM. | K122: 5,300.55 | L122: 2026-01-23 | M122: 86b75727-64c1-44d0-9355-9e9de7871c9d
A123: 118 | B123: Praxair Mexico de Rl de cv | C123: PME960701GG0 | D123: N/P | E123: N/P | F123: 44910 | G123: 1.1 | H123: INGRESOS CLINICA NO | I123: Transferencia | J123: OXIGENO MEDICAL PARA CLINICA DE SMM. | K123: 5,248.42 | L123: 2026-01-03 | M123: 8ce98b5c-f219-40df-9744-2cdeb62bb4b4
A124: 119 | B124: Proveedora de Rines y Llantas Monterry sa de cv | C124: PRL1103158E7 | D124: N/P | E124: N/P | F124: 64820 | G124: 2.5 | H124: Cta. 01720129762312 IMTOS. (NO ETIQ) | I124: Transferencia | J124: LLANTAS PARA UNIDADES DE SEGURIDAD PUBLICA | K124: 130,680.00 | L124: 2026-01-27
A125: 120 | B125: Proveedora de Rines y Llantas Monterry sa de cv | C125: PRL1103158E7 | D125: N/P | E125: N/P | F125: 64820 | G125: 1.1 | H125: Cta. 01720129762312 IMTOS. (NO ETIQ) | I125: Transferencia | J125: LLANTAS PATA CAMIONES DE ASEO PUBLICO | K125: 46,080.00 | L125: 2026-01-28 | M125: D824C94B-1706-45D9-AFAF-8CAA66FB7E17
A126: 121 | B126: Qualitas Compañia de Seguros, s.a. de c.v. | C126: QCS931209G49 | D126: N/P | E126: N/P | F126: 5200 | G126: 2.5 | H126: Cta. 01720129762312 IMTOS. (NO ETIQ) | I126: Transferencia | J126: SEGURO FLOTILLA DE PATRULLAS EN COMODATO. | K126: 72,462.77 | L126: 2025-09-19 | M126: AFC9CD23-0D16-4069-A349-0C63D875FA48
A127: 122 | B127: Qualitas Compañia de Seguros, s.a. de c.v. | C127: QCS931209G49 | D127: N/P | E127: N/P | F127: 5200 | G127: 2.5 | H127: Cta. 01720129762312 IMTOS. (NO ETIQ) | I127: Transferencia | J127: DEDUCIBLE UNIDAD IM-05 SEGURIDAD PUBLICA. | K127: 17,405.00 | L127: 2026-01-26 | M127: FD3A3954-548D-4F25-BCE8-EBD903AA9F62
A128: 123 | B128: Ramon Ramirez Hernandez | C128: RAHR630324M21 | D128: ZARAGOZA CENTRO | E128: IXTLAHUACAN DE LOS MEMBRILLOS | F128: 45850 | G128: 1.1 | H128: Cta. 01720129762312 IMTOS. (NO ETIQ) | I128: Transferencia | J128: MATERIAL DE ABARROTES PARA DIFERENTES OFICINAS ADMVAS. | K128: 6,685.52 | L128: 2026-01-24 | M128: 7EF5FB83-D346-4E40-B105-EC97F74207BA
A129: 124 | B129: RUFINO SANCHEZ ALMANZA | C129: SAAR700220RX9 | D129: N/P | E129: XTLAHUACAN DE LOS MEMBRILLOS | F129: 45850 | G129: 1.1 | H129: Cta. 01720129762312 IMTOS. (NO ETIQ) | I129: Cheque | J129: RENTA DE MUEBLE PARA EVENTO EN LA EX HACIENDA DE CEDROS. | K129: 7,795.20 | L129: 2026-01-13 | M129: 87F16B51-5025-4D3F-9269-4D3F09FB2180
A130: 125 | B130: RUFINO SANCHEZ ALMANZA | C130: SAAR700220RX9 | D130: N/P | E130: XTLAHUACAN DE LOS MEMBRILLOS | F130: 45850 | G130: 1.1 | H130: Cta. 01720129762312 IMTOS. (NO ETIQ) | I130: Cheque | J130: RENTA DE MUEBLE PARA EVENTO FERIA DEL MEMBRILLO PLAZA PRINCIPAL. | K130: 20,810.40 | L130: 2026-01-13 | M130: 4A877E9A-6C13-4F93-9FED-2B7E6A23CDED
A131: 126 | B131: SAFECO CONSTRUCCIONES | C131: SCO141105IB3 | D131: N/P | E131: N/P | F131: 44800 | G131: 1.1 | H131: Cta. 01720129762312 IMTOS. (NO ETIQ) | I131: Transferencia | J131: RENTA INMUEBLE PARA OFICINAS ADMINISTRATIVAS DEL AYUNTAMIENTO MES DE ENERO 2026. | K131: 120,000.00 | L131: 2026-01-28 | M131: 2D41D78B-7156-43A2-B582-41A8DAA5F22E
A132: 127 | B132: Sanatorio y Maternidad Colonias S.A de C.V. | C132: SMC040318EX9 | D132: N/P | E132: N/P | F132: 44600 | G132: 1.1 | H132: Cta. 01720129762312 IMTOS. (NO ETIQ) | I132: Transferencia | J132: GASTOS MEDICOS DE MATERNIDAD,ESPOSA DE TRABAJADOR. | K132: 15,500.00 | L132: 2026-01-13 | M132: 0ed5034b-f19a-453c-b83e-cd6408877d68
A133: 128 | B133: SECRETARIA DE LA HACIENDA PUBLICA | C133: SPC130227L99 | D133: N/P | E133: GUADALAJARA | F133: 44100 | G133: 2.5 | H133: Cta 01720178360244 FAIS 2025 | I133: Transferencia | J133: REINTEGRO FAISMUN 2025 | K133: 11,268.87 | L133: 2026-01-30 | M133: 2b881661-72cb-463b-a811-648719d7a530
A134: 129 | B134: SECRETARIA DE LA HACIENDA PUBLICA | C134: SPC130227L99 | D134: N/P | E134: GUADALAJARA | F134: 44100 | G134: 1.1 | H134: Cta. 01720129762312 IMTOS. (NO ETIQ) | I134: Transferencia | J134: FORMAS VALORADAS DE ORDEN DE SACRIFICIO DE GANADO PARA RASTRO MUNICIPAL. | K134: 9,600.00 | L134: 2026-01-19 | M134: 41d69179-fa62-4a99-bd90-8bbd2ea56726
A135: 130 | B135: SECRETARIA DE LA HACIENDA PUBLICA | C135: SPC130227L99 | D135: N/P | E135: GUADALAJARA | F135: 44100 | G135: 1.6 | H135: Cta. 0720129762277 FGP (NO ETIQ) | I135: Transferencia | J135: RETENCION POR APORTACION A FIDEICOMISO TURISMO MPIOS ZONA FORANEA DEL MES DE ENERO 2026 | K135: 23,753.97 | L135: 2026-01-30
A136: 131 | B136: SECRETARIA DE LA HACIENDA PUBLICA | C136: SPC130227L99 | D136: N/P | E136: GUADALAJARA | F136: 44100 | G136: 1.5 | H136: Cta. 0720129762277 FGP (NO ETIQ) | I136: Transferencia | J136: DESCUENTO DE POTENCIOACION AL FEIEF AL FGP DEL MES DE ENERO 2026 | K136: 77,251.61 | L136: 2026-01-30
A137: 132 | B137: Sistema DIF del Municipio de Ixtlahuacán de los Membrillos | C137: SDI870314982 | D137: N/P | E137: Ixtlahuacan de los Membrillos | F137: 45850 | G137: 1.5 | H137: Cta. 0720129762277 FGP (NO ETIQ) | I137: Transferencia | J137: SUBSIDIO SISTEMA DIF IXTLAHUACA, 1RA. QUINCENA ENERO 2026. | K137: 466,817.60 | L137: 2026-01-14 | M137: AE180CF8-75FA-4405-897A-312C9028BDD3
A138: 133 | B138: Sistema DIF del Municipio de Ixtlahuacán de los Membrillos | C138: SDI870314982 | D138: N/P | E138: Ixtlahuacan de los Membrillos | F138: 45850 | G138: 1.5 | H138: Cta. 0720129762277 FGP (NO ETIQ) | I138: Transferencia | J138: SUBSIDIO DIF MUNICIPAL, 2DA. QUINCENA ENERO 2026. | K138: 466,817.60 | L138: 2026-01-15 | M138: E2DE97E9-36F6-4F4E-948A-8AB4862630FF
A139: 134 | B139: Tuberias y Conexiones del Lago SA de CV | C139: TCL110112NR9 | D139: N/P | E139: CHAPALA | F139: 45900 | G139: 1.1 | H139: Cta. 01720129762312 IMTOS. (NO ETIQ) | I139: Transferencia | J139: MOTOBOMBA 2HP PARA EX HACIENDA DE CEDROS. | K139: 5,590.00 | L139: 2026-01-21 | M139: 4DFAC0D0-1F67-43E4-B4C1-EC00706CA59F
A140: 135 | B140: TV Rey de Occidente SA de CV | C140: TRO950518DM2 | D140: N/P | E140: N/P | F140: 59000 | G140: 1.1 | H140: Cta. 01720129762312 IMTOS. (NO ETIQ) | I140: Transferencia | J140: SERVICIO DE INTERNET TRONCALES DE CONMUTADOR MES DE ENERO 2026. | K140: 62,780.79 | L140: 2026-01-21 | M140: 3C97E97C-B194-41B6-9106-0F41CD2686BB
A141: 136 | B141: UN PROYECTO DE VIDA Y LIBERTAD | C141: UPV160913RU5 | D141: N/P | E141: N/P | F141: 44470 | G141: 1.1 | H141: Cta. 01720129762312 IMTOS. (NO ETIQ) | I141: Transferencia | J141: ESTANCIA DE MENORES DEL 17 DICIEMBRE 26 ENERO 2026. | K141: 8,200.00 | L141: 2026-01-18 | M141: CBC8F532-60BC-447A-8541-81F8ED0D8816
A142: 137 | B142: UNIDAD DE CIRUGIA ESTETICA PROVIDENCIA | C142: UCE1212177Y5 | D142: N/P | E142: N/P | F142: 44680 | G142: 1.1 | H142: INGRESOS CLINICA NO | I142: Transferencia | J142: GASTOS DE HOSPITALIZACION DE MARIA DE JESUS CORTES ESPOSA TRABAJADOR. | K142: 40,000.00 | L142: 2026-01-13 | M142: db9e6e83-0bdc-4287-a9c1-0bb7a6e06227
A143: 138 | B143: UNIDAD DE CIRUGIA ESTETICA PROVIDENCIA | C143: UCE1212177Y5 | D143: N/P | E143: N/P | F143: 44680 | G143: 1.1 | H143: Cta. 01720129762312 IMTOS. (NO ETIQ) | I143: Cheque | J143: HOSPITALIZACION DAVID GARCIA VAZQUEZ. | K143: 40,000.00 | L143: 2026-01-27 | M143: 36bd8fcd-0659-4217-bea7-ff8acffd2351
A144: 139 | B144: Urbanizadora y Pavimentadora MONLE SA | C144: UPM1608305A4 | D144: N/P | E144: N/P | F144: 44270 | G144: 1.1 | H144: Cta. 01720129762312 IMTOS. (NO ETIQ) | I144: Transferencia | J144: CONSTRUCCION DE 4 GAVETAS COMUNITARIAS VERTICALES CON 36 ESPACIOS EN EL PANTEON DE CABECERA MPAL | K144: 334,840.00 | L144: 2026-01-09 | M144: B1DE773F-5C50-4AB7-885D-BC50377471B0
A145: 140 | B145: Urbanizadora y Pavimentadora MONLE SA | C145: UPM1608305A4 | D145: N/P | E145: N/P | F145: 44270 | G145: 1.1 | H145: Cta. 01720129762312 IMTOS. (NO ETIQ) | I145: Transferencia | J145: MATERIAL DE TEZONTLE Y DESPOLVE PARA REHABILITACION DE CAMINOS EN EL MUNICIPIO. | K145: 582,771.82 | L145: 2026-01-20 | M145: E17BDF86-E448-4636-A67E-53DB6B3996F9
A146: 141 | B146: Urbanizadora y Pavimentadora MONLE SA | C146: UPM1608305A4 | D146: N/P | E146: N/P | F146: 44270 | G146: 1.1 | H146: Cta. 01720129762312 IMTOS. (NO ETIQ) | I146: Transferencia | J146: RENTA DE GRUA ELECTRICA TIPO JENNY CON ALCANCE DE 13M DE ALTURA POR UN MES. | K146: 40,600.00 | L146: 2026-01-29 | M146: B5C9B703-A485-4DFC-BFD4-9A97A2C881C2
A151: Bajo protesta de decir verdad declaramos que los Estados Financieros y sus Notas son razonablemente correctos y responsabilidad del emisor.
C157: LIC. JOSE HERIBERTO GARCIA MURILLO PRESIDENTE MUNICIPAL | F157: LAE BRUNO GERMAN ENCISO GUILLEN ENCARGADO DE LA HACIENDA MUNICIPAL | J157: ASEJ2026-01-31-03-2026-1

Sheet F11
A1: MUNICIPIO IXTLAHUACÁN DE LOS MEMBRILLOS
A2: INFORME SOBRE PASIVOS CONTINGENTES
A3: AL 31 DE ENERO DE 2026
A4: (Cifras en pesos)
A5: DESCRIPCIÓN | AE5: IMPORTE
A6: ROSA NAVARRO SIORDIA (LAUDO) | AE6: 657,806.25
A8: MA. DEL REFUGIO RAMIREZ RIVERA (MAGDALENO PELESTOR) (APORT. PENSIONES ESTADO, GASTOS FUNERARIOS) | AE8: 10,148.40
A10: MAGALY LILIANA GOMEZ PEREZ (LAUDO) (1 AÑO DE SUELDO E INTERESES AL 2% MENSUAL HASTA QUE SE LIQUIDE) | AE10: 0.00
A12: IGNACIO CEJA (SE ENCUENTRA PENDIENTE DE LAUDO NO OFRECIERON PRUEBAS) | AE12: 0.00
A14: OLGA KARINA ENCISO SIORDIA (AUN NO SE PRESENTA AUDENCIA DE DESAHOGO) | AE14: 0.00
A16: MIGUEL ANGEL PADILLA RODRIGUEZ (SENTENCIA 29 AGOSTO 2016) | AE16: 0.00
A18: JESUS ORTES SANTILLAS (SE ACABA DE DICTAR SENTENCIA EL 26 NOV. 2019, AUN NO SE NOTIFICA) | AE18: 0.00
A20: JUAN PABLO REAL MARTINEZ (SENTENCIA 30 MARZO 2017) | AE20: 0.00
A22: OLGA KARINA ENCISO SIORDIA (AUN NO SE PRESENTA AUDENCIA DE DESAHOGO) | AE22: 0.00
A24: SUMA TOTAL | AE24: =SUM(AE6:AE23) -> 667,954.65
A28: Bajo protesta de decir verdad declaramos que los Estados Financieros y sus Notas son razonablemente correctos y responsabilidad del emisor.
A36: LIC. JOSE HERIBERTO GARCIA MURILLO PRESIDENTE MUNICIPAL
A44: LAE BRUNO GERMAN ENCISO GUILLEN ENCARGADO DE LA HACIENDA MUNICIPAL
A48: ASEJ2026-01-31-03-2026-1
A207: Bajo protesta de decir verdad declaramos que los Estados Financieros y sus notas, son razonablemente correctos y resposabilidad del emisor
B210: =Validacion!A7 -> LIC. JOSE HERIBERTO GARCIA MURILLO | W210: =Validacion!A9 -> LAE BRUNO GERMAN ENCISO GUILLEN
B212: Presidente Municipal o Titular del ente público | W212: Encargado de la Hacienda Municipal o Responsable de las finanzas del ente público

Sheet F13 (hidden)
A1: ='F9-EDP'!A1:BJ1 -> MUNICIPIO IXTLAHUACÁN DE LOS MEMBRILLOS
A2: AVANCE DE PROGRAMAS Y/O PROCESOS CONCLUIDOS
A3: ='F9-EDP'!A3:BJ3 -> DEL 1° DE ENERO AL 31 DE ENERO DE 2026
A4: (Cifras en pesos)
A5: ID | B5: Denominación del programa | C5: Tipo de programa | D5: Finalidad | E5: Función | F5: Sub-función | G5: Nivel MIR | H5: Código del nivel MIR | I5: Resumen Narrativo (objetivos) | J5: Nombre del indicador | K5: Método de cálculo del indicador | L5: Valor meta programado 1 (Numerador) | M5: Valor meta programado 2 (Denominador) | N5: Frecuencia de medición del indicador | O5: Tipo de indicador | P5: Capítulo 1000 (Modificado) | Q5: Capítulo 2000 (Modificado) | R5: Capítulo 3000 (Modificado) | S5: Capítulo 4000 (Modificado) | T5: Capítulo 5000 (Modificado) | U5: Capítulo 6000 (Modificado) | V5: Capítulo 7000 (Modificado) | W5: Capítulo 8000 (Modificado) | X5: Capítulo 9000 (Modificado) | Y5: Avance del Valor programado 1 (Numerador) | Z5: Avance del Valor programado 2 (Denominador) | AA5: Avance del Capítulo 1000 (Devengado) | AB5: Avance del Capítulo 2000 (Devengado) | AC5: Avance del Capítulo 3000 (Devengado) | AD5: Avance del Capítulo 4000 (Devengado) | AE5: Avance del Capítulo 5000 (Devengado) | AF5: Avance del Capítulo 6000 (Devengado) | AG5: Avance del Capítulo 7000 (Devengado) | AH5: Avance del Capítulo 8000 (Devengado) | AI5: Avance del Capítulo 9000 (Devengado)
P6: =SUM(P7:P1006) -> 0.00 | Q6: 0.00 | R6: 0.00 | S6: 0.00 | T6: 0.00 | U6: 0.00 | V6: 0.00 | W6: 0.00 | X6: 0.00 | AA6: =SUM(AA7:AA1006) -> 0.00 | AB6: 0.00 | AC6: 0.00 | AD6: 0.00 | AE6: 0.00 | AF6: 0.00 | AG6: 0.00 | AH6: 0.00 | AI6: 0.00
A7: =IF(B7>0,1,"") ->  | D7: =IF(F7="","",INDEX(EF!$A$2:$A$112,MATCH(F7,EF!$C$2:$C$112,0))) ->  | E7: =IF(F7="","",INDEX(EF!$B$2:$B$112,MATCH(F7,EF!$C$2:$C$112,0))) -> 
A8: =IF(B8>0,A7+1,"") ->  | D8: =IF(F8="","",INDEX(EF!$A$2:$A$112,MATCH(F8,EF!$C$2:$C$112,0))) ->  | E8: =IF(F8="","",INDEX(EF!$B$2:$B$112,MATCH(F8,EF!$C$2:$C$112,0))) -> 
A9: =IF(B9>0,A8+1,"") ->  | D9: =IF(F9="","",INDEX(EF!$A$2:$A$112,MATCH(F9,EF!$C$2:$C$112,0))) ->  | E9: =IF(F9="","",INDEX(EF!$B$2:$B$112,MATCH(F9,EF!$C$2:$C$112,0))) -> 
D10: =IF(F10="","",INDEX(EF!$A$2:$A$112,MATCH(F10,EF!$C$2:$C$112,0))) ->  | E10: =IF(F10="","",INDEX(EF!$B$2:$B$112,MATCH(F10,EF!$C$2:$C$112,0))) -> 
D11: =IF(F11="","",INDEX(EF!$A$2:$A$112,MATCH(F11,EF!$C$2:$C$112,0))) ->  | E11: =IF(F11="","",INDEX(EF!$B$2:$B$112,MATCH(F11,EF!$C$2:$C$112,0))) -> 
D12: =IF(F12="","",INDEX(EF!$A$2:$A$112,MATCH(F12,EF!$C$2:$C$112,0))) ->  | E12: =IF(F12="","",INDEX(EF!$B$2:$B$112,MATCH(F12,EF!$C$2:$C$112,0))) -> 
D13: =IF(F13="","",INDEX(EF!$A$2:$A$112,MATCH(F13,EF!$C$2:$C$112,0))) ->  | E13: =IF(F13="","",INDEX(EF!$B$2:$B$112,MATCH(F13,EF!$C$2:$C$112,0))) -> 
D14: =IF(F14="","",INDEX(EF!$A$2:$A$112,MATCH(F14,EF!$C$2:$C$112,0))) ->  | E14: =IF(F14="","",INDEX(EF!$B$2:$B$112,MATCH(F14,EF!$C$2:$C$112,0))) -> 
D15: =IF(F15="","",INDEX(EF!$A$2:$A$112,MATCH(F15,EF!$C$2:$C$112,0))) ->  | E15: =IF(F15="","",INDEX(EF!$B$2:$B$112,MATCH(F15,EF!$C$2:$C$112,0))) -> 
D16: =IF(F16="","",INDEX(EF!$A$2:$A$112,MATCH(F16,EF!$C$2:$C$112,0))) ->  | E16: =IF(F16="","",INDEX(EF!$B$2:$B$112,MATCH(F16,EF!$C$2:$C$112,0))) -> 
D17: =IF(F17="","",INDEX(EF!$A$2:$A$112,MATCH(F17,EF!$C$2:$C$112,0))) ->  | E17: =IF(F17="","",INDEX(EF!$B$2:$B$112,MATCH(F17,EF!$C$2:$C$112,0))) -> 
D18: =IF(F18="","",INDEX(EF!$A$2:$A$112,MATCH(F18,EF!$C$2:$C$112,0))) ->  | E18: =IF(F18="","",INDEX(EF!$B$2:$B$112,MATCH(F18,EF!$C$2:$C$112,0))) -> 
D19: =IF(F19="","",INDEX(EF!$A$2:$A$112,MATCH(F19,EF!$C$2:$C$112,0))) ->  | E19: =IF(F19="","",INDEX(EF!$B$2:$B$112,MATCH(F19,EF!$C$2:$C$112,0))) -> 
D20: =IF(F20="","",INDEX(EF!$A$2:$A$112,MATCH(F20,EF!$C$2:$C$112,0))) ->  | E20: =IF(F20="","",INDEX(EF!$B$2:$B$112,MATCH(F20,EF!$C$2:$C$112,0))) -> 
D21: =IF(F21="","",INDEX(EF!$A$2:$A$112,MATCH(F21,EF!$C$2:$C$112,0))) ->  | E21: =IF(F21="","",INDEX(EF!$B$2:$B$112,MATCH(F21,EF!$C$2:$C$112,0))) -> 
D22: =IF(F22="","",INDEX(EF!$A$2:$A$112,MATCH(F22,EF!$C$2:$C$112,0))) ->  | E22: =IF(F22="","",INDEX(EF!$B$2:$B$112,MATCH(F22,EF!$C$2:$C$112,0))) -> 
D23: =IF(F23="","",INDEX(EF!$A$2:$A$112,MATCH(F23,EF!$C$2:$C$112,0))) ->  | E23: =IF(F23="","",INDEX(EF!$B$2:$B$112,MATCH(F23,EF!$C$2:$C$112,0))) -> 
D24: =IF(F24="","",INDEX(EF!$A$2:$A$112,MATCH(F24,EF!$C$2:$C$112,0))) ->  | E24: =IF(F24="","",INDEX(EF!$B$2:$B$112,MATCH(F24,EF!$C$2:$C$112,0))) -> 
D25: =IF(F25="","",INDEX(EF!$A$2:$A$112,MATCH(F25,EF!$C$2:$C$112,0))) ->  | E25: =IF(F25="","",INDEX(EF!$B$2:$B$112,MATCH(F25,EF!$C$2:$C$112,0))) -> 
D26: =IF(F26="","",INDEX(EF!$A$2:$A$112,MATCH(F26,EF!$C$2:$C$112,0))) ->  | E26: =IF(F26="","",INDEX(EF!$B$2:$B$112,MATCH(F26,EF!$C$2:$C$112,0))) -> 
D27: =IF(F27="","",INDEX(EF!$A$2:$A$112,MATCH(F27,EF!$C$2:$C$112,0))) ->  | E27: =IF(F27="","",INDEX(EF!$B$2:$B$112,MATCH(F27,EF!$C$2:$C$112,0))) -> 
D28: =IF(F28="","",INDEX(EF!$A$2:$A$112,MATCH(F28,EF!$C$2:$C$112,0))) ->  | E28: =IF(F28="","",INDEX(EF!$B$2:$B$112,MATCH(F28,EF!$C$2:$C$112,0))) -> 
D29: =IF(F29="","",INDEX(EF!$A$2:$A$112,MATCH(F29,EF!$C$2:$C$112,0))) ->  | E29: =IF(F29="","",INDEX(EF!$B$2:$B$112,MATCH(F29,EF!$C$2:$C$112,0))) -> 
D30: =IF(F30="","",INDEX(EF!$A$2:$A$112,MATCH(F30,EF!$C$2:$C$112,0))) ->  | E30: =IF(F30="","",INDEX(EF!$B$2:$B$112,MATCH(F30,EF!$C$2:$C$112,0))) -> 
D31: =IF(F31="","",INDEX(EF!$A$2:$A$112,MATCH(F31,EF!$C$2:$C$112,0))) ->  | E31: =IF(F31="","",INDEX(EF!$B$2:$B$112,MATCH(F31,EF!$C$2:$C$112,0))) -> 
D32: =IF(F32="","",INDEX(EF!$A$2:$A$112,MATCH(F32,EF!$C$2:$C$112,0))) ->  | E32: =IF(F32="","",INDEX(EF!$B$2:$B$112,MATCH(F32,EF!$C$2:$C$112,0))) -> 
D33: =IF(F33="","",INDEX(EF!$A$2:$A$112,MATCH(F33,EF!$C$2:$C$112,0))) ->  | E33: =IF(F33="","",INDEX(EF!$B$2:$B$112,MATCH(F33,EF!$C$2:$C$112,0))) -> 
D34: =IF(F34="","",INDEX(EF!$A$2:$A$112,MATCH(F34,EF!$C$2:$C$112,0))) ->  | E34: =IF(F34="","",INDEX(EF!$B$2:$B$112,MATCH(F34,EF!$C$2:$C$112,0))) -> 
D35: =IF(F35="","",INDEX(EF!$A$2:$A$112,MATCH(F35,EF!$C$2:$C$112,0))) ->  | E35: =IF(F35="","",INDEX(EF!$B$2:$B$112,MATCH(F35,EF!$C$2:$C$112,0))) -> 
D36: =IF(F36="","",INDEX(EF!$A$2:$A$112,MATCH(F36,EF!$C$2:$C$112,0))) ->  | E36: =IF(F36="","",INDEX(EF!$B$2:$B$112,MATCH(F36,EF!$C$2:$C$112,0))) -> 
D37: =IF(F37="","",INDEX(EF!$A$2:$A$112,MATCH(F37,EF!$C$2:$C$112,0))) ->  | E37: =IF(F37="","",INDEX(EF!$B$2:$B$112,MATCH(F37,EF!$C$2:$C$112,0))) -> 
D38: =IF(F38="","",INDEX(EF!$A$2:$A$112,MATCH(F38,EF!$C$2:$C$112,0))) ->  | E38: =IF(F38="","",INDEX(EF!$B$2:$B$112,MATCH(F38,EF!$C$2:$C$112,0))) -> 
D39: =IF(F39="","",INDEX(EF!$A$2:$A$112,MATCH(F39,EF!$C$2:$C$112,0))) ->  | E39: =IF(F39="","",INDEX(EF!$B$2:$B$112,MATCH(F39,EF!$C$2:$C$112,0))) -> 
D40: =IF(F40="","",INDEX(EF!$A$2:$A$112,MATCH(F40,EF!$C$2:$C$112,0))) ->  | E40: =IF(F40="","",INDEX(EF!$B$2:$B$112,MATCH(F40,EF!$C$2:$C$112,0))) -> 
D41: =IF(F41="","",INDEX(EF!$A$2:$A$112,MATCH(F41,EF!$C$2:$C$112,0))) ->  | E41: =IF(F41="","",INDEX(EF!$B$2:$B$112,MATCH(F41,EF!$C$2:$C$112,0))) -> 
D42: =IF(F42="","",INDEX(EF!$A$2:$A$112,MATCH(F42,EF!$C$2:$C$112,0))) ->  | E42: =IF(F42="","",INDEX(EF!$B$2:$B$112,MATCH(F42,EF!$C$2:$C$112,0))) -> 
D43: =IF(F43="","",INDEX(EF!$A$2:$A$112,MATCH(F43,EF!$C$2:$C$112,0))) ->  | E43: =IF(F43="","",INDEX(EF!$B$2:$B$112,MATCH(F43,EF!$C$2:$C$112,0))) -> 
D44: =IF(F44="","",INDEX(EF!$A$2:$A$112,MATCH(F44,EF!$C$2:$C$112,0))) ->  | E44: =IF(F44="","",INDEX(EF!$B$2:$B$112,MATCH(F44,EF!$C$2:$C$112,0))) -> 
D45: =IF(F45="","",INDEX(EF!$A$2:$A$112,MATCH(F45,EF!$C$2:$C$112,0))) ->  | E45: =IF(F45="","",INDEX(EF!$B$2:$B$112,MATCH(F45,EF!$C$2:$C$112,0))) -> 
D46: =IF(F46="","",INDEX(EF!$A$2:$A$112,MATCH(F46,EF!$C$2:$C$112,0))) ->  | E46: =IF(F46="","",INDEX(EF!$B$2:$B$112,MATCH(F46,EF!$C$2:$C$112,0))) -> 
D47: =IF(F47="","",INDEX(EF!$A$2:$A$112,MATCH(F47,EF!$C$2:$C$112,0))) ->  | E47: =IF(F47="","",INDEX(EF!$B$2:$B$112,MATCH(F47,EF!$C$2:$C$112,0))) -> 
D48: =IF(F48="","",INDEX(EF!$A$2:$A$112,MATCH(F48,EF!$C$2:$C$112,0))) ->  | E48: =IF(F48="","",INDEX(EF!$B$2:$B$112,MATCH(F48,EF!$C$2:$C$112,0))) -> 
D49: =IF(F49="","",INDEX(EF!$A$2:$A$112,MATCH(F49,EF!$C$2:$C$112,0))) ->  | E49: =IF(F49="","",INDEX(EF!$B$2:$B$112,MATCH(F49,EF!$C$2:$C$112,0))) -> 
D50: =IF(F50="","",INDEX(EF!$A$2:$A$112,MATCH(F50,EF!$C$2:$C$112,0))) ->  | E50: =IF(F50="","",INDEX(EF!$B$2:$B$112,MATCH(F50,EF!$C$2:$C$112,0))) -> 
D51: =IF(F51="","",INDEX(EF!$A$2:$A$112,MATCH(F51,EF!$C$2:$C$112,0))) ->  | E51: =IF(F51="","",INDEX(EF!$B$2:$B$112,MATCH(F51,EF!$C$2:$C$112,0))) -> 
D52: =IF(F52="","",INDEX(EF!$A$2:$A$112,MATCH(F52,EF!$C$2:$C$112,0))) ->  | E52: =IF(F52="","",INDEX(EF!$B$2:$B$112,MATCH(F52,EF!$C$2:$C$112,0))) -> 
D53: =IF(F53="","",INDEX(EF!$A$2:$A$112,MATCH(F53,EF!$C$2:$C$112,0))) ->  | E53: =IF(F53="","",INDEX(EF!$B$2:$B$112,MATCH(F53,EF!$C$2:$C$112,0))) -> 
D54: =IF(F54="","",INDEX(EF!$A$2:$A$112,MATCH(F54,EF!$C$2:$C$112,0))) ->  | E54: =IF(F54="","",INDEX(EF!$B$2:$B$112,MATCH(F54,EF!$C$2:$C$112,0))) -> 
D55: =IF(F55="","",INDEX(EF!$A$2:$A$112,MATCH(F55,EF!$C$2:$C$112,0))) ->  | E55: =IF(F55="","",INDEX(EF!$B$2:$B$112,MATCH(F55,EF!$C$2:$C$112,0))) -> 
D56: =IF(F56="","",INDEX(EF!$A$2:$A$112,MATCH(F56,EF!$C$2:$C$112,0))) ->  | E56: =IF(F56="","",INDEX(EF!$B$2:$B$112,MATCH(F56,EF!$C$2:$C$112,0))) -> 
D57: =IF(F57="","",INDEX(EF!$A$2:$A$112,MATCH(F57,EF!$C$2:$C$112,0))) ->  | E57: =IF(F57="","",INDEX(EF!$B$2:$B$112,MATCH(F57,EF!$C$2:$C$112,0))) -> 
D58: =IF(F58="","",INDEX(EF!$A$2:$A$112,MATCH(F58,EF!$C$2:$C$112,0))) ->  | E58: =IF(F58="","",INDEX(EF!$B$2:$B$112,MATCH(F58,EF!$C$2:$C$112,0))) -> 
D59: =IF(F59="","",INDEX(EF!$A$2:$A$112,MATCH(F59,EF!$C$2:$C$112,0))) ->  | E59: =IF(F59="","",INDEX(EF!$B$2:$B$112,MATCH(F59,EF!$C$2:$C$112,0))) -> 
D60: =IF(F60="","",INDEX(EF!$A$2:$A$112,MATCH(F60,EF!$C$2:$C$112,0))) ->  | E60: =IF(F60="","",INDEX(EF!$B$2:$B$112,MATCH(F60,EF!$C$2:$C$112,0))) -> 
D61: =IF(F61="","",INDEX(EF!$A$2:$A$112,MATCH(F61,EF!$C$2:$C$112,0))) ->  | E61: =IF(F61="","",INDEX(EF!$B$2:$B$112,MATCH(F61,EF!$C$2:$C$112,0))) -> 
D62: =IF(F62="","",INDEX(EF!$A$2:$A$112,MATCH(F62,EF!$C$2:$C$112,0))) ->  | E62: =IF(F62="","",INDEX(EF!$B$2:$B$112,MATCH(F62,EF!$C$2:$C$112,0))) -> 
D63: =IF(F63="","",INDEX(EF!$A$2:$A$112,MATCH(F63,EF!$C$2:$C$112,0))) ->  | E63: =IF(F63="","",INDEX(EF!$B$2:$B$112,MATCH(F63,EF!$C$2:$C$112,0))) -> 
D64: =IF(F64="","",INDEX(EF!$A$2:$A$112,MATCH(F64,EF!$C$2:$C$112,0))) ->  | E64: =IF(F64="","",INDEX(EF!$B$2:$B$112,MATCH(F64,EF!$C$2:$C$112,0))) -> 
D65: =IF(F65="","",INDEX(EF!$A$2:$A$112,MATCH(F65,EF!$C$2:$C$112,0))) ->  | E65: =IF(F65="","",INDEX(EF!$B$2:$B$112,MATCH(F65,EF!$C$2:$C$112,0))) -> 
D66: =IF(F66="","",INDEX(EF!$A$2:$A$112,MATCH(F66,EF!$C$2:$C$112,0))) ->  | E66: =IF(F66="","",INDEX(EF!$B$2:$B$112,MATCH(F66,EF!$C$2:$C$112,0))) -> 
D67: =IF(F67="","",INDEX(EF!$A$2:$A$112,MATCH(F67,EF!$C$2:$C$112,0))) ->  | E67: =IF(F67="","",INDEX(EF!$B$2:$B$112,MATCH(F67,EF!$C$2:$C$112,0))) -> 
D68: =IF(F68="","",INDEX(EF!$A$2:$A$112,MATCH(F68,EF!$C$2:$C$112,0))) ->  | E68: =IF(F68="","",INDEX(EF!$B$2:$B$112,MATCH(F68,EF!$C$2:$C$112,0))) -> 
D69: =IF(F69="","",INDEX(EF!$A$2:$A$112,MATCH(F69,EF!$C$2:$C$112,0))) ->  | E69: =IF(F69="","",INDEX(EF!$B$2:$B$112,MATCH(F69,EF!$C$2:$C$112,0))) -> 
D70: =IF(F70="","",INDEX(EF!$A$2:$A$112,MATCH(F70,EF!$C$2:$C$112,0))) ->  | E70: =IF(F70="","",INDEX(EF!$B$2:$B$112,MATCH(F70,EF!$C$2:$C$112,0))) -> 
D71: =IF(F71="","",INDEX(EF!$A$2:$A$112,MATCH(F71,EF!$C$2:$C$112,0))) ->  | E71: =IF(F71="","",INDEX(EF!$B$2:$B$112,MATCH(F71,EF!$C$2:$C$112,0))) -> 
D72: =IF(F72="","",INDEX(EF!$A$2:$A$112,MATCH(F72,EF!$C$2:$C$112,0))) ->  | E72: =IF(F72="","",INDEX(EF!$B$2:$B$112,MATCH(F72,EF!$C$2:$C$112,0))) -> 
A73: =IF(B73>0,A72+1,"") ->  | D73: =IF(F73="","",INDEX(EF!$A$2:$A$112,MATCH(F73,EF!$C$2:$C$112,0))) ->  | E73: =IF(F73="","",INDEX(EF!$B$2:$B$112,MATCH(F73,EF!$C$2:$C$112,0))) -> 
D74: =IF(F74="","",INDEX(EF!$A$2:$A$112,MATCH(F74,EF!$C$2:$C$112,0))) ->  | E74: =IF(F74="","",INDEX(EF!$B$2:$B$112,MATCH(F74,EF!$C$2:$C$112,0))) -> 
D75: =IF(F75="","",INDEX(EF!$A$2:$A$112,MATCH(F75,EF!$C$2:$C$112,0))) ->  | E75: =IF(F75="","",INDEX(EF!$B$2:$B$112,MATCH(F75,EF!$C$2:$C$112,0))) -> 
D76: =IF(F76="","",INDEX(EF!$A$2:$A$112,MATCH(F76,EF!$C$2:$C$112,0))) ->  | E76: =IF(F76="","",INDEX(EF!$B$2:$B$112,MATCH(F76,EF!$C$2:$C$112,0))) -> 
D77: =IF(F77="","",INDEX(EF!$A$2:$A$112,MATCH(F77,EF!$C$2:$C$112,0))) ->  | E77: =IF(F77="","",INDEX(EF!$B$2:$B$112,MATCH(F77,EF!$C$2:$C$112,0))) -> 
D78: =IF(F78="","",INDEX(EF!$A$2:$A$112,MATCH(F78,EF!$C$2:$C$112,0))) ->  | E78: =IF(F78="","",INDEX(EF!$B$2:$B$112,MATCH(F78,EF!$C$2:$C$112,0))) -> 
D79: =IF(F79="","",INDEX(EF!$A$2:$A$112,MATCH(F79,EF!$C$2:$C$112,0))) ->  | E79: =IF(F79="","",INDEX(EF!$B$2:$B$112,MATCH(F79,EF!$C$2:$C$112,0))) -> 
D80: =IF(F80="","",INDEX(EF!$A$2:$A$112,MATCH(F80,EF!$C$2:$C$112,0))) ->  | E80: =IF(F80="","",INDEX(EF!$B$2:$B$112,MATCH(F80,EF!$C$2:$C$112,0))) -> 
D81: =IF(F81="","",INDEX(EF!$A$2:$A$112,MATCH(F81,EF!$C$2:$C$112,0))) ->  | E81: =IF(F81="","",INDEX(EF!$B$2:$B$112,MATCH(F81,EF!$C$2:$C$112,0))) -> 
D82: =IF(F82="","",INDEX(EF!$A$2:$A$112,MATCH(F82,EF!$C$2:$C$112,0))) ->  | E82: =IF(F82="","",INDEX(EF!$B$2:$B$112,MATCH(F82,EF!$C$2:$C$112,0))) -> 
D83: =IF(F83="","",INDEX(EF!$A$2:$A$112,MATCH(F83,EF!$C$2:$C$112,0))) ->  | E83: =IF(F83="","",INDEX(EF!$B$2:$B$112,MATCH(F83,EF!$C$2:$C$112,0))) -> 
D84: =IF(F84="","",INDEX(EF!$A$2:$A$112,MATCH(F84,EF!$C$2:$C$112,0))) ->  | E84: =IF(F84="","",INDEX(EF!$B$2:$B$112,MATCH(F84,EF!$C$2:$C$112,0))) -> 
D85: =IF(F85="","",INDEX(EF!$A$2:$A$112,MATCH(F85,EF!$C$2:$C$112,0))) ->  | E85: =IF(F85="","",INDEX(EF!$B$2:$B$112,MATCH(F85,EF!$C$2:$C$112,0))) -> 
D86: =IF(F86="","",INDEX(EF!$A$2:$A$112,MATCH(F86,EF!$C$2:$C$112,0))) ->  | E86: =IF(F86="","",INDEX(EF!$B$2:$B$112,MATCH(F86,EF!$C$2:$C$112,0))) -> 
D87: =IF(F87="","",INDEX(EF!$A$2:$A$112,MATCH(F87,EF!$C$2:$C$112,0))) ->  | E87: =IF(F87="","",INDEX(EF!$B$2:$B$112,MATCH(F87,EF!$C$2:$C$112,0))) -> 
D88: =IF(F88="","",INDEX(EF!$A$2:$A$112,MATCH(F88,EF!$C$2:$C$112,0))) ->  | E88: =IF(F88="","",INDEX(EF!$B$2:$B$112,MATCH(F88,EF!$C$2:$C$112,0))) -> 
D89: =IF(F89="","",INDEX(EF!$A$2:$A$112,MATCH(F89,EF!$C$2:$C$112,0))) ->  | E89: =IF(F89="","",INDEX(EF!$B$2:$B$112,MATCH(F89,EF!$C$2:$C$112,0))) -> 
D90: =IF(F90="","",INDEX(EF!$A$2:$A$112,MATCH(F90,EF!$C$2:$C$112,0))) ->  | E90: =IF(F90="","",INDEX(EF!$B$2:$B$112,MATCH(F90,EF!$C$2:$C$112,0))) -> 
D91: =IF(F91="","",INDEX(EF!$A$2:$A$112,MATCH(F91,EF!$C$2:$C$112,0))) ->  | E91: =IF(F91="","",INDEX(EF!$B$2:$B$112,MATCH(F91,EF!$C$2:$C$112,0))) -> 
D92: =IF(F92="","",INDEX(EF!$A$2:$A$112,MATCH(F92,EF!$C$2:$C$112,0))) ->  | E92: =IF(F92="","",INDEX(EF!$B$2:$B$112,MATCH(F92,EF!$C$2:$C$112,0))) -> 
D93: =IF(F93="","",INDEX(EF!$A$2:$A$112,MATCH(F93,EF!$C$2:$C$112,0))) ->  | E93: =IF(F93="","",INDEX(EF!$B$2:$B$112,MATCH(F93,EF!$C$2:$C$112,0))) -> 
D94: =IF(F94="","",INDEX(EF!$A$2:$A$112,MATCH(F94,EF!$C$2:$C$112,0))) ->  | E94: =IF(F94="","",INDEX(EF!$B$2:$B$112,MATCH(F94,EF!$C$2:$C$112,0))) -> 
D95: =IF(F95="","",INDEX(EF!$A$2:$A$112,MATCH(F95,EF!$C$2:$C$112,0))) ->  | E95: =IF(F95="","",INDEX(EF!$B$2:$B$112,MATCH(F95,EF!$C$2:$C$112,0))) -> 
D96: =IF(F96="","",INDEX(EF!$A$2:$A$112,MATCH(F96,EF!$C$2:$C$112,0))) ->  | E96: =IF(F96="","",INDEX(EF!$B$2:$B$112,MATCH(F96,EF!$C$2:$C$112,0))) -> 
D97: =IF(F97="","",INDEX(EF!$A$2:$A$112,MATCH(F97,EF!$C$2:$C$112,0))) ->  | E97: =IF(F97="","",INDEX(EF!$B$2:$B$112,MATCH(F97,EF!$C$2:$C$112,0))) -> 
D98: =IF(F98="","",INDEX(EF!$A$2:$A$112,MATCH(F98,EF!$C$2:$C$112,0))) ->  | E98: =IF(F98="","",INDEX(EF!$B$2:$B$112,MATCH(F98,EF!$C$2:$C$112,0))) -> 
D99: =IF(F99="","",INDEX(EF!$A$2:$A$112,MATCH(F99,EF!$C$2:$C$112,0))) ->  | E99: =IF(F99="","",INDEX(EF!$B$2:$B$112,MATCH(F99,EF!$C$2:$C$112,0))) -> 
D100: =IF(F100="","",INDEX(EF!$A$2:$A$112,MATCH(F100,EF!$C$2:$C$112,0))) ->  | E100: =IF(F100="","",INDEX(EF!$B$2:$B$112,MATCH(F100,EF!$C$2:$C$112,0))) -> 
D101: =IF(F101="","",INDEX(EF!$A$2:$A$112,MATCH(F101,EF!$C$2:$C$112,0))) ->  | E101: =IF(F101="","",INDEX(EF!$B$2:$B$112,MATCH(F101,EF!$C$2:$C$112,0))) -> 
D102: =IF(F102="","",INDEX(EF!$A$2:$A$112,MATCH(F102,EF!$C$2:$C$112,0))) ->  | E102: =IF(F102="","",INDEX(EF!$B$2:$B$112,MATCH(F102,EF!$C$2:$C$112,0))) -> 
D103: =IF(F103="","",INDEX(EF!$A$2:$A$112,MATCH(F103,EF!$C$2:$C$112,0))) ->  | E103: =IF(F103="","",INDEX(EF!$B$2:$B$112,MATCH(F103,EF!$C$2:$C$112,0))) -> 
D104: =IF(F104="","",INDEX(EF!$A$2:$A$112,MATCH(F104,EF!$C$2:$C$112,0))) ->  | E104: =IF(F104="","",INDEX(EF!$B$2:$B$112,MATCH(F104,EF!$C$2:$C$112,0))) -> 
D105: =IF(F105="","",INDEX(EF!$A$2:$A$112,MATCH(F105,EF!$C$2:$C$112,0))) ->  | E105: =IF(F105="","",INDEX(EF!$B$2:$B$112,MATCH(F105,EF!$C$2:$C$112,0))) -> 
D106: =IF(F106="","",INDEX(EF!$A$2:$A$112,MATCH(F106,EF!$C$2:$C$112,0))) ->  | E106: =IF(F106="","",INDEX(EF!$B$2:$B$112,MATCH(F106,EF!$C$2:$C$112,0))) -> 
D107: =IF(F107="","",INDEX(EF!$A$2:$A$112,MATCH(F107,EF!$C$2:$C$112,0))) ->  | E107: =IF(F107="","",INDEX(EF!$B$2:$B$112,MATCH(F107,EF!$C$2:$C$112,0))) -> 
D108: =IF(F108="","",INDEX(EF!$A$2:$A$112,MATCH(F108,EF!$C$2:$C$112,0))) ->  | E108: =IF(F108="","",INDEX(EF!$B$2:$B$112,MATCH(F108,EF!$C$2:$C$112,0))) -> 
D109: =IF(F109="","",INDEX(EF!$A$2:$A$112,MATCH(F109,EF!$C$2:$C$112,0))) ->  | E109: =IF(F109="","",INDEX(EF!$B$2:$B$112,MATCH(F109,EF!$C$2:$C$112,0))) -> 
D110: =IF(F110="","",INDEX(EF!$A$2:$A$112,MATCH(F110,EF!$C$2:$C$112,0))) ->  | E110: =IF(F110="","",INDEX(EF!$B$2:$B$112,MATCH(F110,EF!$C$2:$C$112,0))) -> 
D111: =IF(F111="","",INDEX(EF!$A$2:$A$112,MATCH(F111,EF!$C$2:$C$112,0))) ->  | E111: =IF(F111="","",INDEX(EF!$B$2:$B$112,MATCH(F111,EF!$C$2:$C$112,0))) -> 
D112: =IF(F112="","",INDEX(EF!$A$2:$A$112,MATCH(F112,EF!$C$2:$C$112,0))) ->  | E112: =IF(F112="","",INDEX(EF!$B$2:$B$112,MATCH(F112,EF!$C$2:$C$112,0))) -> 
D113: =IF(F113="","",INDEX(EF!$A$2:$A$112,MATCH(F113,EF!$C$2:$C$112,0))) ->  | E113: =IF(F113="","",INDEX(EF!$B$2:$B$112,MATCH(F113,EF!$C$2:$C$112,0))) -> 
D114: =IF(F114="","",INDEX(EF!$A$2:$A$112,MATCH(F114,EF!$C$2:$C$112,0))) ->  | E114: =IF(F114="","",INDEX(EF!$B$2:$B$112,MATCH(F114,EF!$C$2:$C$112,0))) -> 
D115: =IF(F115="","",INDEX(EF!$A$2:$A$112,MATCH(F115,EF!$C$2:$C$112,0))) ->  | E115: =IF(F115="","",INDEX(EF!$B$2:$B$112,MATCH(F115,EF!$C$2:$C$112,0))) -> 
D116: =IF(F116="","",INDEX(EF!$A$2:$A$112,MATCH(F116,EF!$C$2:$C$112,0))) ->  | E116: =IF(F116="","",INDEX(EF!$B$2:$B$112,MATCH(F116,EF!$C$2:$C$112,0))) -> 
D117: =IF(F117="","",INDEX(EF!$A$2:$A$112,MATCH(F117,EF!$C$2:$C$112,0))) ->  | E117: =IF(F117="","",INDEX(EF!$B$2:$B$112,MATCH(F117,EF!$C$2:$C$112,0))) -> 
D118: =IF(F118="","",INDEX(EF!$A$2:$A$112,MATCH(F118,EF!$C$2:$C$112,0))) ->  | E118: =IF(F118="","",INDEX(EF!$B$2:$B$112,MATCH(F118,EF!$C$2:$C$112,0))) -> 
D119: =IF(F119="","",INDEX(EF!$A$2:$A$112,MATCH(F119,EF!$C$2:$C$112,0))) ->  | E119: =IF(F119="","",INDEX(EF!$B$2:$B$112,MATCH(F119,EF!$C$2:$C$112,0))) -> 
D120: =IF(F120="","",INDEX(EF!$A$2:$A$112,MATCH(F120,EF!$C$2:$C$112,0))) ->  | E120: =IF(F120="","",INDEX(EF!$B$2:$B$112,MATCH(F120,EF!$C$2:$C$112,0))) -> 
D121: =IF(F121="","",INDEX(EF!$A$2:$A$112,MATCH(F121,EF!$C$2:$C$112,0))) ->  | E121: =IF(F121="","",INDEX(EF!$B$2:$B$112,MATCH(F121,EF!$C$2:$C$112,0))) -> 
D122: =IF(F122="","",INDEX(EF!$A$2:$A$112,MATCH(F122,EF!$C$2:$C$112,0))) ->  | E122: =IF(F122="","",INDEX(EF!$B$2:$B$112,MATCH(F122,EF!$C$2:$C$112,0))) -> 
D123: =IF(F123="","",INDEX(EF!$A$2:$A$112,MATCH(F123,EF!$C$2:$C$112,0))) ->  | E123: =IF(F123="","",INDEX(EF!$B$2:$B$112,MATCH(F123,EF!$C$2:$C$112,0))) -> 
D124: =IF(F124="","",INDEX(EF!$A$2:$A$112,MATCH(F124,EF!$C$2:$C$112,0))) ->  | E124: =IF(F124="","",INDEX(EF!$B$2:$B$112,MATCH(F124,EF!$C$2:$C$112,0))) -> 
D125: =IF(F125="","",INDEX(EF!$A$2:$A$112,MATCH(F125,EF!$C$2:$C$112,0))) ->  | E125: =IF(F125="","",INDEX(EF!$B$2:$B$112,MATCH(F125,EF!$C$2:$C$112,0))) -> 
D126: =IF(F126="","",INDEX(EF!$A$2:$A$112,MATCH(F126,EF!$C$2:$C$112,0))) ->  | E126: =IF(F126="","",INDEX(EF!$B$2:$B$112,MATCH(F126,EF!$C$2:$C$112,0))) -> 
D127: =IF(F127="","",INDEX(EF!$A$2:$A$112,MATCH(F127,EF!$C$2:$C$112,0))) ->  | E127: =IF(F127="","",INDEX(EF!$B$2:$B$112,MATCH(F127,EF!$C$2:$C$112,0))) -> 
D128: =IF(F128="","",INDEX(EF!$A$2:$A$112,MATCH(F128,EF!$C$2:$C$112,0))) ->  | E128: =IF(F128="","",INDEX(EF!$B$2:$B$112,MATCH(F128,EF!$C$2:$C$112,0))) -> 
D129: =IF(F129="","",INDEX(EF!$A$2:$A$112,MATCH(F129,EF!$C$2:$C$112,0))) ->  | E129: =IF(F129="","",INDEX(EF!$B$2:$B$112,MATCH(F129,EF!$C$2:$C$112,0))) -> 
D130: =IF(F130="","",INDEX(EF!$A$2:$A$112,MATCH(F130,EF!$C$2:$C$112,0))) ->  | E130: =IF(F130="","",INDEX(EF!$B$2:$B$112,MATCH(F130,EF!$C$2:$C$112,0))) -> 
D131: =IF(F131="","",INDEX(EF!$A$2:$A$112,MATCH(F131,EF!$C$2:$C$112,0))) ->  | E131: =IF(F131="","",INDEX(EF!$B$2:$B$112,MATCH(F131,EF!$C$2:$C$112,0))) -> 
D132: =IF(F132="","",INDEX(EF!$A$2:$A$112,MATCH(F132,EF!$C$2:$C$112,0))) ->  | E132: =IF(F132="","",INDEX(EF!$B$2:$B$112,MATCH(F132,EF!$C$2:$C$112,0))) -> 
D133: =IF(F133="","",INDEX(EF!$A$2:$A$112,MATCH(F133,EF!$C$2:$C$112,0))) ->  | E133: =IF(F133="","",INDEX(EF!$B$2:$B$112,MATCH(F133,EF!$C$2:$C$112,0))) -> 
D134: =IF(F134="","",INDEX(EF!$A$2:$A$112,MATCH(F134,EF!$C$2:$C$112,0))) ->  | E134: =IF(F134="","",INDEX(EF!$B$2:$B$112,MATCH(F134,EF!$C$2:$C$112,0))) -> 
D135: =IF(F135="","",INDEX(EF!$A$2:$A$112,MATCH(F135,EF!$C$2:$C$112,0))) ->  | E135: =IF(F135="","",INDEX(EF!$B$2:$B$112,MATCH(F135,EF!$C$2:$C$112,0))) -> 
D136: =IF(F136="","",INDEX(EF!$A$2:$A$112,MATCH(F136,EF!$C$2:$C$112,0))) ->  | E136: =IF(F136="","",INDEX(EF!$B$2:$B$112,MATCH(F136,EF!$C$2:$C$112,0))) -> 
A137: =IF(B137>0,A136+1,"") ->  | D137: =IF(F137="","",INDEX(EF!$A$2:$A$112,MATCH(F137,EF!$C$2:$C$112,0))) ->  | E137: =IF(F137="","",INDEX(EF!$B$2:$B$112,MATCH(F137,EF!$C$2:$C$112,0))) -> 
D138: =IF(F138="","",INDEX(EF!$A$2:$A$112,MATCH(F138,EF!$C$2:$C$112,0))) ->  | E138: =IF(F138="","",INDEX(EF!$B$2:$B$112,MATCH(F138,EF!$C$2:$C$112,0))) -> 
D139: =IF(F139="","",INDEX(EF!$A$2:$A$112,MATCH(F139,EF!$C$2:$C$112,0))) ->  | E139: =IF(F139="","",INDEX(EF!$B$2:$B$112,MATCH(F139,EF!$C$2:$C$112,0))) -> 
D140: =IF(F140="","",INDEX(EF!$A$2:$A$112,MATCH(F140,EF!$C$2:$C$112,0))) ->  | E140: =IF(F140="","",INDEX(EF!$B$2:$B$112,MATCH(F140,EF!$C$2:$C$112,0))) -> 
D141: =IF(F141="","",INDEX(EF!$A$2:$A$112,MATCH(F141,EF!$C$2:$C$112,0))) ->  | E141: =IF(F141="","",INDEX(EF!$B$2:$B$112,MATCH(F141,EF!$C$2:$C$112,0))) -> 
D142: =IF(F142="","",INDEX(EF!$A$2:$A$112,MATCH(F142,EF!$C$2:$C$112,0))) ->  | E142: =IF(F142="","",INDEX(EF!$B$2:$B$112,MATCH(F142,EF!$C$2:$C$112,0))) -> 
D143: =IF(F143="","",INDEX(EF!$A$2:$A$112,MATCH(F143,EF!$C$2:$C$112,0))) ->  | E143: =IF(F143="","",INDEX(EF!$B$2:$B$112,MATCH(F143,EF!$C$2:$C$112,0))) -> 
D144: =IF(F144="","",INDEX(EF!$A$2:$A$112,MATCH(F144,EF!$C$2:$C$112,0))) ->  | E144: =IF(F144="","",INDEX(EF!$B$2:$B$112,MATCH(F144,EF!$C$2:$C$112,0))) -> 
D145: =IF(F145="","",INDEX(EF!$A$2:$A$112,MATCH(F145,EF!$C$2:$C$112,0))) ->  | E145: =IF(F145="","",INDEX(EF!$B$2:$B$112,MATCH(F145,EF!$C$2:$C$112,0))) -> 
D146: =IF(F146="","",INDEX(EF!$A$2:$A$112,MATCH(F146,EF!$C$2:$C$112,0))) ->  | E146: =IF(F146="","",INDEX(EF!$B$2:$B$112,MATCH(F146,EF!$C$2:$C$112,0))) -> 
D147: =IF(F147="","",INDEX(EF!$A$2:$A$112,MATCH(F147,EF!$C$2:$C$112,0))) ->  | E147: =IF(F147="","",INDEX(EF!$B$2:$B$112,MATCH(F147,EF!$C$2:$C$112,0))) -> 
D148: =IF(F148="","",INDEX(EF!$A$2:$A$112,MATCH(F148,EF!$C$2:$C$112,0))) ->  | E148: =IF(F148="","",INDEX(EF!$B$2:$B$112,MATCH(F148,EF!$C$2:$C$112,0))) -> 
D149: =IF(F149="","",INDEX(EF!$A$2:$A$112,MATCH(F149,EF!$C$2:$C$112,0))) ->  | E149: =IF(F149="","",INDEX(EF!$B$2:$B$112,MATCH(F149,EF!$C$2:$C$112,0))) -> 
D150: =IF(F150="","",INDEX(EF!$A$2:$A$112,MATCH(F150,EF!$C$2:$C$112,0))) ->  | E150: =IF(F150="","",INDEX(EF!$B$2:$B$112,MATCH(F150,EF!$C$2:$C$112,0))) -> 
D151: =IF(F151="","",INDEX(EF!$A$2:$A$112,MATCH(F151,EF!$C$2:$C$112,0))) ->  | E151: =IF(F151="","",INDEX(EF!$B$2:$B$112,MATCH(F151,EF!$C$2:$C$112,0))) -> 
D152: =IF(F152="","",INDEX(EF!$A$2:$A$112,MATCH(F152,EF!$C$2:$C$112,0))) ->  | E152: =IF(F152="","",INDEX(EF!$B$2:$B$112,MATCH(F152,EF!$C$2:$C$112,0))) -> 
D153: =IF(F153="","",INDEX(EF!$A$2:$A$112,MATCH(F153,EF!$C$2:$C$112,0))) ->  | E153: =IF(F153="","",INDEX(EF!$B$2:$B$112,MATCH(F153,EF!$C$2:$C$112,0))) -> 
D154: =IF(F154="","",INDEX(EF!$A$2:$A$112,MATCH(F154,EF!$C$2:$C$112,0))) ->  | E154: =IF(F154="","",INDEX(EF!$B$2:$B$112,MATCH(F154,EF!$C$2:$C$112,0))) -> 
D155: =IF(F155="","",INDEX(EF!$A$2:$A$112,MATCH(F155,EF!$C$2:$C$112,0))) ->  | E155: =IF(F155="","",INDEX(EF!$B$2:$B$112,MATCH(F155,EF!$C$2:$C$112,0))) -> 
D156: =IF(F156="","",INDEX(EF!$A$2:$A$112,MATCH(F156,EF!$C$2:$C$112,0))) ->  | E156: =IF(F156="","",INDEX(EF!$B$2:$B$112,MATCH(F156,EF!$C$2:$C$112,0))) -> 
D157: =IF(F157="","",INDEX(EF!$A$2:$A$112,MATCH(F157,EF!$C$2:$C$112,0))) ->  | E157: =IF(F157="","",INDEX(EF!$B$2:$B$112,MATCH(F157,EF!$C$2:$C$112,0))) -> 
D158: =IF(F158="","",INDEX(EF!$A$2:$A$112,MATCH(F158,EF!$C$2:$C$112,0))) ->  | E158: =IF(F158="","",INDEX(EF!$B$2:$B$112,MATCH(F158,EF!$C$2:$C$112,0))) -> 
D159: =IF(F159="","",INDEX(EF!$A$2:$A$112,MATCH(F159,EF!$C$2:$C$112,0))) ->  | E159: =IF(F159="","",INDEX(EF!$B$2:$B$112,MATCH(F159,EF!$C$2:$C$112,0))) -> 
D160: =IF(F160="","",INDEX(EF!$A$2:$A$112,MATCH(F160,EF!$C$2:$C$112,0))) ->  | E160: =IF(F160="","",INDEX(EF!$B$2:$B$112,MATCH(F160,EF!$C$2:$C$112,0))) -> 
D161: =IF(F161="","",INDEX(EF!$A$2:$A$112,MATCH(F161,EF!$C$2:$C$112,0))) ->  | E161: =IF(F161="","",INDEX(EF!$B$2:$B$112,MATCH(F161,EF!$C$2:$C$112,0))) -> 
D162: =IF(F162="","",INDEX(EF!$A$2:$A$112,MATCH(F162,EF!$C$2:$C$112,0))) ->  | E162: =IF(F162="","",INDEX(EF!$B$2:$B$112,MATCH(F162,EF!$C$2:$C$112,0))) -> 
D163: =IF(F163="","",INDEX(EF!$A$2:$A$112,MATCH(F163,EF!$C$2:$C$112,0))) ->  | E163: =IF(F163="","",INDEX(EF!$B$2:$B$112,MATCH(F163,EF!$C$2:$C$112,0))) -> 
D164: =IF(F164="","",INDEX(EF!$A$2:$A$112,MATCH(F164,EF!$C$2:$C$112,0))) ->  | E164: =IF(F164="","",INDEX(EF!$B$2:$B$112,MATCH(F164,EF!$C$2:$C$112,0))) -> 
D165: =IF(F165="","",INDEX(EF!$A$2:$A$112,MATCH(F165,EF!$C$2:$C$112,0))) ->  | E165: =IF(F165="","",INDEX(EF!$B$2:$B$112,MATCH(F165,EF!$C$2:$C$112,0))) -> 
D166: =IF(F166="","",INDEX(EF!$A$2:$A$112,MATCH(F166,EF!$C$2:$C$112,0))) ->  | E166: =IF(F166="","",INDEX(EF!$B$2:$B$112,MATCH(F166,EF!$C$2:$C$112,0))) -> 
D167: =IF(F167="","",INDEX(EF!$A$2:$A$112,MATCH(F167,EF!$C$2:$C$112,0))) ->  | E167: =IF(F167="","",INDEX(EF!$B$2:$B$112,MATCH(F167,EF!$C$2:$C$112,0))) -> 
D168: =IF(F168="","",INDEX(EF!$A$2:$A$112,MATCH(F168,EF!$C$2:$C$112,0))) ->  | E168: =IF(F168="","",INDEX(EF!$B$2:$B$112,MATCH(F168,EF!$C$2:$C$112,0))) -> 
D169: =IF(F169="","",INDEX(EF!$A$2:$A$112,MATCH(F169,EF!$C$2:$C$112,0))) ->  | E169: =IF(F169="","",INDEX(EF!$B$2:$B$112,MATCH(F169,EF!$C$2:$C$112,0))) -> 
D170: =IF(F170="","",INDEX(EF!$A$2:$A$112,MATCH(F170,EF!$C$2:$C$112,0))) ->  | E170: =IF(F170="","",INDEX(EF!$B$2:$B$112,MATCH(F170,EF!$C$2:$C$112,0))) -> 
D171: =IF(F171="","",INDEX(EF!$A$2:$A$112,MATCH(F171,EF!$C$2:$C$112,0))) ->  | E171: =IF(F171="","",INDEX(EF!$B$2:$B$112,MATCH(F171,EF!$C$2:$C$112,0))) -> 
D172: =IF(F172="","",INDEX(EF!$A$2:$A$112,MATCH(F172,EF!$C$2:$C$112,0))) ->  | E172: =IF(F172="","",INDEX(EF!$B$2:$B$112,MATCH(F172,EF!$C$2:$C$112,0))) -> 
D173: =IF(F173="","",INDEX(EF!$A$2:$A$112,MATCH(F173,EF!$C$2:$C$112,0))) ->  | E173: =IF(F173="","",INDEX(EF!$B$2:$B$112,MATCH(F173,EF!$C$2:$C$112,0))) -> 
D174: =IF(F174="","",INDEX(EF!$A$2:$A$112,MATCH(F174,EF!$C$2:$C$112,0))) ->  | E174: =IF(F174="","",INDEX(EF!$B$2:$B$112,MATCH(F174,EF!$C$2:$C$112,0))) -> 
D175: =IF(F175="","",INDEX(EF!$A$2:$A$112,MATCH(F175,EF!$C$2:$C$112,0))) ->  | E175: =IF(F175="","",INDEX(EF!$B$2:$B$112,MATCH(F175,EF!$C$2:$C$112,0))) -> 
D176: =IF(F176="","",INDEX(EF!$A$2:$A$112,MATCH(F176,EF!$C$2:$C$112,0))) ->  | E176: =IF(F176="","",INDEX(EF!$B$2:$B$112,MATCH(F176,EF!$C$2:$C$112,0))) -> 
D177: =IF(F177="","",INDEX(EF!$A$2:$A$112,MATCH(F177,EF!$C$2:$C$112,0))) ->  | E177: =IF(F177="","",INDEX(EF!$B$2:$B$112,MATCH(F177,EF!$C$2:$C$112,0))) -> 
D178: =IF(F178="","",INDEX(EF!$A$2:$A$112,MATCH(F178,EF!$C$2:$C$112,0))) ->  | E178: =IF(F178="","",INDEX(EF!$B$2:$B$112,MATCH(F178,EF!$C$2:$C$112,0))) -> 
D179: =IF(F179="","",INDEX(EF!$A$2:$A$112,MATCH(F179,EF!$C$2:$C$112,0))) ->  | E179: =IF(F179="","",INDEX(EF!$B$2:$B$112,MATCH(F179,EF!$C$2:$C$112,0))) -> 
D180: =IF(F180="","",INDEX(EF!$A$2:$A$112,MATCH(F180,EF!$C$2:$C$112,0))) ->  | E180: =IF(F180="","",INDEX(EF!$B$2:$B$112,MATCH(F180,EF!$C$2:$C$112,0))) -> 
D181: =IF(F181="","",INDEX(EF!$A$2:$A$112,MATCH(F181,EF!$C$2:$C$112,0))) ->  | E181: =IF(F181="","",INDEX(EF!$B$2:$B$112,MATCH(F181,EF!$C$2:$C$112,0))) -> 
D182: =IF(F182="","",INDEX(EF!$A$2:$A$112,MATCH(F182,EF!$C$2:$C$112,0))) ->  | E182: =IF(F182="","",INDEX(EF!$B$2:$B$112,MATCH(F182,EF!$C$2:$C$112,0))) -> 
D183: =IF(F183="","",INDEX(EF!$A$2:$A$112,MATCH(F183,EF!$C$2:$C$112,0))) ->  | E183: =IF(F183="","",INDEX(EF!$B$2:$B$112,MATCH(F183,EF!$C$2:$C$112,0))) -> 
D184: =IF(F184="","",INDEX(EF!$A$2:$A$112,MATCH(F184,EF!$C$2:$C$112,0))) ->  | E184: =IF(F184="","",INDEX(EF!$B$2:$B$112,MATCH(F184,EF!$C$2:$C$112,0))) -> 
D185: =IF(F185="","",INDEX(EF!$A$2:$A$112,MATCH(F185,EF!$C$2:$C$112,0))) ->  | E185: =IF(F185="","",INDEX(EF!$B$2:$B$112,MATCH(F185,EF!$C$2:$C$112,0))) -> 
D186: =IF(F186="","",INDEX(EF!$A$2:$A$112,MATCH(F186,EF!$C$2:$C$112,0))) ->  | E186: =IF(F186="","",INDEX(EF!$B$2:$B$112,MATCH(F186,EF!$C$2:$C$112,0))) -> 
D187: =IF(F187="","",INDEX(EF!$A$2:$A$112,MATCH(F187,EF!$C$2:$C$112,0))) ->  | E187: =IF(F187="","",INDEX(EF!$B$2:$B$112,MATCH(F187,EF!$C$2:$C$112,0))) -> 
D188: =IF(F188="","",INDEX(EF!$A$2:$A$112,MATCH(F188,EF!$C$2:$C$112,0))) ->  | E188: =IF(F188="","",INDEX(EF!$B$2:$B$112,MATCH(F188,EF!$C$2:$C$112,0))) -> 
D189: =IF(F189="","",INDEX(EF!$A$2:$A$112,MATCH(F189,EF!$C$2:$C$112,0))) ->  | E189: =IF(F189="","",INDEX(EF!$B$2:$B$112,MATCH(F189,EF!$C$2:$C$112,0))) -> 
D190: =IF(F190="","",INDEX(EF!$A$2:$A$112,MATCH(F190,EF!$C$2:$C$112,0))) ->  | E190: =IF(F190="","",INDEX(EF!$B$2:$B$112,MATCH(F190,EF!$C$2:$C$112,0))) -> 
D191: =IF(F191="","",INDEX(EF!$A$2:$A$112,MATCH(F191,EF!$C$2:$C$112,0))) ->  | E191: =IF(F191="","",INDEX(EF!$B$2:$B$112,MATCH(F191,EF!$C$2:$C$112,0))) -> 
D192: =IF(F192="","",INDEX(EF!$A$2:$A$112,MATCH(F192,EF!$C$2:$C$112,0))) ->  | E192: =IF(F192="","",INDEX(EF!$B$2:$B$112,MATCH(F192,EF!$C$2:$C$112,0))) -> 
D193: =IF(F193="","",INDEX(EF!$A$2:$A$112,MATCH(F193,EF!$C$2:$C$112,0))) ->  | E193: =IF(F193="","",INDEX(EF!$B$2:$B$112,MATCH(F193,EF!$C$2:$C$112,0))) -> 
D194: =IF(F194="","",INDEX(EF!$A$2:$A$112,MATCH(F194,EF!$C$2:$C$112,0))) ->  | E194: =IF(F194="","",INDEX(EF!$B$2:$B$112,MATCH(F194,EF!$C$2:$C$112,0))) -> 
D195: =IF(F195="","",INDEX(EF!$A$2:$A$112,MATCH(F195,EF!$C$2:$C$112,0))) ->  | E195: =IF(F195="","",INDEX(EF!$B$2:$B$112,MATCH(F195,EF!$C$2:$C$112,0))) -> 
D196: =IF(F196="","",INDEX(EF!$A$2:$A$112,MATCH(F196,EF!$C$2:$C$112,0))) ->  | E196: =IF(F196="","",INDEX(EF!$B$2:$B$112,MATCH(F196,EF!$C$2:$C$112,0))) -> 
D197: =IF(F197="","",INDEX(EF!$A$2:$A$112,MATCH(F197,EF!$C$2:$C$112,0))) ->  | E197: =IF(F197="","",INDEX(EF!$B$2:$B$112,MATCH(F197,EF!$C$2:$C$112,0))) -> 
D198: =IF(F198="","",INDEX(EF!$A$2:$A$112,MATCH(F198,EF!$C$2:$C$112,0))) ->  | E198: =IF(F198="","",INDEX(EF!$B$2:$B$112,MATCH(F198,EF!$C$2:$C$112,0))) -> 
D199: =IF(F199="","",INDEX(EF!$A$2:$A$112,MATCH(F199,EF!$C$2:$C$112,0))) ->  | E199: =IF(F199="","",INDEX(EF!$B$2:$B$112,MATCH(F199,EF!$C$2:$C$112,0))) -> 
D200: =IF(F200="","",INDEX(EF!$A$2:$A$112,MATCH(F200,EF!$C$2:$C$112,0))) ->  | E200: =IF(F200="","",INDEX(EF!$B$2:$B$112,MATCH(F200,EF!$C$2:$C$112,0))) -> 
... 806 more rows

Sheet F18 (hidden)
A1: ="Nombre del Ente Público: "&Validacion!A2 -> Nombre del Ente Público: Ixtlahuacán de los Membrillos
A2: Estado Analítico del Ejercicio del Presupuesto de Egresos
A3: Clasificación Administrativa
A4: ='F6'!A3 -> DEL 1° DE ENERO AL 31 DE ENERO DE 2026
A5: (Cifras en Pesos)
A6: Concepto | B6: Egresos | G6: Subejercicio
B7: Aprobado | C7: Ampliaciones/ (Reducciones) | D7: Modificado | E7: Devengado | F7: Pagado | M7: =IF(AND(F18A!$A9=0),"",F18A!$A9) ->  | N7: =IF(AND(F18A!$A10=0),"",F18A!$A10) ->  | O7: =IF(AND(F18A!$A11=0),"",F18A!$A11) ->  | P7: =IF(AND(F18A!$A12=0),"",F18A!$A12) ->  | Q7: =IF(AND(F18A!$A13=0),"",F18A!$A13) ->  | R7: =IF(AND(F18A!$A14=0),"",F18A!$A14) ->  | S7: =IF(AND(F18A!$A15=0),"",F18A!$A15) ->  | T7: =IF(AND(F18A!$A16=0),"",F18A!$A16) ->  | U7: =IF(AND(F18A!$A17=0),"",F18A!$A17) ->  | V7: =IF(AND(F18A!$A18=0),"",F18A!$A18) ->  | W7: =IF(AND(F18A!$A19=0),"",F18A!$A19) ->  | X7: =IF(AND(F18A!$A20=0),"",F18A!$A20) ->  | Y7: =IF(AND(F18A!$A21=0),"",F18A!$A21) ->  | Z7: =IF(AND(F18A!$A22=0),"",F18A!$A22) ->  | AA7: =IF(AND(F18A!$A23=0),"",F18A!$A23) ->  | AB7: =IF(AND(F18A!$A24=0),"",F18A!$A24) ->  | AC7: =IF(AND(F18A!$A25=0),"",F18A!$A25) ->  | AD7: =IF(AND(F18A!$A26=0),"",F18A!$A26) ->  | AE7: =IF(AND(F18A!$A27=0),"",F18A!$A27) ->  | AF7: =IF(AND(F18A!$A28=0),"",F18A!$A28) ->  | AG7: =IF(AND(F18A!$A29=0),"",F18A!$A29) ->  | AH7: =IF(AND(F18A!$A30=0),"",F18A!$A30) ->  | AI7: =IF(AND(F18A!$A31=0),"",F18A!$A31) ->  | AJ7: =IF(AND(F18A!$A32=0),"",F18A!$A32) ->  | AK7: =IF(AND(F18A!$A33=0),"",F18A!$A33) -> 
A8: =IFERROR(AR8,"") ->  | B8: =SUMIF(F18A!$A$9:$A$60,'F18'!A8,F18A!$B$9:$B$60) -> 0.00 | C8: =SUMIF(F18A!$A$9:$A$60,'F18'!A8,F18A!$C$9:$C$60) -> 0.00 | D8: =B8+C8 -> 0.00 | E8: =SUMIF(F18A!$A$9:$A$60,'F18'!A8,F18A!$E$9:$E$60) -> 0.00 | F8: =SUMIF(F18A!$A$9:$A$60,'F18'!A8,F18A!$F$9:$F$60) -> 0.00 | G8: =D8-E8 -> 0.00 | K8: =IF(SUM(M8:AK8)=25,L8,"") ->  | L8: =IF(AND(F18A!A36=0),"",F18A!A36) ->  | M8: =IF(AND(M7<>L8),1,"") ->  | N8: =IF(AND(N7<>L8),1,"") ->  | O8: =IF(AND(O7<>L8),1,"") ->  | P8: =IF(AND(P7<>L8),1,"") ->  | Q8: =IF(AND(Q7<>L8),1,"") ->  | R8: =IF(AND(R7<>L8),1,"") ->  | S8: =IF(AND(S7<>L8),1,"") ->  | T8: =IF(AND(T7<>L8),1,"") ->  | U8: =IF(AND(U7<>L8),1,"") ->  | V8: =IF(AND(V7<>L8),1,"") ->  | W8: =IF(AND(W7<>L8),1,"") ->  | X8: =IF(AND(X7<>L8),1,"") ->  | Y8: =IF(AND(Y7<>L8),1,"") ->  | Z8: =IF(AND(Z7<>L8),1,"") ->  | AA8: =IF(AND(AA7<>L8),1,"") ->  | AB8: =IF(AND(AB7<>L8),1,"") ->  | AC8: =IF(AND(AC7<>L8),1,"") ->  | AD8: =IF(AND(AD7<>L8),1,"") ->  | AE8: =IF(AND(AE7<>L8),1,"") ->  | AF8: =IF(AND(AF7<>L8),1,"") ->  | AG8: =IF(AND(AG7<>L8),1,"") ->  | AH8: =IF(AND(AH7<>L8),1,"") ->  | AI8: =IF(AND(AI7<>L8),1,"") ->  | AJ8: =IF(AND(AJ7<>L8),1,"") ->  | AK8: =IF(AND(AK7<>L8),1,"") ->  | AN8: =M$7 ->  | AO8: =IF(AN$8:AN$57<>"",ROW(AN8:AN57)) -> FALSE | AP8: 1 | AQ8: =SMALL(AO$8:AO$57,AP8) ->  | AR8: =INDEX(AN:AN,AQ$8:AQ$57) -> 
B9: =SUMIF(F18A!$A$9:$A$60,'F18'!A9,F18A!$B$9:$B$60) -> 0.00 | C9: =SUMIF(F18A!$A$9:$A$60,'F18'!A9,F18A!$C$9:$C$60) -> 0.00 | D9: =B9+C9 -> 0.00 | E9: =SUMIF(F18A!$A$9:$A$60,'F18'!A9,F18A!$E$9:$E$60) -> 0.00 | F9: =SUMIF(F18A!$A$9:$A$60,'F18'!A9,F18A!$F$9:$F$60) -> 0.00 | G9: =D9-E9 -> 0.00 | K9: =IF(SUM(M9:AK9)=25,L9,"") ->  | L9: =IF(AND(F18A!A37=0),"",F18A!A37) ->  | M9: =IF(AND(M7<>L9),1,"") ->  | N9: =IF(AND(N7<>L9),1,"") ->  | O9: =IF(AND(O7<>L9),1,"") ->  | P9: =IF(AND(P7<>L9),1,"") ->  | Q9: =IF(AND(Q7<>L9),1,"") ->  | R9: =IF(AND(R7<>L9),1,"") ->  | S9: =IF(AND(S7<>L9),1,"") ->  | T9: =IF(AND(T7<>L9),1,"") ->  | U9: =IF(AND(U7<>L9),1,"") ->  | V9: =IF(AND(V7<>L9),1,"") ->  | W9: =IF(AND(W7<>L9),1,"") ->  | X9: =IF(AND(X7<>L9),1,"") ->  | Y9: =IF(AND(Y7<>L9),1,"") ->  | Z9: =IF(AND(Z7<>L9),1,"") ->  | AA9: =IF(AND(AA7<>L9),1,"") ->  | AB9: =IF(AND(AB7<>L9),1,"") ->  | AC9: =IF(AND(AC7<>L9),1,"") ->  | AD9: =IF(AND(AD7<>L9),1,"") ->  | AE9: =IF(AND(AE7<>L9),1,"") ->  | AF9: =IF(AND(AF7<>L9),1,"") ->  | AG9: =IF(AND(AG7<>L9),1,"") ->  | AH9: =IF(AND(AH7<>L9),1,"") ->  | AI9: =IF(AND(AI7<>L9),1,"") ->  | AJ9: =IF(AND(AJ7<>L9),1,"") ->  | AK9: =IF(AND(AK7<>L9),1,"") ->  | AN9: =N$7 ->  | AO9: FALSE | AP9: 2 | AQ9: =SMALL(AO$8:AO$57,AP9) -> 
B10: =SUMIF(F18A!$A$9:$A$60,'F18'!A10,F18A!$B$9:$B$60) -> 0.00 | C10: =SUMIF(F18A!$A$9:$A$60,'F18'!A10,F18A!$C$9:$C$60) -> 0.00 | D10: 0.00 | E10: =SUMIF(F18A!$A$9:$A$60,'F18'!A10,F18A!$E$9:$E$60) -> 0.00 | F10: =SUMIF(F18A!$A$9:$A$60,'F18'!A10,F18A!$F$9:$F$60) -> 0.00 | G10: 0.00 | L10: =IF(AND(F18A!A38=0),"",F18A!A38) ->  | M10: =IF(AND(M7<>L10),1,"") ->  | N10: =IF(AND(N7<>L10),1,"") ->  | O10: =IF(AND(O7<>L10),1,"") ->  | P10: =IF(AND(P7<>L10),1,"") ->  | Q10: =IF(AND(Q7<>L10),1,"") ->  | R10: =IF(AND(R7<>L10),1,"") ->  | S10: =IF(AND(S7<>L10),1,"") ->  | T10: =IF(AND(T7<>L10),1,"") ->  | U10: =IF(AND(U7<>L10),1,"") ->  | V10: =IF(AND(V7<>L10),1,"") ->  | W10: =IF(AND(W7<>L10),1,"") ->  | X10: =IF(AND(X7<>L10),1,"") ->  | Y10: =IF(AND(Y7<>L10),1,"") ->  | Z10: =IF(AND(Z7<>L10),1,"") ->  | AA10: =IF(AND(AA7<>L10),1,"") ->  | AB10: =IF(AND(AB7<>L10),1,"") ->  | AC10: =IF(AND(AC7<>L10),1,"") ->  | AD10: =IF(AND(AD7<>L10),1,"") ->  | AE10: =IF(AND(AE7<>L10),1,"") ->  | AF10: =IF(AND(AF7<>L10),1,"") ->  | AG10: =IF(AND(AG7<>L10),1,"") ->  | AH10: =IF(AND(AH7<>L10),1,"") ->  | AI10: =IF(AND(AI7<>L10),1,"") ->  | AJ10: =IF(AND(AJ7<>L10),1,"") ->  | AK10: =IF(AND(AK7<>L10),1,"") ->  | AN10: =O$7 ->  | AO10: FALSE | AP10: 3
B11: =SUMIF(F18A!$A$9:$A$60,'F18'!A11,F18A!$B$9:$B$60) -> 0.00 | C11: =SUMIF(F18A!$A$9:$A$60,'F18'!A11,F18A!$C$9:$C$60) -> 0.00 | D11: 0.00 | E11: =SUMIF(F18A!$A$9:$A$60,'F18'!A11,F18A!$E$9:$E$60) -> 0.00 | F11: =SUMIF(F18A!$A$9:$A$60,'F18'!A11,F18A!$F$9:$F$60) -> 0.00 | G11: 0.00 | L11: =IF(AND(F18A!A39=0),"",F18A!A39) ->  | M11: =IF(AND(M7<>L11),1,"") ->  | N11: =IF(AND(N7<>L11),1,"") ->  | O11: =IF(AND(O7<>L11),1,"") ->  | P11: =IF(AND(P7<>L11),1,"") ->  | Q11: =IF(AND(Q7<>L11),1,"") ->  | R11: =IF(AND(R7<>L11),1,"") ->  | S11: =IF(AND(S7<>L11),1,"") ->  | T11: =IF(AND(T7<>L11),1,"") ->  | U11: =IF(AND(U7<>L11),1,"") ->  | V11: =IF(AND(V7<>L11),1,"") ->  | W11: =IF(AND(W7<>L11),1,"") ->  | X11: =IF(AND(X7<>L11),1,"") ->  | Y11: =IF(AND(Y7<>L11),1,"") ->  | Z11: =IF(AND(Z7<>L11),1,"") ->  | AA11: =IF(AND(AA7<>L11),1,"") ->  | AB11: =IF(AND(AB7<>L11),1,"") ->  | AC11: =IF(AND(AC7<>L11),1,"") ->  | AD11: =IF(AND(AD7<>L11),1,"") ->  | AE11: =IF(AND(AE7<>L11),1,"") ->  | AF11: =IF(AND(AF7<>L11),1,"") ->  | AG11: =IF(AND(AG7<>L11),1,"") ->  | AH11: =IF(AND(AH7<>L11),1,"") ->  | AI11: =IF(AND(AI7<>L11),1,"") ->  | AJ11: =IF(AND(AJ7<>L11),1,"") ->  | AK11: =IF(AND(AK7<>L11),1,"") ->  | AN11: =P$7 ->  | AO11: FALSE | AP11: 4
B12: =SUMIF(F18A!$A$9:$A$60,'F18'!A12,F18A!$B$9:$B$60) -> 0.00 | C12: =SUMIF(F18A!$A$9:$A$60,'F18'!A12,F18A!$C$9:$C$60) -> 0.00 | D12: 0.00 | E12: =SUMIF(F18A!$A$9:$A$60,'F18'!A12,F18A!$E$9:$E$60) -> 0.00 | F12: =SUMIF(F18A!$A$9:$A$60,'F18'!A12,F18A!$F$9:$F$60) -> 0.00 | G12: 0.00 | L12: =IF(AND(F18A!A40=0),"",F18A!A40) ->  | M12: =IF(AND(M7<>L12),1,"") ->  | N12: =IF(AND(N7<>L12),1,"") ->  | O12: =IF(AND(O7<>L12),1,"") ->  | P12: =IF(AND(P7<>L12),1,"") ->  | Q12: =IF(AND(Q7<>L12),1,"") ->  | R12: =IF(AND(R7<>L12),1,"") ->  | S12: =IF(AND(S7<>L12),1,"") ->  | T12: =IF(AND(T7<>L12),1,"") ->  | U12: =IF(AND(U7<>L12),1,"") ->  | V12: =IF(AND(V7<>L12),1,"") ->  | W12: =IF(AND(W7<>L12),1,"") ->  | X12: =IF(AND(X7<>L12),1,"") ->  | Y12: =IF(AND(Y7<>L12),1,"") ->  | Z12: =IF(AND(Z7<>L12),1,"") ->  | AA12: =IF(AND(AA7<>L12),1,"") ->  | AB12: =IF(AND(AB7<>L12),1,"") ->  | AC12: =IF(AND(AC7<>L12),1,"") ->  | AD12: =IF(AND(AD7<>L12),1,"") ->  | AE12: =IF(AND(AE7<>L12),1,"") ->  | AF12: =IF(AND(AF7<>L12),1,"") ->  | AG12: =IF(AND(AG7<>L12),1,"") ->  | AH12: =IF(AND(AH7<>L12),1,"") ->  | AI12: =IF(AND(AI7<>L12),1,"") ->  | AJ12: =IF(AND(AJ7<>L12),1,"") ->  | AK12: =IF(AND(AK7<>L12),1,"") ->  | AN12: =Q$7 ->  | AO12: FALSE | AP12: 5
B13: =SUMIF(F18A!$A$9:$A$60,'F18'!A13,F18A!$B$9:$B$60) -> 0.00 | C13: =SUMIF(F18A!$A$9:$A$60,'F18'!A13,F18A!$C$9:$C$60) -> 0.00 | D13: 0.00 | E13: =SUMIF(F18A!$A$9:$A$60,'F18'!A13,F18A!$E$9:$E$60) -> 0.00 | F13: =SUMIF(F18A!$A$9:$A$60,'F18'!A13,F18A!$F$9:$F$60) -> 0.00 | G13: 0.00 | L13: =IF(AND(F18A!A41=0),"",F18A!A41) ->  | M13: =IF(AND(M7<>L13),1,"") ->  | N13: =IF(AND(N7<>L13),1,"") ->  | O13: =IF(AND(O7<>L13),1,"") ->  | P13: =IF(AND(P7<>L13),1,"") ->  | Q13: =IF(AND(Q7<>L13),1,"") ->  | R13: =IF(AND(R7<>L13),1,"") ->  | S13: =IF(AND(S7<>L13),1,"") ->  | T13: =IF(AND(T7<>L13),1,"") ->  | U13: =IF(AND(U7<>L13),1,"") ->  | V13: =IF(AND(V7<>L13),1,"") ->  | W13: =IF(AND(W7<>L13),1,"") ->  | X13: =IF(AND(X7<>L13),1,"") ->  | Y13: =IF(AND(Y7<>L13),1,"") ->  | Z13: =IF(AND(Z7<>L13),1,"") ->  | AA13: =IF(AND(AA7<>L13),1,"") ->  | AB13: =IF(AND(AB7<>L13),1,"") ->  | AC13: =IF(AND(AC7<>L13),1,"") ->  | AD13: =IF(AND(AD7<>L13),1,"") ->  | AE13: =IF(AND(AE7<>L13),1,"") ->  | AF13: =IF(AND(AF7<>L13),1,"") ->  | AG13: =IF(AND(AG7<>L13),1,"") ->  | AH13: =IF(AND(AH7<>L13),1,"") ->  | AI13: =IF(AND(AI7<>L13),1,"") ->  | AJ13: =IF(AND(AJ7<>L13),1,"") ->  | AK13: =IF(AND(AK7<>L13),1,"") ->  | AN13: =R$7 ->  | AO13: FALSE | AP13: 6
B14: =SUMIF(F18A!$A$9:$A$60,'F18'!A14,F18A!$B$9:$B$60) -> 0.00 | C14: =SUMIF(F18A!$A$9:$A$60,'F18'!A14,F18A!$C$9:$C$60) -> 0.00 | D14: 0.00 | E14: =SUMIF(F18A!$A$9:$A$60,'F18'!A14,F18A!$E$9:$E$60) -> 0.00 | F14: =SUMIF(F18A!$A$9:$A$60,'F18'!A14,F18A!$F$9:$F$60) -> 0.00 | G14: 0.00 | L14: =IF(AND(F18A!A42=0),"",F18A!A42) ->  | M14: =IF(AND(M7<>L14),1,"") ->  | N14: =IF(AND(N7<>L14),1,"") ->  | O14: =IF(AND(O7<>L14),1,"") ->  | P14: =IF(AND(P7<>L14),1,"") ->  | Q14: =IF(AND(Q7<>L14),1,"") ->  | R14: =IF(AND(R7<>L14),1,"") ->  | S14: =IF(AND(S7<>L14),1,"") ->  | T14: =IF(AND(T7<>L14),1,"") ->  | U14: =IF(AND(U7<>L14),1,"") ->  | V14: =IF(AND(V7<>L14),1,"") ->  | W14: =IF(AND(W7<>L14),1,"") ->  | X14: =IF(AND(X7<>L14),1,"") ->  | Y14: =IF(AND(Y7<>L14),1,"") ->  | Z14: =IF(AND(Z7<>L14),1,"") ->  | AA14: =IF(AND(AA7<>L14),1,"") ->  | AB14: =IF(AND(AB7<>L14),1,"") ->  | AC14: =IF(AND(AC7<>L14),1,"") ->  | AD14: =IF(AND(AD7<>L14),1,"") ->  | AE14: =IF(AND(AE7<>L14),1,"") ->  | AF14: =IF(AND(AF7<>L14),1,"") ->  | AG14: =IF(AND(AG7<>L14),1,"") ->  | AH14: =IF(AND(AH7<>L14),1,"") ->  | AI14: =IF(AND(AI7<>L14),1,"") ->  | AJ14: =IF(AND(AJ7<>L14),1,"") ->  | AK14: =IF(AND(AK7<>L14),1,"") ->  | AN14: =S$7 ->  | AO14: =IF(AN$8:AN$57<>"",ROW(AN14:AN62)) -> FALSE | AP14: 7
B15: =SUMIF(F18A!$A$9:$A$60,'F18'!A15,F18A!$B$9:$B$60) -> 0.00 | C15: =SUMIF(F18A!$A$9:$A$60,'F18'!A15,F18A!$C$9:$C$60) -> 0.00 | D15: 0.00 | E15: =SUMIF(F18A!$A$9:$A$60,'F18'!A15,F18A!$E$9:$E$60) -> 0.00 | F15: =SUMIF(F18A!$A$9:$A$60,'F18'!A15,F18A!$F$9:$F$60) -> 0.00 | G15: 0.00 | L15: =IF(AND(F18A!A43=0),"",F18A!A43) ->  | M15: =IF(AND(M7<>L15),1,"") ->  | N15: =IF(AND(N7<>L15),1,"") ->  | O15: =IF(AND(O7<>L15),1,"") ->  | P15: =IF(AND(P7<>L15),1,"") ->  | Q15: =IF(AND(Q7<>L15),1,"") ->  | R15: =IF(AND(R7<>L15),1,"") ->  | S15: =IF(AND(S7<>L15),1,"") ->  | T15: =IF(AND(T7<>L15),1,"") ->  | U15: =IF(AND(U7<>L15),1,"") ->  | V15: =IF(AND(V7<>L15),1,"") ->  | W15: =IF(AND(W7<>L15),1,"") ->  | X15: =IF(AND(X7<>L15),1,"") ->  | Y15: =IF(AND(Y7<>L15),1,"") ->  | Z15: =IF(AND(Z7<>L15),1,"") ->  | AA15: =IF(AND(AA7<>L15),1,"") ->  | AB15: =IF(AND(AB7<>L15),1,"") ->  | AC15: =IF(AND(AC7<>L15),1,"") ->  | AD15: =IF(AND(AD7<>L15),1,"") ->  | AE15: =IF(AND(AE7<>L15),1,"") ->  | AF15: =IF(AND(AF7<>L15),1,"") ->  | AG15: =IF(AND(AG7<>L15),1,"") ->  | AH15: =IF(AND(AH7<>L15),1,"") ->  | AI15: =IF(AND(AI7<>L15),1,"") ->  | AJ15: =IF(AND(AJ7<>L15),1,"") ->  | AK15: =IF(AND(AK7<>L15),1,"") ->  | AN15: =T$7 ->  | AO15: =IF(AN$8:AN$57<>"",ROW(AN15:AN62)) -> FALSE | AP15: 8
B16: =SUMIF(F18A!$A$9:$A$60,'F18'!A16,F18A!$B$9:$B$60) -> 0.00 | C16: =SUMIF(F18A!$A$9:$A$60,'F18'!A16,F18A!$C$9:$C$60) -> 0.00 | D16: 0.00 | E16: =SUMIF(F18A!$A$9:$A$60,'F18'!A16,F18A!$E$9:$E$60) -> 0.00 | F16: =SUMIF(F18A!$A$9:$A$60,'F18'!A16,F18A!$F$9:$F$60) -> 0.00 | G16: 0.00 | L16: =IF(AND(F18A!A44=0),"",F18A!A44) ->  | M16: =IF(AND(M7<>L16),1,"") ->  | N16: =IF(AND(N7<>L16),1,"") ->  | O16: =IF(AND(O7<>L16),1,"") ->  | P16: =IF(AND(P7<>L16),1,"") ->  | Q16: =IF(AND(Q7<>L16),1,"") ->  | R16: =IF(AND(R7<>L16),1,"") ->  | S16: =IF(AND(S7<>L16),1,"") ->  | T16: =IF(AND(T7<>L16),1,"") ->  | U16: =IF(AND(U7<>L16),1,"") ->  | V16: =IF(AND(V7<>L16),1,"") ->  | W16: =IF(AND(W7<>L16),1,"") ->  | X16: =IF(AND(X7<>L16),1,"") ->  | Y16: =IF(AND(Y7<>L16),1,"") ->  | Z16: =IF(AND(Z7<>L16),1,"") ->  | AA16: =IF(AND(AA7<>L16),1,"") ->  | AB16: =IF(AND(AB7<>L16),1,"") ->  | AC16: =IF(AND(AC7<>L16),1,"") ->  | AD16: =IF(AND(AD7<>L16),1,"") ->  | AE16: =IF(AND(AE7<>L16),1,"") ->  | AF16: =IF(AND(AF7<>L16),1,"") ->  | AG16: =IF(AND(AG7<>L16),1,"") ->  | AH16: =IF(AND(AH7<>L16),1,"") ->  | AI16: =IF(AND(AI7<>L16),1,"") ->  | AJ16: =IF(AND(AJ7<>L16),1,"") ->  | AK16: =IF(AND(AK7<>L16),1,"") ->  | AN16: =U$7 ->  | AO16: =IF(AN$8:AN$57<>"",ROW(AN16:AN62)) -> FALSE | AP16: 9
B17: =SUMIF(F18A!$A$9:$A$60,'F18'!A17,F18A!$B$9:$B$60) -> 0.00 | C17: =SUMIF(F18A!$A$9:$A$60,'F18'!A17,F18A!$C$9:$C$60) -> 0.00 | D17: 0.00 | E17: =SUMIF(F18A!$A$9:$A$60,'F18'!A17,F18A!$E$9:$E$60) -> 0.00 | F17: =SUMIF(F18A!$A$9:$A$60,'F18'!A17,F18A!$F$9:$F$60) -> 0.00 | G17: 0.00 | L17: =IF(AND(F18A!A45=0),"",F18A!A45) ->  | M17: =IF(AND(M7<>L17),1,"") ->  | N17: =IF(AND(N7<>L17),1,"") ->  | O17: =IF(AND(O7<>L17),1,"") ->  | P17: =IF(AND(P7<>L17),1,"") ->  | Q17: =IF(AND(Q7<>L17),1,"") ->  | R17: =IF(AND(R7<>L17),1,"") ->  | S17: =IF(AND(S7<>L17),1,"") ->  | T17: =IF(AND(T7<>L17),1,"") ->  | U17: =IF(AND(U7<>L17),1,"") ->  | V17: =IF(AND(V7<>L17),1,"") ->  | W17: =IF(AND(W7<>L17),1,"") ->  | X17: =IF(AND(X7<>L17),1,"") ->  | Y17: =IF(AND(Y7<>L17),1,"") ->  | Z17: =IF(AND(Z7<>L17),1,"") ->  | AA17: =IF(AND(AA7<>L17),1,"") ->  | AB17: =IF(AND(AB7<>L17),1,"") ->  | AC17: =IF(AND(AC7<>L17),1,"") ->  | AD17: =IF(AND(AD7<>L17),1,"") ->  | AE17: =IF(AND(AE7<>L17),1,"") ->  | AF17: =IF(AND(AF7<>L17),1,"") ->  | AG17: =IF(AND(AG7<>L17),1,"") ->  | AH17: =IF(AND(AH7<>L17),1,"") ->  | AI17: =IF(AND(AI7<>L17),1,"") ->  | AJ17: =IF(AND(AJ7<>L17),1,"") ->  | AK17: =IF(AND(AK7<>L17),1,"") ->  | AN17: =V$7 ->  | AO17: =IF(AN$8:AN$57<>"",ROW(AN17:AN62)) -> FALSE | AP17: 10
B18: =SUMIF(F18A!$A$9:$A$60,'F18'!A18,F18A!$B$9:$B$60) -> 0.00 | C18: =SUMIF(F18A!$A$9:$A$60,'F18'!A18,F18A!$C$9:$C$60) -> 0.00 | D18: 0.00 | E18: =SUMIF(F18A!$A$9:$A$60,'F18'!A18,F18A!$E$9:$E$60) -> 0.00 | F18: =SUMIF(F18A!$A$9:$A$60,'F18'!A18,F18A!$F$9:$F$60) -> 0.00 | G18: 0.00 | L18: =IF(AND(F18A!A46=0),"",F18A!A46) ->  | M18: =IF(AND(M7<>L18),1,"") ->  | N18: =IF(AND(N7<>L18),1,"") ->  | O18: =IF(AND(O7<>L18),1,"") ->  | P18: =IF(AND(P7<>L18),1,"") ->  | Q18: =IF(AND(Q7<>L18),1,"") ->  | R18: =IF(AND(R7<>L18),1,"") ->  | S18: =IF(AND(S7<>L18),1,"") ->  | T18: =IF(AND(T7<>L18),1,"") ->  | U18: =IF(AND(U7<>L18),1,"") ->  | V18: =IF(AND(V7<>L18),1,"") ->  | W18: =IF(AND(W7<>L18),1,"") ->  | X18: =IF(AND(X7<>L18),1,"") ->  | Y18: =IF(AND(Y7<>L18),1,"") ->  | Z18: =IF(AND(Z7<>L18),1,"") ->  | AA18: =IF(AND(AA7<>L18),1,"") ->  | AB18: =IF(AND(AB7<>L18),1,"") ->  | AC18: =IF(AND(AC7<>L18),1,"") ->  | AD18: =IF(AND(AD7<>L18),1,"") ->  | AE18: =IF(AND(AE7<>L18),1,"") ->  | AF18: =IF(AND(AF7<>L18),1,"") ->  | AG18: =IF(AND(AG7<>L18),1,"") ->  | AH18: =IF(AND(AH7<>L18),1,"") ->  | AI18: =IF(AND(AI7<>L18),1,"") ->  | AJ18: =IF(AND(AJ7<>L18),1,"") ->  | AK18: =IF(AND(AK7<>L18),1,"") ->  | AN18: =W$7 ->  | AO18: =IF(AN$8:AN$57<>"",ROW(AN18:AN62)) -> FALSE | AP18: 11
B19: =SUMIF(F18A!$A$9:$A$60,'F18'!A19,F18A!$B$9:$B$60) -> 0.00 | C19: =SUMIF(F18A!$A$9:$A$60,'F18'!A19,F18A!$C$9:$C$60) -> 0.00 | D19: 0.00 | E19: =SUMIF(F18A!$A$9:$A$60,'F18'!A19,F18A!$E$9:$E$60) -> 0.00 | F19: =SUMIF(F18A!$A$9:$A$60,'F18'!A19,F18A!$F$9:$F$60) -> 0.00 | G19: 0.00 | L19: =IF(AND(F18A!A47=0),"",F18A!A47) ->  | M19: =IF(AND(M7<>L19),1,"") ->  | N19: =IF(AND(N7<>L19),1,"") ->  | O19: =IF(AND(O7<>L19),1,"") ->  | P19: =IF(AND(P7<>L19),1,"") ->  | Q19: =IF(AND(Q7<>L19),1,"") ->  | R19: =IF(AND(R7<>L19),1,"") ->  | S19: =IF(AND(S7<>L19),1,"") ->  | T19: =IF(AND(T7<>L19),1,"") ->  | U19: =IF(AND(U7<>L19),1,"") ->  | V19: =IF(AND(V7<>L19),1,"") ->  | W19: =IF(AND(W7<>L19),1,"") ->  | X19: =IF(AND(X7<>L19),1,"") ->  | Y19: =IF(AND(Y7<>L19),1,"") ->  | Z19: =IF(AND(Z7<>L19),1,"") ->  | AA19: =IF(AND(AA7<>L19),1,"") ->  | AB19: =IF(AND(AB7<>L19),1,"") ->  | AC19: =IF(AND(AC7<>L19),1,"") ->  | AD19: =IF(AND(AD7<>L19),1,"") ->  | AE19: =IF(AND(AE7<>L19),1,"") ->  | AF19: =IF(AND(AF7<>L19),1,"") ->  | AG19: =IF(AND(AG7<>L19),1,"") ->  | AH19: =IF(AND(AH7<>L19),1,"") ->  | AI19: =IF(AND(AI7<>L19),1,"") ->  | AJ19: =IF(AND(AJ7<>L19),1,"") ->  | AK19: =IF(AND(AK7<>L19),1,"") ->  | AN19: =X$7 ->  | AO19: =IF(AN$8:AN$57<>"",ROW(AN19:AN62)) -> FALSE | AP19: 12
B20: =SUMIF(F18A!$A$9:$A$60,'F18'!A20,F18A!$B$9:$B$60) -> 0.00 | C20: =SUMIF(F18A!$A$9:$A$60,'F18'!A20,F18A!$C$9:$C$60) -> 0.00 | D20: 0.00 | E20: =SUMIF(F18A!$A$9:$A$60,'F18'!A20,F18A!$E$9:$E$60) -> 0.00 | F20: =SUMIF(F18A!$A$9:$A$60,'F18'!A20,F18A!$F$9:$F$60) -> 0.00 | G20: 0.00 | L20: =IF(AND(F18A!A48=0),"",F18A!A48) ->  | M20: =IF(AND(M7<>L20),1,"") ->  | N20: =IF(AND(N7<>L20),1,"") ->  | O20: =IF(AND(O7<>L20),1,"") ->  | P20: =IF(AND(P7<>L20),1,"") ->  | Q20: =IF(AND(Q7<>L20),1,"") ->  | R20: =IF(AND(R7<>L20),1,"") ->  | S20: =IF(AND(S7<>L20),1,"") ->  | T20: =IF(AND(T7<>L20),1,"") ->  | U20: =IF(AND(U7<>L20),1,"") ->  | V20: =IF(AND(V7<>L20),1,"") ->  | W20: =IF(AND(W7<>L20),1,"") ->  | X20: =IF(AND(X7<>L20),1,"") ->  | Y20: =IF(AND(Y7<>L20),1,"") ->  | Z20: =IF(AND(Z7<>L20),1,"") ->  | AA20: =IF(AND(AA7<>L20),1,"") ->  | AB20: =IF(AND(AB7<>L20),1,"") ->  | AC20: =IF(AND(AC7<>L20),1,"") ->  | AD20: =IF(AND(AD7<>L20),1,"") ->  | AE20: =IF(AND(AE7<>L20),1,"") ->  | AF20: =IF(AND(AF7<>L20),1,"") ->  | AG20: =IF(AND(AG7<>L20),1,"") ->  | AH20: =IF(AND(AH7<>L20),1,"") ->  | AI20: =IF(AND(AI7<>L20),1,"") ->  | AJ20: =IF(AND(AJ7<>L20),1,"") ->  | AK20: =IF(AND(AK7<>L20),1,"") ->  | AN20: =Y$7 ->  | AO20: FALSE | AP20: 13
B21: =SUMIF(F18A!$A$9:$A$60,'F18'!A21,F18A!$B$9:$B$60) -> 0.00 | C21: =SUMIF(F18A!$A$9:$A$60,'F18'!A21,F18A!$C$9:$C$60) -> 0.00 | D21: 0.00 | E21: =SUMIF(F18A!$A$9:$A$60,'F18'!A21,F18A!$E$9:$E$60) -> 0.00 | F21: =SUMIF(F18A!$A$9:$A$60,'F18'!A21,F18A!$F$9:$F$60) -> 0.00 | G21: 0.00 | L21: =IF(AND(F18A!A49=0),"",F18A!A49) ->  | M21: =IF(AND(M7<>L21),1,"") ->  | N21: =IF(AND(N7<>L21),1,"") ->  | O21: =IF(AND(O7<>L21),1,"") ->  | P21: =IF(AND(P7<>L21),1,"") ->  | Q21: =IF(AND(Q7<>L21),1,"") ->  | R21: =IF(AND(R7<>L21),1,"") ->  | S21: =IF(AND(S7<>L21),1,"") ->  | T21: =IF(AND(T7<>L21),1,"") ->  | U21: =IF(AND(U7<>L21),1,"") ->  | V21: =IF(AND(V7<>L21),1,"") ->  | W21: =IF(AND(W7<>L21),1,"") ->  | X21: =IF(AND(X7<>L21),1,"") ->  | Y21: =IF(AND(Y7<>L21),1,"") ->  | Z21: =IF(AND(Z7<>L21),1,"") ->  | AA21: =IF(AND(AA7<>L21),1,"") ->  | AB21: =IF(AND(AB7<>L21),1,"") ->  | AC21: =IF(AND(AC7<>L21),1,"") ->  | AD21: =IF(AND(AD7<>L21),1,"") ->  | AE21: =IF(AND(AE7<>L21),1,"") ->  | AF21: =IF(AND(AF7<>L21),1,"") ->  | AG21: =IF(AND(AG7<>L21),1,"") ->  | AH21: =IF(AND(AH7<>L21),1,"") ->  | AI21: =IF(AND(AI7<>L21),1,"") ->  | AJ21: =IF(AND(AJ7<>L21),1,"") ->  | AK21: =IF(AND(AK7<>L21),1,"") ->  | AN21: =Z$7 ->  | AO21: FALSE | AP21: 14
B22: =SUMIF(F18A!$A$9:$A$60,'F18'!A22,F18A!$B$9:$B$60) -> 0.00 | C22: =SUMIF(F18A!$A$9:$A$60,'F18'!A22,F18A!$C$9:$C$60) -> 0.00 | D22: 0.00 | E22: =SUMIF(F18A!$A$9:$A$60,'F18'!A22,F18A!$E$9:$E$60) -> 0.00 | F22: =SUMIF(F18A!$A$9:$A$60,'F18'!A22,F18A!$F$9:$F$60) -> 0.00 | G22: 0.00 | L22: =IF(AND(F18A!A50=0),"",F18A!A50) ->  | M22: =IF(AND(M7<>L22),1,"") ->  | N22: =IF(AND(N7<>L22),1,"") ->  | O22: =IF(AND(O7<>L22),1,"") ->  | P22: =IF(AND(P7<>L22),1,"") ->  | Q22: =IF(AND(Q7<>L22),1,"") ->  | R22: =IF(AND(R7<>L22),1,"") ->  | S22: =IF(AND(S7<>L22),1,"") ->  | T22: =IF(AND(T7<>L22),1,"") ->  | U22: =IF(AND(U7<>L22),1,"") ->  | V22: =IF(AND(V7<>L22),1,"") ->  | W22: =IF(AND(W7<>L22),1,"") ->  | X22: =IF(AND(X7<>L22),1,"") ->  | Y22: =IF(AND(Y7<>L22),1,"") ->  | Z22: =IF(AND(Z7<>L22),1,"") ->  | AA22: =IF(AND(AA7<>L22),1,"") ->  | AB22: =IF(AND(AB7<>L22),1,"") ->  | AC22: =IF(AND(AC7<>L22),1,"") ->  | AD22: =IF(AND(AD7<>L22),1,"") ->  | AE22: =IF(AND(AE7<>L22),1,"") ->  | AF22: =IF(AND(AF7<>L22),1,"") ->  | AG22: =IF(AND(AG7<>L22),1,"") ->  | AH22: =IF(AND(AH7<>L22),1,"") ->  | AI22: =IF(AND(AI7<>L22),1,"") ->  | AJ22: =IF(AND(AJ7<>L22),1,"") ->  | AK22: =IF(AND(AK7<>L22),1,"") ->  | AN22: =AA$7 ->  | AO22: FALSE | AP22: 15
B23: =SUMIF(F18A!$A$9:$A$60,'F18'!A23,F18A!$B$9:$B$60) -> 0.00 | C23: =SUMIF(F18A!$A$9:$A$60,'F18'!A23,F18A!$C$9:$C$60) -> 0.00 | D23: 0.00 | E23: =SUMIF(F18A!$A$9:$A$60,'F18'!A23,F18A!$E$9:$E$60) -> 0.00 | F23: =SUMIF(F18A!$A$9:$A$60,'F18'!A23,F18A!$F$9:$F$60) -> 0.00 | G23: 0.00 | L23: =IF(AND(F18A!A51=0),"",F18A!A51) ->  | M23: =IF(AND(M7<>L23),1,"") ->  | N23: =IF(AND(N7<>L23),1,"") ->  | O23: =IF(AND(O7<>L23),1,"") ->  | P23: =IF(AND(P7<>L23),1,"") ->  | Q23: =IF(AND(Q7<>L23),1,"") ->  | R23: =IF(AND(R7<>L23),1,"") ->  | S23: =IF(AND(S7<>L23),1,"") ->  | T23: =IF(AND(T7<>L23),1,"") ->  | U23: =IF(AND(U7<>L23),1,"") ->  | V23: =IF(AND(V7<>L23),1,"") ->  | W23: =IF(AND(W7<>L23),1,"") ->  | X23: =IF(AND(X7<>L23),1,"") ->  | Y23: =IF(AND(Y7<>L23),1,"") ->  | Z23: =IF(AND(Z7<>L23),1,"") ->  | AA23: =IF(AND(AA7<>L23),1,"") ->  | AB23: =IF(AND(AB7<>L23),1,"") ->  | AC23: =IF(AND(AC7<>L23),1,"") ->  | AD23: =IF(AND(AD7<>L23),1,"") ->  | AE23: =IF(AND(AE7<>L23),1,"") ->  | AF23: =IF(AND(AF7<>L23),1,"") ->  | AG23: =IF(AND(AG7<>L23),1,"") ->  | AH23: =IF(AND(AH7<>L23),1,"") ->  | AI23: =IF(AND(AI7<>L23),1,"") ->  | AJ23: =IF(AND(AJ7<>L23),1,"") ->  | AK23: =IF(AND(AK7<>L23),1,"") ->  | AN23: =AB$7 ->  | AO23: FALSE | AP23: 16
B24: =SUMIF(F18A!$A$9:$A$60,'F18'!A24,F18A!$B$9:$B$60) -> 0.00 | C24: =SUMIF(F18A!$A$9:$A$60,'F18'!A24,F18A!$C$9:$C$60) -> 0.00 | D24: 0.00 | E24: =SUMIF(F18A!$A$9:$A$60,'F18'!A24,F18A!$E$9:$E$60) -> 0.00 | F24: =SUMIF(F18A!$A$9:$A$60,'F18'!A24,F18A!$F$9:$F$60) -> 0.00 | G24: 0.00 | L24: =IF(AND(F18A!A52=0),"",F18A!A52) ->  | M24: =IF(AND(M7<>L24),1,"") ->  | N24: =IF(AND(N7<>L24),1,"") ->  | O24: =IF(AND(O7<>L24),1,"") ->  | P24: =IF(AND(P7<>L24),1,"") ->  | Q24: =IF(AND(Q7<>L24),1,"") ->  | R24: =IF(AND(R7<>L24),1,"") ->  | S24: =IF(AND(S7<>L24),1,"") ->  | T24: =IF(AND(T7<>L24),1,"") ->  | U24: =IF(AND(U7<>L24),1,"") ->  | V24: =IF(AND(V7<>L24),1,"") ->  | W24: =IF(AND(W7<>L24),1,"") ->  | X24: =IF(AND(X7<>L24),1,"") ->  | Y24: =IF(AND(Y7<>L24),1,"") ->  | Z24: =IF(AND(Z7<>L24),1,"") ->  | AA24: =IF(AND(AA7<>L24),1,"") ->  | AB24: =IF(AND(AB7<>L24),1,"") ->  | AC24: =IF(AND(AC7<>L24),1,"") ->  | AD24: =IF(AND(AD7<>L24),1,"") ->  | AE24: =IF(AND(AE7<>L24),1,"") ->  | AF24: =IF(AND(AF7<>L24),1,"") ->  | AG24: =IF(AND(AG7<>L24),1,"") ->  | AH24: =IF(AND(AH7<>L24),1,"") ->  | AI24: =IF(AND(AI7<>L24),1,"") ->  | AJ24: =IF(AND(AJ7<>L24),1,"") ->  | AK24: =IF(AND(AK7<>L24),1,"") ->  | AN24: =AC$7 ->  | AO24: FALSE | AP24: 17
B25: =SUMIF(F18A!$A$9:$A$60,'F18'!A25,F18A!$B$9:$B$60) -> 0.00 | C25: =SUMIF(F18A!$A$9:$A$60,'F18'!A25,F18A!$C$9:$C$60) -> 0.00 | D25: 0.00 | E25: =SUMIF(F18A!$A$9:$A$60,'F18'!A25,F18A!$E$9:$E$60) -> 0.00 | F25: =SUMIF(F18A!$A$9:$A$60,'F18'!A25,F18A!$F$9:$F$60) -> 0.00 | G25: 0.00 | L25: =IF(AND(F18A!A53=0),"",F18A!A53) ->  | M25: =IF(AND(M7<>L25),1,"") ->  | N25: =IF(AND(N7<>L25),1,"") ->  | O25: =IF(AND(O7<>L25),1,"") ->  | P25: =IF(AND(P7<>L25),1,"") ->  | Q25: =IF(AND(Q7<>L25),1,"") ->  | R25: =IF(AND(R7<>L25),1,"") ->  | S25: =IF(AND(S7<>L25),1,"") ->  | T25: =IF(AND(T7<>L25),1,"") ->  | U25: =IF(AND(U7<>L25),1,"") ->  | V25: =IF(AND(V7<>L25),1,"") ->  | W25: =IF(AND(W7<>L25),1,"") ->  | X25: =IF(AND(X7<>L25),1,"") ->  | Y25: =IF(AND(Y7<>L25),1,"") ->  | Z25: =IF(AND(Z7<>L25),1,"") ->  | AA25: =IF(AND(AA7<>L25),1,"") ->  | AB25: =IF(AND(AB7<>L25),1,"") ->  | AC25: =IF(AND(AC7<>L25),1,"") ->  | AD25: =IF(AND(AD7<>L25),1,"") ->  | AE25: =IF(AND(AE7<>L25),1,"") ->  | AF25: =IF(AND(AF7<>L25),1,"") ->  | AG25: =IF(AND(AG7<>L25),1,"") ->  | AH25: =IF(AND(AH7<>L25),1,"") ->  | AI25: =IF(AND(AI7<>L25),1,"") ->  | AJ25: =IF(AND(AJ7<>L25),1,"") ->  | AK25: =IF(AND(AK7<>L25),1,"") ->  | AN25: =AD$7 ->  | AO25: FALSE | AP25: 18
B26: =SUMIF(F18A!$A$9:$A$60,'F18'!A26,F18A!$B$9:$B$60) -> 0.00 | C26: =SUMIF(F18A!$A$9:$A$60,'F18'!A26,F18A!$C$9:$C$60) -> 0.00 | D26: 0.00 | E26: =SUMIF(F18A!$A$9:$A$60,'F18'!A26,F18A!$E$9:$E$60) -> 0.00 | F26: =SUMIF(F18A!$A$9:$A$60,'F18'!A26,F18A!$F$9:$F$60) -> 0.00 | G26: 0.00 | L26: =IF(AND(F18A!A54=0),"",F18A!A54) ->  | M26: =IF(AND(M7<>L26),1,"") ->  | N26: =IF(AND(N7<>L26),1,"") ->  | O26: =IF(AND(O7<>L26),1,"") ->  | P26: =IF(AND(P7<>L26),1,"") ->  | Q26: =IF(AND(Q7<>L26),1,"") ->  | R26: =IF(AND(R7<>L26),1,"") ->  | S26: =IF(AND(S7<>L26),1,"") ->  | T26: =IF(AND(T7<>L26),1,"") ->  | U26: =IF(AND(U7<>L26),1,"") ->  | V26: =IF(AND(V7<>L26),1,"") ->  | W26: =IF(AND(W7<>L26),1,"") ->  | X26: =IF(AND(X7<>L26),1,"") ->  | Y26: =IF(AND(Y7<>L26),1,"") ->  | Z26: =IF(AND(Z7<>L26),1,"") ->  | AA26: =IF(AND(AA7<>L26),1,"") ->  | AB26: =IF(AND(AB7<>L26),1,"") ->  | AC26: =IF(AND(AC7<>L26),1,"") ->  | AD26: =IF(AND(AD7<>L26),1,"") ->  | AE26: =IF(AND(AE7<>L26),1,"") ->  | AF26: =IF(AND(AF7<>L26),1,"") ->  | AG26: =IF(AND(AG7<>L26),1,"") ->  | AH26: =IF(AND(AH7<>L26),1,"") ->  | AI26: =IF(AND(AI7<>L26),1,"") ->  | AJ26: =IF(AND(AJ7<>L26),1,"") ->  | AK26: =IF(AND(AK7<>L26),1,"") ->  | AN26: =AE$7 ->  | AO26: FALSE | AP26: 19
B27: =SUMIF(F18A!$A$9:$A$60,'F18'!A27,F18A!$B$9:$B$60) -> 0.00 | C27: =SUMIF(F18A!$A$9:$A$60,'F18'!A27,F18A!$C$9:$C$60) -> 0.00 | D27: 0.00 | E27: =SUMIF(F18A!$A$9:$A$60,'F18'!A27,F18A!$E$9:$E$60) -> 0.00 | F27: =SUMIF(F18A!$A$9:$A$60,'F18'!A27,F18A!$F$9:$F$60) -> 0.00 | G27: 0.00 | L27: =IF(AND(F18A!A55=0),"",F18A!A55) ->  | M27: =IF(AND(M7<>L27),1,"") ->  | N27: =IF(AND(N7<>L27),1,"") ->  | O27: =IF(AND(O7<>L27),1,"") ->  | P27: =IF(AND(P7<>L27),1,"") ->  | Q27: =IF(AND(Q7<>L27),1,"") ->  | R27: =IF(AND(R7<>L27),1,"") ->  | S27: =IF(AND(S7<>L27),1,"") ->  | T27: =IF(AND(T7<>L27),1,"") ->  | U27: =IF(AND(U7<>L27),1,"") ->  | V27: =IF(AND(V7<>L27),1,"") ->  | W27: =IF(AND(W7<>L27),1,"") ->  | X27: =IF(AND(X7<>L27),1,"") ->  | Y27: =IF(AND(Y7<>L27),1,"") ->  | Z27: =IF(AND(Z7<>L27),1,"") ->  | AA27: =IF(AND(AA7<>L27),1,"") ->  | AB27: =IF(AND(AB7<>L27),1,"") ->  | AC27: =IF(AND(AC7<>L27),1,"") ->  | AD27: =IF(AND(AD7<>L27),1,"") ->  | AE27: =IF(AND(AE7<>L27),1,"") ->  | AF27: =IF(AND(AF7<>L27),1,"") ->  | AG27: =IF(AND(AG7<>L27),1,"") ->  | AH27: =IF(AND(AH7<>L27),1,"") ->  | AI27: =IF(AND(AI7<>L27),1,"") ->  | AJ27: =IF(AND(AJ7<>L27),1,"") ->  | AK27: =IF(AND(AK7<>L27),1,"") ->  | AN27: =AF$7 ->  | AO27: FALSE | AP27: 20
B28: =SUMIF(F18A!$A$9:$A$60,'F18'!A28,F18A!$B$9:$B$60) -> 0.00 | C28: =SUMIF(F18A!$A$9:$A$60,'F18'!A28,F18A!$C$9:$C$60) -> 0.00 | D28: 0.00 | E28: =SUMIF(F18A!$A$9:$A$60,'F18'!A28,F18A!$E$9:$E$60) -> 0.00 | F28: =SUMIF(F18A!$A$9:$A$60,'F18'!A28,F18A!$F$9:$F$60) -> 0.00 | G28: 0.00 | L28: =IF(AND(F18A!A56=0),"",F18A!A56) ->  | M28: =IF(AND(M7<>L28),1,"") ->  | N28: =IF(AND(N7<>L28),1,"") ->  | O28: =IF(AND(O7<>L28),1,"") ->  | P28: =IF(AND(P7<>L28),1,"") ->  | Q28: =IF(AND(Q7<>L28),1,"") ->  | R28: =IF(AND(R7<>L28),1,"") ->  | S28: =IF(AND(S7<>L28),1,"") ->  | T28: =IF(AND(T7<>L28),1,"") ->  | U28: =IF(AND(U7<>L28),1,"") ->  | V28: =IF(AND(V7<>L28),1,"") ->  | W28: =IF(AND(W7<>L28),1,"") ->  | X28: =IF(AND(X7<>L28),1,"") ->  | Y28: =IF(AND(Y7<>L28),1,"") ->  | Z28: =IF(AND(Z7<>L28),1,"") ->  | AA28: =IF(AND(AA7<>L28),1,"") ->  | AB28: =IF(AND(AB7<>L28),1,"") ->  | AC28: =IF(AND(AC7<>L28),1,"") ->  | AD28: =IF(AND(AD7<>L28),1,"") ->  | AE28: =IF(AND(AE7<>L28),1,"") ->  | AF28: =IF(AND(AF7<>L28),1,"") ->  | AG28: =IF(AND(AG7<>L28),1,"") ->  | AH28: =IF(AND(AH7<>L28),1,"") ->  | AI28: =IF(AND(AI7<>L28),1,"") ->  | AJ28: =IF(AND(AJ7<>L28),1,"") ->  | AK28: =IF(AND(AK7<>L28),1,"") ->  | AN28: =AG$7 ->  | AO28: FALSE | AP28: 21
B29: =SUMIF(F18A!$A$9:$A$60,'F18'!A29,F18A!$B$9:$B$60) -> 0.00 | C29: =SUMIF(F18A!$A$9:$A$60,'F18'!A29,F18A!$C$9:$C$60) -> 0.00 | D29: 0.00 | E29: =SUMIF(F18A!$A$9:$A$60,'F18'!A29,F18A!$E$9:$E$60) -> 0.00 | F29: =SUMIF(F18A!$A$9:$A$60,'F18'!A29,F18A!$F$9:$F$60) -> 0.00 | G29: 0.00 | L29: =IF(AND(F18A!A57=0),"",F18A!A57) ->  | M29: =IF(AND(M7<>L29),1,"") ->  | N29: =IF(AND(N7<>L29),1,"") ->  | O29: =IF(AND(O7<>L29),1,"") ->  | P29: =IF(AND(P7<>L29),1,"") ->  | Q29: =IF(AND(Q7<>L29),1,"") ->  | R29: =IF(AND(R7<>L29),1,"") ->  | S29: =IF(AND(S7<>L29),1,"") ->  | T29: =IF(AND(T7<>L29),1,"") ->  | U29: =IF(AND(U7<>L29),1,"") ->  | V29: =IF(AND(V7<>L29),1,"") ->  | W29: =IF(AND(W7<>L29),1,"") ->  | X29: =IF(AND(X7<>L29),1,"") ->  | Y29: =IF(AND(Y7<>L29),1,"") ->  | Z29: =IF(AND(Z7<>L29),1,"") ->  | AA29: =IF(AND(AA7<>L29),1,"") ->  | AB29: =IF(AND(AB7<>L29),1,"") ->  | AC29: =IF(AND(AC7<>L29),1,"") ->  | AD29: =IF(AND(AD7<>L29),1,"") ->  | AE29: =IF(AND(AE7<>L29),1,"") ->  | AF29: =IF(AND(AF7<>L29),1,"") ->  | AG29: =IF(AND(AG7<>L29),1,"") ->  | AH29: =IF(AND(AH7<>L29),1,"") ->  | AI29: =IF(AND(AI7<>L29),1,"") ->  | AJ29: =IF(AND(AJ7<>L29),1,"") ->  | AK29: =IF(AND(AK7<>L29),1,"") ->  | AN29: =AH$7 ->  | AO29: FALSE | AP29: 22
B30: =SUMIF(F18A!$A$9:$A$60,'F18'!A30,F18A!$B$9:$B$60) -> 0.00 | C30: =SUMIF(F18A!$A$9:$A$60,'F18'!A30,F18A!$C$9:$C$60) -> 0.00 | D30: 0.00 | E30: =SUMIF(F18A!$A$9:$A$60,'F18'!A30,F18A!$E$9:$E$60) -> 0.00 | F30: =SUMIF(F18A!$A$9:$A$60,'F18'!A30,F18A!$F$9:$F$60) -> 0.00 | G30: 0.00 | L30: =IF(AND(F18A!A58=0),"",F18A!A58) ->  | M30: =IF(AND(M7<>L30),1,"") ->  | N30: =IF(AND(N7<>L30),1,"") ->  | O30: =IF(AND(O7<>L30),1,"") ->  | P30: =IF(AND(P7<>L30),1,"") ->  | Q30: =IF(AND(Q7<>L30),1,"") ->  | R30: =IF(AND(R7<>L30),1,"") ->  | S30: =IF(AND(S7<>L30),1,"") ->  | T30: =IF(AND(T7<>L30),1,"") ->  | U30: =IF(AND(U7<>L30),1,"") ->  | V30: =IF(AND(V7<>L30),1,"") ->  | W30: =IF(AND(W7<>L30),1,"") ->  | X30: =IF(AND(X7<>L30),1,"") ->  | Y30: =IF(AND(Y7<>L30),1,"") ->  | Z30: =IF(AND(Z7<>L30),1,"") ->  | AA30: =IF(AND(AA7<>L30),1,"") ->  | AB30: =IF(AND(AB7<>L30),1,"") ->  | AC30: =IF(AND(AC7<>L30),1,"") ->  | AD30: =IF(AND(AD7<>L30),1,"") ->  | AE30: =IF(AND(AE7<>L30),1,"") ->  | AF30: =IF(AND(AF7<>L30),1,"") ->  | AG30: =IF(AND(AG7<>L30),1,"") ->  | AH30: =IF(AND(AH7<>L30),1,"") ->  | AI30: =IF(AND(AI7<>L30),1,"") ->  | AJ30: =IF(AND(AJ7<>L30),1,"") ->  | AK30: =IF(AND(AK7<>L30),1,"") ->  | AN30: =AI$7 ->  | AO30: FALSE | AP30: 23
B31: =SUMIF(F18A!$A$9:$A$60,'F18'!A31,F18A!$B$9:$B$60) -> 0.00 | C31: =SUMIF(F18A!$A$9:$A$60,'F18'!A31,F18A!$C$9:$C$60) -> 0.00 | D31: 0.00 | E31: =SUMIF(F18A!$A$9:$A$60,'F18'!A31,F18A!$E$9:$E$60) -> 0.00 | F31: =SUMIF(F18A!$A$9:$A$60,'F18'!A31,F18A!$F$9:$F$60) -> 0.00 | G31: 0.00 | L31: =IF(AND(F18A!A59=0),"",F18A!A59) ->  | M31: =IF(AND(M7<>L31),1,"") ->  | N31: =IF(AND(N7<>L31),1,"") ->  | O31: =IF(AND(O7<>L31),1,"") ->  | P31: =IF(AND(P7<>L31),1,"") ->  | Q31: =IF(AND(Q7<>L31),1,"") ->  | R31: =IF(AND(R7<>L31),1,"") ->  | S31: =IF(AND(S7<>L31),1,"") ->  | T31: =IF(AND(T7<>L31),1,"") ->  | U31: =IF(AND(U7<>L31),1,"") ->  | V31: =IF(AND(V7<>L31),1,"") ->  | W31: =IF(AND(W7<>L31),1,"") ->  | X31: =IF(AND(X7<>L31),1,"") ->  | Y31: =IF(AND(Y7<>L31),1,"") ->  | Z31: =IF(AND(Z7<>L31),1,"") ->  | AA31: =IF(AND(AA7<>L31),1,"") ->  | AB31: =IF(AND(AB7<>L31),1,"") ->  | AC31: =IF(AND(AC7<>L31),1,"") ->  | AD31: =IF(AND(AD7<>L31),1,"") ->  | AE31: =IF(AND(AE7<>L31),1,"") ->  | AF31: =IF(AND(AF7<>L31),1,"") ->  | AG31: =IF(AND(AG7<>L31),1,"") ->  | AH31: =IF(AND(AH7<>L31),1,"") ->  | AI31: =IF(AND(AI7<>L31),1,"") ->  | AJ31: =IF(AND(AJ7<>L31),1,"") ->  | AK31: =IF(AND(AK7<>L31),1,"") ->  | AN31: =AJ$7 ->  | AO31: FALSE | AP31: 24
B32: =SUMIF(F18A!$A$9:$A$60,'F18'!A32,F18A!$B$9:$B$60) -> 0.00 | C32: =SUMIF(F18A!$A$9:$A$60,'F18'!A32,F18A!$C$9:$C$60) -> 0.00 | D32: 0.00 | E32: =SUMIF(F18A!$A$9:$A$60,'F18'!A32,F18A!$E$9:$E$60) -> 0.00 | F32: =SUMIF(F18A!$A$9:$A$60,'F18'!A32,F18A!$F$9:$F$60) -> 0.00 | G32: 0.00 | L32: =IF(AND(F18A!A60=0),"",F18A!A60) ->  | M32: =IF(AND(M7<>L32),1,"") ->  | N32: =IF(AND(N7<>L32),1,"") ->  | O32: =IF(AND(O7<>L32),1,"") ->  | P32: =IF(AND(P7<>L32),1,"") ->  | Q32: =IF(AND(Q7<>L32),1,"") ->  | R32: =IF(AND(R7<>L32),1,"") ->  | S32: =IF(AND(S7<>L32),1,"") ->  | T32: =IF(AND(T7<>L32),1,"") ->  | U32: =IF(AND(U7<>L32),1,"") ->  | V32: =IF(AND(V7<>L32),1,"") ->  | W32: =IF(AND(W7<>L32),1,"") ->  | X32: =IF(AND(X7<>L32),1,"") ->  | Y32: =IF(AND(Y7<>L32),1,"") ->  | Z32: =IF(AND(Z7<>L32),1,"") ->  | AA32: =IF(AND(AA7<>L32),1,"") ->  | AB32: =IF(AND(AB7<>L32),1,"") ->  | AC32: =IF(AND(AC7<>L32),1,"") ->  | AD32: =IF(AND(AD7<>L32),1,"") ->  | AE32: =IF(AND(AE7<>L32),1,"") ->  | AF32: =IF(AND(AF7<>L32),1,"") ->  | AG32: =IF(AND(AG7<>L32),1,"") ->  | AH32: =IF(AND(AH7<>L32),1,"") ->  | AI32: =IF(AND(AI7<>L32),1,"") ->  | AJ32: =IF(AND(AJ7<>L32),1,"") ->  | AK32: =IF(AND(AK7<>L32),1,"") ->  | AN32: =AK$7 ->  | AO32: FALSE | AP32: 25
B33: =SUMIF(F18A!$A$9:$A$60,'F18'!A33,F18A!$B$9:$B$60) -> 0.00 | C33: =SUMIF(F18A!$A$9:$A$60,'F18'!A33,F18A!$C$9:$C$60) -> 0.00 | D33: 0.00 | E33: =SUMIF(F18A!$A$9:$A$60,'F18'!A33,F18A!$E$9:$E$60) -> 0.00 | F33: =SUMIF(F18A!$A$9:$A$60,'F18'!A33,F18A!$F$9:$F$60) -> 0.00 | G33: 0.00 | AN33: =K8 ->  | AO33: FALSE | AP33: 26
B34: =SUMIF(F18A!$A$9:$A$60,'F18'!A34,F18A!$B$9:$B$60) -> 0.00 | C34: =SUMIF(F18A!$A$9:$A$60,'F18'!A34,F18A!$C$9:$C$60) -> 0.00 | D34: 0.00 | E34: =SUMIF(F18A!$A$9:$A$60,'F18'!A34,F18A!$E$9:$E$60) -> 0.00 | F34: =SUMIF(F18A!$A$9:$A$60,'F18'!A34,F18A!$F$9:$F$60) -> 0.00 | G34: 0.00 | AN34: =K9 ->  | AO34: FALSE | AP34: 27
B35: =SUMIF(F18A!$A$9:$A$60,'F18'!A35,F18A!$B$9:$B$60) -> 0.00 | C35: =SUMIF(F18A!$A$9:$A$60,'F18'!A35,F18A!$C$9:$C$60) -> 0.00 | D35: 0.00 | E35: =SUMIF(F18A!$A$9:$A$60,'F18'!A35,F18A!$E$9:$E$60) -> 0.00 | F35: =SUMIF(F18A!$A$9:$A$60,'F18'!A35,F18A!$F$9:$F$60) -> 0.00 | G35: 0.00 | AO35: FALSE | AP35: 28
B36: =SUMIF(F18A!$A$9:$A$60,'F18'!A36,F18A!$B$9:$B$60) -> 0.00 | C36: =SUMIF(F18A!$A$9:$A$60,'F18'!A36,F18A!$C$9:$C$60) -> 0.00 | D36: 0.00 | E36: =SUMIF(F18A!$A$9:$A$60,'F18'!A36,F18A!$E$9:$E$60) -> 0.00 | F36: =SUMIF(F18A!$A$9:$A$60,'F18'!A36,F18A!$F$9:$F$60) -> 0.00 | G36: 0.00 | AO36: FALSE | AP36: 29
B37: =SUMIF(F18A!$A$9:$A$60,'F18'!A37,F18A!$B$9:$B$60) -> 0.00 | C37: =SUMIF(F18A!$A$9:$A$60,'F18'!A37,F18A!$C$9:$C$60) -> 0.00 | D37: 0.00 | E37: =SUMIF(F18A!$A$9:$A$60,'F18'!A37,F18A!$E$9:$E$60) -> 0.00 | F37: =SUMIF(F18A!$A$9:$A$60,'F18'!A37,F18A!$F$9:$F$60) -> 0.00 | G37: 0.00 | AO37: FALSE | AP37: 30
B38: =SUMIF(F18A!$A$9:$A$60,'F18'!A38,F18A!$B$9:$B$60) -> 0.00 | C38: =SUMIF(F18A!$A$9:$A$60,'F18'!A38,F18A!$C$9:$C$60) -> 0.00 | D38: 0.00 | E38: =SUMIF(F18A!$A$9:$A$60,'F18'!A38,F18A!$E$9:$E$60) -> 0.00 | F38: =SUMIF(F18A!$A$9:$A$60,'F18'!A38,F18A!$F$9:$F$60) -> 0.00 | G38: 0.00 | AO38: FALSE | AP38: 31
B39: =SUMIF(F18A!$A$9:$A$60,'F18'!A39,F18A!$B$9:$B$60) -> 0.00 | C39: =SUMIF(F18A!$A$9:$A$60,'F18'!A39,F18A!$C$9:$C$60) -> 0.00 | D39: 0.00 | E39: =SUMIF(F18A!$A$9:$A$60,'F18'!A39,F18A!$E$9:$E$60) -> 0.00 | F39: =SUMIF(F18A!$A$9:$A$60,'F18'!A39,F18A!$F$9:$F$60) -> 0.00 | G39: 0.00 | AO39: FALSE | AP39: 32
B40: =SUMIF(F18A!$A$9:$A$60,'F18'!A40,F18A!$B$9:$B$60) -> 0.00 | C40: =SUMIF(F18A!$A$9:$A$60,'F18'!A40,F18A!$C$9:$C$60) -> 0.00 | D40: 0.00 | E40: =SUMIF(F18A!$A$9:$A$60,'F18'!A40,F18A!$E$9:$E$60) -> 0.00 | F40: =SUMIF(F18A!$A$9:$A$60,'F18'!A40,F18A!$F$9:$F$60) -> 0.00 | G40: 0.00 | AO40: FALSE | AP40: 33
B41: =SUMIF(F18A!$A$9:$A$60,'F18'!A41,F18A!$B$9:$B$60) -> 0.00 | C41: =SUMIF(F18A!$A$9:$A$60,'F18'!A41,F18A!$C$9:$C$60) -> 0.00 | D41: 0.00 | E41: =SUMIF(F18A!$A$9:$A$60,'F18'!A41,F18A!$E$9:$E$60) -> 0.00 | F41: =SUMIF(F18A!$A$9:$A$60,'F18'!A41,F18A!$F$9:$F$60) -> 0.00 | G41: 0.00 | AO41: =IF(AN$8:AN$57<>"",ROW(AN41:AN85)) -> FALSE | AP41: 34
B42: =SUMIF(F18A!$A$9:$A$60,'F18'!A42,F18A!$B$9:$B$60) -> 0.00 | C42: =SUMIF(F18A!$A$9:$A$60,'F18'!A42,F18A!$C$9:$C$60) -> 0.00 | D42: 0.00 | E42: =SUMIF(F18A!$A$9:$A$60,'F18'!A42,F18A!$E$9:$E$60) -> 0.00 | F42: =SUMIF(F18A!$A$9:$A$60,'F18'!A42,F18A!$F$9:$F$60) -> 0.00 | G42: 0.00 | AO42: =IF(AN$8:AN$57<>"",ROW(AN42:AN87)) -> FALSE | AP42: 35
B43: =SUMIF(F18A!$A$9:$A$60,'F18'!A43,F18A!$B$9:$B$60) -> 0.00 | C43: =SUMIF(F18A!$A$9:$A$60,'F18'!A43,F18A!$C$9:$C$60) -> 0.00 | D43: 0.00 | E43: =SUMIF(F18A!$A$9:$A$60,'F18'!A43,F18A!$E$9:$E$60) -> 0.00 | F43: =SUMIF(F18A!$A$9:$A$60,'F18'!A43,F18A!$F$9:$F$60) -> 0.00 | G43: 0.00 | AO43: =IF(AN$8:AN$57<>"",ROW(AN43:AN89)) -> FALSE | AP43: 36
B44: =SUMIF(F18A!$A$9:$A$60,'F18'!A44,F18A!$B$9:$B$60) -> 0.00 | C44: =SUMIF(F18A!$A$9:$A$60,'F18'!A44,F18A!$C$9:$C$60) -> 0.00 | D44: 0.00 | E44: =SUMIF(F18A!$A$9:$A$60,'F18'!A44,F18A!$E$9:$E$60) -> 0.00 | F44: =SUMIF(F18A!$A$9:$A$60,'F18'!A44,F18A!$F$9:$F$60) -> 0.00 | G44: 0.00 | AO44: =IF(AN$8:AN$57<>"",ROW(AN44:AN91)) -> FALSE | AP44: 37
B45: =SUMIF(F18A!$A$9:$A$60,'F18'!A45,F18A!$B$9:$B$60) -> 0.00 | C45: =SUMIF(F18A!$A$9:$A$60,'F18'!A45,F18A!$C$9:$C$60) -> 0.00 | D45: 0.00 | E45: =SUMIF(F18A!$A$9:$A$60,'F18'!A45,F18A!$E$9:$E$60) -> 0.00 | F45: =SUMIF(F18A!$A$9:$A$60,'F18'!A45,F18A!$F$9:$F$60) -> 0.00 | G45: 0.00 | AO45: FALSE | AP45: 38
B46: =SUMIF(F18A!$A$9:$A$60,'F18'!A46,F18A!$B$9:$B$60) -> 0.00 | C46: =SUMIF(F18A!$A$9:$A$60,'F18'!A46,F18A!$C$9:$C$60) -> 0.00 | D46: 0.00 | E46: =SUMIF(F18A!$A$9:$A$60,'F18'!A46,F18A!$E$9:$E$60) -> 0.00 | F46: =SUMIF(F18A!$A$9:$A$60,'F18'!A46,F18A!$F$9:$F$60) -> 0.00 | G46: 0.00 | AO46: FALSE | AP46: 39
B47: =SUMIF(F18A!$A$9:$A$60,'F18'!A47,F18A!$B$9:$B$60) -> 0.00 | C47: =SUMIF(F18A!$A$9:$A$60,'F18'!A47,F18A!$C$9:$C$60) -> 0.00 | D47: 0.00 | E47: =SUMIF(F18A!$A$9:$A$60,'F18'!A47,F18A!$E$9:$E$60) -> 0.00 | F47: =SUMIF(F18A!$A$9:$A$60,'F18'!A47,F18A!$F$9:$F$60) -> 0.00 | G47: 0.00 | AO47: FALSE | AP47: 40
B48: =SUMIF(F18A!$A$9:$A$60,'F18'!A48,F18A!$B$9:$B$60) -> 0.00 | C48: =SUMIF(F18A!$A$9:$A$60,'F18'!A48,F18A!$C$9:$C$60) -> 0.00 | D48: 0.00 | E48: =SUMIF(F18A!$A$9:$A$60,'F18'!A48,F18A!$E$9:$E$60) -> 0.00 | F48: =SUMIF(F18A!$A$9:$A$60,'F18'!A48,F18A!$F$9:$F$60) -> 0.00 | G48: 0.00 | AO48: FALSE | AP48: 41
B49: =SUMIF(F18A!$A$9:$A$60,'F18'!A49,F18A!$B$9:$B$60) -> 0.00 | C49: =SUMIF(F18A!$A$9:$A$60,'F18'!A49,F18A!$C$9:$C$60) -> 0.00 | D49: 0.00 | E49: =SUMIF(F18A!$A$9:$A$60,'F18'!A49,F18A!$E$9:$E$60) -> 0.00 | F49: =SUMIF(F18A!$A$9:$A$60,'F18'!A49,F18A!$F$9:$F$60) -> 0.00 | G49: 0.00 | AO49: FALSE | AP49: 42
B50: =SUMIF(F18A!$A$9:$A$60,'F18'!A50,F18A!$B$9:$B$60) -> 0.00 | C50: =SUMIF(F18A!$A$9:$A$60,'F18'!A50,F18A!$C$9:$C$60) -> 0.00 | D50: 0.00 | E50: =SUMIF(F18A!$A$9:$A$60,'F18'!A50,F18A!$E$9:$E$60) -> 0.00 | F50: =SUMIF(F18A!$A$9:$A$60,'F18'!A50,F18A!$F$9:$F$60) -> 0.00 | G50: 0.00 | AO50: FALSE | AP50: 43
B51: =SUMIF(F18A!$A$9:$A$60,'F18'!A51,F18A!$B$9:$B$60) -> 0.00 | C51: =SUMIF(F18A!$A$9:$A$60,'F18'!A51,F18A!$C$9:$C$60) -> 0.00 | D51: 0.00 | E51: =SUMIF(F18A!$A$9:$A$60,'F18'!A51,F18A!$E$9:$E$60) -> 0.00 | F51: =SUMIF(F18A!$A$9:$A$60,'F18'!A51,F18A!$F$9:$F$60) -> 0.00 | G51: 0.00 | AO51: FALSE | AP51: 44
B52: =SUMIF(F18A!$A$9:$A$60,'F18'!A52,F18A!$B$9:$B$60) -> 0.00 | C52: =SUMIF(F18A!$A$9:$A$60,'F18'!A52,F18A!$C$9:$C$60) -> 0.00 | D52: 0.00 | E52: =SUMIF(F18A!$A$9:$A$60,'F18'!A52,F18A!$E$9:$E$60) -> 0.00 | F52: =SUMIF(F18A!$A$9:$A$60,'F18'!A52,F18A!$F$9:$F$60) -> 0.00 | G52: 0.00 | AO52: FALSE | AP52: 45
B53: =SUMIF(F18A!$A$9:$A$60,'F18'!A53,F18A!$B$9:$B$60) -> 0.00 | C53: =SUMIF(F18A!$A$9:$A$60,'F18'!A53,F18A!$C$9:$C$60) -> 0.00 | D53: 0.00 | E53: =SUMIF(F18A!$A$9:$A$60,'F18'!A53,F18A!$E$9:$E$60) -> 0.00 | F53: =SUMIF(F18A!$A$9:$A$60,'F18'!A53,F18A!$F$9:$F$60) -> 0.00 | G53: 0.00 | AO53: FALSE | AP53: 46
B54: =SUMIF(F18A!$A$9:$A$60,'F18'!A54,F18A!$B$9:$B$60) -> 0.00 | C54: =SUMIF(F18A!$A$9:$A$60,'F18'!A54,F18A!$C$9:$C$60) -> 0.00 | D54: 0.00 | E54: =SUMIF(F18A!$A$9:$A$60,'F18'!A54,F18A!$E$9:$E$60) -> 0.00 | F54: =SUMIF(F18A!$A$9:$A$60,'F18'!A54,F18A!$F$9:$F$60) -> 0.00 | G54: 0.00 | AO54: =IF(AN$8:AN$57<>"",ROW(AN54:AN100)) -> FALSE | AP54: 47
B55: =SUMIF(F18A!$A$9:$A$60,'F18'!A55,F18A!$B$9:$B$60) -> 0.00 | C55: =SUMIF(F18A!$A$9:$A$60,'F18'!A55,F18A!$C$9:$C$60) -> 0.00 | D55: 0.00 | E55: =SUMIF(F18A!$A$9:$A$60,'F18'!A55,F18A!$E$9:$E$60) -> 0.00 | F55: =SUMIF(F18A!$A$9:$A$60,'F18'!A55,F18A!$F$9:$F$60) -> 0.00 | G55: 0.00 | AO55: =IF(AN$8:AN$57<>"",ROW(AN55:AN100)) -> FALSE | AP55: 48
B56: =SUMIF(F18A!$A$9:$A$60,'F18'!A56,F18A!$B$9:$B$60) -> 0.00 | C56: =SUMIF(F18A!$A$9:$A$60,'F18'!A56,F18A!$C$9:$C$60) -> 0.00 | D56: 0.00 | E56: =SUMIF(F18A!$A$9:$A$60,'F18'!A56,F18A!$E$9:$E$60) -> 0.00 | F56: =SUMIF(F18A!$A$9:$A$60,'F18'!A56,F18A!$F$9:$F$60) -> 0.00 | G56: 0.00 | AO56: =IF(AN$8:AN$57<>"",ROW(AN56:AN100)) -> FALSE | AP56: 49
B57: =SUMIF(F18A!$A$9:$A$60,'F18'!A57,F18A!$B$9:$B$60) -> 0.00 | C57: =SUMIF(F18A!$A$9:$A$60,'F18'!A57,F18A!$C$9:$C$60) -> 0.00 | D57: 0.00 | E57: =SUMIF(F18A!$A$9:$A$60,'F18'!A57,F18A!$E$9:$E$60) -> 0.00 | F57: =SUMIF(F18A!$A$9:$A$60,'F18'!A57,F18A!$F$9:$F$60) -> 0.00 | G57: 0.00 | AO57: =IF(AN$8:AN$57<>"",ROW(AN57:AN100)) -> FALSE | AP57: 50
A58: Total del Egreso | B58: =SUM(B8:B57) -> 0.00 | C58: 0.00 | D58: 0.00 | E58: 0.00 | F58: 0.00 | G58: 0.00
A60: ="Gobierno (Federal/Estatal/Municipal) de: "&Validacion!A2 -> Gobierno (Federal/Estatal/Municipal) de: Ixtlahuacán de los Membrillos
A61: Estado Analítico del Ejercicio del Presupuesto de Egresos
A62: Clasificación Administrativa
A63: ='F6'!A3 -> DEL 1° DE ENERO AL 31 DE ENERO DE 2026
A64: (Cifras en Pesos)
A65: Concepto | B65: Egresos | G65: Subejercicio
B66: Aprobado | C66: Ampliaciones/ (Reducciones) | D66: Modificado | E66: Devengado | F66: Pagado
A68: Poder Ejecutivo | B68: 0.00 | C68: 0.00 | D68: =B68+C68 -> 0.00 | E68: 0.00 | F68: 0.00 | G68: =D68-E68 -> 0.00
A69: Poder Legislativo | B69: 0.00 | C69: 0.00 | D69: =B69+C69 -> 0.00 | E69: 0.00 | F69: 0.00 | G69: =D69-E69 -> 0.00
A70: Poder Judicial | B70: 0.00 | C70: 0.00 | D70: =B70+C70 -> 0.00 | E70: 0.00 | F70: 0.00 | G70: =D70-E70 -> 0.00
A71: Órganos Autónomos | B71: 0.00 | C71: 0.00 | D71: =B71+C71 -> 0.00 | E71: 0.00 | F71: 0.00 | G71: =D71-E71 -> 0.00
A73: Total del Egreso | B73: =SUM(B68:B71) -> 0.00 | C73: 0.00 | D73: 0.00 | E73: 0.00 | F73: 0.00 | G73: 0.00
A75: ="Sector Paraestatal del Gobierno (Federal/Estatal/Municipal) de: "&Validacion!A2 -> Sector Paraestatal del Gobierno (Federal/Estatal/Municipal) de: Ixtlahuacán de los Membrillos
A76: Estado Analítico del Ejercicio del Presupuesto de Egresos
A77: Clasificación Administrativa
A78: ='F6'!A3 -> DEL 1° DE ENERO AL 31 DE ENERO DE 2026
A79: (Cifras en Pesos)
A80: Concepto | B80: Egresos | G80: Subejercicio
B81: Aprobado | C81: Ampliaciones/ (Reducciones) | D81: Modificado | E81: Devengado | F81: Pagado
A83: Entidades Paraestatales y Fideicomisos No Empresariales y No Financieros | B83: 0.00 | C83: 0.00 | D83: =B83+C83 -> 0.00 | E83: 0.00 | F83: 0.00 | G83: =D83-E83 -> 0.00
A85: Instituciones Públicas de la Seguridad Social | B85: 0.00 | C85: 0.00 | D85: 0.00 | E85: 0.00 | F85: 0.00 | G85: 0.00
A87: Entidades Paraestatales Empresariales No Financieras con Participación Estatal Mayoritaria | B87: 0.00 | C87: 0.00 | D87: 0.00 | E87: 0.00 | F87: 0.00 | G87: 0.00
A89: Fideicomisos Empresariales No Financieros con Participación Estatal Mayoritaria | B89: 0.00 | C89: 0.00 | D89: 0.00 | E89: 0.00 | F89: 0.00 | G89: 0.00
A91: Entidades Paraestatales Empresariales Financieras Monetarias con Participación Estatal Mayoritaria | B91: 0.00 | C91: 0.00 | D91: 0.00 | E91: 0.00 | F91: 0.00 | G91: 0.00
A93: Entidades Paraestatales Empresariales Financieras No Monetarias con Participación Estatal Mayoritaria | B93: 0.00 | C93: 0.00 | D93: 0.00 | E93: 0.00 | F93: 0.00 | G93: 0.00
A95: Fideicomisos Financieros Públicos con Participación Estatal Mayoritaria | B95: 0.00 | C95: 0.00 | D95: 0.00 | E95: 0.00 | F95: 0.00 | G95: 0.00
A97: Entidades Paramunicipales (en sus diferentes clasificaciones) | D97: 0.00 | G97: 0.00
A99: Total del Egreso | B99: =SUM(B83:B97) -> 0.00 | C99: 0.00 | D99: 0.00 | E99: 0.00 | F99: 0.00 | G99: 0.00
A101: Bajo protesta de decir verdad declaramos que los Estados Financieros y sus notas, son razonablemente correctos y son responsabilidad del emisor.
A105: =Validacion!A7 -> LIC. JOSE HERIBERTO GARCIA MURILLO | D105: =Validacion!A9 -> LAE BRUNO GERMAN ENCISO GUILLEN
A107: Presidente Municipal o titular del ente público | D107: Encargado de la Hacienda Municipal o Responsable de las finanzas del ente público

Sheet F18A (hidden)
A1: ="NOMBRE DEL ENTE PÚBLICO: "&Validacion!A2 -> NOMBRE DEL ENTE PÚBLICO: Ixtlahuacán de los Membrillos
A2: Estado Analítico del Ejercicio del Presupuesto de Egresos Detallado - LDF
A3: Clasificación Administrativa
A4: ='F6'!A3 -> DEL 1° DE ENERO AL 31 DE ENERO DE 2026
A5: (PESOS)
A6: Concepto | B6: Egresos | G6: Subejercicio
B7: Aprobado | C7: Ampliaciones/ (Reducciones) | D7: Modificado | E7: Devengado | F7: Pagado
A8: I. Gasto No Etiquetado | B8: =SUM(B9:B33) -> 0.00 | C8: =SUM(C9:C33) -> 0.00 | D8: 0.00 | E8: 0.00 | F8: 0.00 | G8: 0.00
D9: =B9+C9 -> 0.00 | G9: =D9-E9 -> 0.00
D10: =B10+C10 -> 0.00 | G10: =D10-E10 -> 0.00
D11: 0.00 | G11: 0.00
D12: 0.00 | G12: 0.00
D13: 0.00 | G13: 0.00
D14: 0.00 | G14: 0.00
D15: 0.00 | G15: 0.00
D16: 0.00 | G16: 0.00
D17: 0.00 | G17: 0.00
D18: 0.00 | G18: 0.00
D19: 0.00 | G19: 0.00
D20: 0.00 | G20: 0.00
D21: 0.00 | G21: 0.00
D22: 0.00 | G22: 0.00
D23: 0.00 | G23: 0.00
D24: 0.00 | G24: 0.00
D25: 0.00 | G25: 0.00
D26: 0.00 | G26: 0.00
D27: 0.00 | G27: 0.00
D28: 0.00 | G28: 0.00
D29: 0.00 | G29: 0.00
D30: 0.00 | G30: 0.00
D31: 0.00 | G31: 0.00
D32: 0.00 | G32: 0.00
D33: 0.00 | G33: 0.00
A35: II. Gasto Etiqutado | B35: =SUM(B36:B60) -> 0.00 | C35: =SUM(C36:C60) -> 0.00 | D35: 0.00 | E35: 0.00 | F35: 0.00 | G35: 0.00
D36: =B36+C36 -> 0.00 | G36: =D36-E36 -> 0.00
D37: =B37+C37 -> 0.00 | G37: =D37-E37 -> 0.00
D38: 0.00 | G38: 0.00
D39: 0.00 | G39: 0.00
D40: 0.00 | G40: 0.00
D41: 0.00 | G41: 0.00
D42: 0.00 | G42: 0.00
D43: 0.00 | G43: 0.00
D44: 0.00 | G44: 0.00
D45: 0.00 | G45: 0.00
D46: 0.00 | G46: 0.00
D47: 0.00 | G47: 0.00
D48: 0.00 | G48: 0.00
D49: 0.00 | G49: 0.00
D50: 0.00 | G50: 0.00
D51: 0.00 | G51: 0.00
D52: 0.00 | G52: 0.00
D53: 0.00 | G53: 0.00
D54: 0.00 | G54: 0.00
D55: 0.00 | G55: 0.00
D56: 0.00 | G56: 0.00
D57: 0.00 | G57: 0.00
D58: 0.00 | G58: 0.00
D59: 0.00 | G59: 0.00
D60: 0.00 | G60: 0.00
A62: III. Total de Egresos | B62: =B8+B35 -> 0.00 | C62: =C8+C35 -> 0.00 | D62: 0.00 | E62: 0.00 | F62: 0.00 | G62: =G8+G35 -> 0.00
A64: Bajo protesta de decir verdad declaramos que los Estados Financieros y sus notas, son razonablemente correctos y son responsabilidad del emisor.
A68: =Validacion!A7 -> LIC. JOSE HERIBERTO GARCIA MURILLO | D68: =Validacion!A9 -> LAE BRUNO GERMAN ENCISO GUILLEN
A70: Presidente Municipal o titular del ente público | D70: Encargado de la Hacienda Municipal o Responsable de las finanzas del ente público

Sheet F19A (hidden)
B1: ="NOMBRE DEL ENTE PÚBLICO: "&Validacion!A2 -> NOMBRE DEL ENTE PÚBLICO: Ixtlahuacán de los Membrillos
B2: Estado Analítico del Ejercicio del Presupuesto de Egresos Detallado - LDF
B3: Clasificación Funcional (Finalidad y Función)
C4: ='F6'!A3 -> DEL 1° DE ENERO AL 31 DE ENERO DE 2026
C5: (PESOS)
A6: Concepto | D6: Egresos | I6: Subejercicio
D7: Aprobado | E7: Ampliaciones/ (Reducciones) | F7: Modificado | G7: Devengado | H7: Pagado
A8: I. | B8: Gasto No Etiquetado | D8: =D9+D18+D26+D36 -> 0.00 | E8: =E9+E18+E26+E36 -> 0.00 | F8: 0.00 | G8: 0.00 | H8: 0.00 | I8: 0.00
B9: A Gobierno | D9: =SUM(D10:D17) -> 0.00 | E9: =SUM(E10:E17) -> 0.00 | F9: =D9+E9 -> 0.00 | G9: =SUM(G10:G17) -> 0.00 | H9: 0.00 | I9: =F9-G9 -> 0.00
C10: a1) Legislación | F10: =D10+E10 -> 0.00 | I10: =F10-G10 -> 0.00
C11: a2) Justicia | F11: 0.00 | I11: 0.00
C12: a3) Coordinación de la Política de Gobierno | F12: 0.00 | I12: 0.00
C13: a4) Relaciones Exteriores | F13: 0.00 | I13: 0.00
C14: a5) Asuntos Financieros y Hacendarios | F14: 0.00 | I14: 0.00
C15: a6) Seguridad Nacional | F15: 0.00 | I15: 0.00
C16: a7) Asuntos de Orden Público y de Seguridad Interior | F16: 0.00 | I16: 0.00
C17: a8) Otros Servicios Generales | F17: 0.00 | I17: 0.00
B18: B Desarrollo Social | D18: =SUM(D19:D25) -> 0.00 | E18: =SUM(E19:E25) -> 0.00 | F18: 0.00 | G18: =SUM(G19:G25) -> 0.00 | H18: 0.00 | I18: 0.00
C19: b1) Protección Ambiental | F19: 0.00 | I19: 0.00
C20: b2) Vivienda y Servicios a la Comunidad | F20: 0.00 | I20: 0.00
C21: b3) Salud | F21: 0.00 | I21: 0.00
C22: b4) Recreación, Cultura y Otras Manifestaciones Sociales | F22: 0.00 | I22: 0.00
C23: b5) Educación | F23: 0.00 | I23: 0.00
C24: b6) Protección Social | F24: 0.00 | I24: 0.00
C25: b7) Otros Asuntos Sociales | F25: 0.00 | I25: 0.00
B26: C Desarrollo Económico | D26: =SUM(D27:D35) -> 0.00 | E26: =SUM(E27:E35) -> 0.00 | F26: 0.00 | G26: =SUM(G27:G35) -> 0.00 | H26: 0.00 | I26: 0.00
C27: c1) Asuntos Económicos, Comerciales y Laborales en General | F27: 0.00 | I27: 0.00
C28: c2) Agropecuaria, Silvicultura, Pesca y Caza | F28: 0.00 | I28: 0.00
C29: c3) Combustibles y Energía | F29: 0.00 | I29: 0.00
C30: c4) Minería, Manufacturas y Construcción | F30: 0.00 | I30: 0.00
C31: c5) Transporte | F31: 0.00 | I31: 0.00
C32: c6) Comunicaciones | F32: 0.00 | I32: 0.00
C33: c7) Turismo | F33: 0.00 | I33: 0.00
C34: c8) Ciencia, Tecnología e Innovación | F34: 0.00 | I34: 0.00
C35: c9) Otras Industrias y Otros Asuntos Económicos | F35: 0.00 | I35: 0.00
B36: D Otras No Clasificadas en Funciones Anteriores | D36: =SUM(D37:D40) -> 0.00 | E36: =SUM(E37:E40) -> 0.00 | F36: 0.00 | G36: =SUM(G37:G40) -> 0.00 | H36: =SUM(H37:H40) -> 0.00 | I36: 0.00
C37: d1) Transacciones de la Deuda Publica / Costo Financiero de la Deuda | F37: 0.00 | I37: 0.00
C38: d2) Transferencias, Participaciones y Aportaciones Entre Diferentes Niveles y Ordenes de Gobierno | F38: 0.00 | I38: 0.00
C39: d3) Saneamiento del Sistema Financiero | F39: 0.00 | I39: 0.00
C40: d4) Adeudos de Ejercicios Fiscales Anteriores | F40: 0.00 | I40: 0.00
A42: II. | B42: Gasto Etiquetado | D42: =D43+D52+D60+D70 -> 0.00 | E42: =E43+E52+E60+E70 -> 0.00 | F42: 0.00 | G42: 0.00 | H42: 0.00 | I42: 0.00
B43: A Gobierno | D43: =SUM(D44:D51) -> 0.00 | E43: =SUM(E44:E51) -> 0.00 | F43: =D43+E43 -> 0.00 | G43: =SUM(G44:G51) -> 0.00 | H43: 0.00 | I43: =F43-G43 -> 0.00
C44: a1) Legislación | F44: =D44+E44 -> 0.00 | I44: =F44-G44 -> 0.00
C45: a2) Justicia | F45: 0.00 | I45: 0.00
C46: a3) Coordinación de la Política de Gobierno | F46: 0.00 | I46: 0.00
C47: a4) Relaciones Exteriores | F47: 0.00 | I47: 0.00
C48: a5) Asuntos Financieros y Hacendarios | F48: 0.00 | I48: 0.00
C49: a6) Seguridad Nacional | F49: 0.00 | I49: 0.00
C50: a7) Asuntos de Orden Público y de Seguridad Interior | F50: 0.00 | I50: 0.00
C51: a8) Otros Servicios Generales | F51: 0.00 | I51: 0.00
B52: B Desarrollo Social | D52: =SUM(D53:D59) -> 0.00 | E52: =SUM(E53:E59) -> 0.00 | F52: 0.00 | G52: =SUM(G53:G59) -> 0.00 | H52: 0.00 | I52: 0.00
C53: b1) Protección Ambiental | F53: 0.00 | I53: 0.00
C54: b2) Vivienda y Servicios a la Comunidad | F54: 0.00 | I54: 0.00
C55: b3) Salud | F55: 0.00 | I55: 0.00
C56: b4) Recreación, Cultura y Otras Manifestaciones Sociales | F56: 0.00 | I56: 0.00
C57: b5) Educación | F57: 0.00 | I57: 0.00
C58: b6) Protección Social | F58: 0.00 | I58: 0.00
C59: b7) Otros Asuntos Sociales | F59: 0.00 | I59: 0.00
B60: C Desarrollo Económico | D60: =SUM(D61:D69) -> 0.00 | E60: =SUM(E61:E69) -> 0.00 | F60: 0.00 | G60: =SUM(G61:G69) -> 0.00 | H60: 0.00 | I60: 0.00
C61: c1) Asuntos Económicos, Comerciales y Laborales en General | F61: 0.00 | I61: 0.00
C62: c2) Agropecuaria, Silvicultura, Pesca y Caza | F62: 0.00 | I62: 0.00
C63: c3) Combustibles y Energía | F63: 0.00 | I63: 0.00
C64: c4) Minería, Manufacturas y Construcción | F64: 0.00 | I64: 0.00
C65: c5) Transporte | F65: 0.00 | I65: 0.00
C66: c6) Comunicaciones | F66: 0.00 | I66: 0.00
C67: c7) Turismo | F67: 0.00 | I67: 0.00
C68: c8) Ciencia, Tecnología e Innovación | F68: 0.00 | I68: 0.00
C69: c9) Otras Industrias y Otros Asuntos Económicos | F69: 0.00 | I69: 0.00
B70: D Otras No Clasificadas en Funciones Anteriores | D70: =SUM(D71:D74) -> 0.00 | E70: =SUM(E71:E74) -> 0.00 | F70: 0.00 | G70: =SUM(G71:G74) -> 0.00 | H70: =SUM(H71:H74) -> 0.00 | I70: 0.00
C71: d1) Transacciones de la Deuda Publica / Costo Financiero de la Deuda | F71: 0.00 | I71: 0.00
C72: d2) Transferencias, Participaciones y Aportaciones Entre Diferentes Niveles y Ordenes de Gobierno | F72: 0.00 | I72: 0.00
C73: d3) Saneamiento del Sistema Financiero | F73: 0.00 | I73: 0.00
C74: d4) Adeudos de Ejercicios Fiscales Anteriores | F74: 0.00 | I74: 0.00
B76: III. Total de Egresos | D76: =D8+D42 -> 0.00 | E76: =E8+E42 -> 0.00 | F76: 0.00 | G76: 0.00 | H76: 0.00 | I76: =I8+I42 -> 0.00
B78: Bajo protesta de decir verdad declaramos que los Estados Financieros y sus notas, son razonablemente correctos y son responsabilidad del emisor.
C81: =Validacion!A7 -> LIC. JOSE HERIBERTO GARCIA MURILLO | E81: =Validacion!A9 -> LAE BRUNO GERMAN ENCISO GUILLEN
C83: Presidente Municipal o titular del ente público | E83: Encargado de la Hacienda Municipal o Responsable de las finanzas del ente público

Sheet F21 (hidden)
A1: ="NOMBRE DEL ENTE PÚBLICO: "&Validacion!A2 -> NOMBRE DEL ENTE PÚBLICO: Ixtlahuacán de los Membrillos
A2: Estado Analítico del Ejercicio del Presupuesto de Egresos Detallado - LDF
A3: Clasificación de Servicos Personales por Categoría
A4: ='F6'!A3 -> DEL 1° DE ENERO AL 31 DE ENERO DE 2026
A5: (PESOS)
A6: Concepto | D6: Egresos | I6: Subejercicio
D7: Aprobado | E7: Ampliaciones/ (Reducciones) | F7: Modificado | G7: Devengado | H7: Pagado
B8: I. Gasto No Etiquetado | D8: =D9+D10+D11+D14+D15+D18 -> 0.00 | E8: =E9+E10+E11+E14+E15+E18 -> 0.00 | F8: 0.00 | G8: 0.00 | H8: 0.00 | I8: 0.00
B9: A. Personal Administrativo y de Servicio Público | F9: =D9+E9 -> 0.00 | I9: =F9-G9 -> 0.00
B10: B. Magisterio | F10: =D10+E10 -> 0.00 | I10: =F10-G10 -> 0.00
B11: C. Servicios de Salud | D11: =D12+D13 -> 0.00 | E11: =E12+E13 -> 0.00 | F11: 0.00 | G11: =G12+G13 -> 0.00 | H11: =H12+H13 -> 0.00 | I11: 0.00
C12: c1) Personal Administrativo | F12: 0.00 | I12: 0.00
C13: c2) Personal Médico, Paramédico y afín | F13: 0.00 | I13: 0.00
B14: D. Seguridad Pública | F14: 0.00 | I14: 0.00
B15: E. Gastos asociados a la implementación de nuevas leyes federales o reformas a las mismas | D15: =D16+D17 -> 0.00 | E15: =E16+E17 -> 0.00 | F15: 0.00 | G15: =G16+G17 -> 0.00 | H15: =H16+H17 -> 0.00 | I15: 0.00
C16: e1) Nombre del Programa o Ley | F16: 0.00 | I16: 0.00
C17: e2) Nombre del Programa o Ley | F17: 0.00 | I17: 0.00
B18: F. Sentencias laborales definitivas | F18: 0.00 | I18: 0.00
B20: II. Gasto Etiquetado | D20: =D21+D22+D23+D26+D27+D30 -> 0.00 | E20: =E21+E22+E23+E26+E27+E30 -> 0.00 | F20: 0.00 | G20: 0.00 | H20: 0.00 | I20: 0.00
B21: A. Personal Administrativo y de Servicio Público | F21: =D21+E21 -> 0.00 | I21: =F21-G21 -> 0.00
B22: B. Magisterio | F22: =D22+E22 -> 0.00 | I22: 0.00
B23: C. Servicios de Salud | D23: =D24+D25 -> 0.00 | E23: =E24+E25 -> 0.00 | F23: =D23+E23 -> 0.00 | G23: =G24+G25 -> 0.00 | H23: 0.00 | I23: 0.00
C24: c1) Personal Administrativo | F24: =D24+E24 -> 0.00 | I24: 0.00
C25: c2) Personal Médico, Paramédico y afín | F25: 0.00 | I25: 0.00
B26: D. Seguridad Pública | F26: =D26+E26 -> 0.00 | I26: 0.00
B27: E. Gastos asociados a la implementación de nuevas leyes federales o reformas a las mismas | D27: =D28+D29 -> 0.00 | E27: =E28+E29 -> 0.00 | F27: =D27+E27 -> 0.00 | G27: =G28+G29 -> 0.00 | H27: 0.00 | I27: 0.00
C28: e1) Nombre del Programa o Ley | F28: =D28+E28 -> 0.00 | I28: 0.00
C29: e2) Nombre del Programa o Ley | F29: 0.00 | I29: 0.00
B30: F. Sentencias laborales definitivas | F30: =D30+E30 -> 0.00 | I30: 0.00
B32: III. Total del Gasto en Servicios Personales | D32: =D8+D20 -> 0.00 | E32: =E8+E20 -> 0.00 | F32: 0.00 | G32: 0.00 | H32: 0.00 | I32: 0.00
A34: Bajo protesta de decir verdad declaramos que los Estados Financieros y sus notas, son razonablemente correctos y son responsabilidad del emisor.
C37: =Validacion!A7 -> LIC. JOSE HERIBERTO GARCIA MURILLO | F37: =Validacion!A9 -> LAE BRUNO GERMAN ENCISO GUILLEN
C39: Presidente Municipal o titular del ente público | F39: Encargado de la Hacienda Municipal o Responsable de las finanzas del ente público

Sheet F22 (hidden)
A1: ="NOMBRE DEL ENTE PÚBLICO: "&Validacion!A2 -> NOMBRE DEL ENTE PÚBLICO: Ixtlahuacán de los Membrillos
A2: Balance Presupuestario - LDF
A3: ='F6'!A3 -> DEL 1° DE ENERO AL 31 DE ENERO DE 2026
A4: (PESOS)
A5: Concepto | E5: Estimado/ Aprobado | F5: Devengado | G5: Recaudado/ Pagado
B6: A. Ingresos Totales | E6: =SUM(E7:E9) -> 0.00 | F6: =SUM(F7:F9) -> 0.00 | G6: 0.00
C7: A1. Ingresos de Libre Disposición | E7: =F7B!C39 -> 0.00 | F7: =F7B!F39 -> 0.00 | G7: =F7B!G39 -> 0.00
C8: A2.Transferencias Federales Etiquetadas | E8: =F7B!C61 -> 0.00 | F8: =F7B!F61 -> 0.00 | G8: =F7B!G61 -> 0.00
C9: A3. Financiamiento Neto | E9: =E33 -> 0.00 | F9: =F33 -> 0.00 | G9: =G33 -> 0.00
B10: B. Egresos Presupuestarios | E10: =SUM(E11:E12) -> 0.00 | F10: =SUM(F11:F12) -> 0.00 | G10: 0.00
C11: B1. Gastos No Etiquetado (sin incluir Amortización de la Deuda Pública) | E11: =F8B!D7-E31 -> 0.00 | F11: =F8B!G7-F31 -> 0.00 | G11: =F8B!H7-G31 -> 0.00
C12: B2. Gasto Etiquetado (sin incluir Amortización de la Deuda Pública) | E12: =F8B!D81-E32 -> 0.00 | F12: =F8B!G81-F32 -> 0.00 | G12: =F8B!H81-G32 -> 0.00
B13: C. Remanentes del Ejercicio Anterior | F13: =SUM(F14:F15) -> 0.00 | G13: 0.00
C14: C1. Remanentes de Ingresos de Libre Disposición aplicados en el periodo
C15: C2. Remanentes de Transferencias Federales Etiquetadas aplicados en el periodo
B16: I. Balance Presupuestario | E16: =E6-E10+E13 -> 0.00 | F16: =F6-F10+F13 -> 0.00 | G16: 0.00
B17: II. Balance Presupuestario sin Financiamiento Neto | E17: =E16-E9 -> 0.00 | F17: =F16-F9 -> 0.00 | G17: 0.00
B18: III. Balance Presupuestario sin Financiamiento Neto y sin Remanentes del Ejercicio Anterior | E18: =E17-E13 -> 0.00 | F18: =F17-F13 -> 0.00 | G18: 0.00
A20: Concepto | E20: Aprobado | F20: Devengado | G20: Pagado
B21: E. Intereses, Comisiones y Gastos de la Deuda | E21: =SUM(E22:E23) -> 0.00 | F21: =SUM(F22:F23) -> 0.00 | G21: 0.00
C22: E1. Intereses, Comisiones y Gastos de la Deuda con Gasto No Etiquetado | E22: =SUM(F8B!D74:D77) -> 0.00 | F22: =SUM(F8B!G74:G77) -> 0.00 | G22: =SUM(F8B!H74:H77) -> 0.00
C23: E2. Intereses, Comisiones y Gastos de la Deuda con Gasto Etiquetado | E23: =SUM(F8B!D148:D151) -> 0.00 | F23: =SUM(F8B!G148:G151) -> 0.00 | G23: =SUM(F8B!H148:H151) -> 0.00
B24: IV. Balance Primario | E24: =E18+E21 -> 0.00 | F24: =F18+F21 -> 0.00 | G24: 0.00
A26: Concepto | E26: Estimado/ Aprobado | F26: Devengado | G26: Recaudado/ Pagado
B27: F. Financiamiento | E27: =SUM(E28:E29) -> 0.00 | F27: =SUM(F28:F29) -> 0.00 | G27: 0.00
C28: F1. Financiamiento con Fuente de Pago de Ingresos de Libre Disposición | E28: =F7B!C66 -> 0.00 | F28: =F7B!F66 -> 0.00 | G28: =F7B!G66 -> 0.00
C29: F2. Financiamiento con Fuente de Pago de Transferencias Federales Etiquetadas | E29: =F7B!C67 -> 0.00 | F29: =F7B!F67 -> 0.00 | G29: =F7B!G67 -> 0.00
B30: G. Amortización de la Deuda | E30: =SUM(E31:E32) -> 0.00 | F30: =SUM(F31:F32) -> 0.00 | G30: 0.00
C31: G1. Amortización de la Deuda Pública con Gasto No Etiquetado | E31: =F8B!D73 -> 0.00 | F31: =F8B!G73 -> 0.00 | G31: =F8B!H73 -> 0.00
C32: G2. Amortización de la Deuda Pública con Gasto Etiquetado | E32: =F8B!D147 -> 0.00 | F32: =F8B!G147 -> 0.00 | G32: =F8B!H147 -> 0.00
B33: A3.Financiamiento Neto | E33: =E27-E30 -> 0.00 | F33: =F27-F30 -> 0.00 | G33: 0.00
A35: Concepto | E35: Estimado/ Aprobado | F35: Devengado | G35: Recaudado/ Pagado
B36: A1. Ingresos de Libre Disposición | E36: =E7 -> 0.00 | F36: =F7 -> 0.00 | G36: =G7 -> 0.00
B37: A3.1 Financiamiento Neto con Fuente de Pago de Ingresos de Libre Disposición | E37: =E38-E39 -> 0.00 | F37: =F38-F39 -> 0.00 | G37: =G38-G39 -> 0.00
C38: F1. Financiamiento con Fuente de Pago de Ingresos de Libre Disposición | E38: =E28 -> 0.00 | F38: =F28 -> 0.00 | G38: =G28 -> 0.00
C39: G1. Amortización de la Deuda Pública con Gasto Etiquetado | E39: =E31 -> 0.00 | F39: =F31 -> 0.00 | G39: =G31 -> 0.00
B40: B1. Gasto No Etiquetado (sin incluir Amortización de la Deuda Pública) | E40: =E11 -> 0.00 | F40: =F11 -> 0.00 | G40: =G11 -> 0.00
B41: C1. Remanente de ingresos de libre disposición aplicados en el periodo | F41: =F14 -> 0.00 | G41: =G14 -> 0.00
B42: V. Balance Presupuestario de Recursos Disponibles | E42: =E36+E37-E40+E41 -> 0.00 | F42: =F36+F37-F40+F41 -> 0.00 | G42: =G36+G37-G40+G41 -> 0.00
B43: VI. Balance Presupuestario de Recursos Disponibles sin Financiamiento Neto | E43: =E42-E37 -> 0.00 | F43: =F42-F37 -> 0.00 | G43: =G42-G37 -> 0.00
A45: Concepto | E45: Estimado/ Aprobado | F45: Devengado | G45: Recaudado/ Pagado
B46: A2. Transferencias Federales Etiquetadas | E46: =E8 -> 0.00 | F46: =F8 -> 0.00 | G46: =G8 -> 0.00
B47: A3.2 Financiamiento Neto con Fuente de Pago de Transferencias Federales Etiquetadas | E47: =E48-E49 -> 0.00 | F47: =F48-F49 -> 0.00 | G47: 0.00
C48: F2. Financiamiento con Fuente de Pago de Transferencias Federales Etiquetadas | E48: =E29 -> 0.00 | F48: =F29 -> 0.00 | G48: =G29 -> 0.00
C49: G2. Amortización de la Deuda Pública con Gasto Etiquetado | E49: =E32 -> 0.00 | F49: =F32 -> 0.00 | G49: =G32 -> 0.00
B50: B2. Gasto Etiquetado (sin incluir Amortización de la Deuda Pública) | E50: =E12 -> 0.00 | F50: =F12 -> 0.00 | G50: =G12 -> 0.00
B51: C2. Remanentes de Transferencias Federales Etiquetadas aplicados en el periodo | F51: =F15 -> 0.00 | G51: =G15 -> 0.00
B52: VII. Balance Presupuestario de Recursos Etiquetados | E52: =E46+E47-E50+E51 -> 0.00 | F52: =F46+F47-F50+F51 -> 0.00 | G52: =G46+G47-G50+G51 -> 0.00
B53: VIII. Balance Presupuestario de Recursos Etiquetados sin Financiamiento Neto | E53: =E52-E47 -> 0.00 | F53: =F52-F47 -> 0.00 | G53: =G52-G47 -> 0.00
A55: Bajo protesta de decir verdad declaramos que los Estados Financieros y sus notas, son razonablemente correctos y son responsabilidad del emisor.
C59: =Validacion!A7 -> LIC. JOSE HERIBERTO GARCIA MURILLO | E59: =Validacion!A9 -> LAE BRUNO GERMAN ENCISO GUILLEN
C61: Presidente Municipal o titular del ente público | E61: Encargado de la Hacienda Municipal o Responsable de las finanzas del ente público

Sheet F23 (hidden)
A1: ="Nombre del Ente Público: "&Validacion!A2 -> Nombre del Ente Público: Ixtlahuacán de los Membrillos
A2: Informativa Anual de Obras
A3: ='F6'!A3 -> DEL 1° DE ENERO AL 31 DE ENERO DE 2026
A4: (Cifra en pesos)
A5: NOMBRE DE OBRA O NÚMERO DE ORDEN DE TRABAJO | B5: LOCALIDAD | C5: DESCRIPCIÓN DE LA OBRA U OBJETO DEL CONTRATO | D5: NOMBRE DEL EJECUTOR DE LA OBRA | E5: UBICACIÓN GEOGRÁFICA | G5: MODALIDAD DE EJECUCIÓN | K5: PLAZO DE EJECUCIÓN | N5: PRORROGA Y/O DIFERIMIENTO | P5: ORIGEN DEL RECURSO (MONTO) | T5: IMPORTE TOTAL DEL PAGO | U5: ESTATUS DE LA OBRA | V5: ENTREGA RECEPCIÓN Y/O MINUTA DE TERMINACIÓIN
G7: ADMÓN. DIRECTA | H7: CONTRATO
E8: LATITUD | F8: LONGITUD | H8: ADJ. DIRECTA | I8: CONCURSO SIMPL. | J8: LICITA. PÚBLICA | K8: INICIO | L8: TERMINO | M8: DÍAS NATURALES | N8: SI | O8: NO | P8: PROPIOS | Q8: ESTATAL | R8: FISMDF | S8: CONVENIO FEDERAL | V8: SI | W8: NO
M9: =L9-K9 -> 0 | T9: =SUM(P9:S9) -> 0.00
M10: =L10-K10 -> 0 | T10: =SUM(P10:S10) -> 0.00
M11: 0 | T11: 0.00
M12: 0 | T12: 0.00
M13: 0 | T13: 0.00
M14: 0 | T14: 0.00
M15: 0 | T15: 0.00
M16: 0 | T16: 0.00
M17: 0 | T17: 0.00
M18: 0 | T18: 0.00
M19: 0 | T19: 0.00
M20: 0 | T20: 0.00
M21: 0 | T21: 0.00
M22: 0 | T22: 0.00
M23: 0 | T23: 0.00
M24: 0 | T24: 0.00
M25: 0 | T25: 0.00
M26: 0 | T26: 0.00
M27: 0 | T27: 0.00
M28: 0 | T28: 0.00
M29: 0 | T29: 0.00
M30: 0 | T30: 0.00
M31: 0 | T31: 0.00
M32: 0 | T32: 0.00
M33: 0 | T33: 0.00
M34: 0 | T34: 0.00
M35: 0 | T35: 0.00
M36: 0 | T36: 0.00
M37: 0 | T37: 0.00
M38: 0 | T38: 0.00
M39: 0 | T39: 0.00
M40: 0 | T40: 0.00
M41: 0 | T41: 0.00
M42: 0 | T42: 0.00
M43: 0 | T43: 0.00
M44: 0 | T44: 0.00
M45: 0 | T45: 0.00
M46: 0 | T46: 0.00
M47: 0 | T47: 0.00
M48: 0 | T48: 0.00
M49: 0 | T49: 0.00
M50: 0 | T50: 0.00
M51: 0 | T51: 0.00
M52: 0 | T52: 0.00
M53: 0 | T53: 0.00
M54: 0 | T54: 0.00
M55: 0 | T55: 0.00
M56: 0 | T56: 0.00
M57: 0 | T57: 0.00
M58: 0 | T58: 0.00
M59: 0 | T59: 0.00
M60: 0 | T60: 0.00
M61: 0 | T61: 0.00
M62: 0 | T62: 0.00
M63: 0 | T63: 0.00
M64: 0 | T64: 0.00
M65: 0 | T65: 0.00
M66: 0 | T66: 0.00
M67: 0 | T67: 0.00
M68: 0 | T68: 0.00
M69: 0 | T69: 0.00
M70: 0 | T70: 0.00
M71: 0 | T71: 0.00
M72: 0 | T72: 0.00
M73: 0 | T73: 0.00
M74: =L74-K74 -> 0 | T74: =SUM(P74:S74) -> 0.00
M75: 0 | T75: 0.00
M76: 0 | T76: 0.00
M77: 0 | T77: 0.00
M78: 0 | T78: 0.00
M79: 0 | T79: 0.00
M80: 0 | T80: 0.00
M81: 0 | T81: 0.00
M82: 0 | T82: 0.00
M83: 0 | T83: 0.00
M84: 0 | T84: 0.00
M85: 0 | T85: 0.00
M86: 0 | T86: 0.00
M87: 0 | T87: 0.00
M88: 0 | T88: 0.00
M89: 0 | T89: 0.00
M90: 0 | T90: 0.00
M91: 0 | T91: 0.00
M92: 0 | T92: 0.00
M93: 0 | T93: 0.00
M94: 0 | T94: 0.00
M95: 0 | T95: 0.00
M96: 0 | T96: 0.00
M97: 0 | T97: 0.00
M98: 0 | T98: 0.00
M99: 0 | T99: 0.00
M100: 0 | T100: 0.00
M101: 0 | T101: 0.00
M102: 0 | T102: 0.00
M103: 0 | T103: 0.00
M104: 0 | T104: 0.00
M105: 0 | T105: 0.00
M106: 0 | T106: 0.00
M107: 0 | T107: 0.00
M108: 0 | T108: 0.00
M109: 0 | T109: 0.00
M110: 0 | T110: 0.00
M111: 0 | T111: 0.00
M112: 0 | T112: 0.00
M113: 0 | T113: 0.00
M114: 0 | T114: 0.00
M115: 0 | T115: 0.00
M116: 0 | T116: 0.00
M117: 0 | T117: 0.00
M118: 0 | T118: 0.00
M119: 0 | T119: 0.00
M120: 0 | T120: 0.00
M121: 0 | T121: 0.00
M122: 0 | T122: 0.00
M123: 0 | T123: 0.00
M124: 0 | T124: 0.00
M125: 0 | T125: 0.00
M126: 0 | T126: 0.00
M127: 0 | T127: 0.00
M128: 0 | T128: 0.00
M129: 0 | T129: 0.00
M130: 0 | T130: 0.00
M131: 0 | T131: 0.00
M132: 0 | T132: 0.00
M133: 0 | T133: 0.00
M134: 0 | T134: 0.00
M135: 0 | T135: 0.00
M136: 0 | T136: 0.00
M137: 0 | T137: 0.00
M138: =L138-K138 -> 0 | T138: =SUM(P138:S138) -> 0.00
M139: 0 | T139: 0.00
M140: 0 | T140: 0.00
M141: 0 | T141: 0.00
M142: 0 | T142: 0.00
M143: 0 | T143: 0.00
M144: 0 | T144: 0.00
M145: 0 | T145: 0.00
M146: 0 | T146: 0.00
M147: 0 | T147: 0.00
M148: 0 | T148: 0.00
M149: 0 | T149: 0.00
M150: 0 | T150: 0.00
M151: 0 | T151: 0.00
M152: 0 | T152: 0.00
M153: 0 | T153: 0.00
M154: 0 | T154: 0.00
M155: 0 | T155: 0.00
M156: 0 | T156: 0.00
M157: 0 | T157: 0.00
M158: 0 | T158: 0.00
M159: 0 | T159: 0.00
M160: 0 | T160: 0.00
M161: 0 | T161: 0.00
M162: 0 | T162: 0.00
M163: 0 | T163: 0.00
M164: 0 | T164: 0.00
M165: 0 | T165: 0.00
M166: 0 | T166: 0.00
M167: 0 | T167: 0.00
M168: 0 | T168: 0.00
M169: 0 | T169: 0.00
M170: 0 | T170: 0.00
M171: 0 | T171: 0.00
M172: 0 | T172: 0.00
M173: 0 | T173: 0.00
M174: 0 | T174: 0.00
M175: 0 | T175: 0.00
M176: 0 | T176: 0.00
M177: 0 | T177: 0.00
M178: 0 | T178: 0.00
M179: 0 | T179: 0.00
M180: 0 | T180: 0.00
M181: 0 | T181: 0.00
M182: 0 | T182: 0.00
M183: 0 | T183: 0.00
M184: 0 | T184: 0.00
M185: 0 | T185: 0.00
M186: 0 | T186: 0.00
M187: 0 | T187: 0.00
M188: 0 | T188: 0.00
M189: 0 | T189: 0.00
M190: 0 | T190: 0.00
M191: 0 | T191: 0.00
M192: 0 | T192: 0.00
M193: 0 | T193: 0.00
M194: 0 | T194: 0.00
M195: 0 | T195: 0.00
M196: 0 | T196: 0.00
M197: 0 | T197: 0.00
M198: 0 | T198: 0.00
M199: 0 | T199: 0.00
M200: 0 | T200: 0.00
M201: 0 | T201: 0.00
... 299 more rows

Sheet F1 (hidden)
B1: ="Nombre del Ente Público: "&Validacion!A2 -> Nombre del Ente Público: Ixtlahuacán de los Membrillos
B2: Estado Analítico de Situación Financiera
B3: ="Al "&INDEX(Validacion!D185:D196,MATCH(Validacion!A11,Validacion!C185:C196,0)) -> Al 31 de Enero de 2026
B4: (Cifra en pesos)
A5: CTA | B5: Concepto | AF5: =Validacion!F185 -> 2026 | AG5: =Validacion!F186 -> 2025 | AH5: CTA | AI5: Concepto | BM5: =Validacion!F185 -> 2026 | BN5: =Validacion!F186 -> 2025
A6: 10000 | B6: ACTIVO | AH6: 20000 | AI6: PASIVO
A7: 11000 | B7: ACTIVO CIRCULANTE | AH7: 21000 | AI7: PASIVO CIRCULANTE
A8: 11100 | B8: EFECTIVO Y EQUIVALENTES | AF8: =SUM(AF9:AF15) -> 11,441,107.55 | AG8: =SUM(AG9:AG15) -> 2,739,418.71 | AH8: 21100 | AI8: CUENTAS POR PAGAR A CORTO PLAZO | BM8: =SUM(BM9:BM17) -> 6,824,990.67 | BN8: =SUM(BN9:BN17) -> 7,039,817.08
A9: 11110 | B9: Efectivo | AF9: =Balanza!G6 -> 297,939.06 | AG9: =Balanza!C6 -> 297,939.06 | AH9: 21110 | AI9: Servicios personales por pagar a corto plazo | BM9: =Balanza!H104 -> 145.00 | BN9: =Balanza!D104 -> 0.00
A10: 11120 | B10: Bancos/Tesorería | AF10: =Balanza!G7 -> 6,308,568.49 | AG10: =Balanza!C7 -> -2,393,120.35 | AH10: 21120 | AI10: Proveedores por pagar a corto plazo | BM10: =Balanza!H105 -> 7,256,438.35 | BN10: =Balanza!D105 -> 7,637,422.77
A11: 11130 | B11: Bancos/Dependencias y otros | AF11: =Balanza!G8 -> 0.00 | AG11: =Balanza!C8 -> 0.00 | AH11: 21130 | AI11: Contratistas por obras públicas por pagar a corto plazo | BM11: =Balanza!H106 -> 0.00 | BN11: =Balanza!D106 -> 0.00
A12: 11140 | B12: Inversiones temporales (hasta 3 meses) | AF12: =Balanza!G9 -> 0.00 | AG12: =Balanza!C9 -> 0.00 | AH12: 21140 | AI12: Participaciones y aportaciones por pagar a corto plazo | BM12: =Balanza!H107 -> 0.00 | BN12: =Balanza!D107 -> 0.00
A13: 11150 | B13: Fondos con afectación específica | AF13: =Balanza!G10 -> 0.00 | AG13: =Balanza!C10 -> 0.00 | AH13: 21150 | AI13: Transferencias otorgadas por pagar a corto plazo | BM13: =Balanza!H108 -> 0.00 | BN13: =Balanza!D108 -> 0.00
A14: 11160 | B14: Depósitos de fondos de terceros en garantía y/o administración | AF14: =Balanza!G11 -> 0.00 | AG14: =Balanza!C11 -> 0.00 | AH14: 21160 | AI14: Intereses, comisiones y otros gastos de la deuda pública por pagar a corto plazo | BM14: =Balanza!H109 -> 0.00 | BN14: =Balanza!D109 -> 0.00
A15: 11190 | B15: Otros efectivos y equivalentes | AF15: =Balanza!G12 -> 4,834,600.00 | AG15: =Balanza!C12 -> 4,834,600.00 | AH15: 21170 | AI15: Retenciones y contribuciones por pagar a corto plazo | BM15: =Balanza!H110 -> -431,592.68 | BN15: =Balanza!D110 -> -597,605.69
A16: 11200 | B16: DERECHOS A RECIBIR EFECTIVO O EQUIVALENTES | AF16: =SUM(AF17:AF23) -> 4,756,017.48 | AG16: =SUM(AG17:AG23) -> 4,312,934.56 | AH16: 21180 | AI16: Devoluciones de la ley de ingresos por pagar a corto plazo | BM16: =Balanza!H111 -> 0.00 | BN16: =Balanza!D111 -> 0.00
A17: 11210 | B17: Inversiones financieras de corto plazo | AF17: =Balanza!G14 -> 0.00 | AG17: =Balanza!C14 -> 0.00 | AH17: 21190 | AI17: Otras cuentas por pagar a corto plazo | BM17: =Balanza!H112 -> 0.00 | BN17: =Balanza!D112 -> 0.00
A18: 11220 | B18: Cuentas por cobrar a corto plazo | AF18: =Balanza!G15 -> 0.00 | AG18: =Balanza!C15 -> 0.00 | AH18: 21200 | AI18: DOCUMENTOS POR PAGAR A CORTO PLAZO | BM18: =SUM(BM19:BM21) -> 372,541.27 | BN18: =SUM(BN19:BN21) -> 372,541.27
A19: 11230 | B19: Deudores diversos por cobrar a corto plazo | AF19: =Balanza!G16 -> 14,195,643.86 | AG19: =Balanza!C16 -> 12,728,163.46 | AH19: 21210 | AI19: Documentos comerciales por pagar a corto plazo | BM19: =Balanza!H114 -> 0.00 | BN19: =Balanza!D114 -> 0.00
A20: 11240 | B20: Ingresos por recuperar a corto plazo | AF20: =Balanza!G17 -> 0.00 | AG20: =Balanza!C17 -> 0.00 | AH20: 21220 | AI20: Documentos con contratistas por obras públicas por pagar a corto plazo | BM20: =Balanza!H115 -> 372,541.27 | BN20: =Balanza!D115 -> 372,541.27
A21: 11250 | B21: Deudores por anticipos de la tesorería a corto plazo | AF21: =Balanza!G18 -> -11,056,330.32 | AG21: =Balanza!C18 -> -9,888,799.43 | AH21: 21290 | AI21: Otros documentos por pagar a corto plazo | BM21: =Balanza!H116 -> 0.00 | BN21: =Balanza!D116 -> 0.00
A22: 11260 | B22: Préstamos otorgados a corto plazo | AF22: =Balanza!G19 -> 1,616,703.94 | AG22: =Balanza!C19 -> 1,473,570.53 | AH22: 21300 | AI22: PORCIÓN A CORTO PLAZO DE LA DEUDA PÚBLICA A LARGO PLAZO | BM22: =SUM(BM23:BM25) -> 849,023.57 | BN22: =SUM(BN23:BN25) -> 0.00
A23: 11290 | B23: Otros derechos a recibir efectivo o equivalentes a corto plazo | AF23: =Balanza!G20 -> 0.00 | AG23: =Balanza!C20 -> 0.00 | AH23: 21310 | AI23: Porción a corto plazo de la deuda pública interna | BM23: =Balanza!H118 -> 849,023.57 | BN23: =Balanza!D118 -> 0.00
A24: 11300 | B24: DERECHOS A RECIBIR BIENES O SERVICIOS | AF24: =SUM(AF25:AF29) -> 5,960,656.96 | AG24: =SUM(AG25:AG29) -> 5,581,556.70 | AH24: 21320 | AI24: Porción a corto plazo de la deuda pública externa | BM24: =Balanza!H119 -> 0.00 | BN24: =Balanza!D119 -> 0.00
A25: 11310 | B25: Anticipo a proveedores por adquisición de bienes y prestación de servicios a corto plazo | AF25: =Balanza!G22 -> 5,474,836.89 | AG25: =Balanza!C22 -> 5,581,556.89 | AH25: 21330 | AI25: Porción a corto plazo de arrendamiento financiero | BM25: =Balanza!H120 -> 0.00 | BN25: =Balanza!D120 -> 0.00
A26: 11320 | B26: Anticipo a proveedores por adquisición de bienes inmuebles y muebles a corto plazo | AF26: =Balanza!G23 -> 0.00 | AG26: =Balanza!C23 -> 0.00 | AH26: 21400 | AI26: TÍTULOS Y VALORES A CORTO PLAZO | BM26: =SUM(BM27:BM28) -> 0.00 | BN26: =SUM(BN27:BN28) -> 0.00
A27: 11330 | B27: Anticipo a proveedores por adquisición de bienes intangibles a corto plazo | AF27: =Balanza!G24 -> 0.00 | AG27: =Balanza!C24 -> 0.00 | AH27: 21410 | AI27: Títulos y valores de la deuda pública interna a corto plazo | BM27: =Balanza!H122 -> 0.00 | BN27: =Balanza!D122 -> 0.00
A28: 11340 | B28: Anticipo a contratistas por obras públicas a corto plazo | AF28: =Balanza!G25 -> 485,820.07 | AG28: =Balanza!C25 -> -0.19 | AH28: 21420 | AI28: Títulos y valores de la deuda pública externa a corto plazo | BM28: =Balanza!H123 -> 0.00 | BN28: =Balanza!D123 -> 0.00
A29: 11390 | B29: Otros derechos a recibir bienes o servicios a corto plazo | AF29: =Balanza!G26 -> 0.00 | AG29: =Balanza!C26 -> 0.00 | AH29: 21500 | AI29: PASIVOS DIFERIDOS A CORTO PLAZO | BM29: =SUM(BM30:BM32) -> 0.00 | BN29: =SUM(BN30:BN32) -> 0.00
A30: 11400 | B30: INVENTARIOS | AF30: =SUM(AF31:AF35) -> 0.00 | AG30: =SUM(AG31:AG35) -> 0.00 | AH30: 21510 | AI30: Ingresos cobrados por adelantado a corto plazo | BM30: =Balanza!H125 -> 0.00 | BN30: =Balanza!D125 -> 0.00
A31: 11410 | B31: Inventario de mercancías para venta | AF31: =Balanza!G28 -> 0.00 | AG31: =Balanza!C28 -> 0.00 | AH31: 21520 | AI31: Intereses cobrados por adelantado a corto plazo | BM31: =Balanza!H126 -> 0.00 | BN31: =Balanza!D126 -> 0.00
A32: 11420 | B32: Inventario de mercancías terminadas | AF32: =Balanza!G29 -> 0.00 | AG32: =Balanza!C29 -> 0.00 | AH32: 21590 | AI32: Otros pasivos diferidos a corto plazo | BM32: =Balanza!H127 -> 0.00 | BN32: =Balanza!D127 -> 0.00
A33: 11430 | B33: Inventario de mercancías en proceso de elaboración | AF33: =Balanza!G30 -> 0.00 | AG33: =Balanza!C30 -> 0.00 | AH33: 21600 | AI33: FONDOS Y BIENES DE TERCEROS EN GARANTÍA Y/O ADMINISTRACIÓN A CORTO PLAZO | BM33: =SUM(BM34:BM39) -> 0.00 | BN33: =SUM(BN34:BN39) -> 0.00
A34: 11440 | B34: Inventario de materias primas, materiales y suministros para producción | AF34: =Balanza!G31 -> 0.00 | AG34: =Balanza!C31 -> 0.00 | AH34: 21610 | AI34: Fondos en garantía a corto plazo | BM34: =Balanza!H129 -> 0.00 | BN34: =Balanza!D129 -> 0.00
A35: 11450 | B35: Bienes en tránsito | AF35: =Balanza!G32 -> 0.00 | AG35: =Balanza!C32 -> 0.00 | AH35: 21620 | AI35: Fondos en administración a corto plazo | BM35: =Balanza!H130 -> 0.00 | BN35: =Balanza!D130 -> 0.00
A36: 11500 | B36: ALMACENES | AF36: =AF37 -> 0.00 | AG36: =AG37 -> 0.00 | AH36: 21630 | AI36: Fondos contingentes a corto plazo | BM36: =Balanza!H131 -> 0.00 | BN36: =Balanza!D131 -> 0.00
A37: 11510 | B37: Almacén de materiales y suministro para el consumo | AF37: =Balanza!G34 -> 0.00 | AG37: =Balanza!C34 -> 0.00 | AH37: 21640 | AI37: Fondos de fideicomisos, mandatos y contratos análogos a corto plazo | BM37: =Balanza!H132 -> 0.00 | BN37: =Balanza!D132 -> 0.00
A38: 11600 | B38: ESTIMACIÓN POR PÉRDIDA O DETERIORO DE ACTIVOS CIRCULANTES | AF38: =SUM(AF39:AF40) -> 0.00 | AG38: =SUM(AG39:AG40) -> 0.00 | AH38: 21650 | AI38: Otros fondos de terceros en garantía y/o administración a corto plazo | BM38: =Balanza!H133 -> 0.00 | BN38: =Balanza!D133 -> 0.00
A39: 11610 | B39: Estimaciones para cuentas incobrables por derechos a recibir efectivo o equivalentes | AF39: =Balanza!G36 -> 0.00 | AG39: =Balanza!C36 -> 0.00 | AH39: 21660 | AI39: Valores y bienes en garantía a corto plazo | BM39: =Balanza!H134 -> 0.00 | BN39: =Balanza!D134 -> 0.00
A40: 11620 | B40: Estimación por deterioro de inventarios | AF40: =Balanza!G37 -> 0.00 | AG40: =Balanza!C37 -> 0.00 | AH40: 21700 | AI40: PROVISIONES A CORTO PLAZO | BM40: =SUM(BM41:BM43) -> 0.00 | BN40: =SUM(BN41:BN43) -> 0.00
A41: 11900 | B41: OTROS ACTIVOS CIRCULANTES | AF41: =SUM(AF42:AF45) -> 0.00 | AG41: =SUM(AG42:AG45) -> 0.00 | AH41: 21710 | AI41: Provisión para demandas y juicios a corto plazo | BM41: =Balanza!H136 -> 0.00 | BN41: =Balanza!D136 -> 0.00
A42: 11910 | B42: Valores en garantía | AF42: =Balanza!G39 -> 0.00 | AG42: =Balanza!C39 -> 0.00 | AH42: 21720 | AI42: Provisión para contingencias a corto plazo | BM42: =Balanza!H137 -> 0.00 | BN42: =Balanza!D137 -> 0.00
A43: 11920 | B43: Bienes en garantía (excluye depósitos de fondos) | AF43: =Balanza!G40 -> 0.00 | AG43: =Balanza!C40 -> 0.00 | AH43: 21790 | AI43: Otras provisiones a corto plazo | BM43: =Balanza!H138 -> 0.00 | BN43: =Balanza!D138 -> 0.00
A44: 11930 | B44: Bienes derivados de embargos, decomisos, aseguramientos y dación en pago | AF44: =Balanza!G41 -> 0.00 | AG44: =Balanza!C41 -> 0.00 | AH44: 21900 | AI44: OTROS PASIVOS A CORTO PLAZO | BM44: =SUM(BM45:BM47) -> 0.00 | BN44: =SUM(BN45:BN47) -> 0.00
A45: 11940 | B45: Adquisición con fondos de terceros | AF45: =Balanza!G42 -> 0.00 | AG45: =Balanza!C42 -> 0.00 | AH45: 21910 | AI45: Ingresos por clasificar | BM45: =Balanza!H140 -> 0.00 | BN45: =Balanza!D140 -> 0.00
B46: ACTIVOS CIRCULANTES | AF46: =AF8+AF16+AF24+AF30+AF36+AF38+AF41 -> 22,157,781.99 | AG46: =AG8+AG16+AG24+AG30+AG36+AG38+AG41 -> 12,633,909.97 | AH46: 21920 | AI46: Recaudación por participar | BM46: =Balanza!H141 -> 0.00 | BN46: =Balanza!D141 -> 0.00
A47: 12000 | B47: ACTIVO NO CIRCULANTE | AH47: 21990 | AI47: Otros pasivos circulantes | BM47: =Balanza!H142 -> 0.00 | BN47: =Balanza!D142 -> 0.00
A48: 12100 | B48: INVERSIONES FINANCIERAS A LARGO PLAZO | AF48: =SUM(AF49:AF52) -> 40,562.35 | AG48: =SUM(AG49:AG52) -> 0.00 | AI48: PASIVOS CIRCULANTES | BM48: =BM8+BM18+BM22+BM26+BM29+BM33+BM40+BM44 -> 8,046,555.51 | BN48: =BN8+BN18+BN22+BN26+BN29+BN33+BN40+BN44 -> 7,412,358.35
A49: 12110 | B49: Inversiones a largo plazo | AF49: =Balanza!G45 -> 40,562.35 | AG49: =Balanza!C45 -> 0.00 | AH49: 22000 | AI49: PASIVO NO CIRCULANTE
A50: 12120 | B50: Títulos y valores a largo plazo | AF50: =Balanza!G46 -> 0.00 | AG50: =Balanza!C46 -> 0.00 | AH50: 22100 | AI50: CUENTAS POR PAGAR A LARGO PLAZO | BM50: =SUM(BM51:BM52) -> 0.00 | BN50: =SUM(BN51:BN52) -> 0.00
A51: 12130 | B51: Fideicomisos, mandatos y contratos análogos | AF51: =Balanza!G47 -> 0.00 | AG51: =Balanza!C47 -> 0.00 | AH51: 22110 | AI51: Proveedores por pagar a largo plazo | BM51: =Balanza!H145 -> 0.00 | BN51: =Balanza!D145 -> 0.00
A52: 12140 | B52: Participaciones y aportaciones de capital | AF52: =Balanza!G48 -> 0.00 | AG52: =Balanza!C48 -> 0.00 | AH52: 22120 | AI52: Contratistas por obras públicas por pagar a largo plazo | BM52: =Balanza!H146 -> 0.00 | BN52: =Balanza!D146 -> 0.00
A53: 12200 | B53: DERECHOS A RECIBIR EFECTIVO O EQUIVALENTES A LARGO PLAZO | AF53: =SUM(AF54:AF58) -> 0.00 | AG53: =SUM(AG54:AG58) -> 0.00 | AH53: 22200 | AI53: DOCUMENTOS POR PAGAR A LARGO PLAZO | BM53: =SUM(BM54:BM56) -> 0.00 | BN53: =SUM(BN54:BN56) -> 0.00
A54: 12210 | B54: Documentos por cobrar a largo plazo | AF54: =Balanza!G50 -> 0.00 | AG54: =Balanza!C50 -> 0.00 | AH54: 22210 | AI54: Documentos comerciales por pagar a largo plazo | BM54: =Balanza!H148 -> 0.00 | BN54: =Balanza!D148 -> 0.00
A55: 12220 | B55: Deudores diversos a largo plazo | AF55: =Balanza!G51 -> 0.00 | AG55: =Balanza!C51 -> 0.00 | AH55: 22220 | AI55: Documentos con contratistas por obras públicas por pagar a largo plazo | BM55: =Balanza!H149 -> 0.00 | BN55: =Balanza!D149 -> 0.00
A56: 12230 | B56: Ingresos por recuperar a largo plazo | AF56: =Balanza!G52 -> 0.00 | AG56: =Balanza!C52 -> 0.00 | AH56: 22290 | AI56: Otros documentos por pagar a largo plazo | BM56: =Balanza!H150 -> 0.00 | BN56: =Balanza!D150 -> 0.00
A57: 12240 | B57: Préstamos otorgados a largo plazo | AF57: =Balanza!G53 -> 0.00 | AG57: =Balanza!C53 -> 0.00 | AH57: 22300 | AI57: DEUDA PÚBLICA A LARGO PLAZO | BM57: =SUM(BM58:BM62) -> 27,613,307.72 | BN57: =SUM(BN58:BN62) -> 28,533,916.26
A58: 12290 | B58: Otros derechos a recibir efectivo o equivalentes a largo plazo | AF58: =Balanza!G54 -> 0.00 | AG58: =Balanza!C54 -> 0.00 | AH58: 22310 | AI58: Títulos y valores de la deuda pública interna a largo plazo | BM58: =Balanza!H152 -> 0.00 | BN58: =Balanza!D152 -> 0.00
A59: 12300 | B59: BIENES INMUEBLES, INFRAESTRUCTURA Y CONSTRUCCIONES EN PROCESO | AF59: =SUM(AF60:AF66) -> 366,916,050.95 | AG59: =SUM(AG60:AG66) -> 366,636,307.45 | AH59: 22320 | AI59: Títulos y valores de la deuda pública externa a largo plazo | BM59: =Balanza!H153 -> 0.00 | BN59: =Balanza!D153 -> 0.00
A60: 12310 | B60: Terrenos | AF60: =Balanza!G56 -> 55,647,301.01 | AG60: =Balanza!C56 -> 55,647,301.01 | AH60: 22330 | AI60: Préstamos de la deuda pública interna por pagar a largo plazo | BM60: =Balanza!H154 -> 27,613,307.72 | BN60: =Balanza!D154 -> 28,533,916.26
A61: 12320 | B61: Viviendas | AF61: =Balanza!G57 -> 0.00 | AG61: =Balanza!C57 -> 0.00 | AH61: 22340 | AI61: Préstamos de la deuda pública externa por pagar a largo plazo | BM61: =Balanza!H155 -> 0.00 | BN61: =Balanza!D155 -> 0.00
A62: 12330 | B62: Edificios no habitacionales | AF62: =Balanza!G58 -> 33,513,320.53 | AG62: =Balanza!C58 -> 33,513,320.53 | AH62: 22350 | AI62: Arrendamiento financiero por pagar a largo plazo | BM62: =Balanza!H156 -> 0.00 | BN62: =Balanza!D156 -> 0.00
A63: 12340 | B63: Infraestructura | AF63: =Balanza!G59 -> 56,560,545.00 | AG63: =Balanza!C59 -> 56,560,545.00 | AH63: 22400 | AI63: PASIVOS DIFERIDOS A LARGO PLAZO | BM63: =SUM(BM64:BM66) -> 0.00 | BN63: =SUM(BN64:BN66) -> 0.00
A64: 12350 | B64: Construcciones en proceso en bienes de dominio público | AF64: =Balanza!G60 -> 221,194,884.41 | AG64: =Balanza!C60 -> 220,915,140.91 | AH64: 22410 | AI64: Créditos diferidos a largo plazo | BM64: =Balanza!H158 -> 0.00 | BN64: =Balanza!D158 -> 0.00
A65: 12360 | B65: Construcciones en proceso en bienes propios | AF65: =Balanza!G61 -> 0.00 | AG65: =Balanza!C61 -> 0.00 | AH65: 22420 | AI65: Intereses cobrados por adelantado a largo plazo | BM65: =Balanza!H159 -> 0.00 | BN65: =Balanza!D159 -> 0.00
A66: 12390 | B66: Otros bienes inmuebles | AF66: =Balanza!G62 -> 0.00 | AG66: =Balanza!C62 -> 0.00 | AH66: 22490 | AI66: Otros pasivos diferidos a largo plazo | BM66: =Balanza!H160 -> 0.00 | BN66: =Balanza!D160 -> 0.00
A67: 12400 | B67: BIENES MUEBLES | AF67: =SUM(AF68:AF75) -> 54,350,880.76 | AG67: =SUM(AG68:AG75) -> 54,303,320.76 | AH67: 22500 | AI67: FONDOS Y BIENES DE TERCEROS EN GARANTÍA Y/O ADMINISTRACIÓN A LARGO PLAZO | BM67: =SUM(BM68:BM73) -> 0.00 | BN67: =SUM(BN68:BN73) -> 0.00
A68: 12410 | B68: Mobiliario y equipo de administración | AF68: =Balanza!G64 -> 6,840,960.68 | AG68: =Balanza!C64 -> 6,840,960.68 | AH68: 22510 | AI68: Fondos en garantía a largo plazo | BM68: =Balanza!H162 -> 0.00 | BN68: =Balanza!D162 -> 0.00
A69: 12420 | B69: Mobiliario y equipo educacional y recreativo | AF69: =Balanza!G65 -> 1,250,481.82 | AG69: =Balanza!C65 -> 1,250,481.82 | AH69: 22520 | AI69: Fondos en administración a largo plazo | BM69: =Balanza!H163 -> 0.00 | BN69: =Balanza!D163 -> 0.00
A70: 12430 | B70: Equipo e instrumental médico y de laboratorio | AF70: =Balanza!G66 -> 2,063,418.20 | AG70: =Balanza!C66 -> 2,063,418.20 | AH70: 22530 | AI70: Fondos contingentes a largo plazo | BM70: =Balanza!H164 -> 0.00 | BN70: =Balanza!D164 -> 0.00
A71: 12440 | B71: Vehículos y equipo de transporte | AF71: =Balanza!G67 -> 34,915,759.02 | AG71: =Balanza!C67 -> 34,915,759.02 | AH71: 22540 | AI71: Fondos de fideicomisos, mandatos y contratos análogos a largo plazo | BM71: =Balanza!H165 -> 0.00 | BN71: =Balanza!D165 -> 0.00
A72: 12450 | B72: Equipo de defensa y seguridad | AF72: =Balanza!G68 -> 867,562.13 | AG72: =Balanza!C68 -> 867,562.13 | AH72: 22550 | AI72: Otros fondos de terceros en garantía y/o administración a largo plazo | BM72: =Balanza!H166 -> 0.00 | BN72: =Balanza!D166 -> 0.00
A73: 12460 | B73: Maquinaria, otros equipos y herramientas | AF73: =Balanza!G69 -> 7,779,470.45 | AG73: =Balanza!C69 -> 7,779,470.45 | AH73: 22560 | AI73: Valores y bienes en garantía a largo plazo | BM73: =Balanza!H167 -> 0.00 | BN73: =Balanza!D167 -> 0.00
A74: 12470 | B74: Colecciones, obras de arte y objetos valiosos | AF74: =Balanza!G70 -> 454,678.46 | AG74: =Balanza!C70 -> 407,118.46 | AH74: 22600 | AI74: PROVISIONES A LARGO PLAZO | BM74: =SUM(BM75:BM78) -> 0.00 | BN74: =SUM(BN75:BN78) -> 0.00
A75: 12480 | B75: Activos biológicos | AF75: =Balanza!G71 -> 178,550.00 | AG75: =Balanza!C71 -> 178,550.00 | AH75: 22610 | AI75: Provisión para demandas y juicios a largo plazo | BM75: =Balanza!H169 -> 0.00 | BN75: =Balanza!D169 -> 0.00
A76: 12500 | B76: ACTIVOS INTANGIBLES | AF76: =SUM(AF77:AF81) -> 2,757,222.70 | AG76: =SUM(AG77:AG81) -> 2,757,222.70 | AH76: 22620 | AI76: Provisión para pensiones a largo plazo | BM76: =Balanza!H170 -> 0.00 | BN76: =Balanza!D170 -> 0.00
A77: 12510 | B77: Software | AF77: =Balanza!G73 -> 34,678.20 | AG77: =Balanza!C73 -> 34,678.20 | AH77: 22630 | AI77: Provisión para contingencias a largo plazo | BM77: =Balanza!H171 -> 0.00 | BN77: =Balanza!D171 -> 0.00
A78: 12520 | B78: Patentes, marcas y derechos | AF78: =Balanza!G74 -> 0.00 | AG78: =Balanza!C74 -> 0.00 | AH78: 22690 | AI78: Otras provisiones a largo plazo | BM78: =Balanza!H172 -> 0.00 | BN78: =Balanza!D172 -> 0.00
A79: 12530 | B79: Concesiones y franquicias | AF79: =Balanza!G75 -> 0.00 | AG79: =Balanza!C75 -> 0.00 | AI79: PASIVOS NO CIRCULANTES | BM79: =BM50+BM53+BM57+BM63+BM67+BM74 -> 27,613,307.72 | BN79: =BN50+BN53+BN57+BN63+BN67+BN74 -> 28,533,916.26
A80: 12540 | B80: Licencias | AF80: =Balanza!G76 -> 2,722,544.50 | AG80: =Balanza!C76 -> 2,722,544.50 | AI80: TOTAL DE PASIVOS | BM80: =BM48+BM79 -> 35,659,863.23 | BN80: =BN48+BN79 -> 35,946,274.61
A81: 12590 | B81: Otros activos intangibles | AF81: =Balanza!G77 -> 0.00 | AG81: =Balanza!C77 -> 0.00 | AH81: 30000 | AI81: HACIENDA PÚBLICA/ PATRIMONIO
A82: 12600 | B82: DEPRECIACIÓN, DETERIORO Y AMORTIZACIÓN ACUMULADA DE BIENES | AF82: =SUM(AF83:AF87) -> -18,350,457.80 | AG82: =SUM(AG83:AG87) -> -18,350,457.80 | AH82: 31000 | AI82: HACIENDA PÚBLICA/ PATRIMONIO CONTRIBUIDO | BM82: =SUM(BM83:BM85) -> 0.00 | BN82: =SUM(BN83:BN85) -> 0.00
A83: 12610 | B83: Depreciación acumulada de bienes inmuebles | AF83: =(Balanza!H79)*-1 -> -120,623.78 | AG83: =(Balanza!D79)*-1 -> -120,623.78 | AH83: 31100 | AI83: Aportaciones | BM83: =Balanza!H175 -> 0.00 | BN83: =Balanza!D175 -> 0.00
A84: 12620 | B84: Depreciación acumulada de infraestructura | AF84: =(Balanza!H80)*-1 -> 0.00 | AG84: =(Balanza!D80)*-1 -> 0.00 | AH84: 31200 | AI84: Donaciones de capítal | BM84: =Balanza!H176 -> 0.00 | BN84: =Balanza!D176 -> 0.00
